Workbook

Sheet Exhibit PSC 2-1

Sheet 1.1 Recommended Cap Structure
A1: =Input!G28 -> Bluegrass Water (KY) Utility Operating Company, Inc.
A2: Recommended Capital Structure and Cost Rates
A3: for Ratemaking Purposes
B6: Type Of Capital | D6: Ratios (1) | F6: Cost Rate | H6: Weighted Cost Rate
B8: Long-Term Debt | D8: =Input!F13 -> 0.3884 | F8: ='3.1 LTD Effective Cost'!M6 -> 0.068 | G8: (2) | H8: =ROUND(F8*D8,4) -> 0.0264
B9: Common Equity | D9: =Input!F14 -> 0.6116 | F9: ='1.2 Summary of CE Models'!E21 -> 0.1165 | G9: (3) | H9: =ROUND(F9*D9,4) -> 0.0713
B11: Total | D11: =SUM(D8:D9) -> 1 | H11: =SUM(H8:H9) -> 0.0977
A14: Notes:
A16: (1) | B16: Company provided.
A17: (2) | B17: From page 1 of Exhibit DWD-3.
A18: (2) | B18: From page 2 of this Exhibit.

Sheet 1.2 Summary of CE Models
A1: =Input!G28 -> Bluegrass Water (KY) Utility Operating Company, Inc.
A2: Brief Summary of Common Equity Cost Rate
A5: Line No. | C5: Principal Methods | E5: =Input!I31 -> Proxy Group of Six Water Companies | G5: Proxy Group of Six Water Companies ex PRPM
A7: 1. | C7: Discounted Cash Flow Model (DCF) (1) | E7: =IFERROR('4.1 DCF Summary'!V21,"NA")/100 -> 0.0916 | G7: =E7 -> 0.0916 | I7: =AVERAGE(E7,E9) -> 0.10625 | L7: =AVERAGE(G7,G9) -> 0.10235
I8: =I7-0.005 -> 0.10125 | K8: =I7+0.005 -> 0.11125 | L8: =L7-0.005 -> 0.09735 | N8: =L7+0.005 -> 0.10735
A9: 2. | C9: Risk Premium Model (RPM) (2) | E9: =IFERROR('5.1 RPM Summary'!D10,"NA")/100 -> 0.1209 | G9: ='5.1 RPM Summary'!G10/100 -> 0.1131
A11: 3. | C11: Capital Asset Pricing Model (CAPM) (3) | E11: =IFERROR('6.1 CAPM'!V20,"NA")/100 -> 0.1158 | G11: ='6.1 CAPM'!V37/100 -> 0.1139 | I11: =I8+E17 -> 0.11125 | K11: =K8+E17 -> 0.12125 | L11: =L8+G17 -> 0.10735 | N11: =N8+G17 -> 0.11735
A13: 4. | C13: Market Models Applied to Comparable Risk, Non-Price Regulated Companies (4) | E13: =IFERROR('8.1 CEM Summary'!E19,"NA")/100 -> 0.114 | G13: ='8.1 CEM Summary'!H19/100 -> 0.1124
I14: =AVERAGE(I11:K11) -> 0.11625 | L14: =AVERAGE(L11:N11) -> 0.11235
A15: 5. | C15: Indicated Common Equity Cost Rate before Adjustment for Unique Risk | E15: =_xlfn.CONCAT(TEXT(I8,"0.00%")," - ",TEXT(K8,"0.00%")) -> 10.13% - 11.13% | G15: =_xlfn.CONCAT(TEXT(L8,"0.00%")," - ",TEXT(N8,"0.00%")) -> 9.74% - 10.74%
A17: 6. | C17: Business Risk Adjustment (5) | E17: 0.01 | G17: =E17 -> 0.01
A19: 7. | C19: Indicated Common Equity Cost Rate after Adjustment | E19: =_xlfn.CONCAT(TEXT(I11,"0.00%")," - ",TEXT(K11,"0.00%")) -> 11.13% - 12.13% | G19: =_xlfn.CONCAT(TEXT(L11,"0.00%")," - ",TEXT(N11,"0.00%")) -> 10.74% - 11.74%
A21: 8. | C21: Recommended Common Equity Cost Rate | E21: 0.1165
A23: Notes: | B23: (1) | C23: From page 1 of Exhibit DWD-4.
B24: (2) | C24: From page 1 of Exhibit DWD-5.
B25: (3) | C25: From page 1 of Exhibit DWD-6.
B26: (4) | C26: From page 1 of Exhibit DWD-8.
B27: (5) | C27: Business risk adjustment to reflect Bluegrass Water's unique risk compared to the Utility Proxy Group as detailed in the accompanying Direct Testimony.

Sheet 2.1 Proxy CapStr Summary
A1: Proxy Group of Six Water Companies
A2: CAPITALIZATION AND FINANCIAL STATISTICS (1)
A3: 2017 - 2021, Inclusive
C6: 2021 | E6: =C6-1 -> 2020 | G6: =E6-1 -> 2019 | I6: =G6-1 -> 2018 | K6: =I6-1 -> 2017
C7: (MILLIONS OF DOLLARS)
A8: Capitalization Statistics
A10: Amount of Capital Employed
A11: Total Permanent Capital | C11: =ROUND(AVERAGE('3. AWR:3. SJW'!S17),3) -> 5897.865 | E11: =ROUND(AVERAGE('3. AWR:3. SJW'!U17),3) -> 5348.616 | G11: =ROUND(AVERAGE('3. AWR:3. SJW'!W17),3) -> 4493.345 | I11: =ROUND(AVERAGE('3. AWR:3. SJW'!Y17),3) -> 3706.817 | K11: =ROUND(AVERAGE('3. AWR:3. SJW'!AA17),3) -> 3275.675
A12: Short-Term Debt | C12: =ROUND(AVERAGE('3. AWR:3. SJW'!S18),3) -> 155.749 | E12: =ROUND(AVERAGE('3. AWR:3. SJW'!U18),3) -> 340.249 | G12: =ROUND(AVERAGE('3. AWR:3. SJW'!W18),3) -> 220.672 | I12: =ROUND(AVERAGE('3. AWR:3. SJW'!Y18),3) -> 214.758 | K12: =ROUND(AVERAGE('3. AWR:3. SJW'!AA18),3) -> 215.958
A13: Total Capital Employed | C13: =SUM(C11:C12) -> 6053.614 | E13: =SUM(E11:E12) -> 5688.865 | G13: =SUM(G11:G12) -> 4714.017 | I13: =SUM(I11:I12) -> 3921.575 | K13: =SUM(K11:K12) -> 3491.633
A15: Indicated Average Capital Cost Rates (2)
A16: Total Debt | C16: =ROUND(AVERAGE('3. AWR:3. SJW'!S22),3) -> 3.513 | D16: % | E16: =ROUND(AVERAGE('3. AWR:3. SJW'!U22),3) -> 3.78 | F16: % | G16: =ROUND(AVERAGE('3. AWR:3. SJW'!W22),3) -> 4.007 | H16: % | I16: =ROUND(AVERAGE('3. AWR:3. SJW'!Y22),3) -> 4.552 | J16: % | K16: =ROUND(AVERAGE('3. AWR:3. SJW'!AA22),3) -> 4.62 | L16: %
A17: Preferred Stock | C17: =ROUND(AVERAGE('3. AWR:3. SJW'!S23),3) -> 5.76 | D17: % | E17: =ROUND(AVERAGE('3. AWR:3. SJW'!U23),3) -> 5.76 | F17: % | G17: =ROUND(AVERAGE('3. AWR:3. SJW'!W23),3) -> 5.84 | H17: % | I17: =ROUND(AVERAGE('3. AWR:3. SJW'!Y23),3) -> 5.92 | J17: % | K17: =ROUND(AVERAGE('3. AWR:3. SJW'!AA23),3) -> 5.91 | L17: %
M18: 5 YEAR
A19: Capital Structure Ratios | M19: AVERAGE
A20: Based on Total Permanent Capital:
A21: Long-Term Debt | C21: =ROUND(AVERAGE('3. AWR:3. SJW'!S27),2) -> 50.4 | D21: % | E21: =ROUND(AVERAGE('3. AWR:3. SJW'!U27),2) -> 50.92 | F21: % | G21: =ROUND(AVERAGE('3. AWR:3. SJW'!W27),2) -> 47.81 | H21: % | I21: =ROUND(AVERAGE('3. AWR:3. SJW'!Y27),2) -> 45.58 | J21: % | K21: =ROUND(AVERAGE('3. AWR:3. SJW'!AA27),2) -> 46.01 | L21: % | M21: =ROUND(AVERAGE(C21:K21),2) -> 48.14 | N21: %
A22: Preferred Stock | C22: =ROUND(AVERAGE('3. AWR:3. SJW'!S28),2)-0.01 -> 0.05 | E22: =ROUND(AVERAGE('3. AWR:3. SJW'!U28),2) -> 0.06 | G22: =ROUND(AVERAGE('3. AWR:3. SJW'!W28),2)-0.01 -> 0.06 | I22: =ROUND(AVERAGE('3. AWR:3. SJW'!Y28),2) -> 0.11 | K22: =ROUND(AVERAGE('3. AWR:3. SJW'!AA28),2) -> 0.12 | M22: =ROUND(AVERAGE(C22:K22),2) -> 0.08
A23: Common Equity | C23: =ROUND(AVERAGE('3. AWR:3. SJW'!S29),2) -> 49.55 | E23: =ROUND(AVERAGE('3. AWR:3. SJW'!U29),2) -> 49.02 | G23: =ROUND(AVERAGE('3. AWR:3. SJW'!W29),2) -> 52.13 | I23: =ROUND(AVERAGE('3. AWR:3. SJW'!Y29),2)+0 -> 54.31 | K23: =ROUND(AVERAGE('3. AWR:3. SJW'!AA29),2) -> 53.87 | M23: =ROUND(AVERAGE(C23:K23),2) -> 51.78
A24: Total | C24: =ROUND(SUM(C21:C23),2) -> 100 | D24: % | E24: =ROUND(SUM(E21:E23),2) -> 100 | F24: % | G24: =ROUND(SUM(G21:G23),2) -> 100 | H24: % | I24: =ROUND(SUM(I21:I23),2) -> 100 | J24: % | K24: =ROUND(SUM(K21:K23),2) -> 100 | L24: % | M24: =ROUND(SUM(M21:M23),2) -> 100 | N24: %
A26: Based on Total Capital:
A27: Total Debt, Including Short-Term Debt | C27: =ROUND(AVERAGE('3. AWR:3. SJW'!S33),3) -> 52.56 | D27: % | E27: =ROUND(AVERAGE('3. AWR:3. SJW'!U33),3) -> 54.665 | F27: % | G27: =ROUND(AVERAGE('3. AWR:3. SJW'!W33),3) -> 51.778 | H27: % | I27: =ROUND(AVERAGE('3. AWR:3. SJW'!Y33),3) -> 49.305 | J27: % | K27: =ROUND(AVERAGE('3. AWR:3. SJW'!AA33),3) -> 49.87 | L27: % | M27: =ROUND(AVERAGE(C27:K27),2) -> 51.64 | N27: %
A28: Preferred Stock | C28: =ROUND(AVERAGE('3. AWR:3. SJW'!S34),3) -> 0.053 | E28: =ROUND(AVERAGE('3. AWR:3. SJW'!U34),3) -> 0.058 | G28: =ROUND(AVERAGE('3. AWR:3. SJW'!W34),3) -> 0.065 | I28: =ROUND(AVERAGE('3. AWR:3. SJW'!Y34),3) -> 0.097 | K28: =ROUND(AVERAGE('3. AWR:3. SJW'!AA34),3) -> 0.11 | M28: =ROUND(AVERAGE(C28:K28),2)-0.01 -> 0.07
A29: Common Equity | C29: =ROUND(AVERAGE('3. AWR:3. SJW'!S35),3) -> 47.388 | E29: =ROUND(AVERAGE('3. AWR:3. SJW'!U35),3) -> 45.275 | G29: =ROUND(AVERAGE('3. AWR:3. SJW'!W35),3) -> 48.157 | I29: =ROUND(AVERAGE('3. AWR:3. SJW'!Y35),3) -> 50.598 | K29: =ROUND(AVERAGE('3. AWR:3. SJW'!AA35),3) -> 50.02 | M29: =ROUND(AVERAGE(C29:K29),2) -> 48.29
A30: Total | C30: =ROUND(SUM(C27:C29),2) -> 100 | D30: % | E30: =ROUND(SUM(E27:E29),2) -> 100 | F30: % | G30: =ROUND(SUM(G27:G29),2) -> 100 | H30: % | I30: =ROUND(SUM(I27:I29),2) -> 100 | J30: % | K30: =ROUND(SUM(K27:K29),2) -> 100 | L30: % | M30: =ROUND(SUM(M27:M29),2) -> 100 | N30: %
A32: Financial Statistics
A34: Financial Ratios - Market Based
A35: Earnings / Price Ratio | C35: =ROUND(AVERAGE('3. AWR:3. SJW'!S43),3) -> 3.2 | D35: % | E35: =ROUND(AVERAGE('3. AWR:3. SJW'!U43),3) -> 3.243 | F35: % | G35: =ROUND(AVERAGE('3. AWR:3. SJW'!W43),3) -> 2.64 | H35: % | I35: =ROUND(AVERAGE('3. AWR:3. SJW'!Y43),3) -> 3.333 | J35: % | K35: =ROUND(AVERAGE('3. AWR:3. SJW'!AA43),3) -> 3.787 | L35: % | M35: =ROUND(AVERAGE(C35:K35),2) -> 3.24 | N35: %
A36: Market / Average Book Ratio | C36: =ROUND(AVERAGE('3. AWR:3. SJW'!S44),3) -> 352.632 | E36: =ROUND(AVERAGE('3. AWR:3. SJW'!U44),3) -> 315.403 | G36: =ROUND(AVERAGE('3. AWR:3. SJW'!W44),3) -> 332.388 | I36: =ROUND(AVERAGE('3. AWR:3. SJW'!Y44),3) -> 304.57 | K36: =ROUND(AVERAGE('3. AWR:3. SJW'!AA44),3) -> 296.608 | M36: =ROUND(AVERAGE(C36:K36),2) -> 320.32
A37: Dividend Yield | C37: =ROUND(AVERAGE('3. AWR:3. SJW'!S45),3) -> 1.668 | E37: =ROUND(AVERAGE('3. AWR:3. SJW'!U45),3) -> 1.833 | G37: =ROUND(AVERAGE('3. AWR:3. SJW'!W45),3) -> 1.768 | I37: =ROUND(AVERAGE('3. AWR:3. SJW'!Y45),3) -> 1.973 | K37: =ROUND(AVERAGE('3. AWR:3. SJW'!AA45),3) -> 2.022 | M37: 1.85
A38: Dividend Payout Ratio | C38: =ROUND(AVERAGE('3. AWR:3. SJW'!S46),3) -> 52.507 | E38: =ROUND(AVERAGE('3. AWR:3. SJW'!U46),3) -> 56.847 | G38: =ROUND(AVERAGE('3. AWR:3. SJW'!W46),3) -> 74.003 | I38: =ROUND(AVERAGE('3. AWR:3. SJW'!Y46),3) -> 59.403 | K38: =ROUND(AVERAGE('3. AWR:3. SJW'!AA46),3) -> 54.525 | M38: 59.46
A40: Rate of Return on Average Book Common Equity | C40: =ROUND(AVERAGE('3. AWR:3. SJW'!S48),3) -> 11.223 | D40: % | E40: =ROUND(AVERAGE('3. AWR:3. SJW'!U48),3) -> 10.242 | F40: % | G40: =ROUND(AVERAGE('3. AWR:3. SJW'!W48),3) -> 9.222 | H40: % | I40: =ROUND(AVERAGE('3. AWR:3. SJW'!Y48),3) -> 9.993 | J40: % | K40: =ROUND(AVERAGE('3. AWR:3. SJW'!AA48),3) -> 11.342 | L40: % | M40: =ROUND(AVERAGE(C40:K40),2) -> 10.4 | N40: %
A42: Total Debt / EBITDA (3) | C42: =ROUND(AVERAGE('3. AWR:3. SJW'!S50),3) -> 5.05 | D42: x | E42: =ROUND(AVERAGE('3. AWR:3. SJW'!U50),3) -> 5.568 | F42: x | G42: =ROUND(AVERAGE('3. AWR:3. SJW'!W50),3) -> 5.923 | H42: x | I42: =ROUND(AVERAGE('3. AWR:3. SJW'!Y50),3) -> 4.37 | J42: x | K42: =ROUND(AVERAGE('3. AWR:3. SJW'!AA50),3) -> 3.478 | L42: x | M42: =ROUND(AVERAGE(C42:K42),2) -> 4.88 | N42: x
A44: Funds from Operations / Total Debt (4) | C44: =ROUND(AVERAGE('3. AWR:3. SJW'!S52),3) -> 11.393 | D44: % | E44: =ROUND(AVERAGE('3. AWR:3. SJW'!U52),3) -> 12.115 | F44: % | G44: =ROUND(AVERAGE('3. AWR:3. SJW'!W52),3) -> 14.533 | H44: % | I44: =ROUND(AVERAGE('3. AWR:3. SJW'!Y52),3) -> 22.165 | J44: % | K44: =ROUND(AVERAGE('3. AWR:3. SJW'!AA52),3) -> 23.562 | L44: % | M44: =ROUND(AVERAGE(C44:K44),2) -> 16.75 | N44: %
A46: Total Debt / Total Capital | C46: =C27 -> 52.56 | D46: % | E46: =E27 -> 54.665 | F46: % | G46: =G27 -> 51.778 | H46: % | I46: =I27 -> 49.305 | J46: % | K46: =K27 -> 49.87 | L46: % | M46: =ROUND(AVERAGE(C46:K46),2) -> 51.64 | N46: %
A48: Notes:
A49: (1) | B49: All capitalization and financial statistics for the group are the arithmetic average of the achieved results for each individual company in the group, and are based upon financial statements as originally reported in each year.
A50: (2) | B50: Computed by relating actual total debt interest or preferred stock dividends booked to average of beginning and ending total debt or preferred stock reported to be outstanding.
A51: (3) | B51: Total debt relative to EBITDA (Earnings before Interest, Income Taxes, Depreciation and Amortization).
A52: (4) | B52: Funds from operations (sum of net income, depreciation, amortization, net deferred income tax and investment tax credits, less total AFUDC) plus interest charges as a percentage of total debt.
A54: Source of Information: | B54: Company Annual Forms 10-K

Sheet 2.2 Proxy CapStr (Perm Cap)
B1: Capital Structure Based upon Total Permanent Capital for the
B2: =Input!I31 -> Proxy Group of Six Water Companies
B3: ='2.1 Proxy CapStr Summary'!A3 -> 2017 - 2021, Inclusive
N5: 5 YEAR
D6: ='2.1 Proxy CapStr Summary'!C6 -> 2021 | F6: =D6-1 -> 2020 | H6: =F6-1 -> 2019 | J6: =H6-1 -> 2018 | L6: =J6-1 -> 2017 | N6: AVERAGE
A8: =Input!A2 -> AWR | B8: =VLOOKUP($A8,'Proxy Data Lookup'!$A:$B,2,FALSE) -> American States Water Company
B9: Long-Term Debt | D9: =ROUND('3. AWR'!S$27,2) -> 37.56 | E9: % | F9: =ROUND('3. AWR'!U$27,2) -> 40.72 | G9: % | H9: =ROUND('3. AWR'!W$27,2) -> 31.87 | I9: % | J9: =ROUND('3. AWR'!Y$27,2) -> 36.54 | K9: % | L9: =ROUND('3. AWR'!AA$27,2) -> 37.75 | M9: % | N9: =ROUND(AVERAGE(D9:L9),2) -> 36.89 | O9: %
B10: Preferred Stock | D10: =ROUND('3. AWR'!S$28,2) -> 0 | F10: =ROUND('3. AWR'!U$28,2) -> 0 | H10: =ROUND('3. AWR'!W$28,2) -> 0 | J10: =ROUND('3. AWR'!Y$28,2) -> 0 | L10: =ROUND('3. AWR'!AA$28,2) -> 0 | N10: =ROUND(AVERAGE(D10:L10),2) -> 0
B11: Common Equity | D11: =ROUND('3. AWR'!S$29,2) -> 62.44 | F11: =ROUND('3. AWR'!U$29,2) -> 59.28 | H11: =ROUND('3. AWR'!W$29,2) -> 68.13 | J11: =ROUND('3. AWR'!Y$29,2) -> 63.46 | L11: =ROUND('3. AWR'!AA$29,2) -> 62.25 | N11: =ROUND(AVERAGE(D11:L11),2) -> 63.11
B12: Total Capital | D12: =SUM(D9:D11) -> 100 | E12: % | F12: =SUM(F9:F11) -> 100 | G12: % | H12: =SUM(H9:H11) -> 100 | I12: % | J12: =SUM(J9:J11) -> 100 | K12: % | L12: =SUM(L9:L11) -> 100 | M12: % | N12: =SUM(N9:N11) -> 100 | O12: %
A14: =Input!A3 -> AWK | B14: =VLOOKUP($A14,'Proxy Data Lookup'!$A:$B,2,FALSE) -> American Water Works Company, Inc.
B15: Long-Term Debt | D15: =ROUND('3. AWK'!S$27,2) -> 58.75 | E15: % | F15: =ROUND('3. AWK'!U$27,2) -> 59.93 | G15: % | H15: =ROUND('3. AWK'!W$27,2) -> 58.59 | I15: % | J15: =ROUND('3. AWK'!Y$27,2) -> 56.55 | K15: % | L15: =ROUND('3. AWK'!AA$27,2) -> 55.81 | M15: % | N15: =ROUND(AVERAGE(D15:L15),2) -> 57.93 | O15: %
B16: Preferred Stock | D16: =ROUND('3. AWK'!S$28,2) -> 0.02 | F16: =ROUND('3. AWK'!U$28,2) -> 0.02 | H16: =ROUND('3. AWK'!W$28,2) -> 0.03 | J16: =ROUND('3. AWK'!Y$28,2) -> 0.05 | L16: =ROUND('3. AWK'!AA$28,2) -> 0.07 | N16: =ROUND(AVERAGE(D16:L16),2) -> 0.04
B17: Common Equity | D17: =ROUND('3. AWK'!S$29,2) -> 41.23 | F17: =ROUND('3. AWK'!U$29,2) -> 40.05 | H17: =ROUND('3. AWK'!W$29,2) -> 41.38 | J17: =ROUND('3. AWK'!Y$29,2) -> 43.4 | L17: =ROUND('3. AWK'!AA$29,2) -> 44.12 | N17: =ROUND(AVERAGE(D17:L17),2)-0.01 -> 42.03
B18: Total Capital | D18: =SUM(D15:D17) -> 100 | E18: % | F18: =SUM(F15:F17) -> 100 | G18: % | H18: =SUM(H15:H17) -> 100 | I18: % | J18: =SUM(J15:J17) -> 100 | K18: % | L18: =SUM(L15:L17) -> 100 | M18: % | N18: =SUM(N15:N17) -> 100 | O18: %
A20: =Input!A4 -> CWT | B20: =VLOOKUP($A20,'Proxy Data Lookup'!$A:$B,2,FALSE) -> California Water Service Group
B21: Long-Term Debt | D21: =ROUND('3. CWT'!S$27,2) -> 47.28 | E21: % | F21: =ROUND('3. CWT'!U$27,2) -> 46.04 | G21: % | H21: =ROUND('3. CWT'!W$27,2) -> 50.9 | I21: % | J21: =ROUND('3. CWT'!Y$27,2) -> 52.74 | K21: % | L21: =ROUND('3. CWT'!AA$27,2) -> 43.4 | M21: % | N21: =ROUND(AVERAGE(D21:L21),2) -> 48.07 | O21: %
B22: Preferred Stock | D22: =ROUND('3. CWT'!S$28,2) -> 0 | F22: =ROUND('3. CWT'!U$28,2) -> 0 | H22: =ROUND('3. CWT'!W$28,2) -> 0 | J22: =ROUND('3. CWT'!Y$28,2) -> 0 | L22: =ROUND('3. CWT'!AA$28,2) -> 0 | N22: =ROUND(AVERAGE(D22:L22),2) -> 0
B23: Common Equity | D23: =ROUND('3. CWT'!S$29,2) -> 52.72 | F23: =ROUND('3. CWT'!U$29,2) -> 53.96 | H23: =ROUND('3. CWT'!W$29,2) -> 49.1 | J23: =ROUND('3. CWT'!Y$29,2) -> 47.26 | L23: =ROUND('3. CWT'!AA$29,2) -> 56.6 | N23: 51.93
B24: Total Capital | D24: =SUM(D21:D23) -> 100 | E24: % | F24: =SUM(F21:F23) -> 100 | G24: % | H24: =SUM(H21:H23) -> 100 | I24: % | J24: =SUM(J21:J23) -> 100 | K24: % | L24: =SUM(L21:L23) -> 100 | M24: % | N24: =SUM(N21:N23) -> 100 | O24: %
A26: =Input!A5 -> WTRG | B26: =VLOOKUP($A26,'Proxy Data Lookup'!$A:$B,2,FALSE) -> Essential Utilities Inc.
B27: Long-Term Debt | D27: =ROUND('3. WTRG'!S$27,2) -> 53.28 | E27: % | F27: =ROUND('3. WTRG'!U$27,2) -> 54.42 | G27: % | H27: =ROUND('3. WTRG'!W$27,2) -> 44.23 | I27: % | J27: =ROUND('3. WTRG'!Y$27,2) -> 56.06 | K27: % | L27: =ROUND('3. WTRG'!AA$27,2) -> 52.26 | M27: % | N27: =ROUND(AVERAGE(D27:L27),2) -> 52.05 | O27: %
B28: Preferred Stock | D28: =ROUND('3. WTRG'!S$28,2) -> 0 | F28: =ROUND('3. WTRG'!U$28,2) -> 0 | H28: =ROUND('3. WTRG'!W$28,2) -> 0 | J28: =ROUND('3. WTRG'!Y$28,2) -> 0 | L28: =ROUND('3. WTRG'!AA$28,2) -> 0 | N28: =ROUND(AVERAGE(D28:L28),2) -> 0
B29: Common Equity | D29: =ROUND('3. WTRG'!S$29,2) -> 46.72 | F29: =ROUND('3. WTRG'!U$29,2) -> 45.58 | H29: =ROUND('3. WTRG'!W$29,2) -> 55.77 | J29: =ROUND('3. WTRG'!Y$29,2) -> 43.94 | L29: =ROUND('3. WTRG'!AA$29,2) -> 47.74 | N29: 47.95
B30: Total Capital | D30: =SUM(D27:D29) -> 100 | E30: % | F30: =SUM(F27:F29) -> 100 | G30: % | H30: =SUM(H27:H29) -> 100 | I30: % | J30: =SUM(J27:J29) -> 100 | K30: % | L30: =SUM(L27:L29) -> 100 | M30: % | N30: =SUM(N27:N29) -> 100 | O30: %
A32: =Input!A6 -> MSEX | B32: =VLOOKUP($A32,'Proxy Data Lookup'!$A:$B,2,FALSE) -> Middlesex Water Company
B33: Long-Term Debt | D33: =ROUND('3. MSEX'!S33,2) -> 46.87 | E33: % | F33: =ROUND('3. MSEX'!U$27,2) -> 44.61 | G33: % | H33: =ROUND('3. MSEX'!W$27,2) -> 42.2 | I33: % | J33: =ROUND('3. MSEX'!Y$27,2) -> 38.94 | K33: % | L33: =ROUND('3. MSEX'!AA$27,2) -> 38.65 | M33: % | N33: =ROUND(AVERAGE(D33:L33),2) -> 42.25 | O33: %
B34: Preferred Stock | D34: =ROUND('3. MSEX'!S34,2) -> 0.3 | F34: =ROUND('3. MSEX'!U$28,2) -> 0.33 | H34: =ROUND('3. MSEX'!W$28,2) -> 0.37 | J34: =ROUND('3. MSEX'!Y$28,2) -> 0.59 | L34: =ROUND('3. MSEX'!AA$28,2) -> 0.64 | N34: =ROUND(AVERAGE(D34:L34),2) -> 0.45
B35: Common Equity | D35: =ROUND('3. MSEX'!S35,2) -> 52.83 | F35: =ROUND('3. MSEX'!U$29,2) -> 55.06 | H35: =ROUND('3. MSEX'!W$29,2) -> 57.43 | J35: =ROUND('3. MSEX'!Y$29,2) -> 60.47 | L35: =ROUND('3. MSEX'!AA$29,2) -> 60.71 | N35: 57.3
B36: Total Capital | D36: =SUM(D33:D35) -> 100 | E36: % | F36: =SUM(F33:F35) -> 100 | G36: % | H36: =SUM(H33:H35) -> 100 | I36: % | J36: =SUM(J33:J35) -> 100 | K36: % | L36: =SUM(L33:L35) -> 100 | M36: % | N36: =SUM(N33:N35) -> 100 | O36: %
A38: =Input!A7 -> SJW | B38: =VLOOKUP($A38,'Proxy Data Lookup'!$A:$B,2,FALSE) -> SJW Group
B39: Long-Term Debt | D39: =ROUND('3. SJW'!S$27,2) -> 59.69 | E39: % | F39: =ROUND('3. SJW'!U$27,2) -> 59.79 | G39: % | H39: =ROUND('3. SJW'!W$27,2) -> 59.05 | I39: % | J39: =ROUND('3. SJW'!Y$27,2) -> 32.67 | K39: % | L39: =ROUND('3. SJW'!AA$27,2) -> 48.2 | M39: % | N39: =ROUND(AVERAGE(D39:L39),2) -> 51.88 | O39: %
B40: Preferred Stock | D40: =ROUND('3. SJW'!S$28,2) -> 0 | F40: =ROUND('3. SJW'!U$28,2) -> 0 | H40: =ROUND('3. SJW'!W$28,2) -> 0 | J40: =ROUND('3. SJW'!Y$28,2) -> 0 | L40: =ROUND('3. SJW'!AA$28,2) -> 0 | N40: =ROUND(AVERAGE(D40:L40),2) -> 0
B41: Common Equity | D41: =ROUND('3. SJW'!S$29,2) -> 40.31 | F41: =ROUND('3. SJW'!U$29,2) -> 40.21 | H41: =ROUND('3. SJW'!W$29,2) -> 40.95 | J41: =ROUND('3. SJW'!Y$29,2) -> 67.33 | L41: =ROUND('3. SJW'!AA$29,2) -> 51.8 | N41: 48.12
B42: Total Capital | D42: =SUM(D39:D41) -> 100 | E42: % | F42: =SUM(F39:F41) -> 100 | G42: % | H42: =SUM(H39:H41) -> 100 | I42: % | J42: =SUM(J39:J41) -> 100 | K42: % | L42: =SUM(L39:L41) -> 100 | M42: % | N42: =SUM(N39:N41) -> 100 | O42: %
B45: =B2 -> Proxy Group of Six Water Companies
B46: Long-Term Debt | D46: =ROUND(AVERAGEIF($B$7:$B$44,$B46,D$7:D$44),2) -> 50.57 | E46: % | F46: =ROUND(AVERAGEIF($B$7:$B$44,$B46,F$7:F$44),2) -> 50.92 | G46: % | H46: =ROUND(AVERAGEIF($B$7:$B$44,$B46,H$7:H$44),2) -> 47.81 | I46: % | J46: =ROUND(AVERAGEIF($B$7:$B$44,$B46,J$7:J$44),2) -> 45.58 | K46: % | L46: =ROUND(AVERAGEIF($B$7:$B$44,$B46,L$7:L$44),2) -> 46.01 | M46: % | N46: =ROUND(AVERAGEIF($B$7:$B$44,$B46,N$7:N$44),2) -> 48.18 | O46: %
B47: Preferred Stock | D47: =ROUND(AVERAGEIF($B$7:$B$44,$B47,D$7:D$44),2) -> 0.05 | F47: =ROUND(AVERAGEIF($B$7:$B$44,$B47,F$7:F$44),2) -> 0.06 | H47: =ROUND(AVERAGEIF($B$7:$B$44,$B47,H$7:H$44),2)-0.01 -> 0.06 | J47: =ROUND(AVERAGEIF($B$7:$B$44,$B47,J$7:J$44),2) -> 0.11 | L47: =ROUND(AVERAGEIF($B$7:$B$44,$B47,L$7:L$44),2) -> 0.12 | N47: =ROUND(AVERAGEIF($B$7:$B$44,$B47,N$7:N$44),2) -> 0.08
B48: Common Equity | D48: =ROUND(AVERAGEIF($B$7:$B$44,$B48,D$7:D$44),2)-0 -> 49.38 | F48: =ROUND(AVERAGEIF($B$7:$B$44,$B48,F$7:F$44),2) -> 49.02 | H48: =ROUND(AVERAGEIF($B$7:$B$44,$B48,H$7:H$44),2) -> 52.13 | J48: =ROUND(AVERAGEIF($B$7:$B$44,$B48,J$7:J$44),2) -> 54.31 | L48: =ROUND(AVERAGEIF($B$7:$B$44,$B48,L$7:L$44),2) -> 53.87 | N48: =ROUND(AVERAGEIF($B$7:$B$44,$B48,N$7:N$44),2) -> 51.74
B49: Total Capital | D49: =SUM(D46:D48) -> 100 | E49: % | F49: =SUM(F46:F48) -> 100 | G49: % | H49: =SUM(H46:H48) -> 100 | I49: % | J49: =SUM(J46:J48) -> 100 | K49: % | L49: =SUM(L46:L48) -> 100 | M49: % | N49: =SUM(N46:N48) -> 100 | O49: %
B51: Source of Information
B52: Annual Forms 10-K

Sheet 3.1 LTD Effective Cost
A1: =Input!G28 -> Bluegrass Water (KY) Utility Operating Company, Inc.
A2: Calculation of the Effective Cost Rate of Long-Term Debt by Issuance
A5: Series | C5: Loan Amount (1) | E5: Interest Rate (1) | G5: Issuance Expense (1) | I5: Net Proceeds (2) | K5: Net Proceeds Ratio (3) | M5: Effective Cost Rate to Maturity (4)
A6: Bluegrass Water (KY) | C6: 2900000 | E6: 0.067 | G6: 21750 | I6: =C6-G6 -> 2878250 | K6: =(I6/C6)*100 -> 99.25 | M6: ='Sch3 WP BG LTD '!F243 -> 0.068
A8: Notes:
A9: (1) | B9: Company provided.
A10: (2) | B10: Loan amount less issuance expenses.
A11: (3) | B11: Net proceeds divided by loan amount.
A12: (4) | B12: Calculated based upon projected cash flows throughout the life of the debt issue.

Sheet 4.1 DCF Summary
B1: =Input!G28 -> Bluegrass Water (KY) Utility Operating Company, Inc.
B2: Indicated Common Equity Cost Rate Using the Discounted Cash Flow Model for the
B3: =Input!I31 -> Proxy Group of Six Water Companies
D6: [1] | G6: [2] | J6: [3] | M6: [4] | P6: [5] | S6: [6] | V6: [7]
B8: =B3 -> Proxy Group of Six Water Companies | D8: Average Dividend Yield (1) | G8: Value Line Projected Five Year Growth in EPS (2) | J8: Zack's Five Year Projected Growth Rate in EPS | M8: Yahoo! Finance Projected Five Year Growth in EPS | P8: Average Projected Five Year Growth in EPS (3) | S8: Adjusted Dividend Yield (4) | V8: Indicated Common Equity Cost Rate (5)
A10: =Input!A2 -> AWR | B10: =IFERROR(VLOOKUP($A10,'Proxy Data Lookup'!$A:$K,2,FALSE),"NA") -> American States Water Company | D10: =IFERROR(HLOOKUP(CONCATENATE($A10," US Equity"),'Proxy Prices'!$B$5:$G$71,67,FALSE)*100,"NA") -> 1.71 | E10: % | G10: =IFERROR(VLOOKUP($A10,'Proxy Data Lookup'!$A:$K,5,FALSE)*100,"NA") -> 5.5 | H10: % | J10: =IFERROR(VLOOKUP($A10,'Proxy Data Lookup'!$A:$K,3,FALSE)*100,"NA") -> NA | K10: % | M10: =IFERROR(VLOOKUP($A10,'Proxy Data Lookup'!$A:$K,4,FALSE)*100,"NA") -> 4.4 | N10: % | P10: =IFERROR(ROUND(AVERAGE(G10,J10,M10),2),"NA") -> 4.95 | Q10: % | S10: =IFERROR(D10*(1+(0.5*(P10/100))),"NA") -> 1.7523225 | T10: % | V10: =IFERROR(S10 + P10,"NA") -> 6.7023225 | W10: %
A11: =Input!A3 -> AWK | B11: =IFERROR(VLOOKUP($A11,'Proxy Data Lookup'!$A:$K,2,FALSE),"NA") -> American Water Works Company, Inc. | D11: =IFERROR(HLOOKUP(CONCATENATE($A11," US Equity"),'Proxy Prices'!$B$5:$G$71,67,FALSE)*100,"NA") -> 1.76 | G11: =IFERROR(VLOOKUP($A11,'Proxy Data Lookup'!$A:$K,5,FALSE)*100,"NA") -> 3 | J11: =IFERROR(VLOOKUP($A11,'Proxy Data Lookup'!$A:$K,3,FALSE)*100,"NA") -> 8.1 | M11: =IFERROR(VLOOKUP($A11,'Proxy Data Lookup'!$A:$K,4,FALSE)*100,"NA") -> 8.28 | P11: =IFERROR(ROUND(AVERAGE(G11,J11,M11),2),"NA") -> 6.46 | S11: =IFERROR(D11*(1+(0.5*(P11/100))),"NA") -> 1.816848 | V11: =IFERROR(S11 + P11,"NA") -> 8.276848
A12: =Input!A4 -> CWT | B12: =IFERROR(VLOOKUP($A12,'Proxy Data Lookup'!$A:$K,2,FALSE),"NA") -> California Water Service Group | D12: =IFERROR(HLOOKUP(CONCATENATE($A12," US Equity"),'Proxy Prices'!$B$5:$G$71,67,FALSE)*100,"NA") -> 1.63 | G12: =IFERROR(VLOOKUP($A12,'Proxy Data Lookup'!$A:$K,5,FALSE)*100,"NA") -> 6.5 | J12: =IFERROR(VLOOKUP($A12,'Proxy Data Lookup'!$A:$K,3,FALSE)*100,"NA") -> NA | M12: =IFERROR(VLOOKUP($A12,'Proxy Data Lookup'!$A:$K,4,FALSE)*100,"NA") -> 11.7 | P12: 9.1 | S12: 1.704165 | V12: 10.804165
A13: =Input!A5 -> WTRG | B13: =IFERROR(VLOOKUP($A13,'Proxy Data Lookup'!$A:$K,2,FALSE),"NA") -> Essential Utilities Inc. | D13: =IFERROR(HLOOKUP(CONCATENATE($A13," US Equity"),'Proxy Prices'!$B$5:$G$71,67,FALSE)*100,"NA") -> 2.47 | G13: =IFERROR(VLOOKUP($A13,'Proxy Data Lookup'!$A:$K,5,FALSE)*100,"NA") -> 10 | J13: =IFERROR(VLOOKUP($A13,'Proxy Data Lookup'!$A:$K,3,FALSE)*100,"NA") -> 6.1 | M13: =IFERROR(VLOOKUP($A13,'Proxy Data Lookup'!$A:$K,4,FALSE)*100,"NA") -> 6.6 | P13: 7.57 | S13: 2.5634895 | V13: 10.1334895
A14: =Input!A6 -> MSEX | B14: =IFERROR(VLOOKUP($A14,'Proxy Data Lookup'!$A:$K,2,FALSE),"NA") -> Middlesex Water Company | D14: =IFERROR(HLOOKUP(CONCATENATE($A14," US Equity"),'Proxy Prices'!$B$5:$G$71,67,FALSE)*100,"NA") -> 1.43 | G14: =IFERROR(VLOOKUP($A14,'Proxy Data Lookup'!$A:$K,5,FALSE)*100,"NA") -> 6 | J14: =IFERROR(VLOOKUP($A14,'Proxy Data Lookup'!$A:$K,3,FALSE)*100,"NA") -> NA | M14: =IFERROR(VLOOKUP($A14,'Proxy Data Lookup'!$A:$K,4,FALSE)*100,"NA") -> 2.7 | P14: =IFERROR(ROUND(AVERAGE(G14,J14,M14),2),"NA") -> 4.35 | S14: =IFERROR(D14*(1+(0.5*(P14/100))),"NA") -> 1.4611025 | V14: 5.8111025
A15: =Input!A7 -> SJW | B15: =IFERROR(VLOOKUP($A15,'Proxy Data Lookup'!$A:$K,2,FALSE),"NA") -> SJW Group | D15: =IFERROR(HLOOKUP(CONCATENATE($A15," US Equity"),'Proxy Prices'!$B$5:$G$71,67,FALSE)*100,"NA") -> 1.92 | G15: =IFERROR(VLOOKUP($A15,'Proxy Data Lookup'!$A:$K,5,FALSE)*100,"NA") -> 12 | J15: =IFERROR(VLOOKUP($A15,'Proxy Data Lookup'!$A:$K,3,FALSE)*100,"NA") -> NA | M15: =IFERROR(VLOOKUP($A15,'Proxy Data Lookup'!$A:$K,4,FALSE)*100,"NA") -> 9.8 | P15: 10.9 | S15: 2.02464 | V15: 12.92464
S17: Average | V17: =ROUND(AVERAGE(V10:V15),2) -> 9.11 | W17: %
S19: Median | V19: =ROUND(MEDIAN(V10:V15),2) -> 9.21 | W19: %
S21: Average of Mean and Median | V21: =ROUND(AVERAGE(V17:V19),2) -> 9.16 | W21: %
E22: NA= Not Available
D24: Notes:
E25: (1) | F25: =CONCATENATE("Indicated dividend at ",TEXT(Input!E2,"mm/dd/yyyy")," divided by the average closing price of the last 60 trading days ending ",TEXT(Input!E2,"mm/dd/yyyy")," for each company.") -> Indicated dividend at 01/13/2023 divided by the average closing price of the last 60 trading days ending 01/13/2023 for each company.
E26: (2) | F26: From pages 2 through 7 of this Exhibit.
E27: (3) | F27: Average of columns 2 through 4 excluding negative growth rates.
E28: (4) | F28: =CONCATENATE("This reflects a growth rate component equal to one-half the conclusion of growth rate (from column 5) x column 1 to reflect the periodic payment of dividends (Gordon Model) as opposed to the continuous payment. Thus, for ",B10,", ",TEXT(D10,"#0.00"),"% x (1+( 1/2 x ",TEXT(P10,"#0.00"),"%) ) = ",TEXT(S10,"#0.00"),"%.") -> This reflects a growth rate component equal to one-half the conclusion of growth rate (from column 5) x column 1 to reflect the periodic payment of dividends (Gordon Model) as opposed to the continuous payment. Thus, for American States Water Company, 1.71% x (1+( 1/2 x 4.95%) ) = 1.75%.
E29: (5) | F29: Column 5 + Column 6.
B31: Source of Information: | E31: Value Line Investment Survey
E32: =CONCATENATE("www.zacks.com Downloaded on ",TEXT(Input!E2,"mm/dd/yyyy")) -> www.zacks.com Downloaded on 01/13/2023
E33: =CONCATENATE("www.yahoo.com Downloaded on ",TEXT(Input!E2,"mm/dd/yyyy")) -> www.yahoo.com Downloaded on 01/13/2023

Sheet 5.1 RPM Summary
A1: =Input!G28 -> Bluegrass Water (KY) Utility Operating Company, Inc.
A2: Summary of Risk Premium Models for the
A3: =Input!I31 -> Proxy Group of Six Water Companies
D5: =A3 -> Proxy Group of Six Water Companies | G5: Proxy Group of Six Water Companies ex PRPM
A6: Predictive Risk Premium Model (PRPM) (1) | D6: =IFERROR('5.2 Ind. PRPM Results'!P21*100,"NA") -> 12.64 | E6: % | G6: NA | H6: %
A8: Risk Premium Using an Adjusted Total Market Approach (2) | D8: =IFERROR('5.3 Risk Premium Summary'!G28,"NA") -> 11.53 | G8: ='5.3 Risk Premium Summary'!J28 -> 11.31
C10: Average | D10: =IFERROR(ROUND(AVERAGE(D6:D8),2),"NA") -> 12.09 | E10: % | G10: =IFERROR(ROUND(AVERAGE(G6:G8),2),"NA") -> 11.31
A12: Notes:
A13: (1) | B13: From page 2 of this Exhibit.
A14: (2) | B14: From page 3 of this Exhibit.

Sheet 5.2 Ind. PRPM Results
B1: =Input!G28 -> Bluegrass Water (KY) Utility Operating Company, Inc.
B2: Indicated ROE
B3: Derived by the Predictive Risk Premium Model (1)
D6: [1] | F6: [2] | H6: [3] | J6: [4] | L6: [5] | N6: [6] | P6: [7]
B8: =Input!I31 -> Proxy Group of Six Water Companies | D8: LT Average Predicted Variance | F8: Spot Predicted Variance | H8: Recommended Variance (2) | J8: GARCH Coefficient | L8: Predicted Risk Premium (3) | N8: Risk-Free Rate (4) | P8: Indicated ROE (5)
A10: =Input!A2 -> AWR | B10: =VLOOKUP($A10,'Proxy Data Lookup'!$A:$B,2,FALSE) -> American States Water Company | D10: =_xlfn.XLOOKUP($A10,'PRPM WP1'!$B$1:$G$1,'PRPM WP1'!$B$1172:$G$1172) -> 0.003842315735 | F10: =_xlfn.XLOOKUP($A10,'PRPM WP1'!$B$1:$G$1,'PRPM WP1'!$B$1174:$G$1174) -> 0.004731855296 | H10: =D10 -> 0.003842315735 | J10: =_xlfn.XLOOKUP($A10,'PRPM WP1'!$B$1:$G$1,'PRPM WP1'!$B$1176:$G$1176) -> 1.879102 | L10: =ROUND((1+(H10*J10))^12-1,4) -> 0.0902 | N10: ='MRP WP1'!F$37/100 -> 0.0391 | P10: =N10 + L10 -> 0.1293
A11: =Input!A3 -> AWK | B11: =VLOOKUP($A11,'Proxy Data Lookup'!$A:$B,2,FALSE) -> American Water Works Company, Inc. | D11: =_xlfn.XLOOKUP($A11,'PRPM WP1'!$B$1:$G$1,'PRPM WP1'!$B$1172:$G$1172) -> 0.002819643583 | F11: =_xlfn.XLOOKUP($A11,'PRPM WP1'!$B$1:$G$1,'PRPM WP1'!$B$1174:$G$1174) -> 0.003796630509 | H11: =D11 -> 0.002819643583 | J11: =_xlfn.XLOOKUP($A11,'PRPM WP1'!$B$1:$G$1,'PRPM WP1'!$B$1176:$G$1176) -> 4.437489 | L11: =ROUND((1+(H11*J11))^12-1,4) -> 0.1609 | N11: ='MRP WP1'!F$37/100 -> 0.0391 | P11: NMF | S11: =_xlfn.STDEV.S(P10:P15) -> 0.01906777386 | T11: =2*S11 -> 0.03813554772
A12: =Input!A4 -> CWT | B12: =VLOOKUP($A12,'Proxy Data Lookup'!$A:$B,2,FALSE) -> California Water Service Group | D12: =_xlfn.XLOOKUP($A12,'PRPM WP1'!$B$1:$G$1,'PRPM WP1'!$B$1172:$G$1172) -> 0.003309413007 | F12: =_xlfn.XLOOKUP($A12,'PRPM WP1'!$B$1:$G$1,'PRPM WP1'!$B$1174:$G$1174) -> 0.006158017483 | H12: 0.003309413007 | J12: =_xlfn.XLOOKUP($A12,'PRPM WP1'!$B$1:$G$1,'PRPM WP1'!$B$1176:$G$1176) -> 1.925267 | L12: =ROUND((1+(H12*J12))^12-1,4) -> 0.0792 | N12: ='MRP WP1'!F$37/100 -> 0.0391 | P12: =N12 + L12 -> 0.1183 | R12: +/- 2 st dev | S12: =P17-T11 -> 0.09236445228 | T12: =P17+T11 -> 0.1686355477
A13: =Input!A5 -> WTRG | B13: =VLOOKUP($A13,'Proxy Data Lookup'!$A:$B,2,FALSE) -> Essential Utilities Inc. | D13: =_xlfn.XLOOKUP($A13,'PRPM WP1'!$B$1:$G$1,'PRPM WP1'!$B$1172:$G$1172) -> 0.004474990717 | F13: =_xlfn.XLOOKUP($A13,'PRPM WP1'!$B$1:$G$1,'PRPM WP1'!$B$1174:$G$1174) -> 0.006566323571 | H13: 0.004474990717 | J13: =_xlfn.XLOOKUP($A13,'PRPM WP1'!$B$1:$G$1,'PRPM WP1'!$B$1176:$G$1176) -> 2.197223 | L13: 0.1246 | N13: ='MRP WP1'!F$37/100 -> 0.0391 | P13: 0.1637
A14: =Input!A6 -> MSEX | B14: =VLOOKUP($A14,'Proxy Data Lookup'!$A:$B,2,FALSE) -> Middlesex Water Company | D14: =_xlfn.XLOOKUP($A14,'PRPM WP1'!$B$1:$G$1,'PRPM WP1'!$B$1172:$G$1172) -> 0.003380364162 | F14: =_xlfn.XLOOKUP($A14,'PRPM WP1'!$B$1:$G$1,'PRPM WP1'!$B$1174:$G$1174) -> 0.00821499424 | H14: =D14 -> 0.003380364162 | J14: =_xlfn.XLOOKUP($A14,'PRPM WP1'!$B$1:$G$1,'PRPM WP1'!$B$1176:$G$1176) -> 1.898235 | L14: 0.0798 | N14: ='MRP WP1'!F$37/100 -> 0.0391 | P14: 0.1189
A15: =Input!A7 -> SJW | B15: =VLOOKUP($A15,'Proxy Data Lookup'!$A:$B,2,FALSE) -> SJW Group | D15: =_xlfn.XLOOKUP($A15,'PRPM WP1'!$B$1:$G$1,'PRPM WP1'!$B$1172:$G$1172) -> 0.00420401403 | F15: =_xlfn.XLOOKUP($A15,'PRPM WP1'!$B$1:$G$1,'PRPM WP1'!$B$1174:$G$1174) -> 0.005856253527 | H15: 0.00420401403 | J15: =_xlfn.XLOOKUP($A15,'PRPM WP1'!$B$1:$G$1,'PRPM WP1'!$B$1176:$G$1176) -> 1.588739 | L15: 0.0832 | N15: ='MRP WP1'!F$37/100 -> 0.0391 | P15: 0.1223
N17: Average | P17: =ROUND(AVERAGE(P10:P15),4) -> 0.1305
E19: NMF=Not Meaningful Figure | N19: Median | P19: =ROUND(MEDIAN(P10:P15),4) -> 0.1223
N21: Average of Mean and Median | P21: =ROUND(AVERAGE(P17:P19),4) -> 0.1264
B24: Notes:
B25: (1) | D25: The Predictive Risk Premium Model uses historical data to generate a predicted variance and a GARCH coefficient. The historical data used are the equity risk premiums for the first available trading month as reported by Bloomberg Professional Services.
B26: (2) | D26: Recommended variance based on the long-term average predicted variance.
B27: (3) | D27: (1+(Column [3] * Column [4])^12) - 1.
B28: (4) | D28: From note 2 on page 2 of Exhibit DWD-6.
B29: (5) | D29: Column [5] + Column [6].

Sheet 5.3 Risk Premium Summary
A1: =Input!G28 -> Bluegrass Water (KY) Utility Operating Company, Inc.
A2: Indicated Common Equity Cost Rate
A3: Through Use of a Risk Premium Model
A4: Using an Adjusted Total Market Approach
A6: Line No. | G6: =Input!I31 -> Proxy Group of Six Water Companies | J6: Proxy Group of Six Water Companies ex PRPM
A9: 1. | C9: Prospective Yield on Aaa Rated
C10: Corporate Bonds (1) | G10: ='MRP WP1'!$M$37 -> 5.05 | H10: % | J10: =G10 -> 5.05 | K10: =H10 -> %
A12: 2. | C12: Adjustment to Reflect Yield Spread
C13: Between Aaa Rated Corporate
C14: Bonds and A2 Rated Public
C15: Utility Bonds (2) | G15: ='5.4 Moody''s Bond Yields'!I19 -> 0.83 | J15: =G15 -> 0.83
A17: 3. | C17: Adjusted Prospective Yield on A2 Rated
C18: Public Utility Bonds | G18: =SUM(G10:G15) -> 5.88 | H18: % | J18: =SUM(J10:J15) -> 5.88 | K18: %
A20: 4. | C20: Adjustment to Reflect Bond
C21: Rating Difference of Proxy Group (3) | G21: =ROUND((1/3)*'5.4 Moody''s Bond Yields'!I22,2) -> 0.1 | J21: =G21 -> 0.1
A23: 5. | C23: Adjusted Prospective Bond Yield | G23: =SUM(G18:G21) -> 5.98 | H23: % | J23: =SUM(J18:J21) -> 5.98 | K23: %
A25: 6. | C25: Equity Risk Premium (4) | G25: ='5.7 ERP Determination'!E19 -> 5.55 | J25: ='5.7 ERP Determination'!H19 -> 5.33
A27: 7. | C27: Risk Premium Derived Common
C28: Equity Cost Rate | G28: =SUM(G23:G25) -> 11.53 | H28: % | J28: =SUM(J23:J25) -> 11.31 | K28: %
A31: Notes: | B31: (1) | C31: Consensus forecast of Moody's Aaa Rated Corporate bonds from Blue Chip Financial Forecasts (see pages 9 and 10 of this Exhibit).
B32: (2) | C32: =CONCATENATE("The average yield spread of A2 rated public utility bonds over Aaa rated corporate bonds of ",TEXT('5.4 Moody''s Bond Yields'!I19,"#0.00"),"% from page 4 of this Exhibit.") -> The average yield spread of A2 rated public utility bonds over Aaa rated corporate bonds of 0.83% from page 4 of this Exhibit.
B33: (3) | C33: =CONCATENATE("Adjustment to reflect the A3 Moody's LT issuer rating of the Utility Proxy Group as shown on page 5 of this Exhibit. The ",TEXT(G21,"#0.00"),"% upward adjustment is derived by taking 1/3 of the spread between A2 and Baa2 Public Utility Bonds (1/3 * ",TEXT('5.4 Moody''s Bond Yields'!I22,"#0.00"),"% = ",TEXT('5.3 Risk Premium Summary'!G21,"#0.00"),"%) as derived from page 4 of this Exhibit.") -> Adjustment to reflect the A3 Moody's LT issuer rating of the Utility Proxy Group as shown on page 5 of this Exhibit. The 0.10% upward adjustment is derived by taking 1/3 of the spread between A2 and Baa2 Public Utility Bonds (1/3 * 0.30% = 0.10%) as derived from page 4 of this Exhibit.
B34: (4) | C34: From page 7 of this Exhibit.

Sheet 5.4 Moody's Bond Yields
A1: =Input!G28 -> Bluegrass Water (KY) Utility Operating Company, Inc.
A2: Interest Rates and Bond Spreads for
A3: Moody's Corporate and Public Utility Bonds
A5: Selected Bond Yields
C7: [1] | F7: [2] | I7: [3]
C8: Aaa Rated Corporate Bond | F8: A2 Rated Public Utility Bond | I8: Baa2 Rated Public Utility Bond
A10: ='Market Data'!B1 -> 2022-12-31 | C10: ='Market Data'!B4 -> 4.41 | D10: % | F10: ='Market Data'!B2 -> 5.27 | G10: % | I10: ='Market Data'!B3 -> 5.56 | J10: %
A11: ='Market Data'!C1 -> 2022-11-30 | C11: ='Market Data'!C4 -> 4.9 | F11: ='Market Data'!C2 -> 5.75 | I11: ='Market Data'!C3 -> 6.05
A12: ='Market Data'!D1 -> 2022-10-30 | C12: ='Market Data'!D4 -> 5.1 | F12: ='Market Data'!D2 -> 5.88 | I12: ='Market Data'!D3 -> 6.18
A14: Average | C14: =ROUND(AVERAGE(C10:C12),2) -> 4.8 | D14: % | F14: =ROUND(AVERAGE(F10:F12),2) -> 5.63 | G14: % | I14: =ROUND(AVERAGE(I10:I12),2) -> 5.93 | J14: %
A16: Selected Bond Spreads
A18: A2 Rated Public Utility Bonds Over Aaa Rated Corporate Bonds:
I19: =F14-C14 -> 0.83 | J19: % (1)
A21: Baa2 Rated Public Utility Bonds Over A2 Rated Public Utility Bonds:
I22: =ROUND(I14-F14,2) -> 0.3 | J22: % (2)
A24: Notes:
A25: (1) | B25: Column [2] - Column [1].
A26: (2) | B26: Column [3] - Column [2].
A28: Source of Information:
A29: Bloomberg Professional Services

Sheet 5.5 Bond Ratings
B1: =Input!G28 -> Bluegrass Water (KY) Utility Operating Company, Inc.
B2: Comparison of Long-Term Issuer Ratings for
B3: ='5.3 Risk Premium Summary'!G6 -> Proxy Group of Six Water Companies
E6: Moody's | I6: Standard & Poor's
E7: Long-Term Issuer Rating | I7: Long-Term Issuer Rating
E8: =TEXT(Input!E2,"mmmm yyyy") -> January 2023 | I8: =E8 -> January 2023
B11: =B3 -> Proxy Group of Six Water Companies | E11: Long-Term Issuer Rating | G11: Numerical Weighting (1) | I11: =E11 -> Long-Term Issuer Rating | K11: Numerical Weighting (1)
A13: =Input!A2 -> AWR | B13: American States Water Company (2) | E13: ='Proxy Data Lookup'!O3 -> A2 | G13: =IFERROR(VLOOKUP('5.5 Bond Ratings'!E13,'5.6 MOODY_S&P numbericl_assign'!B:D, 3,FALSE), " - -") -> 6 | I13: ='Proxy Data Lookup'!N3 -> A+ | K13: =IFERROR(VLOOKUP('5.5 Bond Ratings'!I13,'5.6 MOODY_S&P numbericl_assign'!F:H, 3,FALSE), "- -") -> 5
A14: =Input!A3 -> AWK | B14: American Water Works Company, Inc. (3) | E14: ='Proxy Data Lookup'!O4 -> A3 | G14: =IFERROR(VLOOKUP('5.5 Bond Ratings'!E14,'5.6 MOODY_S&P numbericl_assign'!B:D, 3,FALSE), " - -") -> 7 | I14: ='Proxy Data Lookup'!N4 -> A | K14: =IFERROR(VLOOKUP('5.5 Bond Ratings'!I14,'5.6 MOODY_S&P numbericl_assign'!F:H, 3,FALSE), "- -") -> 6
A15: =Input!A4 -> CWT | B15: California Water Service Group | E15: ='Proxy Data Lookup'!O5 -> NR | G15: =IFERROR(VLOOKUP('5.5 Bond Ratings'!E15,'5.6 MOODY_S&P numbericl_assign'!B:D, 3,FALSE), " - -") -> - - | I15: ='Proxy Data Lookup'!N5 -> A+ | K15: =IFERROR(VLOOKUP('5.5 Bond Ratings'!I15,'5.6 MOODY_S&P numbericl_assign'!F:H, 3,FALSE), "- -") -> 5
A16: =Input!A5 -> WTRG | B16: Essential Utilities Inc. (4) | E16: ='Proxy Data Lookup'!O6 -> Baa1 | G16: =IFERROR(VLOOKUP('5.5 Bond Ratings'!E16,'5.6 MOODY_S&P numbericl_assign'!B:D, 3,FALSE), " - -") -> 8 | I16: ='Proxy Data Lookup'!N6 -> A | K16: =IFERROR(VLOOKUP('5.5 Bond Ratings'!I16,'5.6 MOODY_S&P numbericl_assign'!F:H, 3,FALSE), "- -") -> 6
A17: =Input!A6 -> MSEX | B17: Middlesex Water Company | E17: ='Proxy Data Lookup'!O7 -> NR | G17: =IFERROR(VLOOKUP('5.5 Bond Ratings'!E17,'5.6 MOODY_S&P numbericl_assign'!B:D, 3,FALSE), " - -") -> - - | I17: ='Proxy Data Lookup'!N7 -> A | K17: =IFERROR(VLOOKUP('5.5 Bond Ratings'!I17,'5.6 MOODY_S&P numbericl_assign'!F:H, 3,FALSE), "- -") -> 6
A18: =Input!A7 -> SJW | B18: SJW Group (5) | E18: ='Proxy Data Lookup'!O8 -> NR | G18: =IFERROR(VLOOKUP('5.5 Bond Ratings'!E18,'5.6 MOODY_S&P numbericl_assign'!B:D, 3,FALSE), " - -") -> - - | I18: ='Proxy Data Lookup'!N8 -> A- | K18: =IFERROR(VLOOKUP('5.5 Bond Ratings'!I18,'5.6 MOODY_S&P numbericl_assign'!F:H, 3,FALSE), "- -") -> 7
C20: Average | E20: A3 | G20: =ROUND(AVERAGE(G12:G18),1) -> 7 | I20: =INDEX('5.6 MOODY_S&P numbericl_assign'!F:F,MATCH(ROUND(K20,0),'5.6 MOODY_S&P numbericl_assign'!H:H,0)) -> A | K20: =ROUND(AVERAGE(K12:K18),1) -> 5.8
B23: Notes:
B24: (1) | C24: From page 6 of this Exhibit.
B25: (2) | C25: Ratings that of Golden State Water Company.
B26: (3) | C26: Ratings that of New Jersey American Water Co., and Pennsylvania American Water Co.
B27: (4) | C27: Ratings that of PNG Companies and Aqua Pennsylvania, Inc. (S&P).
B28: (5) | C28: Ratings are that of San Jose Water Company, Connecticut Water Inc. and Connecticut Water Service Inc.
C30: Source Information: | E30: Moody's Investors Service
E31: Standard & Poor's Global Utilities Rating Service

Sheet 5.6 MOODY_S&P numbericl_assign
B1: Numerical Assignment for
B2: Moody's and Standard & Poor's Bond Ratings
B4: Moody's Bond Rating | D4: Numerical Bond Weighting | F4: Standard & Poor's Bond Rating | H4: =D4 -> Numerical Bond Weighting
B6: Aaa | D6: 1 | F6: AAA | H6: =IF(D6="","",D6) -> 1
H7: =IF(D7="","",D7) -> 
B8: Aa1 | D8: 2 | F8: AA+ | H8: 2
B9: Aa2 | D9: 3 | F9: AA | H9: 3
B10: Aa3 | D10: 4 | F10: AA- | H10: 4
B12: A1 | D12: 5 | F12: A+ | H12: 5
B13: A2 | D13: 6 | F13: A | H13: 6
B14: A3 | D14: 7 | F14: A- | H14: 7
B16: Baa1 | D16: 8 | F16: BBB+ | H16: 8
B17: Baa2 | D17: 9 | F17: BBB | H17: 9
B18: Baa3 | D18: 10 | F18: BBB- | H18: 10
B20: Ba1 | D20: 11 | F20: BB+ | H20: 11
B21: Ba2 | D21: 12 | F21: BB | H21: 12
B22: Ba3 | D22: 13 | F22: BB- | H22: 13
B24: B1 | D24: 14 | F24: B+ | H24: 14
B25: B2 | D25: 15 | F25: B | H25: 15
B26: B3 | D26: 16 | F26: B- | H26: 16

Sheet 5.7 ERP Determination
A1: =Input!G28 -> Bluegrass Water (KY) Utility Operating Company, Inc.
A2: Judgment of Equity Risk Premium for the
A3: =E5 -> Proxy Group of Six Water Companies
A5: Line No. | E5: ='5.5 Bond Ratings'!B3 -> Proxy Group of Six Water Companies | H5: Proxy Group of Six Water Companies ex PRPM
A8: 1. | C8: Calculated equity risk
C9: premium based on the
C10: total market using
C11: the beta approach (1) | E11: ='5.8 Beta Adjusted ERP'!F24 -> 6.52 | F11: % | H11: ='5.8 Beta Adjusted ERP'!I24 -> 6.32 | I11: %
A13: 2. | C13: Mean equity risk premium
C14: based on a study
C15: using the holding period
C16: returns of public utilities
C17: with A2 rated bonds (2) | E17: ='5.11 S&P RPM Study Returns'!E18 -> 4.58 | H17: ='5.11 S&P RPM Study Returns'!H18 -> 4.34
A19: 3. | C19: Average equity risk premium | E19: =ROUND(AVERAGE(E11:E17),2) -> 5.55 | F19: % | H19: =ROUND(AVERAGE(H11:H17),2) -> 5.33 | I19: %
A22: Notes: | B22: (1) | C22: From page 8 of this Exhibit.
B23: (2) | C23: From page 11 of this Exhibit.

Sheet 5.8 Beta Adjusted ERP
A1: =Input!G28 -> Bluegrass Water (KY) Utility Operating Company, Inc.
A2: Derivation of Equity Risk Premium Based on the Total Market Approach
A3: Using the Beta for the
A4: ='5.7 ERP Determination'!E5 -> Proxy Group of Six Water Companies
A6: Line No. | C6: ='8.5 CEM Beta Adjusted RP'!C7 -> Equity Risk Premium Measure | F6: =A4 -> Proxy Group of Six Water Companies | I6: Proxy Group of Six Water Companies ex PRPM
A8: 1. | C8: Kroll Equity Risk Premium (1) | F8: =('Market Data'!B10-'Market Data'!B11)*100 -> 6.13 | G8: % | I8: =F8 -> 6.13 | J8: =G8 -> %
A10: 2. | C10: Regression on Kroll Risk Premium Data (2) | F10: ='MRP ERP WP'!AK42*100 -> 7.258229346 | I10: =F10 -> 7.258229346
A12: 3. | C12: Kroll Equity Risk Premium based on PRPM (3) | F12: ='PRPM WP1'!J1178*100 -> 9.760807336 | I12: NA
A14: 4. | C14: Equity Risk Premium Based on Value Line Summary and Index (4) | F14: ='MRP WP1'!$M$22*100-'MRP WP1'!$M$37 -> 11.01 | I14: =F14 -> 11.01
A16: 5. | C16: Equity Risk Premium Based on Value Line S&P 500 Companies (5) | F16: =('MRP WP3'!H504*100)-'MRP WP1'!M37 -> 10.47247765 | I16: =F16 -> 10.47247765
A18: 6. | C18: Equity Risk Premium Based on Bloomberg S&P 500 Companies (6) | F18: ='MRP WP2'!Q504*100-'MRP WP1'!M37 -> 6.175495542 | I18: =F18 -> 6.175495542
A20: 7. | C20: Conclusion of Equity Risk Premium | F20: =ROUND(AVERAGE(F8:F18),2) -> 8.47 | G20: % | I20: =ROUND(AVERAGE(I8:I18),2) -> 8.21 | J20: %
A22: 8. | C22: Adjusted Beta (7) | F22: ='6.1 CAPM'!H20 -> 0.77 | I22: =F22 -> 0.77
A24: 9. | C24: Forecasted Equity Risk Premium | F24: =ROUND(F20*F22,2) -> 6.52 | G24: % | I24: =ROUND(I20*I22,2) -> 6.32 | J24: %
B26: Notes:
B27: (1) | C27: =CONCATENATE("Based on the arithmetic mean historical monthly returns on large company common stocks from Kroll 2022 SBBI® Yearbook"," minus the arithmetic mean monthly yield of Moody's average Aaa and Aa2 corporate bonds from 1928-2021.") -> Based on the arithmetic mean historical monthly returns on large company common stocks from Kroll 2022 SBBI® Yearbook minus the arithmetic mean monthly yield of Moody's average Aaa and Aa2 corporate bonds from 1928-2021.
B29: (2) | C29: This equity risk premium is based on a regression of the monthly equity risk premiums of large company common stocks relative to Moody's average Aaa and Aa2 rated corporate bond yields from 1928-2021 referenced in Note 1 above.
B30: (3) | C30: The Predictive Risk Premium Model (PRPM) is discussed in the accompanying direct testimony. The Kroll equity risk premium based on the PRPM is derived by applying the PRPM to the monthly risk premiums between Kroll large company common stock monthly returns and average Aaa and Aa2 corporate monthly bond yields, from January 1928 through December 2022.
B31: (4) | C31: =CONCATENATE("The equity risk premium based on the Value Line Summary and Index is derived by subtracting the average consensus forecast of Aaa corporate bonds of ",TEXT('MRP WP1'!M37,"#0.00"),"% (from page 3 of this Exhibit) from the projected 3-5 year total annual market return of ",TEXT('MRP WP1'!M22*100,"#0.00"),"% (described fully in note 1 on page 2 of Exhibit DWD-6).") -> The equity risk premium based on the Value Line Summary and Index is derived by subtracting the average consensus forecast of Aaa corporate bonds of 5.05% (from page 3 of this Exhibit) from the projected 3-5 year total annual market return of 16.06% (described fully in note 1 on page 2 of Exhibit DWD-6).
B32: (5) | C32: =CONCATENATE("Using data from Value Line for the S&P 500, an expected total return of ",TEXT('MRP WP3'!H504*100,"#0.00"),"% was derived based upon expected dividend yields and long-term earnings growth estimates as a proxy for capital appreciation. Subtracting the average consensus forecast of Aaa corporate bonds of ",TEXT('MRP WP1'!M37,"#0.00"), "% results in an expected equity risk premium of ",TEXT('5.8 Beta Adjusted ERP'!F16,"#0.00"),"%.") -> Using data from Value Line for the S&P 500, an expected total return of 15.52% was derived based upon expected dividend yields and long-term earnings growth estimates as a proxy for capital appreciation. Subtracting the average consensus forecast of Aaa corporate bonds of 5.05% results in an expected equity risk premium of 10.47%.
B33: (6) | C33: =CONCATENATE("Using data from the Bloomberg Professional Services for the S&P 500, an expected total return of ",TEXT('MRP WP2'!Q504*100,"#0.00"), "% was derived based upon expected dividend yields and long-term earnings growth estimates as a proxy for capital appreciation. Subtracting the average consensus forecast of Aaa corporate bonds of ",TEXT('MRP WP1'!M37,"#0.00"), "% results in an expected equity risk premium of ", TEXT('5.8 Beta Adjusted ERP'!F18,"#0.00"),"%.") -> Using data from the Bloomberg Professional Services for the S&P 500, an expected total return of 11.23% was derived based upon expected dividend yields and long-term earnings growth estimates as a proxy for capital appreciation. Subtracting the average consensus forecast of Aaa corporate bonds of 5.05% results in an expected equity risk premium of 6.18%.
B34: (7) | C34: Average of mean and median beta from Exhibit DWD-6.
B36: Sources of Information:
C37: Kroll 2022 SBBI® Yearbook
C38: Industrial Manual and Mergent Bond Record Monthly Update.
C39: Value Line Summary and Index
C40: =CONCATENATE("Blue Chip Financial Forecasts, ",Input!I25) -> Blue Chip Financial Forecasts, December 2, 2022 and January 1, 2023
C41: Bloomberg Professional Services

Sheet 5.11 S&P RPM Study Returns
A1: =Input!G28 -> Bluegrass Water (KY) Utility Operating Company, Inc.
A2: Derivation of Mean Equity Risk Premium Based Studies
A3: Using Holding Period Returns and
A4: Projected Market Appreciation of the S&P Utility Index
A6: Line No. | E6: Implied Equity Risk Premium | H6: Proxy Group of Six Water Companies ex PRPM
A8: 1. | C8: Historical Equity Risk Premium (1) | E8: =('Market Data'!B12-'Market Data'!B13)*100 -> 4.28 | F8: % | H8: =E8 -> 4.28 | I8: =F8 -> %
A10: 2. | C10: Regression of Historical Equity Risk Premium (2) | E10: ='MRP ERP WP'!AU42*100 -> 4.801153547 | H10: =E10 -> 4.801153547
A12: 3. | C12: Forecasted Equity Risk Premium Based on PRPM (3) | E12: ='PRPM WP1'!I1178*100 -> 5.562886356 | H12: NA
A14: 4. | C14: Forecasted Equity Risk Premium based on Projected Total Return on the S&P Utilities Index (Value Line Data) (4) | E14: =ROUND(('ERP WP 2'!H34*100)-'5.3 Risk Premium Summary'!G18,2) -> 3.57 | H14: =E14 -> 3.57
A16: 5. | C16: Forecasted Equity Risk Premium based on Projected Total Return on the S&P Utilities Index (Bloomberg Data) (5) | E16: =ROUND('ERP WP1'!O33*100-'5.3 Risk Premium Summary'!G18,2) -> 4.69 | H16: =E16 -> 4.69
A18: 6. | C18: Average Equity Risk Premium (6) | E18: =ROUND(AVERAGE(E8:E16),2) -> 4.58 | F18: % | H18: =ROUND(AVERAGE(H8:H16),2) -> 4.34 | I18: %
A20: Notes: | B20: (1) | C20: Based on S&P Public Utility Index monthly total returns and Moody's Public Utility Bond average monthly yields from 1928-2021. Holding period returns are calculated based upon income received (dividends and interest) plus the relative change in the market value of a security over a one-year holding period.
B21: (2) | C21: This equity risk premium is based on a regression of the monthly equity risk premiums of the S&P Utility Index relative to Moody's A2 rated public utility bond yields from 1928 - 2021 referenced in note 1 above.
B22: (3) | C22: =CONCATENATE("The Predictive Risk Premium Model (PRPM) is applied to the risk premium of the monthly total returns of the S&P Utility Index and the monthly yields on Moody's A2 rated public utility bonds from January 1928 - ",Input!G25,".") -> The Predictive Risk Premium Model (PRPM) is applied to the risk premium of the monthly total returns of the S&P Utility Index and the monthly yields on Moody's A2 rated public utility bonds from January 1928 - December 2022.
B23: (4) | C23: =CONCATENATE("Using data from Value Line for the S&P Utilities Index, an expected return of ", TEXT('ERP WP 2'!H34,"#0.00%")," was derived based on expected dividend yields and long-term growth estimates as a proxy for market appreciation. Subtracting the expected A2 rated public utility bond yield of ",TEXT('5.3 Risk Premium Summary'!G18/100,"#0.00%"),", calculated on line 3 of page 3 of this Exhibit results in an equity risk premium of ",TEXT('5.11 S&P RPM Study Returns'!E14/100,"#0.00%"),". (",TEXT('ERP WP 2'!H34,"#0.00%")," - ",TEXT('5.3 Risk Premium Summary'!G18/100,"#0.00%")," = ",TEXT('5.11 S&P RPM Study Returns'!E14/100,"0.00%"),")") -> Using data from Value Line for the S&P Utilities Index, an expected return of 9.45% was derived based on expected dividend yields and long-term growth estimates as a proxy for market appreciation. Subtracting the expected A2 rated public utility bond yield of 5.88%, calculated on line 3 of page 3 of this Exhibit results in an equity risk premium of 3.57%. (9.45% - 5.88% = 3.57%)
B24: (5) | C24: =CONCATENATE("Using data from Bloomberg Professional Services for the S&P Utilities Index, an expected return of ",TEXT('ERP WP1'!O33,"#0.00%")," was derived based on expected dividend yields and long-term growth estimates as a proxy for market appreciation. Subtracting the expected A2 rated public utility bond yield of ",TEXT('5.3 Risk Premium Summary'!G18/100,"#0.00%"),", calculated on line 3 of page 3 of this Exhibit results in an equity risk premium of ",TEXT('5.11 S&P RPM Study Returns'!E16/100,"#0.00%"),". (",TEXT('ERP WP1'!O33,"#0.00%")," - ",TEXT('5.3 Risk Premium Summary'!G18/100,"#0.00%")," = ",TEXT('5.11 S&P RPM Study Returns'!E16/100,"#0.00%"),")") -> Using data from Bloomberg Professional Services for the S&P Utilities Index, an expected return of 10.57% was derived based on expected dividend yields and long-term growth estimates as a proxy for market appreciation. Subtracting the expected A2 rated public utility bond yield of 5.88%, calculated on line 3 of page 3 of this Exhibit results in an equity risk premium of 4.69%. (10.57% - 5.88% = 4.69%)
B25: (6) | C25: Average of lines 1 through 5.

Sheet 6.1 CAPM
B1: =Input!G28 -> Bluegrass Water (KY) Utility Operating Company, Inc.
B2: Indicated Common Equity Cost Rate Through Use
B3: of the Traditional Capital Asset Pricing Model (CAPM) and Empirical Capital Asset Pricing Model (ECAPM)
D5: [1] | F5: [2] | H5: [3] | J5: [4] | M5: [5] | P5: [6] | S5: [7] | V5: [8]
B7: ='5.8 Beta Adjusted ERP'!F6 -> Proxy Group of Six Water Companies | D7: Value Line Adjusted Beta | F7: Bloomberg Adjusted Beta | H7: Average Beta | J7: Market Risk Premium (1) | M7: Risk-Free Rate (2) | P7: Traditional CAPM Cost Rate | S7: ECAPM Cost Rate | V7: Indicated Common Equity Cost Rate (3)
A9: =IFERROR(Input!A2, "NA") -> AWR | B9: =IFERROR(VLOOKUP(A9,'Proxy Data Lookup'!$A:$K,2,FALSE),"NA") -> American States Water Company | D9: ='MRP WP1'!C81 -> 0.65 | F9: ='Proxy Data Lookup'!G3 -> 0.7622504234 | H9: =IFERROR(ROUND(AVERAGE(D9:F9),2),"NA") -> 0.71 | J9: ='MRP WP1'!$H$66 -> 9.665814436 | K9: % | M9: ='MRP WP1'!$F$37 -> 3.91 | N9: % | P9: =IFERROR((H9*J9) + M9,"NA") -> 10.77272825 | Q9: % | S9: =IFERROR((0.75*(H9*J9))+(0.25*J9)+M9,"NA") -> 11.4734998 | T9: % | V9: =IFERROR(ROUND(AVERAGE(P9:S9),2),"NA") -> 11.12 | W9: %
A10: =IFERROR(Input!A3, "NA") -> AWK | B10: =IFERROR(VLOOKUP(A10,'Proxy Data Lookup'!$A:$K,2,FALSE),"NA") -> American Water Works Company, Inc. | D10: ='MRP WP1'!C82 -> 0.9 | F10: ='Proxy Data Lookup'!G4 -> 0.9363287091 | H10: =IFERROR(ROUND(AVERAGE(D10:F10),2),"NA") -> 0.92 | J10: ='MRP WP1'!$H$66 -> 9.665814436 | M10: ='MRP WP1'!$F$37 -> 3.91 | P10: =IFERROR((H10*J10) + M10,"NA") -> 12.80254928 | S10: =IFERROR((0.75*(H10*J10))+(0.25*J10)+M10,"NA") -> 12.99586557 | V10: =IFERROR(ROUND(AVERAGE(P10:S10),2),"NA") -> 12.9
A11: =IFERROR(Input!A4, "NA") -> CWT | B11: =IFERROR(VLOOKUP(A11,'Proxy Data Lookup'!$A:$K,2,FALSE),"NA") -> California Water Service Group | D11: ='MRP WP1'!C83 -> 0.7 | F11: ='Proxy Data Lookup'!G5 -> 0.7811488509 | H11: 0.74 | J11: ='MRP WP1'!$H$66 -> 9.665814436 | M11: ='MRP WP1'!$F$37 -> 3.91 | P11: 11.06270268 | S11: 11.69098062 | V11: 11.38
A12: =IFERROR(Input!A5, "NA") -> WTRG | B12: =IFERROR(VLOOKUP(A12,'Proxy Data Lookup'!$A:$K,2,FALSE),"NA") -> Essential Utilities Inc. | D12: ='MRP WP1'!C84 -> 0.95 | F12: ='Proxy Data Lookup'!G6 -> 0.8421630263 | H12: 0.9 | J12: ='MRP WP1'!$H$66 -> 9.665814436 | M12: ='MRP WP1'!$F$37 -> 3.91 | P12: 12.60923299 | S12: 12.85087835 | V12: 12.73
A13: =IFERROR(Input!A6, "NA") -> MSEX | B13: =IFERROR(VLOOKUP(A13,'Proxy Data Lookup'!$A:$K,2,FALSE),"NA") -> Middlesex Water Company | D13: ='MRP WP1'!C85 -> 0.7 | F13: ='Proxy Data Lookup'!G7 -> 0.7126610875 | H13: 0.71 | J13: ='MRP WP1'!$H$66 -> 9.665814436 | M13: ='MRP WP1'!$F$37 -> 3.91 | P13: =IFERROR((H13*J13) + M13,"NA") -> 10.77272825 | S13: 11.4734998 | V13: 11.12
A14: =IFERROR(Input!A7, "NA") -> SJW | B14: =IFERROR(VLOOKUP(A14,'Proxy Data Lookup'!$A:$K,2,FALSE),"NA") -> SJW Group | D14: ='MRP WP1'!C86 -> 0.8 | F14: ='Proxy Data Lookup'!G8 -> 0.6807220578 | H14: 0.74 | J14: ='MRP WP1'!$H$66 -> 9.665814436 | M14: ='MRP WP1'!$F$37 -> 3.91 | P14: 11.06270268 | S14: 11.69098062 | V14: 11.38
B16: Mean | H16: =IFERROR(ROUND(AVERAGE(H9:H14),2),"NA") -> 0.79 | P16: =IFERROR(ROUND(AVERAGE(P9:P14),2),"NA") -> 11.51 | Q16: % | S16: =IFERROR(ROUND(AVERAGE(S9:S14),2),"NA") -> 12.03 | T16: % | V16: =IFERROR(ROUND(AVERAGE(V9:V14),2),"NA") -> 11.77 | W16: %
B18: Median | H18: =IFERROR(ROUND(MEDIAN(H9:H14),2),"NA") -> 0.74 | P18: =IFERROR(ROUND(MEDIAN(P9:P14),2),"NA") -> 11.06 | Q18: % | S18: =IFERROR(ROUND(MEDIAN(S9:S14),2),"NA") -> 11.69 | T18: % | V18: =IFERROR(ROUND(MEDIAN(V9:V14),2),"NA") -> 11.38 | W18: %
B20: Average of Mean and Median | H20: =IFERROR(ROUND(AVERAGE(H16:H18),2),"NA") -> 0.77 | P20: =IFERROR(ROUND(AVERAGE(P16:P18),2),"NA") -> 11.29 | Q20: % | S20: =IFERROR(ROUND(AVERAGE(S16:S18),2),"NA") -> 11.86 | T20: % | V20: =IFERROR(ROUND(AVERAGE(V16:V18),2),"NA") -> 11.58 | W20: %
B22: CAPM/ECAPM Results Excluding the PRPM MRP
B24: =B7 -> Proxy Group of Six Water Companies | D24: Value Line Adjusted Beta | F24: Bloomberg Adjusted Beta | H24: Average Beta | J24: Market Risk Premium (1) | M24: Risk-Free Rate (2) | P24: Traditional CAPM Cost Rate | S24: ECAPM Cost Rate | V24: Indicated Common Equity Cost Rate (3)
A26: =A9 -> AWR | B26: =IFERROR(VLOOKUP(A26,'Proxy Data Lookup'!$A:$K,2,FALSE),"NA") -> American States Water Company | D26: =D9 -> 0.65 | F26: =F9 -> 0.7622504234 | H26: =IFERROR(ROUND(AVERAGE(D26:F26),2),"NA") -> 0.71 | J26: ='6.2 CAPM Notes'!$N$40 -> 9.43 | K26: % | M26: =M9 -> 3.91 | N26: % | P26: =IFERROR((H26*J26) + M26,"NA") -> 10.6053 | Q26: % | S26: =IFERROR((0.75*(H26*J26))+(0.25*J26)+M26,"NA") -> 11.288975 | T26: % | V26: =IFERROR(ROUND(AVERAGE(P26:S26),2),"NA") -> 10.95 | W26: %
A27: =A10 -> AWK | B27: =IFERROR(VLOOKUP(A27,'Proxy Data Lookup'!$A:$K,2,FALSE),"NA") -> American Water Works Company, Inc. | D27: =D10 -> 0.9 | F27: =F10 -> 0.9363287091 | H27: =IFERROR(ROUND(AVERAGE(D27:F27),2),"NA") -> 0.92 | J27: ='6.2 CAPM Notes'!$N$40 -> 9.43 | M27: =M10 -> 3.91 | P27: =IFERROR((H27*J27) + M27,"NA") -> 12.5856 | S27: =IFERROR((0.75*(H27*J27))+(0.25*J27)+M27,"NA") -> 12.7742 | V27: =IFERROR(ROUND(AVERAGE(P27:S27),2),"NA") -> 12.68
A28: CWT | B28: =IFERROR(VLOOKUP(A28,'Proxy Data Lookup'!$A:$K,2,FALSE),"NA") -> California Water Service Group | D28: 0.7 | F28: 0.7811488509 | H28: 0.74 | J28: ='6.2 CAPM Notes'!$N$40 -> 9.43 | M28: 3.91 | P28: 10.8882 | S28: 11.50115 | V28: 11.19
A29: WTRG | B29: =IFERROR(VLOOKUP(A29,'Proxy Data Lookup'!$A:$K,2,FALSE),"NA") -> Essential Utilities Inc. | D29: 0.95 | F29: 0.8421630263 | H29: 0.9 | J29: ='6.2 CAPM Notes'!$N$40 -> 9.43 | M29: 3.91 | P29: 12.397 | S29: 12.63275 | V29: 12.51
A30: MSEX | B30: =IFERROR(VLOOKUP(A30,'Proxy Data Lookup'!$A:$K,2,FALSE),"NA") -> Middlesex Water Company | D30: 0.7 | F30: 0.7126610875 | H30: 0.71 | J30: ='6.2 CAPM Notes'!$N$40 -> 9.43 | M30: 3.91 | P30: 10.6053 | S30: 11.288975 | V30: 10.95
A31: SJW | B31: =IFERROR(VLOOKUP(A31,'Proxy Data Lookup'!$A:$K,2,FALSE),"NA") -> SJW Group | D31: 0.8 | F31: 0.6807220578 | H31: 0.74 | J31: ='6.2 CAPM Notes'!$N$40 -> 9.43 | M31: 3.91 | P31: 10.8882 | S31: 11.50115 | V31: 11.19
B33: Mean | H33: =IFERROR(ROUND(AVERAGE(H26:H31),2),"NA") -> 0.79 | P33: =IFERROR(ROUND(AVERAGE(P26:P31),2),"NA") -> 11.33 | Q33: % | S33: =IFERROR(ROUND(AVERAGE(S26:S31),2),"NA") -> 11.83 | T33: % | V33: =IFERROR(ROUND(AVERAGE(V26:V31),2),"NA") -> 11.58 | W33: %
B35: Median | H35: =IFERROR(ROUND(MEDIAN(H26:H31),2),"NA") -> 0.74 | P35: =IFERROR(ROUND(MEDIAN(P26:P31),2),"NA") -> 10.89 | Q35: % | S35: =IFERROR(ROUND(MEDIAN(S26:S31),2),"NA") -> 11.5 | T35: % | V35: =IFERROR(ROUND(MEDIAN(V26:V31),2),"NA") -> 11.19 | W35: %
B37: Average of Mean and Median | H37: =IFERROR(ROUND(AVERAGE(H33:H35),2),"NA") -> 0.77 | P37: =IFERROR(ROUND(AVERAGE(P33:P35),2),"NA") -> 11.11 | Q37: % | S37: =IFERROR(ROUND(AVERAGE(S33:S35),2),"NA") -> 11.67 | T37: % | V37: =IFERROR(ROUND(AVERAGE(V33:V35),2),"NA") -> 11.39 | W37: %
B40: Notes on page 2 of this Exhibit.

Sheet 6.2 CAPM Notes
A1: =Input!G28 -> Bluegrass Water (KY) Utility Operating Company, Inc.
A2: Notes to Accompany the Application of the CAPM and ECAPM
A4: Notes:
A5: (1) | B5: The market risk premium (MRP) is derived by using six different measures from three sources: Kroll, Value Line, and Bloomberg as illustrated below:
B7: =CONCATENATE("Measure 1: Kroll Arithmetic Mean MRP ",MID(Input!E20,FIND("(",Input!E20),11)) -> Measure 1: Kroll Arithmetic Mean MRP (1926-2021)
B9: =CONCATENATE("Arithmetic Mean Monthly Returns for Large Stocks ",MID(Input!E20,FIND("1",Input!E20),9),":") -> Arithmetic Mean Monthly Returns for Large Stocks 1926-2021: | N9: ='MRP WP1'!H51 -> 12.37 | O9: %
B10: Arithmetic Mean Income Returns on Long-Term Government Bonds: | N10: ='MRP WP1'!H53 -> 5.02
B11: MRP based on Kroll Historical Data: | N11: =N9-N10 -> 7.35 | O11: %
B13: Measure 2: Application of a Regression Analysis to Kroll Historical Data
B14: (1926-2021) | N14: ='MRP ERP WP'!AA42*100 -> 8.706891653 | O14: %
B16: Measure 3: Application of the PRPM to Kroll Historical Data:
B17: =CONCATENATE("(January 1926 - ",Input!G25,")") -> (January 1926 - December 2022) | N17: ='MRP WP1'!H48 -> 10.86249942 | O17: %
B19: =CONCATENATE("Measure 4: Value Line Projected MRP (Thirteen weeks ending ",TEXT('MRP WP1'!B7,"mmmm dd, yyyy)")) -> Measure 4: Value Line Projected MRP (Thirteen weeks ending January 13, 2023)
B21: Total projected return on the market 3-5 years hence*: | N21: ='MRP WP1'!M22*100 -> 16.06 | O21: %
B22: Projected Risk-Free Rate (see note 2): | N22: ='MRP WP1'!F37 -> 3.91
B23: MRP based on Value Line Summary & Index: | N23: =N21-N22 -> 12.15 | O23: %
C24: *Forcasted 3-5 year capital appreciation plus expected dividend yield
B26: Measure 5: Value Line Projected Return on the Market based on the S&P 500
B28: Total return on the Market based on the S&P 500: | N28: ='MRP WP3'!H504*100 -> 15.52247765 | O28: %
B29: Projected Risk-Free Rate (see note 2): | N29: =N52 -> 3.91
B30: MRP based on Value Line data | N30: =IFERROR(N28-N29,"NA") -> 11.61247765 | O30: %
B32: Measure 6: Bloomberg Projected MRP
B34: Total return on the Market based on the S&P 500: | N34: ='MRP WP2'!Q504*100 -> 11.22549554 | O34: %
B35: Projected Risk-Free Rate (see note 2): | N35: ='MRP WP1'!F37 -> 3.91
L36: MRP based on Bloomberg data | N36: =IFERROR(N34-N35,"NA") -> 7.315495542 | O36: %
L38: Average of Value Line, Kroll, and Bloomberg MRP: | N38: =AVERAGE(N11,N14,N17,N23,N30,N36) -> 9.666227377 | O38: %
L40: Average MRP Excluding the PRPM MRP: | N40: =ROUND(AVERAGE(N36,N30,N23,N14,N11),2) -> 9.43 | O40: %
A42: (2) | B42: For reasons explained in the Direct Testimony, the appropriate risk-free rate for cost of capital purposes is the average forecast of 30 year Treasury Bonds per the consensus of nearly 50 economists reported in Blue Chip Financial Forecasts. (See pages 9 and 10 of Exhibit DWD-5.) The projection of the risk-free rate is illustrated below:
J44: ='MRP WP1'!B28 -> First Quarter 2023 | N44: ='MRP WP1'!F28 -> 4 | O44: %
J45: ='MRP WP1'!B29 -> Second Quarter 2023 | N45: ='MRP WP1'!F29 -> 4
J46: ='MRP WP1'!B30 -> Third Quarter 2023 | N46: ='MRP WP1'!F30 -> 3.9
J47: ='MRP WP1'!B31 -> Fourth Quarter 2023 | N47: ='MRP WP1'!F31 -> 3.9
J48: ='MRP WP1'!B32 -> First Quarter 2024 | N48: ='MRP WP1'!F32 -> 3.8
J49: ='MRP WP1'!B33 -> Second Quarter 2024 | N49: ='MRP WP1'!F33 -> 3.8
J50: ='MRP WP1'!B34 -> 2024-2028 | N50: ='MRP WP1'!F34 -> 3.9
J51: ='MRP WP1'!B35 -> 2029-2033 | N51: ='MRP WP1'!F35 -> 4
N52: =ROUND(AVERAGE(N44:N51),2) -> 3.91 | O52: %
A54: (3) | B54: Average of Column 6 and Column 7.
A56: Sources of Information:
B57: Value Line Summary and Index
B58: ='5.8 Beta Adjusted ERP'!C40 -> Blue Chip Financial Forecasts, December 2, 2022 and January 1, 2023
B59: ='5.8 Beta Adjusted ERP'!C37 -> Kroll 2022 SBBI® Yearbook
B60: Bloomberg Professional Services

Sheet 7.2 Comp Earnings Criteria
C1: =Input!G28 -> Bluegrass Water (KY) Utility Operating Company, Inc.
C2: Basis of Selection of Comparable Risk
C3: Domestic Non-Price Regulated Companies
A4: TICKER
E5: [1] | G5: [2] | I5: [3] | K5: [4]
A6: SYMBOL
C7: ='6.1 CAPM'!B7 -> Proxy Group of Six Water Companies | E7: Value Line Adjusted Beta | G7: Unadjusted Beta | I7: Residual Standard Error of the Regression | K7: Standard Deviation of Beta
A9: =Input!A2 -> AWR | C9: =VLOOKUP(A9,'Proxy Data Lookup'!$A:$K,2,FALSE) -> American States Water Company | E9: ='Proxy Data Lookup'!F3 -> 0.65 | G9: ='Proxy Data Lookup'!H3 -> 0.42 | I9: ='Proxy Data Lookup'!K3 -> 2.3839 | K9: ='Proxy Data Lookup'!M3 -> 0.0593
A10: =Input!A3 -> AWK | C10: =VLOOKUP(A10,'Proxy Data Lookup'!$A:$K,2,FALSE) -> American Water Works Company, Inc. | E10: ='Proxy Data Lookup'!F4 -> 0.85 | G10: ='Proxy Data Lookup'!H4 -> 0.75 | I10: ='Proxy Data Lookup'!K4 -> 3.1906 | K10: ='Proxy Data Lookup'!M4 -> 0.0794
A11: =Input!A4 -> CWT | C11: =VLOOKUP(A11,'Proxy Data Lookup'!$A:$K,2,FALSE) -> California Water Service Group | E11: ='Proxy Data Lookup'!F5 -> 0.7 | G11: ='Proxy Data Lookup'!H5 -> 0.47 | I11: ='Proxy Data Lookup'!K5 -> 3.0022 | K11: ='Proxy Data Lookup'!M5 -> 0.0747
A12: =Input!A5 -> WTRG | C12: =VLOOKUP(A12,'Proxy Data Lookup'!$A:$K,2,FALSE) -> Essential Utilities Inc. | E12: ='Proxy Data Lookup'!F6 -> 0.95 | G12: ='Proxy Data Lookup'!H6 -> 0.91 | I12: ='Proxy Data Lookup'!K6 -> 2.7036 | K12: ='Proxy Data Lookup'!M6 -> 0.0673
A13: =Input!A6 -> MSEX | C13: =VLOOKUP(A13,'Proxy Data Lookup'!$A:$K,2,FALSE) -> Middlesex Water Company | E13: ='Proxy Data Lookup'!F7 -> 0.7 | G13: ='Proxy Data Lookup'!H7 -> 0.52 | I13: ='Proxy Data Lookup'!K7 -> 3.3913 | K13: ='Proxy Data Lookup'!M7 -> 0.0844
A14: =Input!A7 -> SJW | C14: =VLOOKUP(A14,'Proxy Data Lookup'!$A:$K,2,FALSE) -> SJW Group | E14: ='Proxy Data Lookup'!F8 -> 0.8 | G14: ='Proxy Data Lookup'!H8 -> 0.68 | I14: ='Proxy Data Lookup'!K8 -> 3.3691 | K14: ='Proxy Data Lookup'!M8 -> 0.0839
C16: Average | E16: =AVERAGE(E9:E14) -> 0.775 | G16: =AVERAGE(G9:G14) -> 0.625 | I16: =AVERAGE(I9:I14) -> 3.006783333 | K16: =AVERAGE(K9:K14) -> 0.07483333333
C19: Beta Range (+/- 2 std. Devs. of Beta) | E19: =G16-E20 -> 0.475 | G19: =G16+E20 -> 0.775
C20: 2 std. Devs. of Beta | E20: =ROUND((K16*2),2) -> 0.15
C22: Residual Std. Err. Range (+/- 2 std.
C23: Devs. of the Residual Std. Err.) | E23: =I16-E27 -> 2.742583333 | G23: =I16+E27 -> 3.270983333
C25: Std. dev. of the Res. Std. Err. | E25: =ROUND((I16/22.7596),4) -> 0.1321
C27: 2 std. devs. of the Res. Std. Err. | E27: =ROUND((2*E25),4) -> 0.2642
C30: Source of Information: | E30: Valueline Proprietary Database, December 2022

Sheet 7.3 Proxy Group Equivalent
C1: =Input!G28 -> Bluegrass Water (KY) Utility Operating Company, Inc.
C2: Proxy Group of Non-Price Regulated Companies
C3: Comparable in Total Risk to the
C4: ='7.2 Comp Earnings Criteria'!C7 -> Proxy Group of Six Water Companies
E6: [1] | G6: [2] | I6: [3] | K6: [4]
A8: Ticker | C8: =Input!I32 -> Proxy Group of Twenty Non-Price Regulated Companies | E8: Value Line Adjusted Beta | G8: Unadjusted Beta | I8: Residual Standard Error of the Regression | K8: Standard Deviation of Beta
A10: =Input!C2 -> ADBE | C10: =VLOOKUP($A10,'CEM Data Lookup'!$A:$M,2,FALSE) -> Adobe Inc. | E10: =VLOOKUP($A10,'CEM Data Lookup'!$A:$M,6,FALSE) -> 0.75 | G10: =VLOOKUP($A10,'CEM Data Lookup'!$A:$M,8,FALSE) -> 0.55 | I10: =VLOOKUP($A10,'CEM Data Lookup'!$A:$M,11,FALSE) -> 3.2558 | K10: =VLOOKUP($A10,'CEM Data Lookup'!$A:$M,13,FALSE) -> 0.081
A11: =Input!C3 -> AMGN | C11: =VLOOKUP($A11,'CEM Data Lookup'!$A:$M,2,FALSE) -> Amgen | E11: =VLOOKUP($A11,'CEM Data Lookup'!$A:$M,6,FALSE) -> 0.75 | G11: =VLOOKUP($A11,'CEM Data Lookup'!$A:$M,8,FALSE) -> 0.56 | I11: =VLOOKUP($A11,'CEM Data Lookup'!$A:$M,11,FALSE) -> 2.7921 | K11: =VLOOKUP($A11,'CEM Data Lookup'!$A:$M,13,FALSE) -> 0.0695
A12: =Input!C4 -> BDX | C12: =VLOOKUP($A12,'CEM Data Lookup'!$A:$M,2,FALSE) -> Becton, Dickinson | E12: =VLOOKUP($A12,'CEM Data Lookup'!$A:$M,6,FALSE) -> 0.75 | G12: =VLOOKUP($A12,'CEM Data Lookup'!$A:$M,8,FALSE) -> 0.59 | I12: =VLOOKUP($A12,'CEM Data Lookup'!$A:$M,11,FALSE) -> 2.9628 | K12: =VLOOKUP($A12,'CEM Data Lookup'!$A:$M,13,FALSE) -> 0.0738
A13: =Input!C5 -> BMY | C13: =VLOOKUP($A13,'CEM Data Lookup'!$A:$M,2,FALSE) -> Bristol-Myers Squibb | E13: =VLOOKUP($A13,'CEM Data Lookup'!$A:$M,6,FALSE) -> 0.85 | G13: =VLOOKUP($A13,'CEM Data Lookup'!$A:$M,8,FALSE) -> 0.76 | I13: =VLOOKUP($A13,'CEM Data Lookup'!$A:$M,11,FALSE) -> 3.033 | K13: =VLOOKUP($A13,'CEM Data Lookup'!$A:$M,13,FALSE) -> 0.0755
A14: =Input!C6 -> BR | C14: =VLOOKUP($A14,'CEM Data Lookup'!$A:$M,2,FALSE) -> Broadridge Fin'l | E14: =VLOOKUP($A14,'CEM Data Lookup'!$A:$M,6,FALSE) -> 0.85 | G14: =VLOOKUP($A14,'CEM Data Lookup'!$A:$M,8,FALSE) -> 0.7 | I14: =VLOOKUP($A14,'CEM Data Lookup'!$A:$M,11,FALSE) -> 2.761 | K14: =VLOOKUP($A14,'CEM Data Lookup'!$A:$M,13,FALSE) -> 0.0687
A15: =Input!C7 -> CHKP | C15: =VLOOKUP($A15,'CEM Data Lookup'!$A:$M,2,FALSE) -> Check Point Software | E15: =VLOOKUP($A15,'CEM Data Lookup'!$A:$M,6,FALSE) -> 0.75 | G15: =VLOOKUP($A15,'CEM Data Lookup'!$A:$M,8,FALSE) -> 0.57 | I15: =VLOOKUP($A15,'CEM Data Lookup'!$A:$M,11,FALSE) -> 2.8358 | K15: =VLOOKUP($A15,'CEM Data Lookup'!$A:$M,13,FALSE) -> 0.0706
A16: =Input!C8 -> CHRW | C16: =VLOOKUP($A16,'CEM Data Lookup'!$A:$M,2,FALSE) -> C.H. Robinson | E16: =VLOOKUP($A16,'CEM Data Lookup'!$A:$M,6,FALSE) -> 0.75 | G16: =VLOOKUP($A16,'CEM Data Lookup'!$A:$M,8,FALSE) -> 0.56 | I16: =VLOOKUP($A16,'CEM Data Lookup'!$A:$M,11,FALSE) -> 3.0116 | K16: =VLOOKUP($A16,'CEM Data Lookup'!$A:$M,13,FALSE) -> 0.075
A17: =Input!C9 -> CSGS | C17: =VLOOKUP($A17,'CEM Data Lookup'!$A:$M,2,FALSE) -> CSG Systems Int'l | E17: =VLOOKUP($A17,'CEM Data Lookup'!$A:$M,6,FALSE) -> 0.75 | G17: =VLOOKUP($A17,'CEM Data Lookup'!$A:$M,8,FALSE) -> 0.58 | I17: =VLOOKUP($A17,'CEM Data Lookup'!$A:$M,11,FALSE) -> 3.1079 | K17: =VLOOKUP($A17,'CEM Data Lookup'!$A:$M,13,FALSE) -> 0.0774
A18: =Input!C10 -> DGX | C18: =VLOOKUP($A18,'CEM Data Lookup'!$A:$M,2,FALSE) -> Quest Diagnostics | E18: =VLOOKUP($A18,'CEM Data Lookup'!$A:$M,6,FALSE) -> 0.8 | G18: =VLOOKUP($A18,'CEM Data Lookup'!$A:$M,8,FALSE) -> 0.69 | I18: =VLOOKUP($A18,'CEM Data Lookup'!$A:$M,11,FALSE) -> 3.0218 | K18: =VLOOKUP($A18,'CEM Data Lookup'!$A:$M,13,FALSE) -> 0.0752
A19: =Input!C11 -> HTLD | C19: =VLOOKUP($A19,'CEM Data Lookup'!$A:$M,2,FALSE) -> Heartland Express | E19: =VLOOKUP($A19,'CEM Data Lookup'!$A:$M,6,FALSE) -> 0.75 | G19: =VLOOKUP($A19,'CEM Data Lookup'!$A:$M,8,FALSE) -> 0.55 | I19: =VLOOKUP($A19,'CEM Data Lookup'!$A:$M,11,FALSE) -> 2.9497 | K19: =VLOOKUP($A19,'CEM Data Lookup'!$A:$M,13,FALSE) -> 0.0734
A20: =Input!C12 -> JKHY | C20: =VLOOKUP($A20,'CEM Data Lookup'!$A:$M,2,FALSE) -> Henry (Jack) & Assoc | E20: =VLOOKUP($A20,'CEM Data Lookup'!$A:$M,6,FALSE) -> 0.85 | G20: =VLOOKUP($A20,'CEM Data Lookup'!$A:$M,8,FALSE) -> 0.7 | I20: =VLOOKUP($A20,'CEM Data Lookup'!$A:$M,11,FALSE) -> 2.8821 | K20: =VLOOKUP($A20,'CEM Data Lookup'!$A:$M,13,FALSE) -> 0.0717
A21: =Input!C13 -> KMB | C21: =VLOOKUP($A21,'CEM Data Lookup'!$A:$M,2,FALSE) -> Kimberly-Clark | E21: =VLOOKUP($A21,'CEM Data Lookup'!$A:$M,6,FALSE) -> 0.7 | G21: =VLOOKUP($A21,'CEM Data Lookup'!$A:$M,8,FALSE) -> 0.51 | I21: =VLOOKUP($A21,'CEM Data Lookup'!$A:$M,11,FALSE) -> 2.8091 | K21: =VLOOKUP($A21,'CEM Data Lookup'!$A:$M,13,FALSE) -> 0.0699
A22: =Input!C14 -> LANC | C22: =VLOOKUP($A22,'CEM Data Lookup'!$A:$M,2,FALSE) -> Lancaster Colony | E22: =VLOOKUP($A22,'CEM Data Lookup'!$A:$M,6,FALSE) -> 0.7 | G22: =VLOOKUP($A22,'CEM Data Lookup'!$A:$M,8,FALSE) -> 0.5 | I22: =VLOOKUP($A22,'CEM Data Lookup'!$A:$M,11,FALSE) -> 2.9638 | K22: =VLOOKUP($A22,'CEM Data Lookup'!$A:$M,13,FALSE) -> 0.0738
A23: =Input!C15 -> MKC | C23: =VLOOKUP($A23,'CEM Data Lookup'!$A:$M,2,FALSE) -> McCormick & Co. | E23: =VLOOKUP($A23,'CEM Data Lookup'!$A:$M,6,FALSE) -> 0.8 | G23: =VLOOKUP($A23,'CEM Data Lookup'!$A:$M,8,FALSE) -> 0.66 | I23: =VLOOKUP($A23,'CEM Data Lookup'!$A:$M,11,FALSE) -> 2.8331 | K23: =VLOOKUP($A23,'CEM Data Lookup'!$A:$M,13,FALSE) -> 0.0705
A24: =Input!C16 -> MNST | C24: =VLOOKUP($A24,'CEM Data Lookup'!$A:$M,2,FALSE) -> Monster Beverage | E24: =VLOOKUP($A24,'CEM Data Lookup'!$A:$M,6,FALSE) -> 0.85 | G24: =VLOOKUP($A24,'CEM Data Lookup'!$A:$M,8,FALSE) -> 0.73 | I24: =VLOOKUP($A24,'CEM Data Lookup'!$A:$M,11,FALSE) -> 3.0556 | K24: =VLOOKUP($A24,'CEM Data Lookup'!$A:$M,13,FALSE) -> 0.0761
A25: =Input!C17 -> NOC | C25: =VLOOKUP($A25,'CEM Data Lookup'!$A:$M,2,FALSE) -> Northrop Grumman | E25: =VLOOKUP($A25,'CEM Data Lookup'!$A:$M,6,FALSE) -> 0.85 | G25: =VLOOKUP($A25,'CEM Data Lookup'!$A:$M,8,FALSE) -> 0.74 | I25: =VLOOKUP($A25,'CEM Data Lookup'!$A:$M,11,FALSE) -> 2.9186 | K25: =VLOOKUP($A25,'CEM Data Lookup'!$A:$M,13,FALSE) -> 0.0727
A26: =Input!C18 -> PGR | C26: =VLOOKUP($A26,'CEM Data Lookup'!$A:$M,2,FALSE) -> Progressive Corp. | E26: =VLOOKUP($A26,'CEM Data Lookup'!$A:$M,6,FALSE) -> 0.75 | G26: =VLOOKUP($A26,'CEM Data Lookup'!$A:$M,8,FALSE) -> 0.6 | I26: =VLOOKUP($A26,'CEM Data Lookup'!$A:$M,11,FALSE) -> 2.8617 | K26: =VLOOKUP($A26,'CEM Data Lookup'!$A:$M,13,FALSE) -> 0.0712
A27: =Input!C19 -> RLI | C27: =VLOOKUP($A27,'CEM Data Lookup'!$A:$M,2,FALSE) -> RLI Corp. | E27: =VLOOKUP($A27,'CEM Data Lookup'!$A:$M,6,FALSE) -> 0.8 | G27: =VLOOKUP($A27,'CEM Data Lookup'!$A:$M,8,FALSE) -> 0.66 | I27: =VLOOKUP($A27,'CEM Data Lookup'!$A:$M,11,FALSE) -> 2.8575 | K27: =VLOOKUP($A27,'CEM Data Lookup'!$A:$M,13,FALSE) -> 0.0711
A28: =Input!C20 -> ROL | C28: =VLOOKUP($A28,'CEM Data Lookup'!$A:$M,2,FALSE) -> Rollins, Inc. | E28: =VLOOKUP($A28,'CEM Data Lookup'!$A:$M,6,FALSE) -> 0.85 | G28: =VLOOKUP($A28,'CEM Data Lookup'!$A:$M,8,FALSE) -> 0.72 | I28: =VLOOKUP($A28,'CEM Data Lookup'!$A:$M,11,FALSE) -> 2.9831 | K28: =VLOOKUP($A28,'CEM Data Lookup'!$A:$M,13,FALSE) -> 0.0743
A29: =Input!C21 -> TYL | C29: =VLOOKUP($A29,'CEM Data Lookup'!$A:$M,2,FALSE) -> Tyler Technologies | E29: =VLOOKUP($A29,'CEM Data Lookup'!$A:$M,6,FALSE) -> 0.75 | G29: =VLOOKUP($A29,'CEM Data Lookup'!$A:$M,8,FALSE) -> 0.56 | I29: =VLOOKUP($A29,'CEM Data Lookup'!$A:$M,11,FALSE) -> 3.228 | K29: =VLOOKUP($A29,'CEM Data Lookup'!$A:$M,13,FALSE) -> 0.0804
A31: =COUNTA(A9:A29) -> 20 | C31: Average | E31: =ROUND(AVERAGE(E10:E29),2) -> 0.78 | G31: =ROUND(AVERAGE(G10:G29),2) -> 0.62 | I31: =ROUND(AVERAGE(I10:I29),4) -> 2.9562 | K31: =ROUND(AVERAGE(K10:K29),4) -> 0.0736
C33: =C4 -> Proxy Group of Six Water Companies | E33: ='7.2 Comp Earnings Criteria'!E16 -> 0.775 | G33: ='7.2 Comp Earnings Criteria'!G16 -> 0.625 | I33: ='7.2 Comp Earnings Criteria'!I16 -> 3.006783333 | K33: ='7.2 Comp Earnings Criteria'!K16 -> 0.07483333333
C36: ='7.2 Comp Earnings Criteria'!C30 -> Source of Information: | E36: ='7.2 Comp Earnings Criteria'!E30 -> Valueline Proprietary Database, December 2022

Sheet 8.1 CEM Summary
A1: =Input!G28 -> Bluegrass Water (KY) Utility Operating Company, Inc.
A2: Summary of Cost of Equity Models Applied to
A3: ='7.3 Proxy Group Equivalent'!C8 -> Proxy Group of Twenty Non-Price Regulated Companies
A4: Comparable in Total Risk to the
A5: ='7.3 Proxy Group Equivalent'!C4 -> Proxy Group of Six Water Companies
B7: Principal Methods | E7: =A3 -> Proxy Group of Twenty Non-Price Regulated Companies | H7: Proxy Group of Twenty Non-Price Regulated Companies ex PRPM
B9: Discounted Cash Flow Model (DCF) (1) | E9: ='8.2 CEM DCF'!V34 -> 9.54 | F9: % | H9: =E9 -> 9.54 | I9: =F9 -> %
B11: Risk Premium Model (RPM) (2) | E11: ='8.3 CEM RPM Summary'!H19 -> 12.40444444 | H11: ='8.3 CEM RPM Summary'!K19 -> 12.20444444
B13: Capital Asset Pricing Model (CAPM) (3) | E13: ='8.6 CEM CAPM Backup'!V34 -> 11.61 | H13: ='8.6 CEM CAPM Backup'!V73 -> 11.42
D15: Mean | E15: =ROUND(AVERAGE(E9:E13),2) -> 11.18 | F15: % | H15: =ROUND(AVERAGE(H9:H13),2) -> 11.05 | I15: %
D17: Median | E17: =ROUND(MEDIAN(E9:E13),2) -> 11.61 | F17: % | H17: =ROUND(MEDIAN(H9:H13),2) -> 11.42 | I17: %
D19: Average of Mean and Median | E19: =ROUND(AVERAGE(E15:E17),2) -> 11.4 | F19: % | H19: =ROUND(AVERAGE(H15:H17),2) -> 11.24 | I19: %
A21: Notes:
A22: (1) | B22: From page 2 of this Exhibit.
A23: (2) | B23: From page 3 of this Exhibit.
A24: (3) | B24: From page 6 of this Exhibit.

Sheet 8.2 CEM DCF
B1: =Input!G28 -> Bluegrass Water (KY) Utility Operating Company, Inc.
B2: DCF Results for the Proxy Group of Non-Price-Regulated Companies Comparable in Total Risk to the
B3: ='8.1 CEM Summary'!A5 -> Proxy Group of Six Water Companies
D5: [1] | G5: [2] | J5: [3] | M5: [4] | P5: [6] | S5: [7] | V5: [8]
B7: ='8.1 CEM Summary'!A3 -> Proxy Group of Twenty Non-Price Regulated Companies | D7: Average Dividend Yield | G7: Value Line Projected Five Year Growth in EPS | J7: Zack's Five Year Projected Growth Rate in EPS | M7: Yahoo! Finance Projected Five Year Growth in EPS | P7: Average Projected Five Year Growth Rate in EPS | S7: Adjusted Dividend Yield | V7: Indicated Common Equity Cost Rate (1)
A9: =Input!C2 -> ADBE | B9: =VLOOKUP($A9,'CEM Data Lookup'!$A:$M,2,FALSE) -> Adobe Inc. | D9: ='CEM PricesDivs'!B$69 -> 0 | E9: % | G9: =IFERROR(VLOOKUP($A9,'CEM Data Lookup'!$A:$M,5,FALSE)*100,"NA") -> 13.5 | H9: % | J9: =IFERROR(VLOOKUP($A9,'CEM Data Lookup'!$A:$M,3,FALSE)*100,"NA") -> 13.2 | K9: % | M9: =IFERROR(VLOOKUP($A9,'CEM Data Lookup'!$A:$M,4,FALSE)*100,"NA") -> 13.56 | N9: % | P9: =IFERROR(ROUND(AVERAGE(G9,J9,M9),2),"NA") -> 13.42 | Q9: % | S9: =IFERROR(ROUND((D9*(1+(0.5*(P9/100)))),2),"NA") -> 0 | T9: % | V9: =IFERROR(IF(OR(VALUE(S9)=0,VALUE(P9)=0),"NA",S9+P9),"NA") -> NA | W9: % | X9: =_xlfn.STDEV.S(V9:V28)*2 -> 5.47823816
A10: =Input!C3 -> AMGN | B10: =VLOOKUP($A10,'CEM Data Lookup'!$A:$M,2,FALSE) -> Amgen | D10: ='CEM PricesDivs'!C$69 -> 3.11 | G10: =IFERROR(VLOOKUP($A10,'CEM Data Lookup'!$A:$M,5,FALSE)*100,"NA") -> 5.5 | J10: =IFERROR(VLOOKUP($A10,'CEM Data Lookup'!$A:$M,3,FALSE)*100,"NA") -> 7.7 | M10: =IFERROR(VLOOKUP($A10,'CEM Data Lookup'!$A:$M,4,FALSE)*100,"NA") -> 6.25 | P10: =IFERROR(ROUND(AVERAGE(G10,J10,M10),2),"NA") -> 6.48 | S10: =IFERROR(ROUND((D10*(1+(0.5*(P10/100)))),2),"NA") -> 3.21 | V10: =IFERROR(IF(OR(VALUE(S10)=0,VALUE(P10)=0),"NA",S10+P10),"NA") -> 9.69 | X10: =AVERAGE(V9:V28) -> 9.275
A11: =Input!C4 -> BDX | B11: =VLOOKUP($A11,'CEM Data Lookup'!$A:$M,2,FALSE) -> Becton, Dickinson | D11: ='CEM PricesDivs'!D$69 -> 1.51 | G11: =IFERROR(VLOOKUP($A11,'CEM Data Lookup'!$A:$M,5,FALSE)*100,"NA") -> 4.5 | J11: =IFERROR(VLOOKUP($A11,'CEM Data Lookup'!$A:$M,3,FALSE)*100,"NA") -> 9.5 | M11: =IFERROR(VLOOKUP($A11,'CEM Data Lookup'!$A:$M,4,FALSE)*100,"NA") -> 5.5 | P11: 6.5 | S11: 1.56 | V11: 8.06 | X11: =X10+X9 -> 14.75323816
A12: =Input!C5 -> BMY | B12: =VLOOKUP($A12,'CEM Data Lookup'!$A:$M,2,FALSE) -> Bristol-Myers Squibb | D12: ='CEM PricesDivs'!E$69 -> 3 | G12: =IFERROR(VLOOKUP($A12,'CEM Data Lookup'!$A:$M,5,FALSE)*100,"NA") -> NA | J12: =IFERROR(VLOOKUP($A12,'CEM Data Lookup'!$A:$M,3,FALSE)*100,"NA") -> 5.7 | M12: =IFERROR(VLOOKUP($A12,'CEM Data Lookup'!$A:$M,4,FALSE)*100,"NA") -> 3.88 | P12: 4.79 | S12: 3.07 | V12: 7.86 | X12: =X10-X9 -> 3.79676184
A13: =Input!C6 -> BR | B13: =VLOOKUP($A13,'CEM Data Lookup'!$A:$M,2,FALSE) -> Broadridge Fin'l | D13: ='CEM PricesDivs'!F$69 -> 2.06 | G13: =IFERROR(VLOOKUP($A13,'CEM Data Lookup'!$A:$M,5,FALSE)*100,"NA") -> 9.5 | J13: =IFERROR(VLOOKUP($A13,'CEM Data Lookup'!$A:$M,3,FALSE)*100,"NA") -> NA | M13: =IFERROR(VLOOKUP($A13,'CEM Data Lookup'!$A:$M,4,FALSE)*100,"NA") -> 11.8 | P13: 10.65 | S13: 2.17 | V13: 12.82
A14: =Input!C7 -> CHKP | B14: =VLOOKUP($A14,'CEM Data Lookup'!$A:$M,2,FALSE) -> Check Point Software | D14: ='CEM PricesDivs'!G$69 -> 0 | G14: =IFERROR(VLOOKUP($A14,'CEM Data Lookup'!$A:$M,5,FALSE)*100,"NA") -> 8.5 | J14: =IFERROR(VLOOKUP($A14,'CEM Data Lookup'!$A:$M,3,FALSE)*100,"NA") -> 7.3 | M14: =IFERROR(VLOOKUP($A14,'CEM Data Lookup'!$A:$M,4,FALSE)*100,"NA") -> 7.02 | P14: 7.61 | S14: 0 | V14: NA
A15: =Input!C8 -> CHRW | B15: =VLOOKUP($A15,'CEM Data Lookup'!$A:$M,2,FALSE) -> C.H. Robinson | D15: ='CEM PricesDivs'!H$69 -> 2.58 | G15: =IFERROR(VLOOKUP($A15,'CEM Data Lookup'!$A:$M,5,FALSE)*100,"NA") -> 8.5 | J15: =IFERROR(VLOOKUP($A15,'CEM Data Lookup'!$A:$M,3,FALSE)*100,"NA") -> 9 | M15: =IFERROR(VLOOKUP($A15,'CEM Data Lookup'!$A:$M,4,FALSE)*100,"NA") -> 3.83 | P15: 7.11 | S15: 2.67 | V15: 9.78
A16: =Input!C9 -> CSGS | B16: =VLOOKUP($A16,'CEM Data Lookup'!$A:$M,2,FALSE) -> CSG Systems Int'l | D16: ='CEM PricesDivs'!I$69 -> 1.79 | G16: =IFERROR(VLOOKUP($A16,'CEM Data Lookup'!$A:$M,5,FALSE)*100,"NA") -> 12 | J16: =IFERROR(VLOOKUP($A16,'CEM Data Lookup'!$A:$M,3,FALSE)*100,"NA") -> NA | M16: =IFERROR(VLOOKUP($A16,'CEM Data Lookup'!$A:$M,4,FALSE)*100,"NA") -> 7 | P16: =IFERROR(ROUND(AVERAGE(G16,J16,M16),2),"NA") -> 9.5 | S16: 1.88 | V16: 11.38
A17: =Input!C10 -> DGX | B17: =VLOOKUP($A17,'CEM Data Lookup'!$A:$M,2,FALSE) -> Quest Diagnostics | D17: ='CEM PricesDivs'!J$69 -> 1.78 | G17: =IFERROR(VLOOKUP($A17,'CEM Data Lookup'!$A:$M,5,FALSE)*100,"NA") -> 4 | J17: =IFERROR(VLOOKUP($A17,'CEM Data Lookup'!$A:$M,3,FALSE)*100,"NA") -> NA | M17: =IFERROR(VLOOKUP($A17,'CEM Data Lookup'!$A:$M,4,FALSE)*100,"NA") -> -15.6 | P17: =IFERROR(ROUND(AVERAGE(G17,J17),2),"NA") -> 4 | S17: 1.82 | V17: 5.82
A18: =Input!C11 -> HTLD | B18: =VLOOKUP($A18,'CEM Data Lookup'!$A:$M,2,FALSE) -> Heartland Express | D18: ='CEM PricesDivs'!K$69 -> 0.51 | G18: =IFERROR(VLOOKUP($A18,'CEM Data Lookup'!$A:$M,5,FALSE)*100,"NA") -> 8.5 | J18: =IFERROR(VLOOKUP($A18,'CEM Data Lookup'!$A:$M,3,FALSE)*100,"NA") -> NA | M18: =IFERROR(VLOOKUP($A18,'CEM Data Lookup'!$A:$M,4,FALSE)*100,"NA") -> 13.3 | P18: 10.9 | S18: 0.54 | V18: 11.44
A19: =Input!C12 -> JKHY | B19: =VLOOKUP($A19,'CEM Data Lookup'!$A:$M,2,FALSE) -> Henry (Jack) & Assoc | D19: ='CEM PricesDivs'!L$69 -> 1.07 | G19: =IFERROR(VLOOKUP($A19,'CEM Data Lookup'!$A:$M,5,FALSE)*100,"NA") -> 8 | J19: =IFERROR(VLOOKUP($A19,'CEM Data Lookup'!$A:$M,3,FALSE)*100,"NA") -> 9 | M19: =IFERROR(VLOOKUP($A19,'CEM Data Lookup'!$A:$M,4,FALSE)*100,"NA") -> 9 | P19: 8.67 | S19: 1.12 | V19: 9.79
A20: =Input!C13 -> KMB | B20: =VLOOKUP($A20,'CEM Data Lookup'!$A:$M,2,FALSE) -> Kimberly-Clark | D20: ='CEM PricesDivs'!M$69 -> 3.53 | G20: =IFERROR(VLOOKUP($A20,'CEM Data Lookup'!$A:$M,5,FALSE)*100,"NA") -> 5.5 | J20: =IFERROR(VLOOKUP($A20,'CEM Data Lookup'!$A:$M,3,FALSE)*100,"NA") -> 6.4 | M20: =IFERROR(VLOOKUP($A20,'CEM Data Lookup'!$A:$M,4,FALSE)*100,"NA") -> 6.9 | P20: 6.27 | S20: 3.64 | V20: 9.91
A21: =Input!C14 -> LANC | B21: =VLOOKUP($A21,'CEM Data Lookup'!$A:$M,2,FALSE) -> Lancaster Colony | D21: ='CEM PricesDivs'!N$69 -> 1.72 | G21: =IFERROR(VLOOKUP($A21,'CEM Data Lookup'!$A:$M,5,FALSE)*100,"NA") -> 3.5 | J21: =IFERROR(VLOOKUP($A21,'CEM Data Lookup'!$A:$M,3,FALSE)*100,"NA") -> NA | M21: =IFERROR(VLOOKUP($A21,'CEM Data Lookup'!$A:$M,4,FALSE)*100,"NA") -> 3 | P21: 3.25 | S21: 1.75 | V21: 5
A22: =Input!C15 -> MKC | B22: =VLOOKUP($A22,'CEM Data Lookup'!$A:$M,2,FALSE) -> McCormick & Co. | D22: ='CEM PricesDivs'!O$69 -> 1.89 | G22: =IFERROR(VLOOKUP($A22,'CEM Data Lookup'!$A:$M,5,FALSE)*100,"NA") -> 4.5 | J22: =IFERROR(VLOOKUP($A22,'CEM Data Lookup'!$A:$M,3,FALSE)*100,"NA") -> 5.3 | M22: =IFERROR(VLOOKUP($A22,'CEM Data Lookup'!$A:$M,4,FALSE)*100,"NA") -> 1 | P22: 3.6 | S22: 1.92 | V22: 5.52
A23: =Input!C16 -> MNST | B23: =VLOOKUP($A23,'CEM Data Lookup'!$A:$M,2,FALSE) -> Monster Beverage | D23: ='CEM PricesDivs'!P$69 -> 0 | G23: =IFERROR(VLOOKUP($A23,'CEM Data Lookup'!$A:$M,5,FALSE)*100,"NA") -> 10.5 | J23: =IFERROR(VLOOKUP($A23,'CEM Data Lookup'!$A:$M,3,FALSE)*100,"NA") -> 11.4 | M23: =IFERROR(VLOOKUP($A23,'CEM Data Lookup'!$A:$M,4,FALSE)*100,"NA") -> 14.12 | P23: 12.01 | S23: 0 | V23: NA
A24: =Input!C17 -> NOC | B24: =VLOOKUP($A24,'CEM Data Lookup'!$A:$M,2,FALSE) -> Northrop Grumman | D24: ='CEM PricesDivs'!Q$69 -> 1.32 | G24: =IFERROR(VLOOKUP($A24,'CEM Data Lookup'!$A:$M,5,FALSE)*100,"NA") -> 6.5 | J24: =IFERROR(VLOOKUP($A24,'CEM Data Lookup'!$A:$M,3,FALSE)*100,"NA") -> 2.4 | M24: =IFERROR(VLOOKUP($A24,'CEM Data Lookup'!$A:$M,4,FALSE)*100,"NA") -> 3 | P24: 3.97 | S24: 1.35 | V24: 5.32
A25: =Input!C18 -> PGR | B25: =VLOOKUP($A25,'CEM Data Lookup'!$A:$M,2,FALSE) -> Progressive Corp. | D25: ='CEM PricesDivs'!R$69 -> 0.31 | G25: =IFERROR(VLOOKUP($A25,'CEM Data Lookup'!$A:$M,5,FALSE)*100,"NA") -> 6.5 | J25: =IFERROR(VLOOKUP($A25,'CEM Data Lookup'!$A:$M,3,FALSE)*100,"NA") -> 19.9 | M25: =IFERROR(VLOOKUP($A25,'CEM Data Lookup'!$A:$M,4,FALSE)*100,"NA") -> 27.12 | P25: =IFERROR(ROUND(AVERAGE(G25,J25),2),"NA") -> 13.2 | S25: =IFERROR(ROUND((D25*(1+(0.5*(P25/100)))),2),"NA") -> 0.33 | V25: =IFERROR(IF(OR(VALUE(S25)=0,VALUE(P25)=0),"NA",S25+P25),"NA") -> 13.53
A26: =Input!C19 -> RLI | B26: =VLOOKUP($A26,'CEM Data Lookup'!$A:$M,2,FALSE) -> RLI Corp. | D26: ='CEM PricesDivs'!S$69 -> 0.8 | G26: =IFERROR(VLOOKUP($A26,'CEM Data Lookup'!$A:$M,5,FALSE)*100,"NA") -> 12 | J26: =IFERROR(VLOOKUP($A26,'CEM Data Lookup'!$A:$M,3,FALSE)*100,"NA") -> NA | M26: =IFERROR(VLOOKUP($A26,'CEM Data Lookup'!$A:$M,4,FALSE)*100,"NA") -> 9.8 | P26: 10.9 | S26: 0.84 | V26: 11.74
A27: =Input!C20 -> ROL | B27: =VLOOKUP($A27,'CEM Data Lookup'!$A:$M,2,FALSE) -> Rollins, Inc. | D27: ='CEM PricesDivs'!T$69 -> 1.33 | G27: =IFERROR(VLOOKUP($A27,'CEM Data Lookup'!$A:$M,5,FALSE)*100,"NA") -> 10.5 | J27: =IFERROR(VLOOKUP($A27,'CEM Data Lookup'!$A:$M,3,FALSE)*100,"NA") -> NA | M27: =IFERROR(VLOOKUP($A27,'CEM Data Lookup'!$A:$M,4,FALSE)*100,"NA") -> 8.2 | P27: 9.35 | S27: 1.39 | V27: =IFERROR(IF(OR(VALUE(S27)=0,VALUE(P27)=0),"NA",S27+P27),"NA") -> 10.74
A28: =Input!C21 -> TYL | B28: =VLOOKUP($A28,'CEM Data Lookup'!$A:$M,2,FALSE) -> Tyler Technologies | D28: ='CEM PricesDivs'!U$69 -> 0 | G28: =IFERROR(VLOOKUP($A28,'CEM Data Lookup'!$A:$M,5,FALSE)*100,"NA") -> 12 | J28: =IFERROR(VLOOKUP($A28,'CEM Data Lookup'!$A:$M,3,FALSE)*100,"NA") -> NA | M28: =IFERROR(VLOOKUP($A28,'CEM Data Lookup'!$A:$M,4,FALSE)*100,"NA") -> 7.2 | P28: 9.6 | S28: 0 | V28: NA
S30: Mean | V30: =ROUND(AVERAGE(V9:V28),2) -> 9.28 | W30: %
S32: Median | V32: =ROUND(MEDIAN(V9:V28),2) -> 9.79 | W32: %
S34: Average of Mean and Median | V34: =ROUND(AVERAGE(V30:V32),2) -> 9.54 | W34: %
C35: NA= Not Available
C38: (1) | D38: The application of the DCF model to the domestic, non-price regluated comparable risk companies is identical to the application of the DCF to the utility proxy group. The dividend yield is derived by using the 60 day average price and the spot indicated dividend as of January 13, 2023. The dividend yield is then adjusted by 1/2 the average projected growth rate in EPS, which is calculated by averaging the 5 year projected growth in EPS provided by Value Line, www.zacks.com, and www.yahoo.com (excluding any negative growth rates) and then adding that growth rate to the adjusted dividend yield.
B40: Source of Information: | C40: Value Line Investment Survey
C41: =CONCATENATE("www.zacks.com Downloaded on ",TEXT(Input!E2,"mm/dd/yyyy")) -> www.zacks.com Downloaded on 01/13/2023
C42: =CONCATENATE("www.yahoo.com Downloaded on ",TEXT(Input!E2,"mm/dd/yyyy")) -> www.yahoo.com Downloaded on 01/13/2023

Sheet 8.3 CEM RPM Summary
A1: =Input!G28 -> Bluegrass Water (KY) Utility Operating Company, Inc.
A2: Indicated Common Equity Cost Rate
A3: Through Use of a Risk Premium Model
A4: Using an Adjusted Total Market Approach
A6: Line No. | H6: ='8.2 CEM DCF'!B7 -> Proxy Group of Twenty Non-Price Regulated Companies | K6: ='8.1 CEM Summary'!H7 -> Proxy Group of Twenty Non-Price Regulated Companies ex PRPM
A8: 1. | C8: Prospective Yield on Baa2 Rated
C9: Corporate Bonds (1) | H9: =$H$32 -> 6.05 | I9: % | K9: =H9 -> 6.05 | L9: =I9 -> %
A11: 2. | C11: Adjustment to Reflect Bond rating Difference of | H11: =-H42 -> -0.1655555556 | K11: =H11 -> -0.1655555556
C12: Non-Price Regulated Companies (2)
A14: 3. | C14: Adjusted Prospective Bond Yield | H14: =SUM(H9:H11) -> 5.884444444 | I14: % | K14: =SUM(K9:K11) -> 5.884444444 | L14: %
A16: 4. | C16: Equity Risk Premium (3) | H16: ='8.5 CEM Beta Adjusted RP'!E25 -> 6.52 | K16: ='8.5 CEM Beta Adjusted RP'!H25 -> 6.32
A18: 5. | C18: Risk Premium Derived Common
C19: Equity Cost Rate | H19: =SUM(H14,H16) -> 12.40444444 | I19: % | K19: =SUM(K14,K16) -> 12.20444444 | L19: %
A21: Notes: | B21: (1) | C21: =CONCATENATE("Average forecast of Baa2 corporate bonds based upon the consensus of nearly 50 economists reported in Blue Chip Financial Forecasts dated ",TEXT(Input!I25,"[$-409]mmmm d, yyyy;@")," (see pages 9 and 10 of Exhibit DWD-5). The estimates are detailed below.") -> Average forecast of Baa2 corporate bonds based upon the consensus of nearly 50 economists reported in Blue Chip Financial Forecasts dated December 2, 2022 and January 1, 2023 (see pages 9 and 10 of Exhibit DWD-5). The estimates are detailed below.
D23: ='MRP WP1'!B28 -> First Quarter 2023 | H23: ='MRP WP1'!O28 -> 6.1 | I23: %
D24: ='MRP WP1'!B29 -> Second Quarter 2023 | H24: ='MRP WP1'!O29 -> 6.3
D25: ='MRP WP1'!B30 -> Third Quarter 2023 | H25: ='MRP WP1'!O30 -> 6.2
D26: ='MRP WP1'!B31 -> Fourth Quarter 2023 | H26: ='MRP WP1'!O31 -> 6.1
D27: ='MRP WP1'!B32 -> First Quarter 2024 | H27: ='MRP WP1'!O32 -> 5.9
D28: ='MRP WP1'!B33 -> Second Quarter 2024 | H28: ='MRP WP1'!O33 -> 5.8
D29: ='MRP WP1'!B34 -> 2024-2028 | H29: ='MRP WP1'!O34 -> 6
D30: ='MRP WP1'!B35 -> 2029-2033 | H30: ='MRP WP1'!O35 -> 6
D32: Average | H32: =ROUND(AVERAGE(H23:H30),2) -> 6.05 | I32: %
B34: (2) | C34: =CONCATENATE("The average yield spread of Baa rated corporate bonds over A corporate bonds for the three months ending ",TEXT(C38,"mmmm yyyy")," . To reflect the ", IFERROR('8.4 CEM RPM Bond Ratings'!D35,"NA"), " average rating of the non-utility proxy group, the prosepctive yield on Baa corporate bonds must be adjusted by 1/3 of the spread between A and Baa corporate bond yields as shown below:") -> The average yield spread of Baa rated corporate bonds over A corporate bonds for the three months ending December 2022 . To reflect the Baa1 average rating of the non-utility proxy group, the prosepctive yield on Baa corporate bonds must be adjusted by 1/3 of the spread between A and Baa corporate bond yields as shown below:
D36: A Corp. Bond Yield | F36: Baa Corp. Bond Yield
H37: Spread
C38: ='Market Data'!B1 -> 2022-12-31 | D38: ='Market Data'!B6 -> 5.1 | E38: % | F38: ='Market Data'!B7 -> 5.58 | G38: % | H38: =F38-D38 -> 0.48 | I38: %
C39: ='Market Data'!C1 -> 2022-11-30 | D39: ='Market Data'!C6 -> 5.58 | F39: ='Market Data'!C7 -> 6.07 | H39: =F39-D39 -> 0.49
C40: ='Market Data'!D1 -> 2022-10-30 | D40: ='Market Data'!D6 -> 5.74 | F40: ='Market Data'!D7 -> 6.26 | H40: =F40-D40 -> 0.52
F41: Average yield spread | H41: =AVERAGE(H38:H40) -> 0.4966666667
F42: 1/3 of spread | H42: =H41*(1/3) -> 0.1655555556
B44: (3) | C44: From page 5 of this Exhibit.

Sheet 8.4 CEM RPM Bond Ratings
B1: =Input!G28 -> Bluegrass Water (KY) Utility Operating Company, Inc.
B2: Comparison of Long-Term Issuer Ratings for the
B3: =CONCATENATE('8.3 CEM RPM Summary'!H6," of Comparable risk to the") -> Proxy Group of Twenty Non-Price Regulated Companies of Comparable risk to the
B4: ='8.2 CEM DCF'!B3 -> Proxy Group of Six Water Companies
D7: Moody's | H7: Standard & Poor's
D8: Long-Term Issuer Rating | H8: =D8 -> Long-Term Issuer Rating
D9: =TEXT(Input!E2, "mmmm yyyy") -> January 2023 | H9: =D9 -> January 2023
B12: ='8.3 CEM RPM Summary'!H6 -> Proxy Group of Twenty Non-Price Regulated Companies | D12: Long-Term Issuer Rating | F12: Numerical Weighting (1) | H12: =D12 -> Long-Term Issuer Rating | J12: Numerical Weighting (1)
A14: =Input!C2 -> ADBE | B14: =VLOOKUP($A14,'CEM Data Lookup'!$A:$M,2,FALSE) -> Adobe Inc. | D14: ='CEM Data Lookup'!N3 -> A2 | F14: =IFERROR(VLOOKUP('8.4 CEM RPM Bond Ratings'!D14,'5.6 MOODY_S&P numbericl_assign'!B:D,3,FALSE),"--") -> 6 | H14: ='CEM Data Lookup'!O3 -> A+ | J14: =IFERROR(VLOOKUP(H14,'5.6 MOODY_S&P numbericl_assign'!F:H,3,FALSE),"--") -> 5
A15: =Input!C3 -> AMGN | B15: =VLOOKUP($A15,'CEM Data Lookup'!$A:$M,2,FALSE) -> Amgen | D15: ='CEM Data Lookup'!N4 -> Baa1 | F15: =IFERROR(VLOOKUP('8.4 CEM RPM Bond Ratings'!D15,'5.6 MOODY_S&P numbericl_assign'!B:D,3,FALSE),"--") -> 8 | H15: ='CEM Data Lookup'!O4 -> BBB+ | J15: =IFERROR(VLOOKUP(H15,'5.6 MOODY_S&P numbericl_assign'!F:H,3,FALSE),"--") -> 8
A16: =Input!C4 -> BDX | B16: =VLOOKUP($A16,'CEM Data Lookup'!$A:$M,2,FALSE) -> Becton, Dickinson | D16: ='CEM Data Lookup'!N5 -> Baa2 | F16: 13 | H16: ='CEM Data Lookup'!O5 -> BBB | J16: 12
A17: =Input!C5 -> BMY | B17: =VLOOKUP($A17,'CEM Data Lookup'!$A:$M,2,FALSE) -> Bristol-Myers Squibb | D17: ='CEM Data Lookup'!N6 -> A2 | F17: =IFERROR(VLOOKUP('8.4 CEM RPM Bond Ratings'!D17,'5.6 MOODY_S&P numbericl_assign'!B:D,3,FALSE),"--") -> 6 | H17: ='CEM Data Lookup'!O6 -> A+ | J17: =IFERROR(VLOOKUP(H17,'5.6 MOODY_S&P numbericl_assign'!F:H,3,FALSE),"--") -> 5
A18: =Input!C6 -> BR | B18: =VLOOKUP($A18,'CEM Data Lookup'!$A:$M,2,FALSE) -> Broadridge Fin'l | D18: ='CEM Data Lookup'!N7 -> Baa1 | F18: =IFERROR(VLOOKUP('8.4 CEM RPM Bond Ratings'!D18,'5.6 MOODY_S&P numbericl_assign'!B:D,3,FALSE),"--") -> 8 | H18: ='CEM Data Lookup'!O7 -> BBB+ | J18: =IFERROR(VLOOKUP(H18,'5.6 MOODY_S&P numbericl_assign'!F:H,3,FALSE),"--") -> 8
A19: =Input!C7 -> CHKP | B19: =VLOOKUP($A19,'CEM Data Lookup'!$A:$M,2,FALSE) -> Check Point Software | D19: ='CEM Data Lookup'!N8 -> NA | F19: =IFERROR(VLOOKUP('8.4 CEM RPM Bond Ratings'!D19,'5.6 MOODY_S&P numbericl_assign'!B:D,3,FALSE),"--") -> -- | H19: ='CEM Data Lookup'!O8 -> NA | J19: =IFERROR(VLOOKUP(H19,'5.6 MOODY_S&P numbericl_assign'!F:H,3,FALSE),"--") -> --
A20: =Input!C8 -> CHRW | B20: =VLOOKUP($A20,'CEM Data Lookup'!$A:$M,2,FALSE) -> C.H. Robinson | D20: ='CEM Data Lookup'!N9 -> Baa2 | F20: =IFERROR(VLOOKUP('8.4 CEM RPM Bond Ratings'!D20,'5.6 MOODY_S&P numbericl_assign'!B:D,3,FALSE),"--") -> 9 | H20: ='CEM Data Lookup'!O9 -> BBB+ | J20: =IFERROR(VLOOKUP(H20,'5.6 MOODY_S&P numbericl_assign'!F:H,3,FALSE),"--") -> 8
A21: =Input!C9 -> CSGS | B21: =VLOOKUP($A21,'CEM Data Lookup'!$A:$M,2,FALSE) -> CSG Systems Int'l | D21: ='CEM Data Lookup'!N10 -> NA | F21: =IFERROR(VLOOKUP('8.4 CEM RPM Bond Ratings'!D21,'5.6 MOODY_S&P numbericl_assign'!B:D,3,FALSE),"--") -> -- | H21: ='CEM Data Lookup'!O10 -> BB+ | J21: =IFERROR(VLOOKUP(H21,'5.6 MOODY_S&P numbericl_assign'!F:H,3,FALSE),"--") -> 11
A22: =Input!C10 -> DGX | B22: =VLOOKUP($A22,'CEM Data Lookup'!$A:$M,2,FALSE) -> Quest Diagnostics | D22: ='CEM Data Lookup'!N11 -> Baa2 | F22: =IFERROR(VLOOKUP('8.4 CEM RPM Bond Ratings'!D22,'5.6 MOODY_S&P numbericl_assign'!B:D,3,FALSE),"--") -> 9 | H22: ='CEM Data Lookup'!O11 -> BBB+ | J22: =IFERROR(VLOOKUP(H22,'5.6 MOODY_S&P numbericl_assign'!F:H,3,FALSE),"--") -> 8
A23: =Input!C11 -> HTLD | B23: =VLOOKUP($A23,'CEM Data Lookup'!$A:$M,2,FALSE) -> Heartland Express | D23: ='CEM Data Lookup'!N12 -> NA | F23: =IFERROR(VLOOKUP('8.4 CEM RPM Bond Ratings'!D23,'5.6 MOODY_S&P numbericl_assign'!B:D,3,FALSE),"--") -> -- | H23: ='CEM Data Lookup'!O12 -> NA | J23: =IFERROR(VLOOKUP(H23,'5.6 MOODY_S&P numbericl_assign'!F:H,3,FALSE),"--") -> --
A24: =Input!C12 -> JKHY | B24: =VLOOKUP($A24,'CEM Data Lookup'!$A:$M,2,FALSE) -> Henry (Jack) & Assoc | D24: ='CEM Data Lookup'!N13 -> NA | F24: =IFERROR(VLOOKUP('8.4 CEM RPM Bond Ratings'!D24,'5.6 MOODY_S&P numbericl_assign'!B:D,3,FALSE),"--") -> -- | H24: ='CEM Data Lookup'!O13 -> NA | J24: =IFERROR(VLOOKUP(H24,'5.6 MOODY_S&P numbericl_assign'!F:H,3,FALSE),"--") -> --
A25: =Input!C13 -> KMB | B25: =VLOOKUP($A25,'CEM Data Lookup'!$A:$M,2,FALSE) -> Kimberly-Clark | D25: ='CEM Data Lookup'!N14 -> A2 | F25: =IFERROR(VLOOKUP('8.4 CEM RPM Bond Ratings'!D25,'5.6 MOODY_S&P numbericl_assign'!B:D,3,FALSE),"--") -> 6 | H25: ='CEM Data Lookup'!O14 -> A | J25: =IFERROR(VLOOKUP(H25,'5.6 MOODY_S&P numbericl_assign'!F:H,3,FALSE),"--") -> 6
A26: =Input!C14 -> LANC | B26: =VLOOKUP($A26,'CEM Data Lookup'!$A:$M,2,FALSE) -> Lancaster Colony | D26: ='CEM Data Lookup'!N15 -> NA | F26: =IFERROR(VLOOKUP('8.4 CEM RPM Bond Ratings'!D26,'5.6 MOODY_S&P numbericl_assign'!B:D,3,FALSE),"--") -> -- | H26: ='CEM Data Lookup'!O15 -> NA | J26: =IFERROR(VLOOKUP(H26,'5.6 MOODY_S&P numbericl_assign'!F:H,3,FALSE),"--") -> --
A27: =Input!C15 -> MKC | B27: =VLOOKUP($A27,'CEM Data Lookup'!$A:$M,2,FALSE) -> McCormick & Co. | D27: ='CEM Data Lookup'!N16 -> Baa2 | F27: =IFERROR(VLOOKUP('8.4 CEM RPM Bond Ratings'!D27,'5.6 MOODY_S&P numbericl_assign'!B:D,3,FALSE),"--") -> 9 | H27: ='CEM Data Lookup'!O16 -> BBB | J27: =IFERROR(VLOOKUP(H27,'5.6 MOODY_S&P numbericl_assign'!F:H,3,FALSE),"--") -> 9
A28: =Input!C16 -> MNST | B28: =VLOOKUP($A28,'CEM Data Lookup'!$A:$M,2,FALSE) -> Monster Beverage | D28: ='CEM Data Lookup'!N17 -> NA | F28: =IFERROR(VLOOKUP('8.4 CEM RPM Bond Ratings'!D28,'5.6 MOODY_S&P numbericl_assign'!B:D,3,FALSE),"--") -> -- | H28: ='CEM Data Lookup'!O17 -> NA | J28: =IFERROR(VLOOKUP(H28,'5.6 MOODY_S&P numbericl_assign'!F:H,3,FALSE),"--") -> --
A29: =Input!C17 -> NOC | B29: =VLOOKUP($A29,'CEM Data Lookup'!$A:$M,2,FALSE) -> Northrop Grumman | D29: ='CEM Data Lookup'!N18 -> Baa1 | F29: =IFERROR(VLOOKUP('8.4 CEM RPM Bond Ratings'!D29,'5.6 MOODY_S&P numbericl_assign'!B:D,3,FALSE),"--") -> 8 | H29: ='CEM Data Lookup'!O18 -> BBB+ | J29: =IFERROR(VLOOKUP(H29,'5.6 MOODY_S&P numbericl_assign'!F:H,3,FALSE),"--") -> 8
A30: =Input!C18 -> PGR | B30: =VLOOKUP($A30,'CEM Data Lookup'!$A:$M,2,FALSE) -> Progressive Corp. | D30: ='CEM Data Lookup'!N19 -> A2 | F30: =IFERROR(VLOOKUP('8.4 CEM RPM Bond Ratings'!D30,'5.6 MOODY_S&P numbericl_assign'!B:D,3,FALSE),"--") -> 6 | H30: ='CEM Data Lookup'!O19 -> A | J30: =IFERROR(VLOOKUP(H30,'5.6 MOODY_S&P numbericl_assign'!F:H,3,FALSE),"--") -> 6
A31: =Input!C19 -> RLI | B31: =VLOOKUP($A31,'CEM Data Lookup'!$A:$M,2,FALSE) -> RLI Corp. | D31: ='CEM Data Lookup'!N20 -> Baa2 | F31: 9 | H31: ='CEM Data Lookup'!O20 -> BBB | J31: =IFERROR(VLOOKUP(H31,'5.6 MOODY_S&P numbericl_assign'!F:H,3,FALSE),"--") -> 9
A32: =Input!C20 -> ROL | B32: =VLOOKUP($A32,'CEM Data Lookup'!$A:$M,2,FALSE) -> Rollins, Inc. | D32: ='CEM Data Lookup'!N21 -> NA | F32: =IFERROR(VLOOKUP('8.4 CEM RPM Bond Ratings'!D32,'5.6 MOODY_S&P numbericl_assign'!B:D,3,FALSE),"--") -> -- | H32: ='CEM Data Lookup'!O21 -> NA | J32: =IFERROR(VLOOKUP(H32,'5.6 MOODY_S&P numbericl_assign'!F:H,3,FALSE),"--") -> --
A33: =Input!C21 -> TYL | B33: =VLOOKUP($A33,'CEM Data Lookup'!$A:$M,2,FALSE) -> Tyler Technologies | D33: ='CEM Data Lookup'!N22 -> NA | F33: =IFERROR(VLOOKUP('8.4 CEM RPM Bond Ratings'!D33,'5.6 MOODY_S&P numbericl_assign'!B:D,3,FALSE),"--") -> -- | H33: ='CEM Data Lookup'!O22 -> NA | J33: =IFERROR(VLOOKUP(H33,'5.6 MOODY_S&P numbericl_assign'!F:H,3,FALSE),"--") -> --
B35: Average | D35: Baa1 | F35: =ROUND(AVERAGE(F13:F33),1) -> 8.1 | H35: BBB+ | J35: =ROUND(AVERAGE(J13:J33),1) -> 7.9
B38: Notes:
B39: (1) | C39: From page 6 of Exhibit DWD-5.
B41: Source of Information:
B42: Bloomberg Professional Services

Sheet 8.5 CEM Beta Adjusted RP
A1: =Input!G28 -> Bluegrass Water (KY) Utility Operating Company, Inc.
A2: Derivation of Equity Risk Premium Based on the Total Market Approach
A3: Using the Beta for
A4: ='8.4 CEM RPM Bond Ratings'!B3 -> Proxy Group of Twenty Non-Price Regulated Companies of Comparable risk to the
A5: ='8.4 CEM RPM Bond Ratings'!B4 -> Proxy Group of Six Water Companies
A7: Line No. | C7: Equity Risk Premium Measure | E7: ='8.4 CEM RPM Bond Ratings'!B12 -> Proxy Group of Twenty Non-Price Regulated Companies | H7: ='8.3 CEM RPM Summary'!K6 -> Proxy Group of Twenty Non-Price Regulated Companies ex PRPM
A9: 1. | C9: Kroll Equity Risk Premium (1) | E9: ='5.8 Beta Adjusted ERP'!F8 -> 6.13 | F9: % | H9: =E9 -> 6.13 | I9: =F9 -> %
A11: 2. | C11: Regression on Kroll Risk Premium Data (2) | E11: ='MRP ERP WP'!$AK$42*100 -> 7.258229346 | H11: =E11 -> 7.258229346
A13: 3. | C13: Kroll Equity Risk Premium based on PRPM (3) | E13: ='5.8 Beta Adjusted ERP'!F12 -> 9.760807336 | H13: NA
A15: 4. | C15: Equity Risk Premium Based on Value Line Summary and Index (4) | E15: ='MRP WP1'!$M$22*100-'MRP WP1'!$M$37 -> 11.01 | H15: =E15 -> 11.01
A17: 5 | C17: Equity Risk Premium Based on Value Line S&P 500 Companies (5) | E17: ='5.8 Beta Adjusted ERP'!F16 -> 10.47247765 | H17: =E17 -> 10.47247765
A19: 6. | C19: Equity Risk Premium Based on Bloomberg S&P 500 Companies (6) | E19: ='5.8 Beta Adjusted ERP'!F18 -> 6.175495542 | H19: =E19 -> 6.175495542
A21: 7. | C21: Conclusion of Equity Risk Premium | E21: =ROUND(AVERAGE(E9,E11,E13,E15,E17,E19),2) -> 8.47 | F21: % | H21: =ROUND(AVERAGE(H9,H11,H13,H15,H17,H19),2) -> 8.21 | I21: %
A23: 8. | C23: Adjusted Beta (7) | E23: ='8.6 CEM CAPM Backup'!H34 -> 0.77 | H23: =E23 -> 0.77
A25: 9. | C25: Forecasted Equity Risk Premium | E25: =ROUND(E21*E23,2) -> 6.52 | F25: % | H25: =ROUND(H21*H23,2) -> 6.32 | I25: %
A27: Notes:
B28: (1) | C28: From note 1 of page 8 of Exhibit DWD-5.
B29: (2) | C29: From note 2 of page 8 of Exhibit DWD-5.
B30: (3) | C30: From note 3 of page 8 of Exhibit DWD-5.
B31: (4) | C31: From note 4 of page 8 of Exhibit DWD-5.
B32: (5) | C32: From note 5 of page 8 of Exhibit DWD-5.
B33: (6) | C33: From note 6 of page 8 of Exhibit DWD-5.
B34: (7) | C34: Average of mean and median beta from page 6 of this Exhibit.
B36: Sources of Information:
C37: ='6.2 CAPM Notes'!B59 -> Kroll 2022 SBBI® Yearbook
C38: Value Line Summary and Index
C39: ='6.2 CAPM Notes'!B58 -> Blue Chip Financial Forecasts, December 2, 2022 and January 1, 2023
C40: Bloomberg Professional Services

Sheet 8.6 CEM CAPM Backup
B1: =Input!G28 -> Bluegrass Water (KY) Utility Operating Company, Inc.
B2: Traditional CAPM and ECAPM Results for the Proxy Group of Non-Price-Regulated Companies Comparable in Total Risk to the
B3: ='8.5 CEM Beta Adjusted RP'!A5 -> Proxy Group of Six Water Companies
D5: [1] | F5: [2] | H5: [3] | J5: [4] | M5: [5] | P5: [6] | S5: [7] | V5: [8]
B7: ='8.5 CEM Beta Adjusted RP'!E7 -> Proxy Group of Twenty Non-Price Regulated Companies | D7: Value Line Adjusted Beta | F7: Bloomberg Beta | H7: Average Beta | J7: Market Risk Premium (1) | M7: Risk-Free Rate (2) | P7: Traditional CAPM Cost Rate | S7: ECAPM Cost Rate | V7: Indicated Common Equity Cost Rate (3)
A9: =Input!C2 -> ADBE | B9: =VLOOKUP($A9,'CEM Data Lookup'!$A:$M,2,FALSE) -> Adobe Inc. | D9: ='MRP WP1'!E81 -> 0.85 | F9: ='CEM Data Lookup'!G3 -> 1.424250126 | H9: =ROUND(AVERAGE(D9:F9),2) -> 1.14 | J9: ='MRP WP1'!H$66 -> 9.665814436 | K9: % | M9: ='MRP WP1'!F$37 -> 3.91 | N9: % | P9: =(H9*J9)+M9 -> 14.92902846 | Q9: % | S9: =ROUND((0.75*(H9*J9))+((0.25*J9))+M9,4) -> 14.5907 | T9: % | V9: =ROUND(AVERAGE(P9,S9),2) -> 14.76 | W9: %
A10: =Input!C3 -> AMGN | B10: =VLOOKUP($A10,'CEM Data Lookup'!$A:$M,2,FALSE) -> Amgen | D10: ='MRP WP1'!E82 -> 0.7 | F10: ='CEM Data Lookup'!G4 -> 0.6677419543 | H10: =ROUND(AVERAGE(D10:F10),2) -> 0.68 | J10: ='MRP WP1'!H$66 -> 9.665814436 | M10: ='MRP WP1'!F$37 -> 3.91 | P10: =(H10*J10)+M10 -> 10.48275382 | S10: =ROUND((0.75*(H10*J10))+((0.25*J10))+M10,4) -> 11.256 | V10: =ROUND(AVERAGE(P10,S10),2) -> 10.87
A11: =Input!C4 -> BDX | B11: =VLOOKUP($A11,'CEM Data Lookup'!$A:$M,2,FALSE) -> Becton, Dickinson | D11: ='MRP WP1'!E83 -> 0.75 | F11: ='CEM Data Lookup'!G5 -> 0.6853892207 | H11: =ROUND(AVERAGE(D11:F11),2) -> 0.72 | J11: ='MRP WP1'!H$66 -> 9.665814436 | M11: ='MRP WP1'!F$37 -> 3.91 | P11: 10.86938639 | S11: =ROUND((0.75*(H11*J11))+((0.25*J11))+M11,4) -> 11.546 | V11: 11.21
A12: =Input!C5 -> BMY | B12: =VLOOKUP($A12,'CEM Data Lookup'!$A:$M,2,FALSE) -> Bristol-Myers Squibb | D12: ='MRP WP1'!E84 -> 0.8 | F12: ='CEM Data Lookup'!G6 -> 0.5097875595 | H12: 0.65 | J12: ='MRP WP1'!H$66 -> 9.665814436 | M12: ='MRP WP1'!F$37 -> 3.91 | P12: 10.19277938 | S12: 11.0385 | V12: 10.62
A13: =Input!C6 -> BR | B13: =VLOOKUP($A13,'CEM Data Lookup'!$A:$M,2,FALSE) -> Broadridge Fin'l | D13: ='MRP WP1'!E85 -> 0.9 | F13: ='CEM Data Lookup'!G7 -> 0.9826169014 | H13: =ROUND(AVERAGE(D13:F13),2) -> 0.94 | J13: ='MRP WP1'!H$66 -> 9.665814436 | M13: ='MRP WP1'!F$37 -> 3.91 | P13: 12.99586557 | S13: 13.1409 | V13: 13.07
A14: =Input!C7 -> CHKP | B14: =VLOOKUP($A14,'CEM Data Lookup'!$A:$M,2,FALSE) -> Check Point Software | D14: ='MRP WP1'!E86 -> 0.75 | F14: ='CEM Data Lookup'!G8 -> 0.7285448313 | H14: 0.74 | J14: ='MRP WP1'!H$66 -> 9.665814436 | M14: ='MRP WP1'!F$37 -> 3.91 | P14: 11.06270268 | S14: 11.691 | V14: 11.38
A15: =Input!C8 -> CHRW | B15: =VLOOKUP($A15,'CEM Data Lookup'!$A:$M,2,FALSE) -> C.H. Robinson | D15: ='MRP WP1'!E87 -> 0.75 | F15: ='CEM Data Lookup'!G9 -> 0.8792093992 | H15: 0.81 | J15: ='MRP WP1'!H$66 -> 9.665814436 | M15: ='MRP WP1'!F$37 -> 3.91 | P15: 11.73930969 | S15: 12.1984 | V15: 11.97
A16: =Input!C9 -> CSGS | B16: =VLOOKUP($A16,'CEM Data Lookup'!$A:$M,2,FALSE) -> CSG Systems Int'l | D16: ='MRP WP1'!E88 -> 0.75 | F16: ='CEM Data Lookup'!G10 -> 0.821510911 | H16: 0.79 | J16: ='MRP WP1'!H$66 -> 9.665814436 | M16: ='MRP WP1'!F$37 -> 3.91 | P16: 11.5459934 | S16: 12.0534 | V16: 11.8
A17: =Input!C10 -> DGX | B17: =VLOOKUP($A17,'CEM Data Lookup'!$A:$M,2,FALSE) -> Quest Diagnostics | D17: ='MRP WP1'!E89 -> 0.8 | F17: ='CEM Data Lookup'!G11 -> 0.6936050057 | H17: 0.75 | J17: ='MRP WP1'!H$66 -> 9.665814436 | M17: ='MRP WP1'!F$37 -> 3.91 | P17: 11.15936083 | S17: 11.7635 | V17: 11.46
A18: =Input!C11 -> HTLD | B18: =VLOOKUP($A18,'CEM Data Lookup'!$A:$M,2,FALSE) -> Heartland Express | D18: ='MRP WP1'!E90 -> 0.7 | F18: ='CEM Data Lookup'!G12 -> 0.7953819633 | H18: 0.75 | J18: ='MRP WP1'!H$66 -> 9.665814436 | M18: ='MRP WP1'!F$37 -> 3.91 | P18: 11.15936083 | S18: 11.7635 | V18: 11.46
A19: =Input!C12 -> JKHY | B19: =VLOOKUP($A19,'CEM Data Lookup'!$A:$M,2,FALSE) -> Henry (Jack) & Assoc | D19: ='MRP WP1'!E91 -> 0.85 | F19: ='CEM Data Lookup'!G13 -> 0.7449546456 | H19: 0.8 | J19: ='MRP WP1'!H$66 -> 9.665814436 | M19: ='MRP WP1'!F$37 -> 3.91 | P19: 11.64265155 | S19: 12.1259 | V19: 11.88
A20: =Input!C13 -> KMB | B20: =VLOOKUP($A20,'CEM Data Lookup'!$A:$M,2,FALSE) -> Kimberly-Clark | D20: ='MRP WP1'!E92 -> 0.7 | F20: ='CEM Data Lookup'!G14 -> 0.6616520286 | H20: 0.68 | J20: ='MRP WP1'!H$66 -> 9.665814436 | M20: ='MRP WP1'!F$37 -> 3.91 | P20: 10.48275382 | S20: 11.256 | V20: 10.87
A21: =Input!C14 -> LANC | B21: =VLOOKUP($A21,'CEM Data Lookup'!$A:$M,2,FALSE) -> Lancaster Colony | D21: ='MRP WP1'!E93 -> 0.65 | F21: ='CEM Data Lookup'!G15 -> 0.4994643331 | H21: 0.57 | J21: ='MRP WP1'!H$66 -> 9.665814436 | M21: ='MRP WP1'!F$37 -> 3.91 | P21: 9.419514228 | S21: 10.4586 | V21: 9.94
A22: =Input!C15 -> MKC | B22: =VLOOKUP($A22,'CEM Data Lookup'!$A:$M,2,FALSE) -> McCormick & Co. | D22: ='MRP WP1'!E94 -> 0.75 | F22: ='CEM Data Lookup'!G16 -> 0.7264093757 | H22: 0.74 | J22: ='MRP WP1'!H$66 -> 9.665814436 | M22: ='MRP WP1'!F$37 -> 3.91 | P22: 11.06270268 | S22: 11.691 | V22: 11.38
A23: =Input!C16 -> MNST | B23: =VLOOKUP($A23,'CEM Data Lookup'!$A:$M,2,FALSE) -> Monster Beverage | D23: ='MRP WP1'!E95 -> 0.85 | F23: ='CEM Data Lookup'!G17 -> 0.7363255024 | H23: 0.79 | J23: ='MRP WP1'!H$66 -> 9.665814436 | M23: ='MRP WP1'!F$37 -> 3.91 | P23: 11.5459934 | S23: 12.0534 | V23: 11.8
A24: =Input!C17 -> NOC | B24: =VLOOKUP($A24,'CEM Data Lookup'!$A:$M,2,FALSE) -> Northrop Grumman | D24: ='MRP WP1'!E96 -> 0.8 | F24: ='CEM Data Lookup'!G18 -> 0.6697514057 | H24: 0.73 | J24: ='MRP WP1'!H$66 -> 9.665814436 | M24: ='MRP WP1'!F$37 -> 3.91 | P24: 10.96604454 | S24: 11.6185 | V24: 11.29
A25: =Input!C18 -> PGR | B25: =VLOOKUP($A25,'CEM Data Lookup'!$A:$M,2,FALSE) -> Progressive Corp. | D25: ='MRP WP1'!E97 -> 0.75 | F25: ='CEM Data Lookup'!G19 -> 0.7577873468 | H25: 0.75 | J25: ='MRP WP1'!H$66 -> 9.665814436 | M25: ='MRP WP1'!F$37 -> 3.91 | P25: 11.15936083 | S25: 11.7635 | V25: 11.46
A26: =Input!C19 -> RLI | B26: =VLOOKUP($A26,'CEM Data Lookup'!$A:$M,2,FALSE) -> RLI Corp. | D26: ='MRP WP1'!E98 -> 0.8 | F26: ='CEM Data Lookup'!G20 -> 0.776812315 | H26: 0.79 | J26: ='MRP WP1'!H$66 -> 9.665814436 | M26: ='MRP WP1'!F$37 -> 3.91 | P26: 11.5459934 | S26: 12.0534 | V26: 11.8
A27: =Input!C20 -> ROL | B27: =VLOOKUP($A27,'CEM Data Lookup'!$A:$M,2,FALSE) -> Rollins, Inc. | D27: ='MRP WP1'!E99 -> 0.85 | F27: ='CEM Data Lookup'!G21 -> 0.8576608896 | H27: 0.85 | J27: ='MRP WP1'!H$66 -> 9.665814436 | M27: ='MRP WP1'!F$37 -> 3.91 | P27: 12.12594227 | S27: 12.4884 | V27: 12.31
A28: =Input!C21 -> TYL | B28: =VLOOKUP($A28,'CEM Data Lookup'!$A:$M,2,FALSE) -> Tyler Technologies | D28: ='MRP WP1'!E100 -> 0.85 | F28: ='CEM Data Lookup'!G22 -> 1.195991039 | H28: 1.02 | J28: ='MRP WP1'!H$66 -> 9.665814436 | M28: ='MRP WP1'!F$37 -> 3.91 | P28: 13.76913072 | S28: 13.7208 | V28: 13.74
B30: Mean | H30: =ROUND(AVERAGE(H9:H28),2) -> 0.78 | P30: =ROUND(AVERAGE(P8:P28),2) -> 11.49 | Q30: % | S30: =ROUND(AVERAGE(S8:S28),2) -> 12.01 | T30: % | V30: =ROUND(AVERAGE(V8:V28),2) -> 11.75 | W30: %
B32: Median | H32: =ROUND(MEDIAN(H9:H28),2) -> 0.75 | P32: =ROUND(MEDIAN(P8:P28),2) -> 11.16 | Q32: % | S32: =ROUND(MEDIAN(S8:S28),2) -> 11.76 | T32: % | V32: =ROUND(MEDIAN(V8:V28),2) -> 11.46 | W32: %
B34: Average of Mean and Median | H34: =ROUND(AVERAGE(H30:H32),2) -> 0.77 | P34: =ROUND(AVERAGE(P30:P32),2) -> 11.33 | Q34: % | S34: =ROUND(AVERAGE(S30:S32),2) -> 11.89 | T34: % | V34: =ROUND(AVERAGE(V30:V32),2) -> 11.61 | W34: %
C36: Notes:
C37: (1) | D37: From Exhibit DWD-6, note 1.
C38: (2) | D38: From Exhibit DWD-6, note 2.
C39: (3) | D39: Average of CAPM and ECAPM cost rates.
B41: Traditional CAPM and ECAPM Results Excluding the PRPM MRP for the Proxy Group of Non-Price-Regulated Companies Comparable in Total Risk to the
B42: =B3 -> Proxy Group of Six Water Companies
D44: [1] | F44: [2] | H44: [3] | J44: [4] | M44: [5] | P44: [6] | S44: [7] | V44: [8]
B46: =B7 -> Proxy Group of Twenty Non-Price Regulated Companies | D46: Value Line Adjusted Beta | F46: Bloomberg Beta | H46: Average Beta | J46: Market Risk Premium (1) | M46: Risk-Free Rate (2) | P46: Traditional CAPM Cost Rate | S46: ECAPM Cost Rate | V46: Indicated Common Equity Cost Rate (3)
B48: =B9 -> Adobe Inc. | D48: =D9 -> 0.85 | F48: =F9 -> 1.424250126 | H48: =ROUND(AVERAGE(D48:F48),2) -> 1.14 | J48: ='6.2 CAPM Notes'!$N$40 -> 9.43 | K48: % | M48: =M9 -> 3.91 | N48: % | P48: =(H48*J48)+M48 -> 14.6602 | Q48: % | S48: =ROUND((0.75*(H48*J48))+((0.25*J48))+M48,4) -> 14.3302 | T48: % | V48: =ROUND(AVERAGE(P48,S48),2) -> 14.5 | W48: %
A49: =A9 -> ADBE | B49: Amgen | D49: 0.7 | F49: 0.6677419543 | H49: =ROUND(AVERAGE(D49:F49),2) -> 0.68 | J49: ='6.2 CAPM Notes'!$N$40 -> 9.43 | M49: 3.91 | P49: =(H49*J49)+M49 -> 10.3224 | S49: =ROUND((0.75*(H49*J49))+((0.25*J49))+M49,4) -> 11.0768 | V49: =ROUND(AVERAGE(P49,S49),2) -> 10.7
A50: =A10 -> AMGN | B50: Becton, Dickinson | D50: 0.75 | F50: 0.6853892207 | H50: =ROUND(AVERAGE(D50:F50),2) -> 0.72 | J50: ='6.2 CAPM Notes'!$N$40 -> 9.43 | M50: 3.91 | P50: =(H50*J50)+M50 -> 10.6996 | S50: =ROUND((0.75*(H50*J50))+((0.25*J50))+M50,4) -> 11.3597 | V50: =ROUND(AVERAGE(P50,S50),2) -> 11.03
A51: BDX | B51: Bristol-Myers Squibb | D51: 0.8 | F51: 0.5097875595 | H51: 0.65 | J51: ='6.2 CAPM Notes'!$N$40 -> 9.43 | M51: 3.91 | P51: 10.0395 | S51: 10.8646 | V51: 10.45
A52: BMY | B52: Broadridge Fin'l | D52: 0.9 | F52: 0.9826169014 | H52: 0.94 | J52: ='6.2 CAPM Notes'!$N$40 -> 9.43 | M52: 3.91 | P52: 12.7742 | S52: 12.9157 | V52: 12.84
A53: BR | B53: Check Point Software | D53: 0.75 | F53: 0.7285448313 | H53: 0.74 | J53: ='6.2 CAPM Notes'!$N$40 -> 9.43 | M53: 3.91 | P53: 10.8882 | S53: 11.5012 | V53: 11.19
A54: CHKP | B54: C.H. Robinson | D54: 0.75 | F54: 0.8792093992 | H54: 0.81 | J54: ='6.2 CAPM Notes'!$N$40 -> 9.43 | M54: 3.91 | P54: 11.5483 | S54: 11.9962 | V54: 11.77
A55: CHRW | B55: CSG Systems Int'l | D55: 0.75 | F55: 0.821510911 | H55: 0.79 | J55: ='6.2 CAPM Notes'!$N$40 -> 9.43 | M55: 3.91 | P55: 11.3597 | S55: 11.8548 | V55: 11.61
A56: CSGS | B56: Quest Diagnostics | D56: 0.8 | F56: 0.6936050057 | H56: 0.75 | J56: ='6.2 CAPM Notes'!$N$40 -> 9.43 | M56: 3.91 | P56: 10.9825 | S56: 11.5719 | V56: 11.28
A57: DGX | B57: Heartland Express | D57: 0.7 | F57: 0.7953819633 | H57: 0.75 | J57: ='6.2 CAPM Notes'!$N$40 -> 9.43 | M57: 3.91 | P57: 10.9825 | S57: 11.5719 | V57: 11.28
A58: HTLD | B58: Henry (Jack) & Assoc | D58: 0.85 | F58: 0.7449546456 | H58: 0.8 | J58: ='6.2 CAPM Notes'!$N$40 -> 9.43 | M58: 3.91 | P58: 11.454 | S58: 11.9255 | V58: 11.69
A59: JKHY | B59: Kimberly-Clark | D59: 0.7 | F59: 0.6616520286 | H59: 0.68 | J59: ='6.2 CAPM Notes'!$N$40 -> 9.43 | M59: 3.91 | P59: 10.3224 | S59: 11.0768 | V59: 10.7
A60: KMB | B60: Lancaster Colony | D60: 0.65 | F60: 0.4994643331 | H60: 0.57 | J60: ='6.2 CAPM Notes'!$N$40 -> 9.43 | M60: 3.91 | P60: 9.2851 | S60: 10.2988 | V60: 9.79
A61: LANC | B61: McCormick & Co. | D61: 0.75 | F61: 0.7264093757 | H61: 0.74 | J61: ='6.2 CAPM Notes'!$N$40 -> 9.43 | M61: 3.91 | P61: 10.8882 | S61: 11.5012 | V61: 11.19
A62: MKC | B62: Monster Beverage | D62: 0.85 | F62: 0.7363255024 | H62: 0.79 | J62: ='6.2 CAPM Notes'!$N$40 -> 9.43 | M62: 3.91 | P62: 11.3597 | S62: 11.8548 | V62: 11.61
A63: MNST | B63: Northrop Grumman | D63: 0.8 | F63: 0.6697514057 | H63: 0.73 | J63: ='6.2 CAPM Notes'!$N$40 -> 9.43 | M63: 3.91 | P63: 10.7939 | S63: 11.4304 | V63: 11.11
A64: NOC | B64: Progressive Corp. | D64: 0.75 | F64: 0.7577873468 | H64: 0.75 | J64: ='6.2 CAPM Notes'!$N$40 -> 9.43 | M64: 3.91 | P64: 10.9825 | S64: 11.5719 | V64: 11.28
A65: PGR | B65: RLI Corp. | D65: 0.8 | F65: 0.776812315 | H65: 0.79 | J65: ='6.2 CAPM Notes'!$N$40 -> 9.43 | M65: 3.91 | P65: 11.3597 | S65: 11.8548 | V65: 11.61
A66: RLI | B66: Rollins, Inc. | D66: 0.85 | F66: 0.8576608896 | H66: 0.85 | J66: ='6.2 CAPM Notes'!$N$40 -> 9.43 | M66: 3.91 | P66: 11.9255 | S66: 12.2791 | V66: 12.1
A67: ROL | B67: Tyler Technologies | D67: 0.85 | F67: 1.195991039 | H67: 1.02 | J67: ='6.2 CAPM Notes'!$N$40 -> 9.43 | M67: 3.91 | P67: 13.5286 | S67: 13.4815 | V67: 13.51
A68: TYL
B69: Mean | H69: =ROUND(AVERAGE(H48:H67),2) -> 0.78 | P69: =ROUND(AVERAGE(P48:P67),2) -> 11.31 | Q69: % | S69: =ROUND(AVERAGE(S48:S67),2) -> 11.82 | T69: % | V69: =ROUND(AVERAGE(V48:V67),2) -> 11.56 | W69: %
B71: Median | H71: =ROUND(MEDIAN(H48:H67),2) -> 0.75 | P71: =ROUND(MEDIAN(P48:P67),2) -> 10.98 | Q71: % | S71: =ROUND(MEDIAN(S48:S67),2) -> 11.57 | T71: % | V71: =ROUND(MEDIAN(V48:V67),2) -> 11.28 | W71: %
B73: Average of Mean and Median | H73: =ROUND(AVERAGE(H69:H71),2) -> 0.77 | P73: =ROUND(AVERAGE(P69:P71),2) -> 11.15 | Q73: % | S73: =ROUND(AVERAGE(S69:S71),2) -> 11.7 | T73: % | V73: =ROUND(AVERAGE(V69:V71),2) -> 11.42 | W73: %
C75: Notes:
C76: (1) | D76: From Exhibit DWD-6, note 1.
C77: (2) | D77: From Exhibit DWD-6, note 2.
C78: (3) | D78: Average of CAPM and ECAPM cost rates.

Sheet 9.1 Risk Adjustment
C1: =Input!G28 -> Bluegrass Water (KY) Utility Operating Company, Inc.
C2: Derivation of Investment Risk Adjustment Based upon
C3: Kroll Associates' Size Premia for the Decile Portfolios of the NYSE/AMEX/NASDAQ
E6: [1] | I6: [2] | K6: [3] | M6: [4]
M7: Spread from Applicable Size Premium (4)
E8: Market Capitalization on January 13, 2023 (1) | I8: Applicable Decile of the NYSE/AMEX/ NASDAQ (2)
K9: Applicable Size Premium (3)
A11: Line No.
E12: ( millions ) | G12: (times larger)
A14: 1. | C14: ='9.2 Market Cap'!B11 -> Bluegrass Water (KY) Utility Operating Company, Inc. | E14: ='9.2 Market Cap'!P13 -> 15.37358229 | I14: 10 | K14: =VLOOKUP(I14,$G$23:$M$32,7,FALSE) -> 0.048
A16: 2. | C16: =Input!I31 -> Proxy Group of Six Water Companies | E16: ='9.2 Market Cap'!P23 -> 3439.009 | G16: =ROUND(E16/E14,1) -> 223.7 | H16: x | I16: 5 | K16: =VLOOKUP(I16,$G$23:$M$32,7,FALSE) -> 0.0089 | M16: =K14-K16 -> 0.0391
G18: [A] | I18: [B] | K18: [C] | M18: [D]
G20: Decile | I20: Market Capitalization of Smallest Company | K20: Market Capitalization of Largest Company | M20: Size Premium (Return in Excess of CAPM)*
I21: ( millions ) | K21: ( millions )
E23: Largest | G23: 1 | I23: 36160.584 | K23: 2324390.219 | M23: -0.0022
G24: 2 | I24: 16759.39 | K24: 36099.221 | M24: 0.0043
G25: 3 | I25: 8216.356 | K25: 16738.364 | M25: 0.0055
G26: 4 | I26: 5019.883 | K26: 8212.638 | M26: 0.0054
G27: 5 | I27: 3281.009 | K27: 5003.747 | M27: 0.0089
G28: 6 | I28: 2170.315 | K28: 3276.553 | M28: 0.0118
G29: 7 | I29: 1306.402 | K29: 2164.524 | M29: 0.0134
G30: 8 | I30: 629.118 | K30: 1306.038 | M30: 0.0121
G31: 9 | I31: 290.002 | K31: 627.803 | M31: 0.021
E32: Smallest | G32: 10 | I32: 10.588 | K32: 289.007 | M32: 0.048
H33: *From 2022 Kroll Cost of Capital Navigator
C35: Notes:
D36: (1) | E36: From page 2 of this Exhibit.
D37: (2) | E37: Gleaned from Columns [B] and [C] on the bottom of this page. The appropriate decile (Column [A]) corresponds to the market capitalization of the proxy group, which is found in Column [1].
D38: (3) | E38: Corresponding risk premium to the decile is provided in Column [D] on the bottom of this page.
D39: (4) | E39: =CONCATENATE("Line No. 1 Column [3] – Line No. 2 Column [3]. For example, the ",TEXT((M16*100),"#0.00"),"% in Column [4], Line No. 2 is derived as follows ",TEXT((M16*100),"#0.00"),"% = ",K14*100,"% - ",TEXT((K16*100),"#0.00"),"%.") -> Line No. 1 Column [3] – Line No. 2 Column [3]. For example, the 3.91% in Column [4], Line No. 2 is derived as follows 3.91% = 4.8% - 0.89%.

Sheet 9.2 Market Cap
B1: =Input!G28 -> Bluegrass Water (KY) Utility Operating Company, Inc.
B2: =CONCATENATE("Market Capitalization of ",B1," and the") -> Market Capitalization of Bluegrass Water (KY) Utility Operating Company, Inc. and the
B3: ='8.6 CEM CAPM Backup'!B3 -> Proxy Group of Six Water Companies
F6: [1] | H6: [2] | J6: [3] | L6: [4] | N6: [5] | P6: [6]
B8: Company | D8: Exchange | F8: =CONCATENATE("Common Stock Shares Outstanding at Fiscal Year End ",YEAR(Input!G49)) -> Common Stock Shares Outstanding at Fiscal Year End 2021 | H8: Book Value per Share at Fiscal Year End 2021 (1) | J8: =CONCATENATE("Total Common Equity at Fiscal Year End ",YEAR(Input!G49)) -> Total Common Equity at Fiscal Year End 2021 | L8: =CONCATENATE("Closing Stock Market Price on ",TEXT(Input!E2,"mmmm dd, yyyy")) -> Closing Stock Market Price on January 13, 2023 | N8: =CONCATENATE("Market-to-Book Ratio on ",TEXT(Input!E2,"mmmm dd, yyyy")," (2)") -> Market-to-Book Ratio on January 13, 2023 (2) | P8: =CONCATENATE("Market Capitalization on ",TEXT(Input!E2,"mmmm dd, yyyy")," (3)") -> Market Capitalization on January 13, 2023 (3)
F9: ( millions ) | J9: ( millions ) | P9: ( millions )
B11: =Input!G28 -> Bluegrass Water (KY) Utility Operating Company, Inc. | F11: NA | H11: NA | J11: =(Input!G43/1000000) -> 4.567315 | K11: (4) | L11: NA
B13: =CONCATENATE("Based upon ",B15) -> Based upon Proxy Group of Six Water Companies | N13: =N23 -> 336.6 | O13: (5) | P13: =IFERROR((N13/100)*J11,"NA") -> 15.37358229 | Q13: (6)
B15: =Input!I31 -> Proxy Group of Six Water Companies
A16: =Input!A2 -> AWR | B16: =IFERROR(VLOOKUP($A16,'Proxy Data Lookup'!$A:$O,2,FALSE),"NA") -> American States Water Company | D16: =Input!B2 -> NYSE | F16: ='3. AWR'!C$15/1000000 -> 36.936285 | H16: =IFERROR(ROUND(J16/F16,3),"NA") -> 18.571 | J16: ='3. AWR'!C$16/1000000 -> 685.947 | L16: ='Proxy Prices'!B$6 -> 95.48 | N16: =IFERROR(ROUND(L16/H16*100,1),"NA") -> 514.1 | O16: % | P16: =IFERROR(ROUND(F16*L16,3),"NA") -> 3526.676
A17: =Input!A3 -> AWK | B17: =IFERROR(VLOOKUP($A17,'Proxy Data Lookup'!$A:$O,2,FALSE),"NA") -> American Water Works Company, Inc. | D17: =Input!B3 -> NYSE | F17: ='3. AWK'!C$15/1000000 -> 181.611089 | H17: =IFERROR(ROUND(J17/F17,3),"NA") -> 40.185 | J17: ='3. AWK'!C$16/1000000 -> 7298 | L17: ='Proxy Prices'!C$6 -> 158.87 | N17: =IFERROR(ROUND(L17/H17*100,1),"NA") -> 395.3 | P17: =IFERROR(ROUND(F17*L17,3),"NA") -> 28852.554
A18: =Input!A4 -> CWT | B18: =IFERROR(VLOOKUP($A18,'Proxy Data Lookup'!$A:$O,2,FALSE),"NA") -> California Water Service Group | D18: =Input!B4 -> NYSE | F18: ='3. CWT'!C$15/1000000 -> 53.716 | H18: =IFERROR(ROUND(J18/F18,3),"NA") -> 22.023 | J18: ='3. CWT'!C$16/1000000 -> 1182.98 | L18: ='Proxy Prices'!D$6 -> 62.39 | N18: 283.3 | P18: 3351.341
A19: =Input!A5 -> WTRG | B19: =IFERROR(VLOOKUP($A19,'Proxy Data Lookup'!$A:$O,2,FALSE),"NA") -> Essential Utilities Inc. | D19: =Input!B5 -> NYSE | F19: ='3. WTRG'!C$15/1000000 -> 252.867623 | H19: 20.503 | J19: ='3. WTRG'!C$16/1000000 -> 5184.45 | L19: ='Proxy Prices'!E$6 -> 48.79 | N19: 238 | P19: =IFERROR(ROUND(F19*L19,3),"NA") -> 12337.411
A20: =Input!A6 -> MSEX | B20: =IFERROR(VLOOKUP($A20,'Proxy Data Lookup'!$A:$O,2,FALSE),"NA") -> Middlesex Water Company | D20: =Input!B6 -> NASDAQ | F20: ='3. MSEX'!C$15/1000000 -> 17.522 | H20: 20.987 | J20: ='3. MSEX'!C$16/1000000 -> 367.726 | L20: ='Proxy Prices'!F$6 -> 81.81 | N20: 389.8 | P20: 1433.475
A21: =Input!A7 -> SJW | B21: =IFERROR(VLOOKUP($A21,'Proxy Data Lookup'!$A:$O,2,FALSE),"NA") -> SJW Group | D21: =Input!B7 -> NYSE | F21: ='3. SJW'!C$15/1000000 -> 30.181348 | H21: 34.277 | J21: ='3. SJW'!C$16/1000000 -> 1034.519 | L21: ='Proxy Prices'!G$6 -> 80.18 | N21: 233.9 | P21: 2419.94
B23: Median | F23: =ROUND(MEDIAN(F15:F22),3) -> 45.326 | H23: =ROUND(MEDIAN(H15:H22),3) -> 21.505 | J23: =ROUND(MEDIAN(J15:J22),3) -> 1108.75 | L23: =ROUND(MEDIAN(L15:L22),3) -> 80.995 | N23: =ROUND(MEDIAN(N15:N22),1) -> 336.6 | O23: % | P23: =ROUND(MEDIAN(P15:P22),3) -> 3439.009
C25: NA= Not Available
D27: Notes: | E27: (1) | F27: Column 3 / Column 1.
E28: (2) | F28: Column 4 / Column 2.
E29: (3) | F29: Column 1 * Column 4.
E30: (4) | F30: Book equity of the Company.
E31: (5) | F31: =CONCATENATE("The market-to-book ratio of ",Input!G28," on ",TEXT(Input!E2,"mmmm dd, yyyy")," is assumed to be equal to the market-to-book ratio of ",'9.2 Market Cap'!B3," on ",TEXT(Input!E2,"mmmm dd, yyyy")," as appropriate.") -> The market-to-book ratio of Bluegrass Water (KY) Utility Operating Company, Inc. on January 13, 2023 is assumed to be equal to the market-to-book ratio of Proxy Group of Six Water Companies on January 13, 2023 as appropriate.
E32: (6) | F32: Column [3] multiplied by Column [5].
B35: Source of Information: | C35: =CONCATENATE(YEAR(Input!G49)," Annual Forms 10K") -> 2021 Annual Forms 10K
C36: Bloomberg Financial Services

Sheet Input
A1: Utility Proxy Group | B1: Proxy Company - Exchange | C1: CEM Proxy Group | E1: Growth Rate Input Date
A2: AWR | B2: NYSE | C2: ADBE | E2: 2023-01-13
A3: AWK | B3: NYSE | C3: AMGN
A4: CWT | B4: NYSE | C4: BDX | E4: User Computer Title
A5: WTRG | B5: NYSE | C5: BMY
A6: MSEX | B6: NASDAQ | C6: BR
A7: SJW | B7: NYSE | C7: CHKP | E7: Recommended Common Equity Cost Rate
C8: CHRW
C9: CSGS
C10: DGX | E10: DATA INPUTS
C11: HTLD
C12: JKHY | E12: Capital Structure | G12: Source:
C13: KMB | E13: Debt % | F13: =ROUND(I13/I15,4) -> 0.3884 | G13: Company Provided | I13: 2900000 | J13: LT Debt
C14: LANC | E14: Equity % | F14: =ROUND(I14/I15,4) -> 0.6116 | G14: Company Provided | I14: 4567315 | J14: Common Equity
C15: MKC | E15: Short-Term Debt % | F15: NA | G15: NA | I15: =SUM(I13:I14) -> 7467315 | J15: Total
C16: MNST | E16: Debt Cost (%) | F16: ='3.1 LTD Effective Cost'!M6 -> 0.068 | G16: Company to Provide
C17: NOC | E17: Short-Term Debt Cost (%) | F17: NA | G17: NA
C18: PGR
C19: RLI
C20: ROL | E20: SBBI (1926-2021) | G20: Notes:
C21: TYL | E21: SBBI Common Stocks Total Return (%) | F21: 12.37 | G21: Update annually from Stocks, Bonds, Bills, and Inflation - Kroll® SBBI® Market Report
E22: SBBI Long-Term Gov't Bonds Income (%) | F22: 5.02 | G22: Update annually from Stocks, Bonds, Bills, and Inflation - Kroll® SBBI® Market Report
E24: VL Appr Potential Week Ending: | G24: PRPM Date ("Month Year") | I24: Blue Chip Update Date ("Month Day, Year")
E25: 2023-01-13 | G25: December 2022 | I25: December 2, 2022 and January 1, 2023
E27: S&P Utilties Index Companies | G27: Company Name | I27: Abbreviated
E28: AEE | G28: Bluegrass Water (KY) Utility Operating Company, Inc. | I28: Bluegrass Water
E29: AEP
E30: AES | G30: Regulatory Jurisdiction
E31: ATO | G31: Kentucky Public Service Comission | I31: Proxy Group of Six Water Companies
E32: AWK | I32: Proxy Group of Twenty Non-Price Regulated Companies
E33: CEG | G33: Industry ("Natural Gas", "Water", "Electric")
E34: CMS | G34: Water
E35: CNP | H35: - If Data not available, input NA
E36: D | G36: Common Stock Shares Outstanding at Fiscal Year End
E37: DTE | G37: NA
E38: DUK
E39: ED | G39: Book Value per Share at Fiscal Year End
E40: EIX | G40: NA
E41: ES
E42: ETR | G42: Book Common Equity (From Co. Annual Report)
E43: EVRG | G43: =I14 -> 4567315 | I43: Company Provided
E44: EXC
E45: FE | G45: Closing Stock Market Price
E46: LNT | G46: NA
E47: NEE
E48: NI | G48: Date of Annual Report Filing ("'Month Day, Year")
E49: NRG | G49: December 31, 2021
E50: PCG
E51: PEG | G51: Business Risk Adjustment
E52: PNW
E53: PPL
E54: SO
E55: SRE
E56: WEC
A57: =COUNTA(A2:A29) -> 6 | C57: =COUNTA(C2:C29) -> 20 | E57: XEL

Sheet Sch3 WP BG LTD
A1: Bluegrass Water Utility
A2: Loan Type: LTF
A3: Rate: 6.7%
A4: Facility Maturity Date: 11/20/2042
A5: Loan Maturity Date: 11/20/2027
D6: Amount Issued: | F6: 2900000
D7: Issuance Costs | F7: ='3.1 LTD Effective Cost'!G6 -> 21750
D8: Net Proceeds | F8: =F6-F7 -> 2878250
A11: Due Date | B11: Principal Payment | C11: Remaining Principal Balance | D11: Coupon Rate | E11: Interest | F11: Cash Flows
C12: 2900000 | F12: =-F8 -> -2878250
A13: 2023-12-20 | B13: 6493.01 | C13: =C12-B13 -> 2893506.99 | D13: ='3.1 LTD Effective Cost'!E$6 -> 0.067 | E13: =(D13*C12)/12 -> 16191.66667 | F13: =E13+B13 -> 22684.67667
A14: 2024-01-20 | B14: 5990.76 | C14: 2887516.23 | D14: ='3.1 LTD Effective Cost'!E$6 -> 0.067 | E14: =(D14*C13)/12 -> 16155.41403 | F14: =E14+B14 -> 22146.17403
A15: 2024-02-20 | B15: 6025.31 | C15: 2881490.92 | D15: ='3.1 LTD Effective Cost'!E$6 -> 0.067 | E15: 16121.96562 | F15: 22147.27562
A16: 2024-03-20 | B16: 7132.63 | C16: 2874358.29 | D16: ='3.1 LTD Effective Cost'!E$6 -> 0.067 | E16: 16088.3243 | F16: 23220.9543
A17: 2024-04-20 | B17: 6101.23 | C17: 2868257.06 | D17: ='3.1 LTD Effective Cost'!E$6 -> 0.067 | E17: 16048.50045 | F17: 22149.73045
A18: 2024-05-20 | B18: 6670.25 | C18: 2861586.81 | D18: ='3.1 LTD Effective Cost'!E$6 -> 0.067 | E18: 16014.43525 | F18: 22684.68525
A19: 2024-06-20 | B19: 6174.91 | C19: 2855411.9 | D19: ='3.1 LTD Effective Cost'!E$6 -> 0.067 | E19: 15977.19302 | F19: 22152.10302
A20: 2024-07-20 | B20: 6741.97 | C20: 2848669.93 | D20: ='3.1 LTD Effective Cost'!E$6 -> 0.067 | E20: 15942.71644 | F20: 22684.68644
A21: 2024-08-20 | B21: 6249.43 | C21: 2842420.5 | D21: ='3.1 LTD Effective Cost'!E$6 -> 0.067 | E21: 15905.07378 | F21: 22154.50378
A22: 2024-09-20 | B22: 6285.5 | C22: 2836135 | D22: ='3.1 LTD Effective Cost'!E$6 -> 0.067 | E22: 15870.18113 | F22: 22155.68113
A23: 2024-10-20 | B23: 6849.59 | C23: 2829285.41 | D23: ='3.1 LTD Effective Cost'!E$6 -> 0.067 | E23: 15835.08708 | F23: 22684.67708
A24: 2024-11-20 | B24: 6361.27 | C24: 2822924.14 | D24: ='3.1 LTD Effective Cost'!E$6 -> 0.067 | E24: 15796.84354 | F24: 22158.11354
A25: 2024-12-20 | B25: 6923.36 | C25: 2816000.78 | D25: ='3.1 LTD Effective Cost'!E$6 -> 0.067 | E25: 15761.32645 | F25: 22684.68645
A26: 2025-01-20 | B26: 6437.92 | C26: 2809562.86 | D26: ='3.1 LTD Effective Cost'!E$6 -> 0.067 | E26: 15722.67102 | F26: 22160.59102
A27: 2025-02-20 | B27: 6475.06 | C27: 2803087.8 | D27: ='3.1 LTD Effective Cost'!E$6 -> 0.067 | E27: 15686.72597 | F27: 22161.78597
A28: 2025-03-20 | B28: 8077.48 | C28: 2795010.32 | D28: ='3.1 LTD Effective Cost'!E$6 -> 0.067 | E28: 15650.57355 | F28: 23728.05355
A29: 2025-04-20 | B29: 6559.02 | C29: 2788451.3 | D29: ='3.1 LTD Effective Cost'!E$6 -> 0.067 | E29: 15605.47429 | F29: 22164.49429
A30: 2025-05-20 | B30: 7115.83 | C30: 2781335.47 | D30: ='3.1 LTD Effective Cost'!E$6 -> 0.067 | E30: 15568.85309 | F30: 22684.68309
A31: 2025-06-20 | B31: 6637.92 | C31: 2774697.55 | D31: ='3.1 LTD Effective Cost'!E$6 -> 0.067 | E31: 15529.12304 | F31: 22167.04304
A32: 2025-07-20 | B32: 7192.62 | C32: 2767504.93 | D32: ='3.1 LTD Effective Cost'!E$6 -> 0.067 | E32: 15492.06132 | F32: 22684.68132
A33: 2025-08-20 | B33: 6717.71 | C33: 2760787.22 | D33: ='3.1 LTD Effective Cost'!E$6 -> 0.067 | E33: 15451.90253 | F33: 22169.61253
A34: 2025-09-20 | B34: 6756.47 | C34: 2754030.75 | D34: ='3.1 LTD Effective Cost'!E$6 -> 0.067 | E34: 15414.39531 | F34: 22170.86531
A35: 2025-10-20 | B35: 7308.01 | C35: 2746722.74 | D35: ='3.1 LTD Effective Cost'!E$6 -> 0.067 | E35: 15376.67169 | F35: 22684.68169
A36: 2025-11-20 | B36: 6837.62 | C36: 2739885.12 | D36: ='3.1 LTD Effective Cost'!E$6 -> 0.067 | E36: 15335.86863 | F36: 22173.48863
A37: 2025-12-20 | B37: 7386.98 | C37: 2732498.14 | D37: ='3.1 LTD Effective Cost'!E$6 -> 0.067 | E37: 15297.69192 | F37: 22684.67192
A38: 2026-01-20 | B38: 6919.69 | C38: 2725578.45 | D38: ='3.1 LTD Effective Cost'!E$6 -> 0.067 | E38: 15256.44795 | F38: 22176.13795
A39: 2026-02-20 | B39: 6959.6 | C39: 2718618.85 | D39: ='3.1 LTD Effective Cost'!E$6 -> 0.067 | E39: 15217.81301 | F39: 22177.41301
A40: 2026-03-20 | B40: 8517.66 | C40: 2710101.19 | D40: ='3.1 LTD Effective Cost'!E$6 -> 0.067 | E40: 15178.95525 | F40: 23696.61525
A41: 2026-04-20 | B41: 7048.9 | C41: 2703052.29 | D41: ='3.1 LTD Effective Cost'!E$6 -> 0.067 | E41: 15131.39831 | F41: 22180.29831
A42: 2026-05-20 | B42: 7592.64 | C42: 2695459.65 | D42: ='3.1 LTD Effective Cost'!E$6 -> 0.067 | E42: 15092.04195 | F42: 22684.68195
A43: 2026-06-20 | B43: 7133.38 | C43: 2688326.27 | D43: ='3.1 LTD Effective Cost'!E$6 -> 0.067 | E43: 15049.64971 | F43: 22183.02971
A44: 2026-07-20 | B44: 7674.85 | C44: 2680651.42 | D44: ='3.1 LTD Effective Cost'!E$6 -> 0.067 | E44: 15009.82167 | F44: 22684.67167
A45: 2026-08-20 | B45: 7218.81 | C45: 2673432.61 | D45: ='3.1 LTD Effective Cost'!E$6 -> 0.067 | E45: 14966.97043 | F45: 22185.78043
A46: 2026-09-20 | B46: 7260.46 | C46: 2666172.15 | D46: ='3.1 LTD Effective Cost'!E$6 -> 0.067 | E46: 14926.66541 | F46: 22187.12541
A47: 2026-10-20 | B47: 7798.56 | C47: 2658373.59 | D47: ='3.1 LTD Effective Cost'!E$6 -> 0.067 | E47: 14886.12784 | F47: 22684.68784
A48: 2026-11-20 | B48: 7347.34 | C48: 2651026.25 | D48: ='3.1 LTD Effective Cost'!E$6 -> 0.067 | E48: 14842.58588 | F48: 22189.92588
A49: 2026-12-20 | B49: 7883.11 | C49: 2643143.14 | D49: ='3.1 LTD Effective Cost'!E$6 -> 0.067 | E49: 14801.56323 | F49: 22684.67323
A50: 2027-01-20 | B50: 7435.22 | C50: 2635707.92 | D50: ='3.1 LTD Effective Cost'!E$6 -> 0.067 | E50: 14757.5492 | F50: 22192.7692
A51: 2027-02-20 | B51: 7478.11 | C51: 2628229.81 | D51: ='3.1 LTD Effective Cost'!E$6 -> 0.067 | E51: 14716.03589 | F51: 22194.14589
A52: 2027-03-20 | B52: 8988.68 | C52: 2619241.13 | D52: ='3.1 LTD Effective Cost'!E$6 -> 0.067 | E52: 14674.28311 | F52: 23662.96311
A53: 2027-04-20 | B53: 7573.11 | C53: 2611668.02 | D53: ='3.1 LTD Effective Cost'!E$6 -> 0.067 | E53: 14624.09631 | F53: 22197.20631
A54: 2027-05-20 | B54: 8102.87 | C54: 2603565.15 | D54: ='3.1 LTD Effective Cost'!E$6 -> 0.067 | E54: 14581.81311 | F54: 22684.68311
A55: 2027-06-20 | B55: 7663.55 | C55: 2595901.6 | D55: ='3.1 LTD Effective Cost'!E$6 -> 0.067 | E55: 14536.57209 | F55: 22200.12209
A56: 2027-07-20 | B56: 8190.9 | C56: 2587710.7 | D56: ='3.1 LTD Effective Cost'!E$6 -> 0.067 | E56: 14493.78393 | F56: 22684.68393
A57: 2027-08-20 | B57: 7755.03 | C57: 2579955.67 | D57: ='3.1 LTD Effective Cost'!E$6 -> 0.067 | E57: 14448.05141 | F57: 22203.08141
A58: 2027-09-20 | B58: 7799.77 | C58: 2572155.9 | D58: ='3.1 LTD Effective Cost'!E$6 -> 0.067 | E58: 14404.75249 | F58: 22204.52249
A59: 2027-10-20 | B59: 8323.47 | C59: 2563832.43 | D59: ='3.1 LTD Effective Cost'!E$6 -> 0.067 | E59: 14361.20378 | F59: 22684.67378
A60: 2027-11-20 | B60: 7892.79 | C60: 2555939.64 | D60: ='3.1 LTD Effective Cost'!E$6 -> 0.067 | E60: 14314.73107 | F60: 22207.52107
A61: 2027-12-20 | B61: 8414.02 | C61: 2547525.62 | D61: ='3.1 LTD Effective Cost'!E$6 -> 0.067 | E61: 14270.66299 | F61: 22684.68299
A62: 2028-01-20 | B62: 7986.87 | C62: 2539538.75 | D62: ='3.1 LTD Effective Cost'!E$6 -> 0.067 | E62: 14223.68471 | F62: 22210.55471
A63: 2028-02-20 | B63: 8032.96 | C63: 2531505.79 | D63: ='3.1 LTD Effective Cost'!E$6 -> 0.067 | E63: 14179.09135 | F63: 22212.05135
A64: 2028-03-20 | B64: 9021.58 | C64: 2522484.21 | D64: ='3.1 LTD Effective Cost'!E$6 -> 0.067 | E64: 14134.24066 | F64: 23155.82066
A65: 2028-04-20 | B65: 8131.34 | C65: 2514352.87 | D65: ='3.1 LTD Effective Cost'!E$6 -> 0.067 | E65: 14083.87017 | F65: 22215.21017
A66: 2028-05-20 | B66: 8646.21 | C66: 2505706.66 | D66: ='3.1 LTD Effective Cost'!E$6 -> 0.067 | E66: 14038.47019 | F66: 22684.68019
A67: 2028-06-20 | B67: 8228.15 | C67: 2497478.51 | D67: ='3.1 LTD Effective Cost'!E$6 -> 0.067 | E67: 13990.19552 | F67: 22218.34552
A68: 2028-07-20 | B68: 8740.42 | C68: 2488738.09 | D68: ='3.1 LTD Effective Cost'!E$6 -> 0.067 | E68: 13944.25501 | F68: 22684.67501
A69: 2028-08-20 | B69: 8326.05 | C69: 2480412.04 | D69: ='3.1 LTD Effective Cost'!E$6 -> 0.067 | E69: 13895.45434 | F69: 22221.50434
A70: 2028-09-20 | B70: 8374.08 | C70: 2472037.96 | D70: ='3.1 LTD Effective Cost'!E$6 -> 0.067 | E70: 13848.96722 | F70: 22223.04722
A71: 2028-10-20 | B71: 8882.47 | C71: 2463155.49 | D71: ='3.1 LTD Effective Cost'!E$6 -> 0.067 | E71: 13802.21194 | F71: 22684.68194
A72: 2028-11-20 | B72: 8473.64 | C72: 2454681.85 | D72: ='3.1 LTD Effective Cost'!E$6 -> 0.067 | E72: 13752.61815 | F72: 22226.25815
A73: 2028-12-20 | B73: 8979.37 | C73: 2445702.48 | D73: ='3.1 LTD Effective Cost'!E$6 -> 0.067 | E73: 13705.307 | F73: 22684.677
A74: 2029-01-20 | B74: 8574.33 | C74: 2437128.15 | D74: ='3.1 LTD Effective Cost'!E$6 -> 0.067 | E74: 13655.17218 | F74: 22229.50218
A75: 2029-02-20 | B75: 8623.81 | C75: 2428504.34 | D75: ='3.1 LTD Effective Cost'!E$6 -> 0.067 | E75: 13607.29884 | F75: 22231.10884
A76: 2029-03-20 | B76: 10029.47 | C76: 2418474.87 | D76: ='3.1 LTD Effective Cost'!E$6 -> 0.067 | E76: 13559.14923 | F76: 23588.61923
A77: 2029-04-20 | B77: 8731.43 | C77: =C76-B77 -> 2409743.44 | D77: ='3.1 LTD Effective Cost'!E$6 -> 0.067 | E77: 13503.15136 | F77: 22234.58136
A78: 2029-05-20 | B78: 9230.28 | C78: 2400513.16 | D78: ='3.1 LTD Effective Cost'!E$6 -> 0.067 | E78: =(D78*C77)/12 -> 13454.40087 | F78: =E78+B78 -> 22684.68087
A79: 2029-06-20 | B79: 8835.05 | C79: 2391678.11 | D79: ='3.1 LTD Effective Cost'!E$6 -> 0.067 | E79: 13402.86514 | F79: 22237.91514
A80: 2029-07-20 | B80: 9331.14 | C80: 2382346.97 | D80: ='3.1 LTD Effective Cost'!E$6 -> 0.067 | E80: 13353.53611 | F80: 22684.67611
A81: 2029-08-20 | B81: 8939.86 | C81: 2373407.11 | D81: ='3.1 LTD Effective Cost'!E$6 -> 0.067 | E81: 13301.43725 | F81: 22241.29725
A82: 2029-09-20 | B82: 8991.44 | C82: 2364415.67 | D82: ='3.1 LTD Effective Cost'!E$6 -> 0.067 | E82: 13251.52303 | F82: 22242.96303
A83: 2029-10-20 | B83: 9483.36 | C83: 2354932.31 | D83: ='3.1 LTD Effective Cost'!E$6 -> 0.067 | E83: 13201.32082 | F83: 22684.68082
A84: 2029-11-20 | B84: 9098.03 | C84: 2345834.28 | D84: ='3.1 LTD Effective Cost'!E$6 -> 0.067 | E84: 13148.37206 | F84: 22246.40206
A85: 2029-12-20 | B85: 9587.11 | C85: 2336247.17 | D85: ='3.1 LTD Effective Cost'!E$6 -> 0.067 | E85: 13097.57473 | F85: 22684.68473
A86: 2030-01-20 | B86: 9205.83 | C86: 2327041.34 | D86: ='3.1 LTD Effective Cost'!E$6 -> 0.067 | E86: 13044.0467 | F86: 22249.8767
A87: 2030-02-20 | B87: 9258.94 | C87: 2317782.4 | D87: ='3.1 LTD Effective Cost'!E$6 -> 0.067 | E87: 12992.64748 | F87: 22251.58748
A88: 2030-03-20 | B88: 10606.46 | C88: 2307175.94 | D88: ='3.1 LTD Effective Cost'!E$6 -> 0.067 | E88: 12940.95173 | F88: 23547.41173
A89: 2030-04-20 | B89: 9373.56 | C89: 2297802.38 | D89: ='3.1 LTD Effective Cost'!E$6 -> 0.067 | E89: 12881.73233 | F89: 22255.29233
A90: 2030-05-20 | B90: 9855.28 | C90: 2287947.1 | D90: ='3.1 LTD Effective Cost'!E$6 -> 0.067 | E90: 12829.39662 | F90: 22684.67662
A91: 2030-06-20 | B91: 9484.5 | C91: 2278462.6 | D91: ='3.1 LTD Effective Cost'!E$6 -> 0.067 | E91: 12774.37131 | F91: 22258.87131
A92: 2030-07-20 | B92: 9963.26 | C92: 2268499.34 | D92: ='3.1 LTD Effective Cost'!E$6 -> 0.067 | E92: 12721.41618 | F92: 22684.67618
A93: 2030-08-20 | B93: 9596.7 | C93: 2258902.64 | D93: ='3.1 LTD Effective Cost'!E$6 -> 0.067 | E93: 12665.78798 | F93: 22262.48798
A94: 2030-09-20 | B94: 9652.07 | C94: 2249250.57 | D94: ='3.1 LTD Effective Cost'!E$6 -> 0.067 | E94: 12612.20641 | F94: 22264.27641
A95: 2030-10-20 | B95: 10126.36 | C95: 2239124.21 | D95: ='3.1 LTD Effective Cost'!E$6 -> 0.067 | E95: 12558.31568 | F95: 22684.67568
A96: 2030-11-20 | B96: 9766.18 | C96: 2229358.03 | D96: ='3.1 LTD Effective Cost'!E$6 -> 0.067 | E96: 12501.77684 | F96: 22267.95684
A97: 2030-12-20 | B97: 10237.43 | C97: 2219120.6 | D97: ='3.1 LTD Effective Cost'!E$6 -> 0.067 | E97: 12447.249 | F97: 22684.679
A98: 2031-01-20 | B98: 9881.59 | C98: 2209239.01 | D98: ='3.1 LTD Effective Cost'!E$6 -> 0.067 | E98: 12390.09002 | F98: 22271.68002
A99: 2031-02-20 | B99: 9938.6 | C99: 2199300.41 | D99: ='3.1 LTD Effective Cost'!E$6 -> 0.067 | E99: 12334.91781 | F99: 22273.51781
A100: 2031-03-20 | B100: 11223.88 | C100: 2188076.53 | D100: ='3.1 LTD Effective Cost'!E$6 -> 0.067 | E100: 12279.42729 | F100: 23503.30729
A101: 2031-04-20 | B101: 10060.69 | C101: 2178015.84 | D101: ='3.1 LTD Effective Cost'!E$6 -> 0.067 | E101: 12216.76063 | F101: 22277.45063
A102: 2031-05-20 | B102: 10524.09 | C102: 2167491.75 | D102: ='3.1 LTD Effective Cost'!E$6 -> 0.067 | E102: 12160.58844 | F102: 22684.67844
A103: 2031-06-20 | B103: 10179.46 | C103: 2157312.29 | D103: ='3.1 LTD Effective Cost'!E$6 -> 0.067 | E103: 12101.82894 | F103: 22281.28894
A104: 2031-07-20 | B104: 10639.69 | C104: 2146672.6 | D104: ='3.1 LTD Effective Cost'!E$6 -> 0.067 | E104: 12044.99362 | F104: 22684.68362
A105: 2031-08-20 | B105: 10299.57 | C105: 2136373.03 | D105: ='3.1 LTD Effective Cost'!E$6 -> 0.067 | E105: 11985.58868 | F105: 22285.15868
A106: 2031-09-20 | B106: 10358.99 | C106: 2126014.04 | D106: ='3.1 LTD Effective Cost'!E$6 -> 0.067 | E106: 11928.08275 | F106: 22287.07275
A107: 2031-10-20 | B107: 10814.44 | C107: 2115199.6 | D107: ='3.1 LTD Effective Cost'!E$6 -> 0.067 | E107: 11870.24506 | F107: 22684.68506
A108: 2031-11-20 | B108: 10481.15 | C108: 2104718.45 | D108: ='3.1 LTD Effective Cost'!E$6 -> 0.067 | E108: 11809.86443 | F108: 22291.01443
A109: 2031-12-20 | B109: 10933.34 | C109: 2093785.11 | D109: ='3.1 LTD Effective Cost'!E$6 -> 0.067 | E109: 11751.34468 | F109: 22684.68468
A110: 2032-01-20 | B110: 10604.7 | C110: 2083180.41 | D110: ='3.1 LTD Effective Cost'!E$6 -> 0.067 | E110: 11690.3002 | F110: 22295.0002
A111: 2032-02-20 | B111: 10665.88 | C111: 2072514.53 | D111: ='3.1 LTD Effective Cost'!E$6 -> 0.067 | E111: 11631.09062 | F111: 22296.97062
A112: 2032-03-20 | B112: 11498.86 | C112: 2061015.67 | D112: ='3.1 LTD Effective Cost'!E$6 -> 0.067 | E112: 11571.53946 | F112: 23070.39946
A113: 2032-04-20 | B113: 10793.77 | C113: 2050221.9 | D113: ='3.1 LTD Effective Cost'!E$6 -> 0.067 | E113: 11507.33749 | F113: 22301.10749
A114: 2032-05-20 | B114: 11237.61 | C114: 2038984.29 | D114: ='3.1 LTD Effective Cost'!E$6 -> 0.067 | E114: 11447.07228 | F114: 22684.68228
A115: 2032-06-20 | B115: 10920.87 | C115: 2028063.42 | D115: ='3.1 LTD Effective Cost'!E$6 -> 0.067 | E115: 11384.32895 | F115: 22305.19895
A116: 2032-07-20 | B116: 11361.32 | C116: 2016702.1 | D116: ='3.1 LTD Effective Cost'!E$6 -> 0.067 | E116: 11323.3541 | F116: 22684.6741
A117: 2032-08-20 | B117: 11049.43 | C117: 2005652.67 | D117: ='3.1 LTD Effective Cost'!E$6 -> 0.067 | E117: 11259.92006 | F117: 22309.35006
A118: 2032-09-20 | B118: 11113.18 | C118: 1994539.49 | D118: ='3.1 LTD Effective Cost'!E$6 -> 0.067 | E118: 11198.22741 | F118: 22311.40741
A119: 2032-10-20 | B119: 11548.5 | C119: 1982990.99 | D119: ='3.1 LTD Effective Cost'!E$6 -> 0.067 | E119: 11136.17882 | F119: 22684.67882
A120: 2032-11-20 | B120: 11243.93 | C120: 1971747.06 | D120: ='3.1 LTD Effective Cost'!E$6 -> 0.067 | E120: 11071.69969 | F120: 22315.62969
A121: 2032-12-20 | B121: 11675.76 | C121: 1960071.3 | D121: ='3.1 LTD Effective Cost'!E$6 -> 0.067 | E121: 11008.92109 | F121: 22684.68109
A122: 2033-01-20 | B122: 11376.15 | C122: 1948695.15 | D122: ='3.1 LTD Effective Cost'!E$6 -> 0.067 | E122: 10943.73143 | F122: 22319.88143
A123: 2033-02-20 | B123: 11441.8 | C123: 1937253.35 | D123: ='3.1 LTD Effective Cost'!E$6 -> 0.067 | E123: 10880.21459 | F123: 22322.01459
A124: 2033-03-20 | B124: 12589.43 | C124: 1924663.92 | D124: ='3.1 LTD Effective Cost'!E$6 -> 0.067 | E124: 10816.3312 | F124: 23405.7612
A125: 2033-04-20 | B125: 11580.44 | C125: 1913083.48 | D125: ='3.1 LTD Effective Cost'!E$6 -> 0.067 | E125: 10746.04022 | F125: 22326.48022
A126: 2033-05-20 | B126: 12003.3 | C126: 1901080.18 | D126: ='3.1 LTD Effective Cost'!E$6 -> 0.067 | E126: 10681.38276 | F126: 22684.68276
A127: 2033-06-20 | B127: 11716.5 | C127: 1889363.68 | D127: ='3.1 LTD Effective Cost'!E$6 -> 0.067 | E127: 10614.36434 | F127: 22330.86434
A128: 2033-07-20 | B128: 12135.73 | C128: 1877227.95 | D128: ='3.1 LTD Effective Cost'!E$6 -> 0.067 | E128: 10548.94721 | F128: 22684.67721
A129: 2033-08-20 | B129: 11854.12 | C129: 1865373.83 | D129: ='3.1 LTD Effective Cost'!E$6 -> 0.067 | E129: 10481.18939 | F129: 22335.30939
A130: 2033-09-20 | B130: 11922.51 | C130: 1853451.32 | D130: ='3.1 LTD Effective Cost'!E$6 -> 0.067 | E130: 10415.00388 | F130: 22337.51388
A131: 2033-10-20 | B131: 12336.25 | C131: 1841115.07 | D131: ='3.1 LTD Effective Cost'!E$6 -> 0.067 | E131: 10348.43654 | F131: 22684.68654
A132: 2033-11-20 | B132: 12062.46 | C132: 1829052.61 | D132: ='3.1 LTD Effective Cost'!E$6 -> 0.067 | E132: 10279.55914 | F132: 22342.01914
A133: 2033-12-20 | B133: 12472.47 | C133: 1816580.14 | D133: ='3.1 LTD Effective Cost'!E$6 -> 0.067 | E133: 10212.21041 | F133: 22684.68041
A134: 2034-01-20 | B134: 12204.03 | C134: 1804376.11 | D134: ='3.1 LTD Effective Cost'!E$6 -> 0.067 | E134: 10142.57245 | F134: 22346.60245
A135: 2034-02-20 | B135: 12274.43 | C135: 1792101.68 | D135: ='3.1 LTD Effective Cost'!E$6 -> 0.067 | E135: 10074.43328 | F135: 22348.86328
A136: 2034-03-20 | B136: 13345.84 | C136: 1778755.84 | D136: ='3.1 LTD Effective Cost'!E$6 -> 0.067 | E136: 10005.90105 | F136: 23351.74105
A137: 2034-04-20 | B137: 12422.24 | C137: 1766333.6 | D137: ='3.1 LTD Effective Cost'!E$6 -> 0.067 | E137: 9931.386773 | F137: 22353.62677
A138: 2034-05-20 | B138: 12822.65 | C138: 1753510.95 | D138: ='3.1 LTD Effective Cost'!E$6 -> 0.067 | E138: 9862.029267 | F138: 22684.67927
A139: 2034-06-20 | B139: 12567.9 | C139: 1740943.05 | D139: ='3.1 LTD Effective Cost'!E$6 -> 0.067 | E139: 9790.436138 | F139: 22358.33614
A140: 2034-07-20 | B140: 12964.42 | C140: 1727978.63 | D140: ='3.1 LTD Effective Cost'!E$6 -> 0.067 | E140: 9720.265363 | F140: 22684.68536
A141: 2034-08-20 | B141: 12715.2 | C141: =C140-B141 -> 1715263.43 | D141: ='3.1 LTD Effective Cost'!E$6 -> 0.067 | E141: 9647.880684 | F141: 22363.08068
A142: 2034-09-20 | B142: 12788.56 | C142: 1702474.87 | D142: ='3.1 LTD Effective Cost'!E$6 -> 0.067 | E142: =(D142*C141)/12 -> 9576.887484 | F142: =E142+B142 -> 22365.44748
A143: 2034-10-20 | B143: 13179.2 | C143: 1689295.67 | D143: ='3.1 LTD Effective Cost'!E$6 -> 0.067 | E143: 9505.484691 | F143: 22684.68469
A144: 2034-11-20 | B144: 12938.38 | C144: 1676357.29 | D144: ='3.1 LTD Effective Cost'!E$6 -> 0.067 | E144: 9431.900824 | F144: 22370.28082
A145: 2034-12-20 | B145: 13325.02 | C145: 1663032.27 | D145: ='3.1 LTD Effective Cost'!E$6 -> 0.067 | E145: 9359.661536 | F145: 22684.68154
A146: 2035-01-20 | B146: 13089.91 | C146: 1649942.36 | D146: ='3.1 LTD Effective Cost'!E$6 -> 0.067 | E146: 9285.263508 | F146: 22375.17351
A147: 2035-02-20 | B147: 13165.42 | C147: 1636776.94 | D147: ='3.1 LTD Effective Cost'!E$6 -> 0.067 | E147: 9212.178177 | F147: 22377.59818
A148: 2035-03-20 | B148: 14155.26 | C148: 1622621.68 | D148: ='3.1 LTD Effective Cost'!E$6 -> 0.067 | E148: 9138.671248 | F148: 23293.93125
A149: 2035-04-20 | B149: 13323.05 | C149: 1609298.63 | D149: ='3.1 LTD Effective Cost'!E$6 -> 0.067 | E149: 9059.637713 | F149: 22382.68771
A150: 2035-05-20 | B150: 13699.43 | C150: 1595599.2 | D150: ='3.1 LTD Effective Cost'!E$6 -> 0.067 | E150: 8985.250684 | F150: 22684.68068
A151: 2035-06-20 | B151: 13478.96 | C151: 1582120.24 | D151: ='3.1 LTD Effective Cost'!E$6 -> 0.067 | E151: 8908.7622 | F151: 22387.7222
A152: 2035-07-20 | B152: 13851.18 | C152: 1568269.06 | D152: ='3.1 LTD Effective Cost'!E$6 -> 0.067 | E152: 8833.504673 | F152: 22684.68467
A153: 2035-08-20 | B153: 13636.63 | C153: 1554632.43 | D153: ='3.1 LTD Effective Cost'!E$6 -> 0.067 | E153: 8756.168918 | F153: 22392.79892
A154: 2035-09-20 | B154: 13715.32 | C154: 1540917.11 | D154: ='3.1 LTD Effective Cost'!E$6 -> 0.067 | E154: 8680.031068 | F154: 22395.35107
A155: 2035-10-20 | B155: 14081.23 | C155: 1526835.88 | D155: ='3.1 LTD Effective Cost'!E$6 -> 0.067 | E155: 8603.453864 | F155: 22684.68386
A156: 2035-11-20 | B156: 13875.68 | C156: 1512960.2 | D156: ='3.1 LTD Effective Cost'!E$6 -> 0.067 | E156: 8524.833663 | F156: 22400.51366
A157: 2035-12-20 | B157: 14237.32 | C157: 1498722.88 | D157: ='3.1 LTD Effective Cost'!E$6 -> 0.067 | E157: 8447.361117 | F157: 22684.68112
A158: 2036-01-20 | B158: 14037.88 | C158: 1484685 | D158: ='3.1 LTD Effective Cost'!E$6 -> 0.067 | E158: 8367.869413 | F158: 22405.74941
A159: 2036-02-20 | B159: 14118.87 | C159: 1470566.13 | D159: ='3.1 LTD Effective Cost'!E$6 -> 0.067 | E159: 8289.49125 | F159: 22408.36125
A160: 2036-03-20 | B160: 14747.71 | C160: 1455818.42 | D160: ='3.1 LTD Effective Cost'!E$6 -> 0.067 | E160: 8210.660893 | F160: 22958.37089
A161: 2036-04-20 | B161: 14285.42 | C161: 1441533 | D161: ='3.1 LTD Effective Cost'!E$6 -> 0.067 | E161: 8128.319512 | F161: 22413.73951
A162: 2036-05-20 | B162: 14636.12 | C162: 1426896.88 | D162: ='3.1 LTD Effective Cost'!E$6 -> 0.067 | E162: 8048.55925 | F162: 22684.67925
A163: 2036-06-20 | B163: 14452.28 | C163: 1412444.6 | D163: ='3.1 LTD Effective Cost'!E$6 -> 0.067 | E163: 7966.840913 | F163: 22419.12091
A164: 2036-07-20 | B164: 14798.53 | C164: 1397646.07 | D164: ='3.1 LTD Effective Cost'!E$6 -> 0.067 | E164: 7886.149017 | F164: 22684.67902
A165: 2036-08-20 | B165: 14621.04 | C165: 1383025.03 | D165: ='3.1 LTD Effective Cost'!E$6 -> 0.067 | E165: 7803.523891 | F165: 22424.56389
A166: 2036-09-20 | B166: 14705.39 | C166: 1368319.64 | D166: ='3.1 LTD Effective Cost'!E$6 -> 0.067 | E166: 7721.889751 | F166: 22427.27975
A167: 2036-10-20 | B167: 15044.9 | C167: 1353274.74 | D167: ='3.1 LTD Effective Cost'!E$6 -> 0.067 | E167: 7639.784657 | F167: 22684.68466
A168: 2036-11-20 | B168: 14877.03 | C168: 1338397.71 | D168: ='3.1 LTD Effective Cost'!E$6 -> 0.067 | E168: 7555.783965 | F168: 22432.81397
A169: 2036-12-20 | B169: 15211.96 | C169: 1323185.75 | D169: ='3.1 LTD Effective Cost'!E$6 -> 0.067 | E169: 7472.720548 | F169: 22684.68055
A170: 2037-01-20 | B170: 15050.63 | C170: 1308135.12 | D170: ='3.1 LTD Effective Cost'!E$6 -> 0.067 | E170: 7387.787104 | F170: 22438.4171
A171: 2037-02-20 | B171: 15137.47 | C171: 1292997.65 | D171: ='3.1 LTD Effective Cost'!E$6 -> 0.067 | E171: 7303.75442 | F171: 22441.22442
A172: 2037-03-20 | B172: 15946.73 | C172: 1277050.92 | D172: ='3.1 LTD Effective Cost'!E$6 -> 0.067 | E172: 7219.236879 | F172: 23165.96688
A173: 2037-04-20 | B173: 15316.8 | C173: 1261734.12 | D173: ='3.1 LTD Effective Cost'!E$6 -> 0.067 | E173: 7130.20097 | F173: 22447.00097
A174: 2037-05-20 | B174: 15640 | C174: 1246094.12 | D174: ='3.1 LTD Effective Cost'!E$6 -> 0.067 | E174: 7044.68217 | F174: 22684.68217
A175: 2037-06-20 | B175: 15495.41 | C175: 1230598.71 | D175: ='3.1 LTD Effective Cost'!E$6 -> 0.067 | E175: 6957.358837 | F175: 22452.76884
A176: 2037-07-20 | B176: 15813.84 | C176: 1214784.87 | D176: ='3.1 LTD Effective Cost'!E$6 -> 0.067 | E176: 6870.842798 | F176: 22684.6828
A177: 2037-08-20 | B177: 15676.04 | C177: 1199108.83 | D177: ='3.1 LTD Effective Cost'!E$6 -> 0.067 | E177: 6782.548858 | F177: 22458.58886
A178: 2037-09-20 | B178: 15766.49 | C178: 1183342.34 | D178: ='3.1 LTD Effective Cost'!E$6 -> 0.067 | E178: 6695.024301 | F178: 22461.5143
A179: 2037-10-20 | B179: 16077.69 | C179: 1167264.65 | D179: ='3.1 LTD Effective Cost'!E$6 -> 0.067 | E179: 6606.994732 | F179: 22684.68473
A180: 2037-11-20 | B180: 15950.21 | C180: 1151314.44 | D180: ='3.1 LTD Effective Cost'!E$6 -> 0.067 | E180: 6517.227629 | F180: 22467.43763
A181: 2037-12-20 | B181: 16256.51 | C181: 1135057.93 | D181: ='3.1 LTD Effective Cost'!E$6 -> 0.067 | E181: 6428.17229 | F181: 22684.68229
A182: 2038-01-20 | B182: 16136.02 | C182: 1118921.91 | D182: ='3.1 LTD Effective Cost'!E$6 -> 0.067 | E182: 6337.406776 | F182: 22473.42678
A183: 2038-02-20 | B183: 16229.12 | C183: 1102692.79 | D183: ='3.1 LTD Effective Cost'!E$6 -> 0.067 | E183: 6247.313998 | F183: 22476.434
A184: 2038-03-20 | B184: 16938.43 | C184: 1085754.36 | D184: ='3.1 LTD Effective Cost'!E$6 -> 0.067 | E184: 6156.701411 | F184: 23095.13141
A185: 2038-04-20 | B185: 16420.48 | C185: 1069333.88 | D185: ='3.1 LTD Effective Cost'!E$6 -> 0.067 | E185: 6062.12851 | F185: 22482.60851
A186: 2038-05-20 | B186: 16714.23 | C186: 1052619.65 | D186: ='3.1 LTD Effective Cost'!E$6 -> 0.067 | E186: 5970.447497 | F186: 22684.6775
A187: 2038-06-20 | B187: 16611.65 | C187: 1036008 | D187: ='3.1 LTD Effective Cost'!E$6 -> 0.067 | E187: 5877.126379 | F187: 22488.77638
A188: 2038-07-20 | B188: 16900.3 | C188: 1019107.7 | D188: ='3.1 LTD Effective Cost'!E$6 -> 0.067 | E188: 5784.378 | F188: 22684.678
A189: 2038-08-20 | B189: 16805 | C189: 1002302.7 | D189: ='3.1 LTD Effective Cost'!E$6 -> 0.067 | E189: 5690.017992 | F189: 22495.01799
A190: 2038-09-20 | B190: 16901.95 | C190: 985400.75 | D190: ='3.1 LTD Effective Cost'!E$6 -> 0.067 | E190: 5596.190075 | F190: 22498.14008
A191: 2038-10-20 | B191: 17182.86 | C191: 968217.89 | D191: ='3.1 LTD Effective Cost'!E$6 -> 0.067 | E191: 5501.820854 | F191: 22684.68085
A192: 2038-11-20 | B192: 17098.6 | C192: 951119.29 | D192: ='3.1 LTD Effective Cost'!E$6 -> 0.067 | E192: 5405.883219 | F192: 22504.48322
A193: 2038-12-20 | B193: 17374.26 | C193: 933745.03 | D193: ='3.1 LTD Effective Cost'!E$6 -> 0.067 | E193: 5310.416036 | F193: 22684.67604
A194: 2039-01-20 | B194: 17297.49 | C194: 916447.54 | D194: ='3.1 LTD Effective Cost'!E$6 -> 0.067 | E194: 5213.409751 | F194: 22510.89975
A195: 2039-02-20 | B195: 17397.29 | C195: 899050.25 | D195: ='3.1 LTD Effective Cost'!E$6 -> 0.067 | E195: 5116.832098 | F195: 22514.1221
A196: 2039-03-20 | B196: 17999.63 | C196: 881050.62 | D196: ='3.1 LTD Effective Cost'!E$6 -> 0.067 | E196: 5019.697229 | F196: 23019.32723
A197: 2039-04-20 | B197: 17601.51 | C197: 863449.11 | D197: ='3.1 LTD Effective Cost'!E$6 -> 0.067 | E197: 4919.199295 | F197: 22520.7093
A198: 2039-05-20 | B198: 17863.75 | C198: 845585.36 | D198: ='3.1 LTD Effective Cost'!E$6 -> 0.067 | E198: 4820.924198 | F198: 22684.6742
A199: 2039-06-20 | B199: 17806.12 | C199: 827779.24 | D199: ='3.1 LTD Effective Cost'!E$6 -> 0.067 | E199: 4721.184927 | F199: 22527.30493
A200: 2039-07-20 | B200: 18062.92 | C200: 809716.32 | D200: ='3.1 LTD Effective Cost'!E$6 -> 0.067 | E200: 4621.767423 | F200: 22684.68742
A201: 2039-08-20 | B201: 18013.06 | C201: 791703.26 | D201: ='3.1 LTD Effective Cost'!E$6 -> 0.067 | E201: 4520.91612 | F201: 22533.97612
A202: 2039-09-20 | B202: 18117 | C202: 773586.26 | D202: ='3.1 LTD Effective Cost'!E$6 -> 0.067 | E202: 4420.343202 | F202: 22537.3432
... 39 more rows

Sheet Market Data
A1: Bond Index - Date | B1: 2022-12-31 | C1: =EDATE(B1,-1) -> 2022-11-30 | D1: =EDATE(C1,-1) -> 2022-10-30
A2: MOODUA Index | B2: 5.27 | C2: 5.75 | D2: 5.88
A3: MOODUBAA Index | B3: 5.56 | C3: 6.05 | D3: 6.18
A4: MOODCAAA Index | B4: 4.41 | C4: 4.9 | D4: 5.1
A5: MOODCAA Index | B5: 4.75 | C5: 5.23 | D5: 5.4
A6: MOODCA Index | B6: 5.1 | C6: 5.58 | D6: 5.74
A7: MOODCBAA Index | B7: 5.58 | C7: 6.07 | D7: 6.26
A9: Historical Risk Premium Data
A10: Arithmetic Mean of Monthly Returns on Large Company Common Stocks (1928 - 2021) | B10: 0.1211
A11: Arithmetic Mean of Moody's Aaa and Aa Corporate Bond Yields (1928 - 2021) | B11: 0.0598
A12: Arithmetic Mean Holding Period Returns on the S&P Utility Index (1928 - 2021) | B12: 0.1074
A13: Arithmetic Mean on Moody's A Rated Public Utility Bond Yields (1928 - 2021) | B13: 0.0646

Sheet Proxy Data Lookup
C1: EPS Growth Rates | F1: Beta | I1: Annual Div. | J1: Value Line Beta Calculation | N1: Bond Ratings
A2: Ticker | B2: Company Name | C2: Zacks | D2: Yahoo | E2: Value Line | F2: Value Line | G2: Bloomberg | H2: Unadjusted | J2: R Factor | K2: Std. Error | L2: Std. Dev Y | M2: Std. Dev Beta | N2: S&P | O2: Moody's
A3: =Input!A2 -> AWR | B3: American States Water Company | C3: NA | D3: 0.044 | E3: 0.055 | F3: 0.65 | G3: 0.7622504234 | H3: 0.42 | I3: =0.3975*4 -> 1.59 | J3: 0.4028 | K3: 2.3839 | L3: 2.5995 | M3: 0.0593 | N3: A+ | O3: A2 | Q3: Golden State Water Company (A+, A2)
A4: =Input!A3 -> AWK | B4: American Water Works Company, Inc. | C4: 0.081 | D4: 0.0828 | E4: 0.03 | F4: 0.85 | G4: 0.9363287091 | H4: 0.75 | I4: =0.655*4 -> 2.62 | J4: 0.5086 | K4: 3.1906 | L4: 3.6984 | M4: 0.0794 | N4: A | O4: A3 | Q4: New Jersey American Water Co. (A, A3), PA American Water Co (A, A3)
A5: =Input!A4 -> CWT | B5: California Water Service Group | C5: NA | D5: 0.117 | E5: 0.065 | F5: 0.7 | G5: 0.7811488509 | H5: 0.47 | I5: 1 | J5: 0.3667 | K5: 3.0022 | L5: 3.2207 | M5: 0.0747 | N5: A+ | O5: NR
A6: =Input!A5 -> WTRG | B6: Essential Utilities Inc. | C6: 0.061 | D6: 0.066 | E6: 0.1 | F6: 0.95 | G6: 0.8421630263 | H6: 0.91 | I6: =0.287*4 -> 1.148 | J6: 0.643 | K6: 2.7036 | L6: 3.5231 | M6: 0.0673 | N6: A | O6: Baa1 | Q6: Aqua Pennsylvania, Inc. (A, NR); PNG Companies (A, Baa1)
A7: =Input!A6 -> MSEX | B7: Middlesex Water Company | C7: NA | D7: 0.027 | E7: 0.06 | F7: 0.7 | G7: 0.7126610875 | H7: 0.52 | I7: =0.3125*4 -> 1.25 | J7: 0.3578 | K7: 3.3913 | L7: 3.6246 | M7: 0.0844 | N7: A | O7: NR
A8: =Input!A7 -> SJW | B8: SJW Group | C8: NA | D8: 0.098 | E8: 0.12 | F8: 0.8 | G8: 0.6807220578 | H8: 0.68 | I8: =0.36*4 -> 1.44 | J8: 0.4527 | K8: 3.3691 | L8: 3.7711 | M8: 0.0839 | N8: A- | O8: NR | Q8: San Jose Water (A); Connecticut Water Inc. (A-); Connecticut Water Service Inc. (A-)

Sheet Proxy Price Data
B1: PX_LAST | C1: AWR US Equity | D1: AWK US Equity | E1: CWT US Equity | F1: WTRG US Equity | G1: MSEX US Equity | H1: SJW US Equity
A2: 1 | B2: 2023-01-13 | C2: 95.48 | D2: 158.87 | E2: 62.39 | F2: 48.79 | G2: 81.81 | H2: 80.18
A3: =A2+1 -> 2 | B3: 2023-01-12 | C3: 95.26 | D3: 159.42 | E3: 62.28 | F3: 48.99 | G3: 81.33 | H3: 80.03
A4: =A3+1 -> 3 | B4: 2023-01-11 | C4: 95.3 | D4: 161.42 | E4: 62.28 | F4: 48.91 | G4: 81.83 | H4: 79.72
A5: 4 | B5: 2023-01-10 | C5: 94.88 | D5: 160.77 | E5: 61.81 | F5: 48.8 | G5: 81.23 | H5: 81.07
A6: 5 | B6: 2023-01-09 | C6: 93.26 | D6: 158.44 | E6: 61.04 | F6: 48.71 | G6: 79.99 | H6: 78.94
A7: 6 | B7: 2023-01-06 | C7: 94.65 | D7: 158.26 | E7: 61.91 | F7: 48.81 | G7: 80.02 | H7: 80.71
A8: 7 | B8: 2023-01-05 | C8: 92.92 | D8: 154.67 | E8: 60.78 | F8: 47.89 | G8: 77.62 | H8: 80.46
A9: 8 | B9: 2023-01-04 | C9: 96.25 | D9: 157.17 | E9: 62.84 | F9: 48.76 | G9: 81.58 | H9: 83.35
A10: 9 | B10: 2023-01-03 | C10: 95.14 | D10: 154.1 | E10: 61.8 | F10: 48.16 | G10: 80.08 | H10: 82.23
A11: 10 | B11: 2022-12-30 | C11: 92.55 | D11: 152.42 | E11: 60.64 | F11: 47.73 | G11: 78.67 | H11: 81.19
A12: 11 | B12: 2022-12-29 | C12: 94.64 | D12: 154.78 | E12: 62.22 | F12: 48.42 | G12: 83.12 | H12: 82.59
A13: 12 | B13: 2022-12-28 | C13: 94.24 | D13: 153.12 | E13: 61.4 | F13: 47.87 | G13: 82.56 | H13: 82.8
A14: 13 | B14: 2022-12-27 | C14: 94.9 | D14: 154.28 | E14: 61.88 | F14: 48.09 | G14: 84.45 | H14: 83.55
A15: 14 | B15: 2022-12-23 | C15: 93.72 | D15: 153.02 | E15: 61.78 | F15: 47.57 | G15: 86.05 | H15: 81.02
A16: 15 | B16: 2022-12-22 | C16: 92.76 | D16: 151.93 | E16: 60.84 | F16: 47.2 | G16: 85.09 | H16: 79.87
A17: 16 | B17: 2022-12-21 | C17: 93.06 | D17: 152.53 | E17: 61.33 | F17: 47.44 | G17: 87.96 | H17: 79.93
A18: 17 | B18: 2022-12-20 | C18: 92.02 | D18: 150.26 | E18: 60.59 | F18: 46.7 | G18: 86.9 | H18: 79.95
A19: 18 | B19: 2022-12-19 | C19: 92.48 | D19: 151.48 | E19: 60.57 | F19: 46.61 | G19: 87.82 | H19: 77.87
A20: 19 | B20: 2022-12-16 | C20: 92.96 | D20: 152.4 | E20: 60.43 | F20: 46.5 | G20: 87.92 | H20: 76.7
A21: 20 | B21: 2022-12-15 | C21: 94.3 | D21: 156.42 | E21: 61.44 | F21: 47.51 | G21: 88.08 | H21: 77.57
A22: 21 | B22: 2022-12-14 | C22: 95.99 | D22: 158.35 | E22: 62.94 | F22: 48.74 | G22: 90.91 | H22: 79.58
A23: 22 | B23: 2022-12-13 | C23: 97.17 | D23: 159.19 | E23: 63.97 | F23: 48.65 | G23: 91.44 | H23: 79.84
A24: 23 | B24: 2022-12-12 | C24: 97.05 | D24: 156.99 | E24: 63.7 | F24: 48.62 | G24: 91.09 | H24: 79.01
A25: 24 | B25: 2022-12-09 | C25: 96.84 | D25: 156.14 | E25: 63.65 | F25: 48.23 | G25: 91.66 | H25: 78.99
A26: 25 | B26: 2022-12-08 | C26: 96.94 | D26: 155.41 | E26: 63.46 | F26: 48.26 | G26: 90.84 | H26: 78.69
A27: 26 | B27: 2022-12-07 | C27: 96.42 | D27: 153.79 | E27: 62.78 | F27: 48.09 | G27: 90.19 | H27: 77.98
A28: 27 | B28: 2022-12-06 | C28: 96.29 | D28: 154.68 | E28: 62.57 | F28: 47.96 | G28: 89.65 | H28: 78.16
A29: 28 | B29: 2022-12-05 | C29: 97.6 | D29: 153.18 | E29: 63.88 | F29: 48.04 | G29: 90.46 | H29: 79.58
A30: 29 | B30: 2022-12-02 | C30: 98.18 | D30: 153.74 | E30: 64.3 | F30: 48.32 | G30: 91.04 | H30: 74.39
A31: 30 | B31: 2022-12-01 | C31: 98.68 | D31: 154.01 | E31: 64.39 | F31: 48.36 | G31: 91.78 | H31: 74.32
A32: 31 | B32: 2022-11-30 | C32: 97.99 | D32: 151.76 | E32: 64.93 | F32: 48.24 | G32: 93.45 | H32: 74.69
A33: 32 | B33: 2022-11-29 | C33: 96.9 | D33: 147.14 | E33: 63.15 | F33: 47.05 | G33: 90.91 | H33: 73.68
A34: 33 | B34: 2022-11-28 | C34: 97.75 | D34: 149.75 | E34: 64.56 | F34: 47.67 | G34: 92.35 | H34: 75.22
A35: 34 | B35: 2022-11-25 | C35: 99.47 | D35: 152.9 | E35: 65.53 | F35: 48.67 | G35: 94.75 | H35: 75.23
A36: 35 | B36: 2022-11-23 | C36: 98.99 | D36: 151.26 | E36: 65.12 | F36: 48.3 | G36: 94.55 | H36: 75.01
A37: 36 | B37: 2022-11-22 | C37: 97.95 | D37: 148.22 | E37: 63.99 | F37: 47.75 | G37: 93.87 | H37: 73.74
A38: 37 | B38: 2022-11-21 | C38: 97.4 | D38: 147.72 | E38: 63.6 | F38: 47.3 | G38: 93.18 | H38: 74.1
A39: 38 | B39: 2022-11-18 | C39: 97.58 | D39: 146.71 | E39: 63.26 | F39: 47.12 | G39: 93.69 | H39: 73.48
A40: 39 | B40: 2022-11-17 | C40: 96.29 | D40: 142.85 | E40: 62.77 | F40: 46.06 | G40: 91.51 | H40: 71.41
A41: 40 | B41: 2022-11-16 | C41: 97.2 | D41: 147.05 | E41: 63.14 | F41: 47.2 | G41: 92.39 | H41: 72.82
A42: 41 | B42: 2022-11-15 | C42: 96.24 | D42: 146.02 | E42: 63.13 | F42: 47.31 | G42: 91.58 | H42: 72.29
A43: 42 | B43: 2022-11-14 | C43: 94.89 | D43: 144.75 | E43: 62.85 | F43: 46.64 | G43: 89.41 | H43: 71.3
A44: 43 | B44: 2022-11-11 | C44: 92.46 | D44: 145.94 | E44: 61.53 | F44: 46.57 | G44: 88.94 | H44: 71.12
A45: 44 | B45: 2022-11-10 | C45: 96.03 | D45: 147.51 | E45: 62.55 | F45: 46.41 | G45: 89.94 | H45: 73.2
A46: 45 | B46: 2022-11-09 | C46: 90.29 | D46: 139.46 | E46: 59.81 | F46: 43.81 | G46: 86.85 | H46: 70.59
A47: 46 | B47: 2022-11-08 | C47: 89.77 | D47: 139.79 | E47: 59.92 | F47: 44.71 | G47: 87.88 | H47: 70.41
A48: 47 | B48: 2022-11-07 | C48: 89.08 | D48: 138.04 | E48: 60.46 | F48: 44 | G48: 87.12 | H48: 70
A49: 48 | B49: 2022-11-04 | C49: 88.92 | D49: 139.04 | E49: 59.81 | F49: 44.21 | G49: 87.88 | H49: 70.37
A50: 49 | B50: 2022-11-03 | C50: 87.67 | D50: 137.84 | E50: 58.73 | F50: 43.82 | G50: 85.48 | H50: 69.24
A51: 50 | B51: 2022-11-02 | C51: 86.69 | D51: 138.16 | E51: 58.73 | F51: 43.71 | G51: 85.81 | H51: 68.19
A52: 51 | B52: 2022-11-01 | C52: 88.04 | D52: 141.84 | E52: 59.82 | F52: 44.14 | G52: 88.07 | H52: 69.21
A53: 52 | B53: 2022-10-31 | C53: 90.46 | D53: 145.34 | E53: 62.06 | F53: 44.22 | G53: 89.47 | H53: 70.68
A54: 53 | B54: 2022-10-28 | C54: 89.64 | D54: 145.94 | E54: 60.94 | F54: 44.18 | G54: 89.94 | H54: 69.99
A55: 54 | B55: 2022-10-27 | C55: 87.25 | D55: 142.02 | E55: 58.5 | F55: 43.56 | G55: 87.5 | H55: 67.12
A56: 55 | B56: 2022-10-26 | C56: 84.72 | D56: 139.22 | E56: 56.81 | F56: 42.64 | G56: 85.75 | H56: 65.38
A57: 56 | B57: 2022-10-25 | C57: 85.03 | D57: 139.55 | E57: 56.44 | F57: 42.37 | G57: 86.28 | H57: 64.9
A58: 57 | B58: 2022-10-24 | C58: 82.18 | D58: 135.96 | E58: 54.62 | F58: 41.32 | G58: 83.67 | H58: 63.4
A59: 58 | B59: 2022-10-21 | C59: 80.78 | D59: 132.76 | E59: 53.44 | F59: 40.89 | G59: 80.23 | H59: 62.26
A60: 59 | B60: 2022-10-20 | C60: 78.29 | D60: 129.93 | E60: 51.69 | F60: 39.73 | G60: 79.04 | H60: 61.02
A61: 60 | B61: 2022-10-19 | C61: 86.12 | D61: 134 | E61: 55.85 | F61: 41.34 | G61: 82.65 | H61: 63.56

Sheet Proxy Prices
A2: Date | B2: =Input!E2 -> 2023-01-13
A5: =IF('Proxy Price Data'!B1="","",'Proxy Price Data'!B1) -> PX_LAST | B5: =IF('Proxy Price Data'!C1="","",'Proxy Price Data'!C1) -> AWR US Equity | C5: =IF('Proxy Price Data'!D1="","",'Proxy Price Data'!D1) -> AWK US Equity | D5: =IF('Proxy Price Data'!E1="","",'Proxy Price Data'!E1) -> CWT US Equity | E5: =IF('Proxy Price Data'!F1="","",'Proxy Price Data'!F1) -> WTRG US Equity | F5: =IF('Proxy Price Data'!G1="","",'Proxy Price Data'!G1) -> MSEX US Equity | G5: =IF('Proxy Price Data'!H1="","",'Proxy Price Data'!H1) -> SJW US Equity
A6: =IF('Proxy Price Data'!B2="","",'Proxy Price Data'!B2) -> 2023-01-13 | B6: =IF('Proxy Price Data'!C2="","",'Proxy Price Data'!C2) -> 95.48 | C6: =IF('Proxy Price Data'!D2="","",'Proxy Price Data'!D2) -> 158.87 | D6: =IF('Proxy Price Data'!E2="","",'Proxy Price Data'!E2) -> 62.39 | E6: =IF('Proxy Price Data'!F2="","",'Proxy Price Data'!F2) -> 48.79 | F6: =IF('Proxy Price Data'!G2="","",'Proxy Price Data'!G2) -> 81.81 | G6: =IF('Proxy Price Data'!H2="","",'Proxy Price Data'!H2) -> 80.18
A7: =IF('Proxy Price Data'!B3="","",'Proxy Price Data'!B3) -> 2023-01-12 | B7: =IF('Proxy Price Data'!C3="","",'Proxy Price Data'!C3) -> 95.26 | C7: =IF('Proxy Price Data'!D3="","",'Proxy Price Data'!D3) -> 159.42 | D7: =IF('Proxy Price Data'!E3="","",'Proxy Price Data'!E3) -> 62.28 | E7: =IF('Proxy Price Data'!F3="","",'Proxy Price Data'!F3) -> 48.99 | F7: =IF('Proxy Price Data'!G3="","",'Proxy Price Data'!G3) -> 81.33 | G7: =IF('Proxy Price Data'!H3="","",'Proxy Price Data'!H3) -> 80.03
A8: =IF('Proxy Price Data'!B4="","",'Proxy Price Data'!B4) -> 2023-01-11 | B8: =IF('Proxy Price Data'!C4="","",'Proxy Price Data'!C4) -> 95.3 | C8: =IF('Proxy Price Data'!D4="","",'Proxy Price Data'!D4) -> 161.42 | D8: =IF('Proxy Price Data'!E4="","",'Proxy Price Data'!E4) -> 62.28 | E8: =IF('Proxy Price Data'!F4="","",'Proxy Price Data'!F4) -> 48.91 | F8: =IF('Proxy Price Data'!G4="","",'Proxy Price Data'!G4) -> 81.83 | G8: =IF('Proxy Price Data'!H4="","",'Proxy Price Data'!H4) -> 79.72
A9: =IF('Proxy Price Data'!B5="","",'Proxy Price Data'!B5) -> 2023-01-10 | B9: =IF('Proxy Price Data'!C5="","",'Proxy Price Data'!C5) -> 94.88 | C9: =IF('Proxy Price Data'!D5="","",'Proxy Price Data'!D5) -> 160.77 | D9: =IF('Proxy Price Data'!E5="","",'Proxy Price Data'!E5) -> 61.81 | E9: =IF('Proxy Price Data'!F5="","",'Proxy Price Data'!F5) -> 48.8 | F9: =IF('Proxy Price Data'!G5="","",'Proxy Price Data'!G5) -> 81.23 | G9: =IF('Proxy Price Data'!H5="","",'Proxy Price Data'!H5) -> 81.07
A10: =IF('Proxy Price Data'!B6="","",'Proxy Price Data'!B6) -> 2023-01-09 | B10: =IF('Proxy Price Data'!C6="","",'Proxy Price Data'!C6) -> 93.26 | C10: =IF('Proxy Price Data'!D6="","",'Proxy Price Data'!D6) -> 158.44 | D10: =IF('Proxy Price Data'!E6="","",'Proxy Price Data'!E6) -> 61.04 | E10: =IF('Proxy Price Data'!F6="","",'Proxy Price Data'!F6) -> 48.71 | F10: =IF('Proxy Price Data'!G6="","",'Proxy Price Data'!G6) -> 79.99 | G10: =IF('Proxy Price Data'!H6="","",'Proxy Price Data'!H6) -> 78.94
A11: =IF('Proxy Price Data'!B7="","",'Proxy Price Data'!B7) -> 2023-01-06 | B11: =IF('Proxy Price Data'!C7="","",'Proxy Price Data'!C7) -> 94.65 | C11: =IF('Proxy Price Data'!D7="","",'Proxy Price Data'!D7) -> 158.26 | D11: =IF('Proxy Price Data'!E7="","",'Proxy Price Data'!E7) -> 61.91 | E11: =IF('Proxy Price Data'!F7="","",'Proxy Price Data'!F7) -> 48.81 | F11: =IF('Proxy Price Data'!G7="","",'Proxy Price Data'!G7) -> 80.02 | G11: =IF('Proxy Price Data'!H7="","",'Proxy Price Data'!H7) -> 80.71
A12: =IF('Proxy Price Data'!B8="","",'Proxy Price Data'!B8) -> 2023-01-05 | B12: =IF('Proxy Price Data'!C8="","",'Proxy Price Data'!C8) -> 92.92 | C12: =IF('Proxy Price Data'!D8="","",'Proxy Price Data'!D8) -> 154.67 | D12: =IF('Proxy Price Data'!E8="","",'Proxy Price Data'!E8) -> 60.78 | E12: =IF('Proxy Price Data'!F8="","",'Proxy Price Data'!F8) -> 47.89 | F12: =IF('Proxy Price Data'!G8="","",'Proxy Price Data'!G8) -> 77.62 | G12: =IF('Proxy Price Data'!H8="","",'Proxy Price Data'!H8) -> 80.46
A13: =IF('Proxy Price Data'!B9="","",'Proxy Price Data'!B9) -> 2023-01-04 | B13: =IF('Proxy Price Data'!C9="","",'Proxy Price Data'!C9) -> 96.25 | C13: =IF('Proxy Price Data'!D9="","",'Proxy Price Data'!D9) -> 157.17 | D13: =IF('Proxy Price Data'!E9="","",'Proxy Price Data'!E9) -> 62.84 | E13: =IF('Proxy Price Data'!F9="","",'Proxy Price Data'!F9) -> 48.76 | F13: =IF('Proxy Price Data'!G9="","",'Proxy Price Data'!G9) -> 81.58 | G13: =IF('Proxy Price Data'!H9="","",'Proxy Price Data'!H9) -> 83.35
A14: =IF('Proxy Price Data'!B10="","",'Proxy Price Data'!B10) -> 2023-01-03 | B14: =IF('Proxy Price Data'!C10="","",'Proxy Price Data'!C10) -> 95.14 | C14: =IF('Proxy Price Data'!D10="","",'Proxy Price Data'!D10) -> 154.1 | D14: =IF('Proxy Price Data'!E10="","",'Proxy Price Data'!E10) -> 61.8 | E14: =IF('Proxy Price Data'!F10="","",'Proxy Price Data'!F10) -> 48.16 | F14: =IF('Proxy Price Data'!G10="","",'Proxy Price Data'!G10) -> 80.08 | G14: =IF('Proxy Price Data'!H10="","",'Proxy Price Data'!H10) -> 82.23
A15: =IF('Proxy Price Data'!B11="","",'Proxy Price Data'!B11) -> 2022-12-30 | B15: =IF('Proxy Price Data'!C11="","",'Proxy Price Data'!C11) -> 92.55 | C15: =IF('Proxy Price Data'!D11="","",'Proxy Price Data'!D11) -> 152.42 | D15: =IF('Proxy Price Data'!E11="","",'Proxy Price Data'!E11) -> 60.64 | E15: =IF('Proxy Price Data'!F11="","",'Proxy Price Data'!F11) -> 47.73 | F15: =IF('Proxy Price Data'!G11="","",'Proxy Price Data'!G11) -> 78.67 | G15: =IF('Proxy Price Data'!H11="","",'Proxy Price Data'!H11) -> 81.19
A16: =IF('Proxy Price Data'!B12="","",'Proxy Price Data'!B12) -> 2022-12-29 | B16: =IF('Proxy Price Data'!C12="","",'Proxy Price Data'!C12) -> 94.64 | C16: =IF('Proxy Price Data'!D12="","",'Proxy Price Data'!D12) -> 154.78 | D16: =IF('Proxy Price Data'!E12="","",'Proxy Price Data'!E12) -> 62.22 | E16: =IF('Proxy Price Data'!F12="","",'Proxy Price Data'!F12) -> 48.42 | F16: =IF('Proxy Price Data'!G12="","",'Proxy Price Data'!G12) -> 83.12 | G16: =IF('Proxy Price Data'!H12="","",'Proxy Price Data'!H12) -> 82.59
A17: =IF('Proxy Price Data'!B13="","",'Proxy Price Data'!B13) -> 2022-12-28 | B17: =IF('Proxy Price Data'!C13="","",'Proxy Price Data'!C13) -> 94.24 | C17: =IF('Proxy Price Data'!D13="","",'Proxy Price Data'!D13) -> 153.12 | D17: =IF('Proxy Price Data'!E13="","",'Proxy Price Data'!E13) -> 61.4 | E17: =IF('Proxy Price Data'!F13="","",'Proxy Price Data'!F13) -> 47.87 | F17: =IF('Proxy Price Data'!G13="","",'Proxy Price Data'!G13) -> 82.56 | G17: =IF('Proxy Price Data'!H13="","",'Proxy Price Data'!H13) -> 82.8
A18: =IF('Proxy Price Data'!B14="","",'Proxy Price Data'!B14) -> 2022-12-27 | B18: =IF('Proxy Price Data'!C14="","",'Proxy Price Data'!C14) -> 94.9 | C18: =IF('Proxy Price Data'!D14="","",'Proxy Price Data'!D14) -> 154.28 | D18: =IF('Proxy Price Data'!E14="","",'Proxy Price Data'!E14) -> 61.88 | E18: =IF('Proxy Price Data'!F14="","",'Proxy Price Data'!F14) -> 48.09 | F18: =IF('Proxy Price Data'!G14="","",'Proxy Price Data'!G14) -> 84.45 | G18: =IF('Proxy Price Data'!H14="","",'Proxy Price Data'!H14) -> 83.55
A19: =IF('Proxy Price Data'!B15="","",'Proxy Price Data'!B15) -> 2022-12-23 | B19: =IF('Proxy Price Data'!C15="","",'Proxy Price Data'!C15) -> 93.72 | C19: =IF('Proxy Price Data'!D15="","",'Proxy Price Data'!D15) -> 153.02 | D19: =IF('Proxy Price Data'!E15="","",'Proxy Price Data'!E15) -> 61.78 | E19: =IF('Proxy Price Data'!F15="","",'Proxy Price Data'!F15) -> 47.57 | F19: =IF('Proxy Price Data'!G15="","",'Proxy Price Data'!G15) -> 86.05 | G19: =IF('Proxy Price Data'!H15="","",'Proxy Price Data'!H15) -> 81.02
A20: =IF('Proxy Price Data'!B16="","",'Proxy Price Data'!B16) -> 2022-12-22 | B20: =IF('Proxy Price Data'!C16="","",'Proxy Price Data'!C16) -> 92.76 | C20: =IF('Proxy Price Data'!D16="","",'Proxy Price Data'!D16) -> 151.93 | D20: =IF('Proxy Price Data'!E16="","",'Proxy Price Data'!E16) -> 60.84 | E20: =IF('Proxy Price Data'!F16="","",'Proxy Price Data'!F16) -> 47.2 | F20: =IF('Proxy Price Data'!G16="","",'Proxy Price Data'!G16) -> 85.09 | G20: =IF('Proxy Price Data'!H16="","",'Proxy Price Data'!H16) -> 79.87
A21: =IF('Proxy Price Data'!B17="","",'Proxy Price Data'!B17) -> 2022-12-21 | B21: =IF('Proxy Price Data'!C17="","",'Proxy Price Data'!C17) -> 93.06 | C21: =IF('Proxy Price Data'!D17="","",'Proxy Price Data'!D17) -> 152.53 | D21: =IF('Proxy Price Data'!E17="","",'Proxy Price Data'!E17) -> 61.33 | E21: =IF('Proxy Price Data'!F17="","",'Proxy Price Data'!F17) -> 47.44 | F21: =IF('Proxy Price Data'!G17="","",'Proxy Price Data'!G17) -> 87.96 | G21: =IF('Proxy Price Data'!H17="","",'Proxy Price Data'!H17) -> 79.93
A22: =IF('Proxy Price Data'!B18="","",'Proxy Price Data'!B18) -> 2022-12-20 | B22: =IF('Proxy Price Data'!C18="","",'Proxy Price Data'!C18) -> 92.02 | C22: =IF('Proxy Price Data'!D18="","",'Proxy Price Data'!D18) -> 150.26 | D22: =IF('Proxy Price Data'!E18="","",'Proxy Price Data'!E18) -> 60.59 | E22: =IF('Proxy Price Data'!F18="","",'Proxy Price Data'!F18) -> 46.7 | F22: =IF('Proxy Price Data'!G18="","",'Proxy Price Data'!G18) -> 86.9 | G22: =IF('Proxy Price Data'!H18="","",'Proxy Price Data'!H18) -> 79.95
A23: =IF('Proxy Price Data'!B19="","",'Proxy Price Data'!B19) -> 2022-12-19 | B23: =IF('Proxy Price Data'!C19="","",'Proxy Price Data'!C19) -> 92.48 | C23: =IF('Proxy Price Data'!D19="","",'Proxy Price Data'!D19) -> 151.48 | D23: =IF('Proxy Price Data'!E19="","",'Proxy Price Data'!E19) -> 60.57 | E23: =IF('Proxy Price Data'!F19="","",'Proxy Price Data'!F19) -> 46.61 | F23: =IF('Proxy Price Data'!G19="","",'Proxy Price Data'!G19) -> 87.82 | G23: =IF('Proxy Price Data'!H19="","",'Proxy Price Data'!H19) -> 77.87
A24: =IF('Proxy Price Data'!B20="","",'Proxy Price Data'!B20) -> 2022-12-16 | B24: =IF('Proxy Price Data'!C20="","",'Proxy Price Data'!C20) -> 92.96 | C24: =IF('Proxy Price Data'!D20="","",'Proxy Price Data'!D20) -> 152.4 | D24: =IF('Proxy Price Data'!E20="","",'Proxy Price Data'!E20) -> 60.43 | E24: =IF('Proxy Price Data'!F20="","",'Proxy Price Data'!F20) -> 46.5 | F24: =IF('Proxy Price Data'!G20="","",'Proxy Price Data'!G20) -> 87.92 | G24: =IF('Proxy Price Data'!H20="","",'Proxy Price Data'!H20) -> 76.7
A25: =IF('Proxy Price Data'!B21="","",'Proxy Price Data'!B21) -> 2022-12-15 | B25: =IF('Proxy Price Data'!C21="","",'Proxy Price Data'!C21) -> 94.3 | C25: =IF('Proxy Price Data'!D21="","",'Proxy Price Data'!D21) -> 156.42 | D25: =IF('Proxy Price Data'!E21="","",'Proxy Price Data'!E21) -> 61.44 | E25: =IF('Proxy Price Data'!F21="","",'Proxy Price Data'!F21) -> 47.51 | F25: =IF('Proxy Price Data'!G21="","",'Proxy Price Data'!G21) -> 88.08 | G25: =IF('Proxy Price Data'!H21="","",'Proxy Price Data'!H21) -> 77.57
A26: =IF('Proxy Price Data'!B22="","",'Proxy Price Data'!B22) -> 2022-12-14 | B26: =IF('Proxy Price Data'!C22="","",'Proxy Price Data'!C22) -> 95.99 | C26: =IF('Proxy Price Data'!D22="","",'Proxy Price Data'!D22) -> 158.35 | D26: =IF('Proxy Price Data'!E22="","",'Proxy Price Data'!E22) -> 62.94 | E26: =IF('Proxy Price Data'!F22="","",'Proxy Price Data'!F22) -> 48.74 | F26: =IF('Proxy Price Data'!G22="","",'Proxy Price Data'!G22) -> 90.91 | G26: =IF('Proxy Price Data'!H22="","",'Proxy Price Data'!H22) -> 79.58
A27: =IF('Proxy Price Data'!B23="","",'Proxy Price Data'!B23) -> 2022-12-13 | B27: =IF('Proxy Price Data'!C23="","",'Proxy Price Data'!C23) -> 97.17 | C27: =IF('Proxy Price Data'!D23="","",'Proxy Price Data'!D23) -> 159.19 | D27: =IF('Proxy Price Data'!E23="","",'Proxy Price Data'!E23) -> 63.97 | E27: =IF('Proxy Price Data'!F23="","",'Proxy Price Data'!F23) -> 48.65 | F27: =IF('Proxy Price Data'!G23="","",'Proxy Price Data'!G23) -> 91.44 | G27: =IF('Proxy Price Data'!H23="","",'Proxy Price Data'!H23) -> 79.84
A28: =IF('Proxy Price Data'!B24="","",'Proxy Price Data'!B24) -> 2022-12-12 | B28: =IF('Proxy Price Data'!C24="","",'Proxy Price Data'!C24) -> 97.05 | C28: =IF('Proxy Price Data'!D24="","",'Proxy Price Data'!D24) -> 156.99 | D28: =IF('Proxy Price Data'!E24="","",'Proxy Price Data'!E24) -> 63.7 | E28: =IF('Proxy Price Data'!F24="","",'Proxy Price Data'!F24) -> 48.62 | F28: =IF('Proxy Price Data'!G24="","",'Proxy Price Data'!G24) -> 91.09 | G28: =IF('Proxy Price Data'!H24="","",'Proxy Price Data'!H24) -> 79.01
A29: =IF('Proxy Price Data'!B25="","",'Proxy Price Data'!B25) -> 2022-12-09 | B29: =IF('Proxy Price Data'!C25="","",'Proxy Price Data'!C25) -> 96.84 | C29: =IF('Proxy Price Data'!D25="","",'Proxy Price Data'!D25) -> 156.14 | D29: =IF('Proxy Price Data'!E25="","",'Proxy Price Data'!E25) -> 63.65 | E29: =IF('Proxy Price Data'!F25="","",'Proxy Price Data'!F25) -> 48.23 | F29: =IF('Proxy Price Data'!G25="","",'Proxy Price Data'!G25) -> 91.66 | G29: =IF('Proxy Price Data'!H25="","",'Proxy Price Data'!H25) -> 78.99
A30: =IF('Proxy Price Data'!B26="","",'Proxy Price Data'!B26) -> 2022-12-08 | B30: =IF('Proxy Price Data'!C26="","",'Proxy Price Data'!C26) -> 96.94 | C30: =IF('Proxy Price Data'!D26="","",'Proxy Price Data'!D26) -> 155.41 | D30: =IF('Proxy Price Data'!E26="","",'Proxy Price Data'!E26) -> 63.46 | E30: =IF('Proxy Price Data'!F26="","",'Proxy Price Data'!F26) -> 48.26 | F30: =IF('Proxy Price Data'!G26="","",'Proxy Price Data'!G26) -> 90.84 | G30: =IF('Proxy Price Data'!H26="","",'Proxy Price Data'!H26) -> 78.69
A31: =IF('Proxy Price Data'!B27="","",'Proxy Price Data'!B27) -> 2022-12-07 | B31: =IF('Proxy Price Data'!C27="","",'Proxy Price Data'!C27) -> 96.42 | C31: =IF('Proxy Price Data'!D27="","",'Proxy Price Data'!D27) -> 153.79 | D31: =IF('Proxy Price Data'!E27="","",'Proxy Price Data'!E27) -> 62.78 | E31: =IF('Proxy Price Data'!F27="","",'Proxy Price Data'!F27) -> 48.09 | F31: =IF('Proxy Price Data'!G27="","",'Proxy Price Data'!G27) -> 90.19 | G31: =IF('Proxy Price Data'!H27="","",'Proxy Price Data'!H27) -> 77.98
A32: =IF('Proxy Price Data'!B28="","",'Proxy Price Data'!B28) -> 2022-12-06 | B32: =IF('Proxy Price Data'!C28="","",'Proxy Price Data'!C28) -> 96.29 | C32: =IF('Proxy Price Data'!D28="","",'Proxy Price Data'!D28) -> 154.68 | D32: =IF('Proxy Price Data'!E28="","",'Proxy Price Data'!E28) -> 62.57 | E32: =IF('Proxy Price Data'!F28="","",'Proxy Price Data'!F28) -> 47.96 | F32: =IF('Proxy Price Data'!G28="","",'Proxy Price Data'!G28) -> 89.65 | G32: =IF('Proxy Price Data'!H28="","",'Proxy Price Data'!H28) -> 78.16
A33: =IF('Proxy Price Data'!B29="","",'Proxy Price Data'!B29) -> 2022-12-05 | B33: =IF('Proxy Price Data'!C29="","",'Proxy Price Data'!C29) -> 97.6 | C33: =IF('Proxy Price Data'!D29="","",'Proxy Price Data'!D29) -> 153.18 | D33: =IF('Proxy Price Data'!E29="","",'Proxy Price Data'!E29) -> 63.88 | E33: =IF('Proxy Price Data'!F29="","",'Proxy Price Data'!F29) -> 48.04 | F33: =IF('Proxy Price Data'!G29="","",'Proxy Price Data'!G29) -> 90.46 | G33: =IF('Proxy Price Data'!H29="","",'Proxy Price Data'!H29) -> 79.58
A34: =IF('Proxy Price Data'!B30="","",'Proxy Price Data'!B30) -> 2022-12-02 | B34: =IF('Proxy Price Data'!C30="","",'Proxy Price Data'!C30) -> 98.18 | C34: =IF('Proxy Price Data'!D30="","",'Proxy Price Data'!D30) -> 153.74 | D34: =IF('Proxy Price Data'!E30="","",'Proxy Price Data'!E30) -> 64.3 | E34: =IF('Proxy Price Data'!F30="","",'Proxy Price Data'!F30) -> 48.32 | F34: =IF('Proxy Price Data'!G30="","",'Proxy Price Data'!G30) -> 91.04 | G34: =IF('Proxy Price Data'!H30="","",'Proxy Price Data'!H30) -> 74.39
A35: =IF('Proxy Price Data'!B31="","",'Proxy Price Data'!B31) -> 2022-12-01 | B35: =IF('Proxy Price Data'!C31="","",'Proxy Price Data'!C31) -> 98.68 | C35: =IF('Proxy Price Data'!D31="","",'Proxy Price Data'!D31) -> 154.01 | D35: =IF('Proxy Price Data'!E31="","",'Proxy Price Data'!E31) -> 64.39 | E35: =IF('Proxy Price Data'!F31="","",'Proxy Price Data'!F31) -> 48.36 | F35: =IF('Proxy Price Data'!G31="","",'Proxy Price Data'!G31) -> 91.78 | G35: =IF('Proxy Price Data'!H31="","",'Proxy Price Data'!H31) -> 74.32
A36: =IF('Proxy Price Data'!B32="","",'Proxy Price Data'!B32) -> 2022-11-30 | B36: =IF('Proxy Price Data'!C32="","",'Proxy Price Data'!C32) -> 97.99 | C36: =IF('Proxy Price Data'!D32="","",'Proxy Price Data'!D32) -> 151.76 | D36: =IF('Proxy Price Data'!E32="","",'Proxy Price Data'!E32) -> 64.93 | E36: =IF('Proxy Price Data'!F32="","",'Proxy Price Data'!F32) -> 48.24 | F36: =IF('Proxy Price Data'!G32="","",'Proxy Price Data'!G32) -> 93.45 | G36: =IF('Proxy Price Data'!H32="","",'Proxy Price Data'!H32) -> 74.69
A37: =IF('Proxy Price Data'!B33="","",'Proxy Price Data'!B33) -> 2022-11-29 | B37: =IF('Proxy Price Data'!C33="","",'Proxy Price Data'!C33) -> 96.9 | C37: =IF('Proxy Price Data'!D33="","",'Proxy Price Data'!D33) -> 147.14 | D37: =IF('Proxy Price Data'!E33="","",'Proxy Price Data'!E33) -> 63.15 | E37: =IF('Proxy Price Data'!F33="","",'Proxy Price Data'!F33) -> 47.05 | F37: =IF('Proxy Price Data'!G33="","",'Proxy Price Data'!G33) -> 90.91 | G37: =IF('Proxy Price Data'!H33="","",'Proxy Price Data'!H33) -> 73.68
A38: =IF('Proxy Price Data'!B34="","",'Proxy Price Data'!B34) -> 2022-11-28 | B38: =IF('Proxy Price Data'!C34="","",'Proxy Price Data'!C34) -> 97.75 | C38: =IF('Proxy Price Data'!D34="","",'Proxy Price Data'!D34) -> 149.75 | D38: =IF('Proxy Price Data'!E34="","",'Proxy Price Data'!E34) -> 64.56 | E38: =IF('Proxy Price Data'!F34="","",'Proxy Price Data'!F34) -> 47.67 | F38: =IF('Proxy Price Data'!G34="","",'Proxy Price Data'!G34) -> 92.35 | G38: =IF('Proxy Price Data'!H34="","",'Proxy Price Data'!H34) -> 75.22
A39: =IF('Proxy Price Data'!B35="","",'Proxy Price Data'!B35) -> 2022-11-25 | B39: =IF('Proxy Price Data'!C35="","",'Proxy Price Data'!C35) -> 99.47 | C39: =IF('Proxy Price Data'!D35="","",'Proxy Price Data'!D35) -> 152.9 | D39: =IF('Proxy Price Data'!E35="","",'Proxy Price Data'!E35) -> 65.53 | E39: =IF('Proxy Price Data'!F35="","",'Proxy Price Data'!F35) -> 48.67 | F39: =IF('Proxy Price Data'!G35="","",'Proxy Price Data'!G35) -> 94.75 | G39: =IF('Proxy Price Data'!H35="","",'Proxy Price Data'!H35) -> 75.23
A40: =IF('Proxy Price Data'!B36="","",'Proxy Price Data'!B36) -> 2022-11-23 | B40: =IF('Proxy Price Data'!C36="","",'Proxy Price Data'!C36) -> 98.99 | C40: =IF('Proxy Price Data'!D36="","",'Proxy Price Data'!D36) -> 151.26 | D40: =IF('Proxy Price Data'!E36="","",'Proxy Price Data'!E36) -> 65.12 | E40: =IF('Proxy Price Data'!F36="","",'Proxy Price Data'!F36) -> 48.3 | F40: =IF('Proxy Price Data'!G36="","",'Proxy Price Data'!G36) -> 94.55 | G40: =IF('Proxy Price Data'!H36="","",'Proxy Price Data'!H36) -> 75.01
A41: =IF('Proxy Price Data'!B37="","",'Proxy Price Data'!B37) -> 2022-11-22 | B41: =IF('Proxy Price Data'!C37="","",'Proxy Price Data'!C37) -> 97.95 | C41: =IF('Proxy Price Data'!D37="","",'Proxy Price Data'!D37) -> 148.22 | D41: =IF('Proxy Price Data'!E37="","",'Proxy Price Data'!E37) -> 63.99 | E41: =IF('Proxy Price Data'!F37="","",'Proxy Price Data'!F37) -> 47.75 | F41: =IF('Proxy Price Data'!G37="","",'Proxy Price Data'!G37) -> 93.87 | G41: =IF('Proxy Price Data'!H37="","",'Proxy Price Data'!H37) -> 73.74
A42: =IF('Proxy Price Data'!B38="","",'Proxy Price Data'!B38) -> 2022-11-21 | B42: =IF('Proxy Price Data'!C38="","",'Proxy Price Data'!C38) -> 97.4 | C42: =IF('Proxy Price Data'!D38="","",'Proxy Price Data'!D38) -> 147.72 | D42: =IF('Proxy Price Data'!E38="","",'Proxy Price Data'!E38) -> 63.6 | E42: =IF('Proxy Price Data'!F38="","",'Proxy Price Data'!F38) -> 47.3 | F42: =IF('Proxy Price Data'!G38="","",'Proxy Price Data'!G38) -> 93.18 | G42: =IF('Proxy Price Data'!H38="","",'Proxy Price Data'!H38) -> 74.1
A43: =IF('Proxy Price Data'!B39="","",'Proxy Price Data'!B39) -> 2022-11-18 | B43: =IF('Proxy Price Data'!C39="","",'Proxy Price Data'!C39) -> 97.58 | C43: =IF('Proxy Price Data'!D39="","",'Proxy Price Data'!D39) -> 146.71 | D43: =IF('Proxy Price Data'!E39="","",'Proxy Price Data'!E39) -> 63.26 | E43: =IF('Proxy Price Data'!F39="","",'Proxy Price Data'!F39) -> 47.12 | F43: =IF('Proxy Price Data'!G39="","",'Proxy Price Data'!G39) -> 93.69 | G43: =IF('Proxy Price Data'!H39="","",'Proxy Price Data'!H39) -> 73.48
A44: =IF('Proxy Price Data'!B40="","",'Proxy Price Data'!B40) -> 2022-11-17 | B44: =IF('Proxy Price Data'!C40="","",'Proxy Price Data'!C40) -> 96.29 | C44: =IF('Proxy Price Data'!D40="","",'Proxy Price Data'!D40) -> 142.85 | D44: =IF('Proxy Price Data'!E40="","",'Proxy Price Data'!E40) -> 62.77 | E44: =IF('Proxy Price Data'!F40="","",'Proxy Price Data'!F40) -> 46.06 | F44: =IF('Proxy Price Data'!G40="","",'Proxy Price Data'!G40) -> 91.51 | G44: =IF('Proxy Price Data'!H40="","",'Proxy Price Data'!H40) -> 71.41
A45: =IF('Proxy Price Data'!B41="","",'Proxy Price Data'!B41) -> 2022-11-16 | B45: =IF('Proxy Price Data'!C41="","",'Proxy Price Data'!C41) -> 97.2 | C45: =IF('Proxy Price Data'!D41="","",'Proxy Price Data'!D41) -> 147.05 | D45: =IF('Proxy Price Data'!E41="","",'Proxy Price Data'!E41) -> 63.14 | E45: =IF('Proxy Price Data'!F41="","",'Proxy Price Data'!F41) -> 47.2 | F45: =IF('Proxy Price Data'!G41="","",'Proxy Price Data'!G41) -> 92.39 | G45: =IF('Proxy Price Data'!H41="","",'Proxy Price Data'!H41) -> 72.82
A46: =IF('Proxy Price Data'!B42="","",'Proxy Price Data'!B42) -> 2022-11-15 | B46: =IF('Proxy Price Data'!C42="","",'Proxy Price Data'!C42) -> 96.24 | C46: =IF('Proxy Price Data'!D42="","",'Proxy Price Data'!D42) -> 146.02 | D46: =IF('Proxy Price Data'!E42="","",'Proxy Price Data'!E42) -> 63.13 | E46: =IF('Proxy Price Data'!F42="","",'Proxy Price Data'!F42) -> 47.31 | F46: =IF('Proxy Price Data'!G42="","",'Proxy Price Data'!G42) -> 91.58 | G46: =IF('Proxy Price Data'!H42="","",'Proxy Price Data'!H42) -> 72.29
A47: =IF('Proxy Price Data'!B43="","",'Proxy Price Data'!B43) -> 2022-11-14 | B47: =IF('Proxy Price Data'!C43="","",'Proxy Price Data'!C43) -> 94.89 | C47: =IF('Proxy Price Data'!D43="","",'Proxy Price Data'!D43) -> 144.75 | D47: =IF('Proxy Price Data'!E43="","",'Proxy Price Data'!E43) -> 62.85 | E47: =IF('Proxy Price Data'!F43="","",'Proxy Price Data'!F43) -> 46.64 | F47: =IF('Proxy Price Data'!G43="","",'Proxy Price Data'!G43) -> 89.41 | G47: =IF('Proxy Price Data'!H43="","",'Proxy Price Data'!H43) -> 71.3
A48: =IF('Proxy Price Data'!B44="","",'Proxy Price Data'!B44) -> 2022-11-11 | B48: =IF('Proxy Price Data'!C44="","",'Proxy Price Data'!C44) -> 92.46 | C48: =IF('Proxy Price Data'!D44="","",'Proxy Price Data'!D44) -> 145.94 | D48: =IF('Proxy Price Data'!E44="","",'Proxy Price Data'!E44) -> 61.53 | E48: =IF('Proxy Price Data'!F44="","",'Proxy Price Data'!F44) -> 46.57 | F48: =IF('Proxy Price Data'!G44="","",'Proxy Price Data'!G44) -> 88.94 | G48: =IF('Proxy Price Data'!H44="","",'Proxy Price Data'!H44) -> 71.12
A49: =IF('Proxy Price Data'!B45="","",'Proxy Price Data'!B45) -> 2022-11-10 | B49: =IF('Proxy Price Data'!C45="","",'Proxy Price Data'!C45) -> 96.03 | C49: =IF('Proxy Price Data'!D45="","",'Proxy Price Data'!D45) -> 147.51 | D49: =IF('Proxy Price Data'!E45="","",'Proxy Price Data'!E45) -> 62.55 | E49: =IF('Proxy Price Data'!F45="","",'Proxy Price Data'!F45) -> 46.41 | F49: =IF('Proxy Price Data'!G45="","",'Proxy Price Data'!G45) -> 89.94 | G49: =IF('Proxy Price Data'!H45="","",'Proxy Price Data'!H45) -> 73.2
A50: =IF('Proxy Price Data'!B46="","",'Proxy Price Data'!B46) -> 2022-11-09 | B50: =IF('Proxy Price Data'!C46="","",'Proxy Price Data'!C46) -> 90.29 | C50: =IF('Proxy Price Data'!D46="","",'Proxy Price Data'!D46) -> 139.46 | D50: =IF('Proxy Price Data'!E46="","",'Proxy Price Data'!E46) -> 59.81 | E50: =IF('Proxy Price Data'!F46="","",'Proxy Price Data'!F46) -> 43.81 | F50: =IF('Proxy Price Data'!G46="","",'Proxy Price Data'!G46) -> 86.85 | G50: =IF('Proxy Price Data'!H46="","",'Proxy Price Data'!H46) -> 70.59
A51: =IF('Proxy Price Data'!B47="","",'Proxy Price Data'!B47) -> 2022-11-08 | B51: =IF('Proxy Price Data'!C47="","",'Proxy Price Data'!C47) -> 89.77 | C51: =IF('Proxy Price Data'!D47="","",'Proxy Price Data'!D47) -> 139.79 | D51: =IF('Proxy Price Data'!E47="","",'Proxy Price Data'!E47) -> 59.92 | E51: =IF('Proxy Price Data'!F47="","",'Proxy Price Data'!F47) -> 44.71 | F51: =IF('Proxy Price Data'!G47="","",'Proxy Price Data'!G47) -> 87.88 | G51: =IF('Proxy Price Data'!H47="","",'Proxy Price Data'!H47) -> 70.41
A52: =IF('Proxy Price Data'!B48="","",'Proxy Price Data'!B48) -> 2022-11-07 | B52: =IF('Proxy Price Data'!C48="","",'Proxy Price Data'!C48) -> 89.08 | C52: =IF('Proxy Price Data'!D48="","",'Proxy Price Data'!D48) -> 138.04 | D52: =IF('Proxy Price Data'!E48="","",'Proxy Price Data'!E48) -> 60.46 | E52: =IF('Proxy Price Data'!F48="","",'Proxy Price Data'!F48) -> 44 | F52: =IF('Proxy Price Data'!G48="","",'Proxy Price Data'!G48) -> 87.12 | G52: =IF('Proxy Price Data'!H48="","",'Proxy Price Data'!H48) -> 70
A53: =IF('Proxy Price Data'!B49="","",'Proxy Price Data'!B49) -> 2022-11-04 | B53: =IF('Proxy Price Data'!C49="","",'Proxy Price Data'!C49) -> 88.92 | C53: =IF('Proxy Price Data'!D49="","",'Proxy Price Data'!D49) -> 139.04 | D53: =IF('Proxy Price Data'!E49="","",'Proxy Price Data'!E49) -> 59.81 | E53: =IF('Proxy Price Data'!F49="","",'Proxy Price Data'!F49) -> 44.21 | F53: =IF('Proxy Price Data'!G49="","",'Proxy Price Data'!G49) -> 87.88 | G53: =IF('Proxy Price Data'!H49="","",'Proxy Price Data'!H49) -> 70.37
A54: =IF('Proxy Price Data'!B50="","",'Proxy Price Data'!B50) -> 2022-11-03 | B54: =IF('Proxy Price Data'!C50="","",'Proxy Price Data'!C50) -> 87.67 | C54: =IF('Proxy Price Data'!D50="","",'Proxy Price Data'!D50) -> 137.84 | D54: =IF('Proxy Price Data'!E50="","",'Proxy Price Data'!E50) -> 58.73 | E54: =IF('Proxy Price Data'!F50="","",'Proxy Price Data'!F50) -> 43.82 | F54: =IF('Proxy Price Data'!G50="","",'Proxy Price Data'!G50) -> 85.48 | G54: =IF('Proxy Price Data'!H50="","",'Proxy Price Data'!H50) -> 69.24
A55: =IF('Proxy Price Data'!B51="","",'Proxy Price Data'!B51) -> 2022-11-02 | B55: =IF('Proxy Price Data'!C51="","",'Proxy Price Data'!C51) -> 86.69 | C55: =IF('Proxy Price Data'!D51="","",'Proxy Price Data'!D51) -> 138.16 | D55: =IF('Proxy Price Data'!E51="","",'Proxy Price Data'!E51) -> 58.73 | E55: =IF('Proxy Price Data'!F51="","",'Proxy Price Data'!F51) -> 43.71 | F55: =IF('Proxy Price Data'!G51="","",'Proxy Price Data'!G51) -> 85.81 | G55: =IF('Proxy Price Data'!H51="","",'Proxy Price Data'!H51) -> 68.19
A56: =IF('Proxy Price Data'!B52="","",'Proxy Price Data'!B52) -> 2022-11-01 | B56: =IF('Proxy Price Data'!C52="","",'Proxy Price Data'!C52) -> 88.04 | C56: =IF('Proxy Price Data'!D52="","",'Proxy Price Data'!D52) -> 141.84 | D56: =IF('Proxy Price Data'!E52="","",'Proxy Price Data'!E52) -> 59.82 | E56: =IF('Proxy Price Data'!F52="","",'Proxy Price Data'!F52) -> 44.14 | F56: =IF('Proxy Price Data'!G52="","",'Proxy Price Data'!G52) -> 88.07 | G56: =IF('Proxy Price Data'!H52="","",'Proxy Price Data'!H52) -> 69.21
A57: =IF('Proxy Price Data'!B53="","",'Proxy Price Data'!B53) -> 2022-10-31 | B57: =IF('Proxy Price Data'!C53="","",'Proxy Price Data'!C53) -> 90.46 | C57: =IF('Proxy Price Data'!D53="","",'Proxy Price Data'!D53) -> 145.34 | D57: =IF('Proxy Price Data'!E53="","",'Proxy Price Data'!E53) -> 62.06 | E57: =IF('Proxy Price Data'!F53="","",'Proxy Price Data'!F53) -> 44.22 | F57: =IF('Proxy Price Data'!G53="","",'Proxy Price Data'!G53) -> 89.47 | G57: =IF('Proxy Price Data'!H53="","",'Proxy Price Data'!H53) -> 70.68
A58: =IF('Proxy Price Data'!B54="","",'Proxy Price Data'!B54) -> 2022-10-28 | B58: =IF('Proxy Price Data'!C54="","",'Proxy Price Data'!C54) -> 89.64 | C58: =IF('Proxy Price Data'!D54="","",'Proxy Price Data'!D54) -> 145.94 | D58: =IF('Proxy Price Data'!E54="","",'Proxy Price Data'!E54) -> 60.94 | E58: =IF('Proxy Price Data'!F54="","",'Proxy Price Data'!F54) -> 44.18 | F58: =IF('Proxy Price Data'!G54="","",'Proxy Price Data'!G54) -> 89.94 | G58: =IF('Proxy Price Data'!H54="","",'Proxy Price Data'!H54) -> 69.99
A59: =IF('Proxy Price Data'!B55="","",'Proxy Price Data'!B55) -> 2022-10-27 | B59: =IF('Proxy Price Data'!C55="","",'Proxy Price Data'!C55) -> 87.25 | C59: =IF('Proxy Price Data'!D55="","",'Proxy Price Data'!D55) -> 142.02 | D59: =IF('Proxy Price Data'!E55="","",'Proxy Price Data'!E55) -> 58.5 | E59: =IF('Proxy Price Data'!F55="","",'Proxy Price Data'!F55) -> 43.56 | F59: =IF('Proxy Price Data'!G55="","",'Proxy Price Data'!G55) -> 87.5 | G59: =IF('Proxy Price Data'!H55="","",'Proxy Price Data'!H55) -> 67.12
A60: =IF('Proxy Price Data'!B56="","",'Proxy Price Data'!B56) -> 2022-10-26 | B60: =IF('Proxy Price Data'!C56="","",'Proxy Price Data'!C56) -> 84.72 | C60: =IF('Proxy Price Data'!D56="","",'Proxy Price Data'!D56) -> 139.22 | D60: =IF('Proxy Price Data'!E56="","",'Proxy Price Data'!E56) -> 56.81 | E60: =IF('Proxy Price Data'!F56="","",'Proxy Price Data'!F56) -> 42.64 | F60: =IF('Proxy Price Data'!G56="","",'Proxy Price Data'!G56) -> 85.75 | G60: =IF('Proxy Price Data'!H56="","",'Proxy Price Data'!H56) -> 65.38
A61: =IF('Proxy Price Data'!B57="","",'Proxy Price Data'!B57) -> 2022-10-25 | B61: =IF('Proxy Price Data'!C57="","",'Proxy Price Data'!C57) -> 85.03 | C61: =IF('Proxy Price Data'!D57="","",'Proxy Price Data'!D57) -> 139.55 | D61: =IF('Proxy Price Data'!E57="","",'Proxy Price Data'!E57) -> 56.44 | E61: =IF('Proxy Price Data'!F57="","",'Proxy Price Data'!F57) -> 42.37 | F61: =IF('Proxy Price Data'!G57="","",'Proxy Price Data'!G57) -> 86.28 | G61: =IF('Proxy Price Data'!H57="","",'Proxy Price Data'!H57) -> 64.9
A62: =IF('Proxy Price Data'!B58="","",'Proxy Price Data'!B58) -> 2022-10-24 | B62: =IF('Proxy Price Data'!C58="","",'Proxy Price Data'!C58) -> 82.18 | C62: =IF('Proxy Price Data'!D58="","",'Proxy Price Data'!D58) -> 135.96 | D62: =IF('Proxy Price Data'!E58="","",'Proxy Price Data'!E58) -> 54.62 | E62: =IF('Proxy Price Data'!F58="","",'Proxy Price Data'!F58) -> 41.32 | F62: =IF('Proxy Price Data'!G58="","",'Proxy Price Data'!G58) -> 83.67 | G62: =IF('Proxy Price Data'!H58="","",'Proxy Price Data'!H58) -> 63.4
A63: =IF('Proxy Price Data'!B59="","",'Proxy Price Data'!B59) -> 2022-10-21 | B63: =IF('Proxy Price Data'!C59="","",'Proxy Price Data'!C59) -> 80.78 | C63: =IF('Proxy Price Data'!D59="","",'Proxy Price Data'!D59) -> 132.76 | D63: =IF('Proxy Price Data'!E59="","",'Proxy Price Data'!E59) -> 53.44 | E63: =IF('Proxy Price Data'!F59="","",'Proxy Price Data'!F59) -> 40.89 | F63: =IF('Proxy Price Data'!G59="","",'Proxy Price Data'!G59) -> 80.23 | G63: =IF('Proxy Price Data'!H59="","",'Proxy Price Data'!H59) -> 62.26
A64: =IF('Proxy Price Data'!B60="","",'Proxy Price Data'!B60) -> 2022-10-20 | B64: =IF('Proxy Price Data'!C60="","",'Proxy Price Data'!C60) -> 78.29 | C64: =IF('Proxy Price Data'!D60="","",'Proxy Price Data'!D60) -> 129.93 | D64: =IF('Proxy Price Data'!E60="","",'Proxy Price Data'!E60) -> 51.69 | E64: =IF('Proxy Price Data'!F60="","",'Proxy Price Data'!F60) -> 39.73 | F64: =IF('Proxy Price Data'!G60="","",'Proxy Price Data'!G60) -> 79.04 | G64: =IF('Proxy Price Data'!H60="","",'Proxy Price Data'!H60) -> 61.02
A65: =IF('Proxy Price Data'!B61="","",'Proxy Price Data'!B61) -> 2022-10-19 | B65: =IF('Proxy Price Data'!C61="","",'Proxy Price Data'!C61) -> 86.12 | C65: =IF('Proxy Price Data'!D61="","",'Proxy Price Data'!D61) -> 134 | D65: =IF('Proxy Price Data'!E61="","",'Proxy Price Data'!E61) -> 55.85 | E65: =IF('Proxy Price Data'!F61="","",'Proxy Price Data'!F61) -> 41.34 | F65: =IF('Proxy Price Data'!G61="","",'Proxy Price Data'!G61) -> 82.65 | G65: =IF('Proxy Price Data'!H61="","",'Proxy Price Data'!H61) -> 63.56
A67: Average Price | B67: =IFERROR(ROUND(AVERAGE(B6:B65),2),0) -> 93.23 | C67: =IFERROR(ROUND(AVERAGE(C6:C65),2),0) -> 149.16 | D67: 61.39 | E67: 46.56 | F67: 87.29 | G67: 74.9
A69: Indicated Dividend | B69: =IFERROR(ROUND(VLOOKUP(LEFT(B5,FIND(" ",B5)-1),'Proxy Data Lookup'!$A:$N,9,FALSE),10),0) -> 1.59 | C69: =IFERROR(ROUND(VLOOKUP(LEFT(C5,FIND(" ",C5)-1),'Proxy Data Lookup'!$A:$N,9,FALSE),10),0) -> 2.62 | D69: =IFERROR(ROUND(VLOOKUP(LEFT(D5,FIND(" ",D5)-1),'Proxy Data Lookup'!$A:$N,9,FALSE),10),0) -> 1 | E69: =IFERROR(ROUND(VLOOKUP(LEFT(E5,FIND(" ",E5)-1),'Proxy Data Lookup'!$A:$N,9,FALSE),10),0) -> 1.148 | F69: =IFERROR(ROUND(VLOOKUP(LEFT(F5,FIND(" ",F5)-1),'Proxy Data Lookup'!$A:$N,9,FALSE),10),0) -> 1.25 | G69: =IFERROR(ROUND(VLOOKUP(LEFT(G5,FIND(" ",G5)-1),'Proxy Data Lookup'!$A:$N,9,FALSE),10),0) -> 1.44
A71: Indicated Dividend Yield | B71: =IFERROR(ROUND(B69/B67,4),0) -> 0.0171 | C71: =IFERROR(ROUND(C69/C67,4),0) -> 0.0176 | D71: =IFERROR(ROUND(D69/D67,4),0) -> 0.0163 | E71: 0.0247 | F71: 0.0143 | G71: =IFERROR(ROUND(G69/G67,4),0) -> 0.0192

Sheet CEM Data Lookup
C1: EPS Growth Rates | F1: Beta | I1: Annual Div. | J1: Value Line Beta Calculation | N1: Bond Ratings
A2: Ticker | B2: Company Name | C2: Zacks | D2: Yahoo | E2: Value Line | F2: Value Line | G2: Bloomberg | H2: Unadjusted | J2: R Factor | K2: Std. Error | L2: Std. Dev Y | M2: Std. Dev Beta | N2: Moody's | O2: S&P
A3: =Input!C2 -> ADBE | B3: Adobe Inc. | C3: 0.132 | D3: 0.1356 | E3: 0.135 | F3: 0.75 | G3: 1.424250126 | H3: 0.55 | I3: NA | J3: 0.39 | K3: 3.2558 | L3: 3.5289 | M3: 0.081 | N3: A2 | O3: A+
A4: =Input!C3 -> AMGN | B4: Amgen | C4: 0.077 | D4: 0.0625 | E4: 0.055 | F4: 0.75 | G4: 0.6677419543 | H4: 0.56 | I4: =2.13*4 -> 8.52 | J4: 0.4517 | K4: 2.7921 | L4: 3.1235 | M4: 0.0695 | N4: Baa1 | O4: BBB+
A5: =Input!C4 -> BDX | B5: Becton, Dickinson | C5: 0.095 | D5: 0.055 | E5: 0.045 | F5: 0.75 | G5: 0.6853892207 | H5: 0.59 | I5: =0.91*4 -> 3.64 | J5: 0.4492 | K5: 2.9628 | L5: 3.3097 | M5: 0.0738 | N5: Baa2 | O5: BBB
A6: =Input!C5 -> BMY | B6: Bristol-Myers Squibb | C6: 0.057 | D6: 0.0388 | E6: NMF | F6: 0.85 | G6: 0.5097875595 | H6: 0.76 | I6: =0.57*4 -> 2.28 | J6: 0.5324 | K6: 3.033 | L6: 3.5759 | M6: 0.0755 | N6: A2 | O6: A+
A7: =Input!C6 -> BR | B7: Broadridge Fin'l | C7: NA | D7: 0.118 | E7: 0.095 | F7: 0.85 | G7: 0.9826169014 | H7: 0.7 | I7: =0.725*4 -> 2.9 | J7: 0.5385 | K7: 2.761 | L7: 3.2704 | M7: 0.0687 | N7: Baa1 | O7: BBB+
A8: =Input!C7 -> CHKP | B8: Check Point Software | C8: 0.073 | D8: 0.0702 | E8: 0.085 | F8: 0.75 | G8: 0.7285448313 | H8: 0.57 | I8: NA | J8: 0.4479 | K8: 2.8358 | L8: 3.1656 | M8: 0.0706 | N8: NA | O8: NA
A9: =Input!C8 -> CHRW | B9: C.H. Robinson | C9: 0.09 | D9: 0.0383 | E9: 0.085 | F9: 0.75 | G9: 0.8792093992 | H9: 0.56 | I9: =0.61*4 -> 2.44 | J9: 0.4232 | K9: 3.0116 | L9: 3.3175 | M9: 0.075 | N9: Baa2 | O9: BBB+
A10: =Input!C9 -> CSGS | B10: CSG Systems Int'l | C10: NA | D10: 0.07 | E10: 0.12 | F10: 0.75 | G10: 0.821510911 | H10: 0.58 | I10: =0.265*4 -> 1.06 | J10: 0.4217 | K10: 3.1079 | L10: 3.4209 | M10: 0.0774 | N10: NA | O10: BB+
A11: =Input!C10 -> DGX | B11: Quest Diagnostics | C11: NA | D11: -0.156 | E11: 0.04 | F11: 0.8 | G11: 0.6936050057 | H11: 0.69 | I11: =0.66*4 -> 2.64 | J11: 0.4972 | K11: 3.0218 | L11: 3.476 | M11: 0.0752 | N11: Baa2 | O11: BBB+
A12: =Input!C11 -> HTLD | B12: Heartland Express | C12: NA | D12: 0.133 | E12: 0.085 | F12: 0.75 | G12: 0.7953819633 | H12: 0.55 | I12: =0.02*4 -> 0.08 | J12: 0.4247 | K12: 2.9497 | L12: 3.2518 | M12: 0.0734 | N12: NA | O12: NA
A13: =Input!C12 -> JKHY | B13: Henry (Jack) & Assoc | C13: 0.09 | D13: 0.09 | E13: 0.08 | F13: 0.85 | G13: 0.7449546456 | H13: 0.7 | I13: =0.49*4 -> 1.96 | J13: 0.5221 | K13: 2.8821 | L13: 3.3727 | M13: 0.0717 | N13: NA | O13: NA
A14: =Input!C13 -> KMB | B14: Kimberly-Clark | C14: 0.064 | D14: 0.069 | E14: 0.055 | F14: 0.7 | G14: 0.6616520286 | H14: 0.51 | I14: =1.16*4 -> 4.64 | J14: 0.4137 | K14: 2.8091 | L14: 3.0794 | M14: 0.0699 | N14: A2 | O14: A
A15: =Input!C14 -> LANC | B15: Lancaster Colony | C15: NA | D15: 0.03 | E15: 0.035 | F15: 0.7 | G15: 0.4994643331 | H15: 0.5 | I15: =0.85*4 -> 3.4 | J15: 0.3877 | K15: 2.9638 | L15: 3.2091 | M15: 0.0738 | N15: NA | O15: NA
A16: =Input!C15 -> MKC | B16: McCormick & Co. | C16: 0.053 | D16: 0.01 | E16: 0.045 | F16: 0.8 | G16: 0.7264093757 | H16: 0.66 | I16: =0.39*4 -> 1.56 | J16: 0.5038 | K16: 2.8331 | L16: 3.2733 | M16: 0.0705 | N16: Baa2 | O16: BBB
A17: =Input!C16 -> MNST | B17: Monster Beverage | C17: 0.114 | D17: 0.1412 | E17: 0.105 | F17: 0.85 | G17: 0.7363255024 | H17: 0.73 | I17: NA | J17: 0.5122 | K17: 3.0556 | L17: 3.5507 | M17: 0.0761 | N17: NA | O17: NA
A18: =Input!C17 -> NOC | B18: Northrop Grumman | C18: 0.024 | D18: 0.03 | E18: 0.065 | F18: 0.85 | G18: 0.6697514057 | H18: 0.74 | I18: =1.73*4 -> 6.92 | J18: 0.5338 | K18: 2.9186 | L18: 3.4447 | M18: 0.0727 | N18: Baa1 | O18: BBB+
A19: =Input!C18 -> PGR | B19: Progressive Corp. | C19: 0.199 | D19: 0.2712 | E19: 0.065 | F19: 0.75 | G19: 0.7577873468 | H19: 0.6 | I19: =0.1*4 -> 0.4 | J19: 0.4673 | K19: 2.8617 | L19: 3.2305 | M19: 0.0712 | N19: A2 | O19: A
A20: =Input!C19 -> RLI | B20: RLI Corp. | C20: NA | D20: 0.098 | E20: 0.12 | F20: 0.8 | G20: 0.776812315 | H20: 0.66 | I20: =0.26*4 -> 1.04 | J20: 0.4985 | K20: 2.8575 | L20: 3.2898 | M20: 0.0711 | N20: Baa2 | O20: BBB
A21: =Input!C20 -> ROL | B21: Rollins, Inc. | C21: NA | D21: 0.082 | E21: 0.105 | F21: 0.85 | G21: 0.8576608896 | H21: 0.72 | I21: =0.13*4 -> 0.52 | J21: 0.5165 | K21: 2.9831 | L21: 3.4771 | M21: 0.0743 | N21: NA | O21: NA
A22: =Input!C21 -> TYL | B22: Tyler Technologies | C22: NA | D22: 0.072 | E22: 0.12 | F22: 0.75 | G22: 1.195991039 | H22: 0.56 | I22: NA | J22: 0.3986 | K22: 3.228 | L22: 3.5128 | M22: 0.0804 | N22: NA | O22: NA

Sheet CEM Price Data
B1: PX_LAST | C1: ADBE US Equity | D1: AMGN US Equity | E1: BDX US Equity | F1: BMY US Equity | G1: BR US Equity | H1: CHKP US Equity | I1: CHRW US Equity | J1: CSGS US Equity | K1: DGX US Equity | L1: HTLD US Equity | M1: JKHY US Equity | N1: KMB US Equity | O1: LANC US Equity | P1: MKC US Equity | Q1: MNST US Equity | R1: NOC US Equity | S1: PGR US Equity | T1: RLI US Equity | U1: ROL US Equity | V1: TYL US Equity
A2: 1 | B2: 2023-01-13 | C2: 344.38 | D2: 271.73 | E2: 255.85 | F2: 72.51 | G2: 144.11 | H2: 128.99 | I2: 93.63 | J2: 58.39 | K2: 147.94 | L2: 16.49 | M2: 181.76 | N2: 136.83 | O2: 198.46 | P2: 81.1 | Q2: 102.08 | R2: 461.43 | S2: 133.65 | T2: 139.64 | U2: 37.78 | V2: 316.76
A3: =A2+1 -> 2 | B3: 2023-01-12 | C3: 344.54 | D3: 270.92 | E3: 254.6 | F3: 71.6 | G3: 144.99 | H3: 126.04 | I3: 93.5 | J3: 58.2 | K3: 148.12 | L3: 16.39 | M3: 181.59 | N3: 136.24 | O3: 195.86 | P3: 80.97 | Q3: 100.04 | R3: 487.98 | S3: 132.94 | T3: 136.45 | U3: 37.55 | V3: 316.56
A4: =A3+1 -> 3 | B4: 2023-01-11 | C4: 342.93 | D4: 272.91 | E4: 256.15 | F4: 71.94 | G4: 143.57 | H4: 124.92 | I4: 94.98 | J4: 57.43 | K4: 152.84 | L4: 16.24 | M4: 181.1 | N4: 136.31 | O4: 197.05 | P4: 83.52 | Q4: 101.69 | R4: 492.93 | S4: 132.25 | T4: 136.07 | U4: 37.72 | V4: 318.09
A5: 4 | B5: 2023-01-10 | C5: 338.7 | D5: 273.88 | E5: 255.37 | F5: 71.65 | G5: 139.03 | H5: 124.64 | I5: 92.8 | J5: 56.98 | K5: 152.54 | L5: 15.97 | M5: 178.37 | N5: 135.86 | O5: 198.31 | P5: 84.37 | Q5: 100.53 | R5: 495.79 | S5: 133.02 | T5: 136.38 | U5: 36.5 | V5: 313.07
A6: 5 | B6: 2023-01-09 | C6: 341.98 | D6: 270.12 | E6: 252.45 | F6: 71.01 | G6: 138.66 | H6: 125.86 | I6: 93.36 | J6: 57.53 | K6: 152.93 | L6: 15.98 | M6: 178.2 | N6: 137.02 | O6: 198.31 | P6: 84.61 | Q6: 101.15 | R6: 495.41 | S6: 132.01 | T6: 135.11 | U6: 36.53 | V6: 318.99
A7: 6 | B7: 2023-01-06 | C7: 332.75 | D7: 275.2 | E7: 259.34 | F7: 73 | G7: 137.1 | H7: 128.2 | I7: 93.31 | J7: 59.09 | K7: 155.64 | L7: 15.85 | M7: 178.3 | N7: 138.45 | O7: 201.54 | P7: 86.3 | Q7: 102.43 | R7: 521.42 | S7: 134.61 | T7: 136.96 | U7: 36.53 | V7: 310.91
A8: 7 | B8: 2023-01-05 | C8: 328.44 | D8: 266.86 | E8: 255.31 | F8: 71.92 | G8: 133.02 | H8: 126.77 | I8: 90.01 | J8: 58.64 | K8: 154.5 | L8: 15.41 | M8: 173.78 | N8: 135.54 | O8: 200.02 | P8: 84.45 | Q8: 100.38 | R8: 528.52 | S8: 131.53 | T8: 132.89 | U8: 36.31 | V8: 306.52
A9: 8 | B9: 2023-01-04 | C9: 341.41 | D9: 264.39 | E9: 258.09 | F9: 72.62 | G9: 136.67 | H9: 127.2 | I9: 90.8 | J9: 58.83 | K9: 154.58 | L9: 15.8 | M9: 177.19 | N9: 136.81 | O9: 201.46 | P9: 84.96 | Q9: 102.15 | R9: 526.45 | S9: 131.24 | T9: 132.42 | U9: 36.94 | V9: 320.68
A10: 9 | B10: 2023-01-03 | C10: 336.92 | D10: 261.65 | E10: 256.18 | F10: 72.26 | G10: 134.56 | H10: 126.83 | I10: 90.28 | J10: 58.26 | K10: 155.77 | L10: 15.59 | M10: 176.1 | N10: 137.11 | O10: 201.78 | P10: 83.47 | Q10: 101.32 | R10: 540.33 | S10: 130.14 | T10: 132.48 | U10: 36.55 | V10: 319.33
A11: 10 | B11: 2022-12-30 | C11: 336.53 | D11: 262.64 | E11: 254.3 | F11: 71.95 | G11: 134.13 | H11: 126.16 | I11: 91.56 | J11: 57.2 | K11: 156.44 | L11: 15.34 | M11: 175.56 | N11: 135.75 | O11: 197.3 | P11: 82.89 | Q11: 101.53 | R11: 545.61 | S11: 129.71 | T11: 131.27 | U11: 36.54 | V11: 322.41
A12: 11 | B12: 2022-12-29 | C12: 337.58 | D12: 263.16 | E12: 256.9 | F12: 72.1 | G12: 136.66 | H12: 126.1 | I12: 92.25 | J12: 57.2 | K12: 156.79 | L12: 15.54 | M12: 177.49 | N12: 137.24 | O12: 201.09 | P12: 84.14 | Q12: 102.02 | R12: 542 | S12: 130.56 | T12: 133.72 | U12: 36.66 | V12: 325.47
A13: 12 | B13: 2022-12-28 | C13: 328.33 | D13: 261.42 | E13: 253.12 | F13: 71.99 | G13: 133.37 | H13: 124.91 | I13: 91.12 | J13: 56.2 | K13: 156.51 | L13: 15.34 | M13: 176.64 | N13: 136.52 | O13: 200.55 | P13: 83.24 | Q13: 101.32 | R13: 540.41 | S13: 129.72 | T13: 131.72 | U13: 36.54 | V13: 314.91
A14: 13 | B14: 2022-12-27 | C14: 335.09 | D14: 263.39 | E14: 255.3 | F14: 72.61 | G14: 135.47 | H14: 126.23 | I14: 93.14 | J14: 57.33 | K14: 157.28 | L14: 15.77 | M14: 178.9 | N14: 138.38 | O14: 202.29 | P14: 84.83 | Q14: 102.01 | R14: 541.19 | S14: 130.17 | T14: 133.68 | U14: 37.02 | V14: 320.85
A15: 14 | B15: 2022-12-23 | C15: 338.45 | D15: 263.92 | E15: 254.47 | F15: 72.89 | G15: 134.48 | H15: 126.97 | I15: 93.08 | J15: 56.82 | K15: 156.31 | L15: 15.76 | M15: 177.34 | N15: 137.15 | O15: 200.84 | P15: 84.22 | Q15: 101.26 | R15: 534.77 | S15: 129.44 | T15: 133.69 | U15: 37.12 | V15: 320.12
A16: 15 | B16: 2022-12-22 | C16: 336.52 | D16: 265.26 | E16: 253.59 | F16: 73.83 | G16: 134.4 | H16: 126.46 | I16: 92.46 | J16: 56.02 | K16: 155.63 | L16: 15.72 | M16: 176.67 | N16: 137.44 | O16: 202.31 | P16: 84.18 | Q16: 100.81 | R16: 531.37 | S16: 128.6 | T16: 131.76 | U16: 36.97 | V16: 321.83
A17: 16 | B17: 2022-12-21 | C17: 341.38 | D17: 266.26 | E17: 253.36 | F17: 73.33 | G17: 136.33 | H17: 127.6 | I17: 92.92 | J17: 56.2 | K17: 155.3 | L17: 15.9 | M17: 178.29 | N17: 136.96 | O17: 201.87 | P17: 84.25 | Q17: 101.95 | R17: 538.79 | S17: 129.12 | T17: 132.75 | U17: 37.39 | V17: 329.62
A18: 17 | B18: 2022-12-20 | C18: 338.22 | D18: 264.75 | E18: 249.24 | F18: 72.65 | G18: 133.41 | H18: 128.03 | I18: 92.38 | J18: 55.46 | K18: 150.2 | L18: 15.32 | M18: 176.47 | N18: 135.38 | O18: 198.01 | P18: 82.99 | Q18: 101.16 | R18: 529.57 | S18: 127.19 | T18: 129.8 | U18: 37.12 | V18: 319.25
A19: 18 | B19: 2022-12-19 | C19: 328.76 | D19: 265.7 | E19: 248.46 | F19: 73.16 | G19: 133.21 | H19: 127.48 | I19: 93.51 | J19: 55.69 | K19: 151.45 | L19: 16.03 | M19: 175.37 | N19: 135.66 | O19: 197.98 | P19: 82.84 | Q19: 100.42 | R19: 532.52 | S19: 127.07 | T19: 125.39 | U19: 36.94 | V19: 320.05
A20: 19 | B20: 2022-12-16 | C20: 338.54 | D20: 267.41 | E20: 249.51 | F20: 73.49 | G20: 133.35 | H20: 129.05 | I20: 94.08 | J20: 55.26 | K20: 149.24 | L20: 16.14 | M20: 177.55 | N20: 135.32 | O20: 196.47 | P20: 83.41 | Q20: 100.78 | R20: 529.87 | S20: 126.45 | T20: 126.71 | U20: 36.76 | V20: 320.3
A21: 20 | B21: 2022-12-15 | C21: 328.71 | D21: 266.14 | E21: 250.51 | F21: 75 | G21: 134.96 | H21: 129.92 | I21: 94.76 | J21: 56.04 | K21: 149.22 | L21: 16.37 | M21: 177.93 | N21: 136.42 | O21: 195.4 | P21: 84.46 | Q21: 99.65 | R21: 528.49 | S21: 127.66 | T21: 125.65 | U21: 37.19 | V21: 322.82
A22: 21 | B22: 2022-12-14 | C22: 339.92 | D22: 271.13 | E22: 254.04 | F22: 77.14 | G22: 140.85 | H22: 133.12 | I22: 96.21 | J22: 56.89 | K22: 151.11 | L22: 17.1 | M22: 180.59 | N22: 139.1 | O22: 197.18 | P22: 86.27 | Q22: 101.9 | R22: 531.78 | S22: 126.58 | T22: 127.95 | U22: 38.13 | V22: 334.61
A23: 22 | B23: 2022-12-13 | C23: 342.46 | D23: 272.26 | E23: 254.05 | F23: 77.35 | G23: 145.2 | H23: 133.64 | I23: 95.57 | J23: 57.97 | K23: 149.75 | L23: 16.67 | M23: 183.08 | N23: 138.71 | O23: 198.71 | P23: 86.6 | Q23: 100.44 | R23: 525.59 | S23: 128.28 | T23: 128.97 | U23: 38.3 | V23: 334.91
A24: 23 | B24: 2022-12-12 | C24: 338.17 | D24: 276.78 | E24: 254.06 | F24: 78.89 | G24: 145.13 | H24: 132.4 | I24: 97.63 | J24: 58.27 | K24: 149 | L24: 16.48 | M24: 182.89 | N24: 137.96 | O24: 201.61 | P24: 85.98 | Q24: 100.82 | R24: 535.18 | S24: 129.94 | T24: 128.53 | U24: 38.34 | V24: 325.21
A25: 24 | B25: 2022-12-09 | C25: 330.64 | D25: 278.65 | E25: 247.6 | F25: 78.83 | G25: 142.11 | H25: 131.53 | I25: 95.3 | J25: 56.52 | K25: 148.85 | L25: 16.15 | M25: 181.54 | N25: 136.2 | O25: 200.64 | P25: 85.28 | Q25: 100.04 | R25: 528.94 | S25: 129.38 | T25: 127.28 | U25: 38.51 | V25: 323.08
A26: 25 | B26: 2022-12-08 | C26: 332.58 | D26: 285.57 | E26: 247.97 | F26: 79.88 | G26: 144.82 | H26: 131.27 | I26: 96.08 | J26: 57.6 | K26: 150.5 | L26: 16.03 | M26: 184.92 | N26: 136.76 | O26: 202.49 | P26: 85.65 | Q26: 101.54 | R26: 540.55 | S26: 131.18 | T26: 128.79 | U26: 39.24 | V26: 318.44
A27: 26 | B27: 2022-12-07 | C27: 326.68 | D27: 285.76 | E27: 246.48 | F27: 79.93 | G27: 142.39 | H27: 131.52 | I27: 96.11 | J27: 57.33 | K27: 149 | L27: 16.27 | M27: 184.78 | N27: 136.7 | O27: 202.12 | P27: 85.35 | Q27: 101.23 | R27: 540.21 | S27: 130.48 | T27: 127.86 | U27: 39.48 | V27: 308.83
A28: 27 | B28: 2022-12-06 | C28: 331.15 | D28: 283.29 | E28: 244.39 | F28: 79.92 | G28: 143.33 | H28: 131.51 | I28: 95.39 | J28: 57.76 | K28: 148.97 | L28: 16.33 | M28: 183.49 | N28: 136.01 | O28: 202.97 | P28: 84.38 | Q28: 101.44 | R28: 531.81 | S28: 130.97 | T28: 128.25 | U28: 39.21 | V28: 314.07
A29: 28 | B29: 2022-12-05 | C29: 334.09 | D29: 284.91 | E29: 246.21 | F29: 80.7 | G29: 144.98 | H29: 131.66 | I29: 95.42 | J29: 58.74 | K29: 148.92 | L29: 16.34 | M29: 188.93 | N29: 137.17 | O29: 203.77 | P29: 84.05 | Q29: 102.17 | R29: 541.43 | S29: 131.26 | T29: 129.33 | U29: 39.6 | V29: 323.51
A30: 29 | B30: 2022-12-02 | C30: 341.53 | D30: 285.51 | E30: 252.38 | F30: 81.13 | G30: 148.99 | H30: 133.48 | I30: 96.71 | J30: 61.51 | K30: 150.46 | L30: 16.71 | M30: 191.6 | N30: 137.93 | O30: 203.49 | P30: 86.38 | Q30: 104.04 | R30: 545.6 | S30: 132.51 | T30: 131.85 | U30: 40.48 | V30: 342.22
A31: 30 | B31: 2022-12-01 | C31: 344.11 | D31: 285.94 | E31: 250.83 | F31: 80.88 | G31: 149.86 | H31: 134.5 | I31: 98.77 | J31: 61.93 | K31: 152.61 | L31: 16.61 | M31: 190.73 | N31: 136.6 | O31: 204.33 | P31: 85.73 | Q31: 103.25 | R31: 530.3 | S31: 131.26 | T31: 129.78 | U31: 40.39 | V31: 352.23
A32: 31 | B32: 2022-11-30 | C32: 344.93 | D32: 286.4 | E32: 249.34 | F32: 80.28 | G32: 149.11 | H32: 132.83 | I32: 100.22 | J32: 61.84 | K32: 151.83 | L32: 16.74 | M32: 189.35 | N32: 135.63 | O32: 207.14 | P32: 85.18 | Q32: 102.86 | R32: 533.29 | S32: 132.15 | T32: 130.07 | U32: 40.44 | V32: 342.74
A33: 32 | B33: 2022-11-29 | C33: 326.78 | D33: 281.99 | E33: 241.02 | F33: 79.03 | G33: 142.82 | H33: 131.03 | I33: 97.6 | J33: 60.5 | K33: 149.01 | L33: 16.32 | M33: 185.9 | N33: 133.16 | O33: 203.43 | P33: 83.75 | Q33: 99.79 | R33: 528.35 | S33: 131.12 | T33: 127.49 | U33: 39.83 | V33: 324.15
A34: 33 | B34: 2022-11-28 | C34: 328.97 | D34: 282.62 | E34: 237.34 | F34: 79.14 | G34: 146.5 | H34: 130.85 | I34: 97.67 | J34: 60.87 | K34: 149.07 | L34: 16.32 | M34: 188.8 | N34: 133.31 | O34: 204.49 | P34: 83.75 | Q34: 101.88 | R34: 524.88 | S34: 130.02 | T34: 131.84 | U34: 39.78 | V34: 326.73
A35: 34 | B35: 2022-11-25 | C35: 334.3 | D35: 283.74 | E35: 238.06 | F35: 79.24 | G35: 148.52 | H35: 132.41 | I35: 98.76 | J35: 61.06 | K35: 149.06 | L35: 16.67 | M35: 191.42 | N35: 135.03 | O35: 205.32 | P35: 84.91 | Q35: 103.37 | R35: 527.83 | S35: 131.57 | T35: 133.72 | U35: 39.99 | V35: 330.88
A36: 35 | B36: 2022-11-23 | C36: 335.78 | D36: 283.4 | E36: 237.34 | F36: 79.14 | G36: 148.43 | H36: 131.48 | I36: 98.06 | J36: 61.31 | K36: 148.46 | L36: 16.5 | M36: 190.06 | N36: 134 | O36: 203.58 | P36: 86.11 | Q36: 103.93 | R36: 522.34 | S36: 131.09 | T36: 131.9 | U36: 39.72 | V36: 333.04
A37: 36 | B37: 2022-11-22 | C37: 330.88 | D37: 287.05 | E37: 235.61 | F37: 78.86 | G37: 148.36 | H37: 131.55 | I37: 97.65 | J37: 61.52 | K37: 146.7 | L37: 16.45 | M37: 188.94 | N37: 134.98 | O37: 205.17 | P37: 86.12 | Q37: 103.16 | R37: 524.65 | S37: 130.09 | T37: 132.74 | U37: 39.54 | V37: 326.93
A38: 37 | B38: 2022-11-21 | C38: 321.49 | D38: 288.16 | E38: 234.69 | F38: 78.96 | G38: 147.1 | H38: 129.52 | I38: 97.57 | J38: 59.38 | K38: 146.5 | L38: 16.34 | M38: 188.81 | N38: 133.49 | O38: 209.06 | P38: 85.15 | Q38: 101.1 | R38: 527.87 | S38: 129.81 | T38: 130.59 | U38: 42.12 | V38: 321.82
A39: 38 | B39: 2022-11-18 | C39: 330.86 | D39: 287.29 | E39: 225.59 | F39: 77.45 | G39: 144.6 | H39: 129.29 | I39: 97.09 | J39: 59.48 | K39: 146.42 | L39: 16.36 | M39: 186.96 | N39: 131.4 | O39: 204.97 | P39: 83.76 | Q39: 99.7 | R39: 520.42 | S39: 128.36 | T39: 130.25 | U39: 42.46 | V39: 313.45
A40: 39 | B40: 2022-11-17 | C40: 337.83 | D40: 287.3 | E40: 219.91 | F40: 77.16 | G40: 142.57 | H40: 127.98 | I40: 95.23 | J40: 59.71 | K40: 145.96 | L40: 15.97 | M40: 183.1 | N40: 128.87 | O40: 207.39 | P40: 83.12 | Q40: 98.96 | R40: 518.85 | S40: 128.02 | T40: 130.2 | U40: 41.84 | V40: 320.55
A41: 40 | B41: 2022-11-16 | C41: 338.41 | D41: 283.77 | E41: 222.08 | F41: 76.15 | G41: 142.96 | H41: 127.84 | I41: 92.8 | J41: 60.37 | K41: 149.27 | L41: 16.09 | M41: 180.64 | N41: 129.01 | O41: 208.72 | P41: 83.65 | Q41: 99.19 | R41: 505.13 | S41: 125.91 | T41: 129.35 | U41: 42.03 | V41: 335.64
A42: 41 | B42: 2022-11-15 | C42: 345.96 | D42: 283.6 | E42: 222.37 | F42: 76.28 | G42: 142.6 | H42: 129.05 | I42: 97.68 | J42: 60.1 | K42: 147.94 | L42: 16.06 | M42: 181.2 | N42: 128.14 | O42: 201.67 | P42: 83.65 | Q42: 98.14 | R42: 500.72 | S42: 123.06 | T42: 128.23 | U42: 41.47 | V42: 337.2
A43: 42 | B43: 2022-11-14 | C43: 340.37 | D43: 285.3 | E43: 224.16 | F43: 76.39 | G43: 141.32 | H43: 127.9 | I43: 97.96 | J43: 60.28 | K43: 150.38 | L43: 15.6 | M43: 177.43 | N43: 127.56 | O43: 199.99 | P43: 82.75 | Q43: 96.92 | R43: 481.74 | S43: 122.98 | T43: 127.14 | U43: 41.88 | V43: 320.35
A44: 43 | B44: 2022-11-11 | C44: 341.15 | D44: 285.02 | E44: 227.67 | F44: 75.96 | G44: 139.99 | H44: 131.59 | I44: 98.26 | J44: 59.6 | K44: 151.03 | L44: 15.49 | M44: 174.49 | N44: 127.45 | O44: 204.46 | P44: 83.77 | Q44: 98.12 | R44: 492.7 | S44: 126.23 | T44: 126.18 | U44: 41.59 | V44: 324.61
A45: 44 | B45: 2022-11-10 | C45: 329.95 | D45: 291.01 | E45: 229.28 | F45: 79.38 | G45: 141.24 | H45: 130.73 | I45: 93.93 | J45: 59.38 | K45: 152.48 | L45: 15.27 | M45: 175.75 | N45: 127.78 | O45: 208.48 | P45: 81.86 | Q45: 99.3 | R45: 531.59 | S45: 129.74 | T45: 131.14 | U45: 42.02 | V45: 309.71
A46: 45 | B46: 2022-11-09 | C46: 298.87 | D46: 289.65 | E46: 218.29 | F46: 79.78 | G46: 133.74 | H46: 127.43 | I46: 90.31 | J46: 56.86 | K46: 145.42 | L46: 14.2 | M46: 172.52 | N46: 123.83 | O46: 203.34 | P46: 79.21 | Q46: 96.23 | R46: 533.14 | S46: 127.7 | T46: 129.69 | U46: 41.55 | V46: 292.02
A47: 46 | B47: 2022-11-08 | C47: 302.17 | D47: 292.39 | E47: 219.49 | F47: 79.98 | G47: 136.49 | H47: 127.94 | I47: 92.5 | J47: 57.96 | K47: 145.83 | L47: 14.43 | M47: 180.94 | N47: 124.58 | O47: 208.76 | P47: 80.7 | Q47: 97.86 | R47: 540.93 | S47: 129.1 | T47: 130.96 | U47: 42 | V47: 296.14
A48: 47 | B48: 2022-11-07 | C48: 299.54 | D48: 277.02 | E48: 220.94 | F48: 79.19 | G48: 135.5 | H48: 127 | I48: 92.06 | J48: 58.89 | K48: 146.14 | L48: 14.13 | M48: 181.85 | N48: 124.32 | O48: 208.6 | P48: 79.94 | Q48: 98.9 | R48: 534.77 | S48: 127.3 | T48: 130.16 | U48: 41.75 | V48: 289.47
A49: 48 | B49: 2022-11-04 | C49: 285.75 | D49: 269.04 | E49: 220.84 | F49: 78.78 | G49: 133.44 | H49: 125.6 | I49: 89.97 | J49: 57.97 | K49: 143.62 | L49: 13.63 | M49: 180.46 | N49: 122.52 | O49: 200.88 | P49: 79.02 | Q49: 97.94 | R49: 522.77 | S49: 126.62 | T49: 127.55 | U49: 41.91 | V49: 287.93
A50: 49 | B50: 2022-11-03 | C50: 285.93 | D50: 265.88 | E50: 221 | F50: 78.48 | G50: 133.91 | H50: 124.84 | I50: 88.47 | J50: 58.04 | K50: 142.98 | L50: 14 | M50: 179.62 | N50: 122.02 | O50: 195.89 | P50: 76.76 | Q50: 91.09 | R50: 525.51 | S50: 127.32 | T50: 127.97 | U50: 42.29 | V50: 292.63
A51: 50 | B51: 2022-11-02 | C51: 301.22 | D51: 269.01 | E51: 228 | F51: 77.45 | G51: 137.73 | H51: 126.13 | I51: 88.17 | J51: 60.98 | K51: 140.48 | L51: 14.73 | M51: 190.64 | N51: 122.27 | O51: 176.44 | P51: 77.23 | Q51: 91.71 | R51: 530.3 | S51: 127.73 | T51: 127.93 | U51: 41.87 | V51: 296.56
A52: 51 | B52: 2022-11-01 | C52: 316.02 | D52: 272.06 | E52: 233.88 | F52: 77.7 | G52: 149.6 | H52: 129.82 | I52: 97.84 | J52: 63.33 | K52: 142.78 | L52: 15.22 | M52: 201.24 | N52: 124.35 | O52: 179.9 | P52: 78.59 | Q52: 94.35 | R52: 535.88 | S52: 129.02 | T52: 132.98 | U52: 42.2 | V52: 314.24
A53: 52 | B53: 2022-10-31 | C53: 318.5 | D53: 270.35 | E53: 235.97 | F53: 77.47 | G53: 150.06 | H53: 129.23 | I53: 97.72 | J53: 64.67 | K53: 143.65 | L53: 14.88 | M53: 199.06 | N53: 124.46 | O53: 180.28 | P53: 78.64 | Q53: 93.72 | R53: 549.01 | S53: 128.4 | T53: 130.07 | U53: 42.08 | V53: 323.33
A54: 53 | B54: 2022-10-28 | C54: 325.68 | D54: 273.81 | E54: 235.26 | F54: 76.83 | G54: 148.9 | H54: 127.83 | I54: 97.8 | J54: 65.01 | K54: 144.59 | L54: 14.94 | M54: 201.73 | N54: 124.28 | O54: 181.15 | P54: 79.2 | Q54: 93.54 | R54: 548.11 | S54: 129.7 | T54: 128.89 | U54: 41.87 | V54: 330.5
A55: 54 | B55: 2022-10-27 | C55: 318.65 | D55: 267.23 | E55: 231.17 | F55: 74.6 | G55: 145 | H55: 127.29 | I55: 96.8 | J55: 63.33 | K55: 142.65 | L55: 14.75 | M55: 196.34 | N55: 121.3 | O55: 178.1 | P55: 77.62 | Q55: 91.73 | R55: 535.51 | S55: 124.38 | T55: 126.36 | U55: 41.02 | V55: 333.53
A56: 55 | B56: 2022-10-26 | C56: 320.48 | D56: 266.66 | E56: 232.88 | F56: 74.45 | G56: 144.33 | H56: 116.49 | I56: 96.5 | J56: 62.69 | K56: 143.51 | L56: 14.96 | M56: 193.25 | N56: 120.21 | O56: 175.08 | P56: 76.4 | Q56: 92.01 | R56: 530.99 | S56: 122.93 | T56: 123.84 | U56: 39.55 | V56: 343.42
A57: 56 | B57: 2022-10-25 | C57: 323.79 | D57: 259.99 | E57: 225.7 | F57: 72.77 | G57: 144.39 | H57: 116.73 | I57: 94.8 | J57: 63.11 | K57: 144.05 | L57: 14.73 | M57: 192.67 | N57: 119.49 | O57: 176.01 | P57: 76.13 | Q57: 91.66 | R57: 526.75 | S57: 122.11 | T57: 123.05 | U57: 35.94 | V57: 346.06
A58: 57 | B58: 2022-10-24 | C58: 316.22 | D58: 261.32 | E58: 225.21 | F58: 72.99 | G58: 142.4 | H58: 114.69 | I58: 94.44 | J58: 61.18 | K58: 138.96 | L58: 14.63 | M58: 189.14 | N58: 115.86 | O58: 174.44 | P58: 74.5 | Q58: 90.11 | R58: 525.96 | S58: 123.26 | T58: 121.92 | U58: 36.28 | V58: 337.98
A59: 58 | B59: 2022-10-21 | C59: 306.37 | D59: 251.94 | E59: 223.6 | F59: 72.21 | G59: 140.99 | H59: 114.31 | I59: 94.08 | J59: 60.93 | K59: 136.75 | L59: 14.39 | M59: 187.32 | N59: 113.96 | O59: 172.04 | P59: 73.84 | Q59: 87.59 | R59: 522.66 | S59: 122.45 | T59: 121.26 | U59: 36.43 | V59: 335.95
A60: 59 | B60: 2022-10-20 | C60: 302.38 | D60: 247.45 | E60: 222.58 | F60: 70.35 | G60: 140.4 | H60: 112.33 | I60: 92.47 | J60: 59.31 | K60: 134.66 | L60: 14.22 | M60: 185.46 | N60: 112.32 | O60: 169.31 | P60: 72.79 | Q60: 87.01 | R60: 512.44 | S60: 118.86 | T60: 112.23 | U60: 35.99 | V60: 334.56
A61: 60 | B61: 2022-10-19 | C61: 299.83 | D61: 248.19 | E61: 225.47 | F61: 71.14 | G61: 143.5 | H61: 111.85 | I61: 93.45 | J61: 59.17 | K61: 126.66 | L61: 14.52 | M61: 187.11 | N61: 114.94 | O61: 168.26 | P61: 74.69 | Q61: 88.24 | R61: 510.91 | S61: 121.2 | T61: 112.53 | U61: 36.88 | V61: 336.37
D151: ='CEM Data Lookup'!$A3 & " US Equity" -> ADBE US Equity
D152: ='CEM Data Lookup'!$A4 & " US Equity" -> AMGN US Equity
D153: ='CEM Data Lookup'!$A5 & " US Equity" -> BDX US Equity
D154: ='CEM Data Lookup'!$A6 & " US Equity" -> BMY US Equity
D155: ='CEM Data Lookup'!$A7 & " US Equity" -> BR US Equity
D156: ='CEM Data Lookup'!$A8 & " US Equity" -> CHKP US Equity
D157: ='CEM Data Lookup'!$A9 & " US Equity" -> CHRW US Equity
D158: ='CEM Data Lookup'!$A10 & " US Equity" -> CSGS US Equity
D159: ='CEM Data Lookup'!$A11 & " US Equity" -> DGX US Equity
D160: ='CEM Data Lookup'!$A12 & " US Equity" -> HTLD US Equity
D161: ='CEM Data Lookup'!$A13 & " US Equity" -> JKHY US Equity
D162: ='CEM Data Lookup'!$A14 & " US Equity" -> KMB US Equity
D163: ='CEM Data Lookup'!$A15 & " US Equity" -> LANC US Equity
D164: ='CEM Data Lookup'!$A16 & " US Equity" -> MKC US Equity
D165: ='CEM Data Lookup'!$A17 & " US Equity" -> MNST US Equity
D166: ='CEM Data Lookup'!$A18 & " US Equity" -> NOC US Equity
D167: ='CEM Data Lookup'!$A19 & " US Equity" -> PGR US Equity
D168: ='CEM Data Lookup'!$A20 & " US Equity" -> RLI US Equity
D169: ='CEM Data Lookup'!$A21 & " US Equity" -> ROL US Equity
D170: ='CEM Data Lookup'!$A22 & " US Equity" -> TYL US Equity

Sheet CEM PricesDivs
A1: =IF('CEM Price Data'!B1="","",'CEM Price Data'!B1) -> PX_LAST | B1: ='CEM Price Data'!C1 -> ADBE US Equity | C1: ='CEM Price Data'!D1 -> AMGN US Equity | D1: ='CEM Price Data'!E1 -> BDX US Equity | E1: ='CEM Price Data'!F1 -> BMY US Equity | F1: ='CEM Price Data'!G1 -> BR US Equity | G1: ='CEM Price Data'!H1 -> CHKP US Equity | H1: ='CEM Price Data'!I1 -> CHRW US Equity | I1: ='CEM Price Data'!J1 -> CSGS US Equity | J1: ='CEM Price Data'!K1 -> DGX US Equity | K1: ='CEM Price Data'!L1 -> HTLD US Equity | L1: ='CEM Price Data'!M1 -> JKHY US Equity | M1: ='CEM Price Data'!N1 -> KMB US Equity | N1: ='CEM Price Data'!O1 -> LANC US Equity | O1: ='CEM Price Data'!P1 -> MKC US Equity | P1: ='CEM Price Data'!Q1 -> MNST US Equity | Q1: ='CEM Price Data'!R1 -> NOC US Equity | R1: ='CEM Price Data'!S1 -> PGR US Equity | S1: ='CEM Price Data'!T1 -> RLI US Equity | T1: ='CEM Price Data'!U1 -> ROL US Equity | U1: ='CEM Price Data'!V1 -> TYL US Equity
A2: ='CEM Price Data'!B2 -> 2023-01-13 | B2: ='CEM Price Data'!C2 -> 344.38 | C2: ='CEM Price Data'!D2 -> 271.73 | D2: ='CEM Price Data'!E2 -> 255.85 | E2: ='CEM Price Data'!F2 -> 72.51 | F2: ='CEM Price Data'!G2 -> 144.11 | G2: ='CEM Price Data'!H2 -> 128.99 | H2: ='CEM Price Data'!I2 -> 93.63 | I2: ='CEM Price Data'!J2 -> 58.39 | J2: ='CEM Price Data'!K2 -> 147.94 | K2: ='CEM Price Data'!L2 -> 16.49 | L2: ='CEM Price Data'!M2 -> 181.76 | M2: ='CEM Price Data'!N2 -> 136.83 | N2: ='CEM Price Data'!O2 -> 198.46 | O2: ='CEM Price Data'!P2 -> 81.1 | P2: ='CEM Price Data'!Q2 -> 102.08 | Q2: ='CEM Price Data'!R2 -> 461.43 | R2: ='CEM Price Data'!S2 -> 133.65 | S2: ='CEM Price Data'!T2 -> 139.64 | T2: ='CEM Price Data'!U2 -> 37.78 | U2: ='CEM Price Data'!V2 -> 316.76
A3: ='CEM Price Data'!B3 -> 2023-01-12 | B3: ='CEM Price Data'!C3 -> 344.54 | C3: ='CEM Price Data'!D3 -> 270.92 | D3: ='CEM Price Data'!E3 -> 254.6 | E3: ='CEM Price Data'!F3 -> 71.6 | F3: ='CEM Price Data'!G3 -> 144.99 | G3: ='CEM Price Data'!H3 -> 126.04 | H3: ='CEM Price Data'!I3 -> 93.5 | I3: ='CEM Price Data'!J3 -> 58.2 | J3: ='CEM Price Data'!K3 -> 148.12 | K3: ='CEM Price Data'!L3 -> 16.39 | L3: ='CEM Price Data'!M3 -> 181.59 | M3: ='CEM Price Data'!N3 -> 136.24 | N3: ='CEM Price Data'!O3 -> 195.86 | O3: ='CEM Price Data'!P3 -> 80.97 | P3: ='CEM Price Data'!Q3 -> 100.04 | Q3: ='CEM Price Data'!R3 -> 487.98 | R3: ='CEM Price Data'!S3 -> 132.94 | S3: ='CEM Price Data'!T3 -> 136.45 | T3: ='CEM Price Data'!U3 -> 37.55 | U3: ='CEM Price Data'!V3 -> 316.56
A4: ='CEM Price Data'!B4 -> 2023-01-11 | B4: ='CEM Price Data'!C4 -> 342.93 | C4: ='CEM Price Data'!D4 -> 272.91 | D4: ='CEM Price Data'!E4 -> 256.15 | E4: ='CEM Price Data'!F4 -> 71.94 | F4: ='CEM Price Data'!G4 -> 143.57 | G4: ='CEM Price Data'!H4 -> 124.92 | H4: ='CEM Price Data'!I4 -> 94.98 | I4: ='CEM Price Data'!J4 -> 57.43 | J4: ='CEM Price Data'!K4 -> 152.84 | K4: ='CEM Price Data'!L4 -> 16.24 | L4: ='CEM Price Data'!M4 -> 181.1 | M4: ='CEM Price Data'!N4 -> 136.31 | N4: ='CEM Price Data'!O4 -> 197.05 | O4: ='CEM Price Data'!P4 -> 83.52 | P4: ='CEM Price Data'!Q4 -> 101.69 | Q4: ='CEM Price Data'!R4 -> 492.93 | R4: ='CEM Price Data'!S4 -> 132.25 | S4: ='CEM Price Data'!T4 -> 136.07 | T4: ='CEM Price Data'!U4 -> 37.72 | U4: ='CEM Price Data'!V4 -> 318.09
A5: ='CEM Price Data'!B5 -> 2023-01-10 | B5: ='CEM Price Data'!C5 -> 338.7 | C5: ='CEM Price Data'!D5 -> 273.88 | D5: ='CEM Price Data'!E5 -> 255.37 | E5: ='CEM Price Data'!F5 -> 71.65 | F5: ='CEM Price Data'!G5 -> 139.03 | G5: ='CEM Price Data'!H5 -> 124.64 | H5: ='CEM Price Data'!I5 -> 92.8 | I5: ='CEM Price Data'!J5 -> 56.98 | J5: ='CEM Price Data'!K5 -> 152.54 | K5: ='CEM Price Data'!L5 -> 15.97 | L5: ='CEM Price Data'!M5 -> 178.37 | M5: ='CEM Price Data'!N5 -> 135.86 | N5: ='CEM Price Data'!O5 -> 198.31 | O5: ='CEM Price Data'!P5 -> 84.37 | P5: ='CEM Price Data'!Q5 -> 100.53 | Q5: ='CEM Price Data'!R5 -> 495.79 | R5: ='CEM Price Data'!S5 -> 133.02 | S5: ='CEM Price Data'!T5 -> 136.38 | T5: ='CEM Price Data'!U5 -> 36.5 | U5: ='CEM Price Data'!V5 -> 313.07
A6: ='CEM Price Data'!B6 -> 2023-01-09 | B6: ='CEM Price Data'!C6 -> 341.98 | C6: ='CEM Price Data'!D6 -> 270.12 | D6: ='CEM Price Data'!E6 -> 252.45 | E6: ='CEM Price Data'!F6 -> 71.01 | F6: ='CEM Price Data'!G6 -> 138.66 | G6: ='CEM Price Data'!H6 -> 125.86 | H6: ='CEM Price Data'!I6 -> 93.36 | I6: ='CEM Price Data'!J6 -> 57.53 | J6: ='CEM Price Data'!K6 -> 152.93 | K6: ='CEM Price Data'!L6 -> 15.98 | L6: ='CEM Price Data'!M6 -> 178.2 | M6: ='CEM Price Data'!N6 -> 137.02 | N6: ='CEM Price Data'!O6 -> 198.31 | O6: ='CEM Price Data'!P6 -> 84.61 | P6: ='CEM Price Data'!Q6 -> 101.15 | Q6: ='CEM Price Data'!R6 -> 495.41 | R6: ='CEM Price Data'!S6 -> 132.01 | S6: ='CEM Price Data'!T6 -> 135.11 | T6: ='CEM Price Data'!U6 -> 36.53 | U6: ='CEM Price Data'!V6 -> 318.99
A7: ='CEM Price Data'!B7 -> 2023-01-06 | B7: ='CEM Price Data'!C7 -> 332.75 | C7: ='CEM Price Data'!D7 -> 275.2 | D7: ='CEM Price Data'!E7 -> 259.34 | E7: ='CEM Price Data'!F7 -> 73 | F7: ='CEM Price Data'!G7 -> 137.1 | G7: ='CEM Price Data'!H7 -> 128.2 | H7: ='CEM Price Data'!I7 -> 93.31 | I7: ='CEM Price Data'!J7 -> 59.09 | J7: ='CEM Price Data'!K7 -> 155.64 | K7: ='CEM Price Data'!L7 -> 15.85 | L7: ='CEM Price Data'!M7 -> 178.3 | M7: ='CEM Price Data'!N7 -> 138.45 | N7: ='CEM Price Data'!O7 -> 201.54 | O7: ='CEM Price Data'!P7 -> 86.3 | P7: ='CEM Price Data'!Q7 -> 102.43 | Q7: ='CEM Price Data'!R7 -> 521.42 | R7: ='CEM Price Data'!S7 -> 134.61 | S7: ='CEM Price Data'!T7 -> 136.96 | T7: ='CEM Price Data'!U7 -> 36.53 | U7: ='CEM Price Data'!V7 -> 310.91
A8: ='CEM Price Data'!B8 -> 2023-01-05 | B8: ='CEM Price Data'!C8 -> 328.44 | C8: ='CEM Price Data'!D8 -> 266.86 | D8: ='CEM Price Data'!E8 -> 255.31 | E8: ='CEM Price Data'!F8 -> 71.92 | F8: ='CEM Price Data'!G8 -> 133.02 | G8: ='CEM Price Data'!H8 -> 126.77 | H8: ='CEM Price Data'!I8 -> 90.01 | I8: ='CEM Price Data'!J8 -> 58.64 | J8: ='CEM Price Data'!K8 -> 154.5 | K8: ='CEM Price Data'!L8 -> 15.41 | L8: ='CEM Price Data'!M8 -> 173.78 | M8: ='CEM Price Data'!N8 -> 135.54 | N8: ='CEM Price Data'!O8 -> 200.02 | O8: ='CEM Price Data'!P8 -> 84.45 | P8: ='CEM Price Data'!Q8 -> 100.38 | Q8: ='CEM Price Data'!R8 -> 528.52 | R8: ='CEM Price Data'!S8 -> 131.53 | S8: ='CEM Price Data'!T8 -> 132.89 | T8: ='CEM Price Data'!U8 -> 36.31 | U8: ='CEM Price Data'!V8 -> 306.52
A9: ='CEM Price Data'!B9 -> 2023-01-04 | B9: ='CEM Price Data'!C9 -> 341.41 | C9: ='CEM Price Data'!D9 -> 264.39 | D9: ='CEM Price Data'!E9 -> 258.09 | E9: ='CEM Price Data'!F9 -> 72.62 | F9: ='CEM Price Data'!G9 -> 136.67 | G9: ='CEM Price Data'!H9 -> 127.2 | H9: ='CEM Price Data'!I9 -> 90.8 | I9: ='CEM Price Data'!J9 -> 58.83 | J9: ='CEM Price Data'!K9 -> 154.58 | K9: ='CEM Price Data'!L9 -> 15.8 | L9: ='CEM Price Data'!M9 -> 177.19 | M9: ='CEM Price Data'!N9 -> 136.81 | N9: ='CEM Price Data'!O9 -> 201.46 | O9: ='CEM Price Data'!P9 -> 84.96 | P9: ='CEM Price Data'!Q9 -> 102.15 | Q9: ='CEM Price Data'!R9 -> 526.45 | R9: ='CEM Price Data'!S9 -> 131.24 | S9: ='CEM Price Data'!T9 -> 132.42 | T9: ='CEM Price Data'!U9 -> 36.94 | U9: ='CEM Price Data'!V9 -> 320.68
A10: ='CEM Price Data'!B10 -> 2023-01-03 | B10: ='CEM Price Data'!C10 -> 336.92 | C10: ='CEM Price Data'!D10 -> 261.65 | D10: ='CEM Price Data'!E10 -> 256.18 | E10: ='CEM Price Data'!F10 -> 72.26 | F10: ='CEM Price Data'!G10 -> 134.56 | G10: ='CEM Price Data'!H10 -> 126.83 | H10: ='CEM Price Data'!I10 -> 90.28 | I10: ='CEM Price Data'!J10 -> 58.26 | J10: ='CEM Price Data'!K10 -> 155.77 | K10: ='CEM Price Data'!L10 -> 15.59 | L10: ='CEM Price Data'!M10 -> 176.1 | M10: ='CEM Price Data'!N10 -> 137.11 | N10: ='CEM Price Data'!O10 -> 201.78 | O10: ='CEM Price Data'!P10 -> 83.47 | P10: ='CEM Price Data'!Q10 -> 101.32 | Q10: ='CEM Price Data'!R10 -> 540.33 | R10: ='CEM Price Data'!S10 -> 130.14 | S10: ='CEM Price Data'!T10 -> 132.48 | T10: ='CEM Price Data'!U10 -> 36.55 | U10: ='CEM Price Data'!V10 -> 319.33
A11: ='CEM Price Data'!B11 -> 2022-12-30 | B11: ='CEM Price Data'!C11 -> 336.53 | C11: ='CEM Price Data'!D11 -> 262.64 | D11: ='CEM Price Data'!E11 -> 254.3 | E11: ='CEM Price Data'!F11 -> 71.95 | F11: ='CEM Price Data'!G11 -> 134.13 | G11: ='CEM Price Data'!H11 -> 126.16 | H11: ='CEM Price Data'!I11 -> 91.56 | I11: ='CEM Price Data'!J11 -> 57.2 | J11: ='CEM Price Data'!K11 -> 156.44 | K11: ='CEM Price Data'!L11 -> 15.34 | L11: ='CEM Price Data'!M11 -> 175.56 | M11: ='CEM Price Data'!N11 -> 135.75 | N11: ='CEM Price Data'!O11 -> 197.3 | O11: ='CEM Price Data'!P11 -> 82.89 | P11: ='CEM Price Data'!Q11 -> 101.53 | Q11: ='CEM Price Data'!R11 -> 545.61 | R11: ='CEM Price Data'!S11 -> 129.71 | S11: ='CEM Price Data'!T11 -> 131.27 | T11: ='CEM Price Data'!U11 -> 36.54 | U11: ='CEM Price Data'!V11 -> 322.41
A12: ='CEM Price Data'!B12 -> 2022-12-29 | B12: ='CEM Price Data'!C12 -> 337.58 | C12: ='CEM Price Data'!D12 -> 263.16 | D12: ='CEM Price Data'!E12 -> 256.9 | E12: ='CEM Price Data'!F12 -> 72.1 | F12: ='CEM Price Data'!G12 -> 136.66 | G12: ='CEM Price Data'!H12 -> 126.1 | H12: ='CEM Price Data'!I12 -> 92.25 | I12: ='CEM Price Data'!J12 -> 57.2 | J12: ='CEM Price Data'!K12 -> 156.79 | K12: ='CEM Price Data'!L12 -> 15.54 | L12: ='CEM Price Data'!M12 -> 177.49 | M12: ='CEM Price Data'!N12 -> 137.24 | N12: ='CEM Price Data'!O12 -> 201.09 | O12: ='CEM Price Data'!P12 -> 84.14 | P12: ='CEM Price Data'!Q12 -> 102.02 | Q12: ='CEM Price Data'!R12 -> 542 | R12: ='CEM Price Data'!S12 -> 130.56 | S12: ='CEM Price Data'!T12 -> 133.72 | T12: ='CEM Price Data'!U12 -> 36.66 | U12: ='CEM Price Data'!V12 -> 325.47
A13: ='CEM Price Data'!B13 -> 2022-12-28 | B13: ='CEM Price Data'!C13 -> 328.33 | C13: ='CEM Price Data'!D13 -> 261.42 | D13: ='CEM Price Data'!E13 -> 253.12 | E13: ='CEM Price Data'!F13 -> 71.99 | F13: ='CEM Price Data'!G13 -> 133.37 | G13: ='CEM Price Data'!H13 -> 124.91 | H13: ='CEM Price Data'!I13 -> 91.12 | I13: ='CEM Price Data'!J13 -> 56.2 | J13: ='CEM Price Data'!K13 -> 156.51 | K13: ='CEM Price Data'!L13 -> 15.34 | L13: ='CEM Price Data'!M13 -> 176.64 | M13: ='CEM Price Data'!N13 -> 136.52 | N13: ='CEM Price Data'!O13 -> 200.55 | O13: ='CEM Price Data'!P13 -> 83.24 | P13: ='CEM Price Data'!Q13 -> 101.32 | Q13: ='CEM Price Data'!R13 -> 540.41 | R13: ='CEM Price Data'!S13 -> 129.72 | S13: ='CEM Price Data'!T13 -> 131.72 | T13: ='CEM Price Data'!U13 -> 36.54 | U13: ='CEM Price Data'!V13 -> 314.91
A14: ='CEM Price Data'!B14 -> 2022-12-27 | B14: ='CEM Price Data'!C14 -> 335.09 | C14: ='CEM Price Data'!D14 -> 263.39 | D14: ='CEM Price Data'!E14 -> 255.3 | E14: ='CEM Price Data'!F14 -> 72.61 | F14: ='CEM Price Data'!G14 -> 135.47 | G14: ='CEM Price Data'!H14 -> 126.23 | H14: ='CEM Price Data'!I14 -> 93.14 | I14: ='CEM Price Data'!J14 -> 57.33 | J14: ='CEM Price Data'!K14 -> 157.28 | K14: ='CEM Price Data'!L14 -> 15.77 | L14: ='CEM Price Data'!M14 -> 178.9 | M14: ='CEM Price Data'!N14 -> 138.38 | N14: ='CEM Price Data'!O14 -> 202.29 | O14: ='CEM Price Data'!P14 -> 84.83 | P14: ='CEM Price Data'!Q14 -> 102.01 | Q14: ='CEM Price Data'!R14 -> 541.19 | R14: ='CEM Price Data'!S14 -> 130.17 | S14: ='CEM Price Data'!T14 -> 133.68 | T14: ='CEM Price Data'!U14 -> 37.02 | U14: ='CEM Price Data'!V14 -> 320.85
A15: ='CEM Price Data'!B15 -> 2022-12-23 | B15: ='CEM Price Data'!C15 -> 338.45 | C15: ='CEM Price Data'!D15 -> 263.92 | D15: ='CEM Price Data'!E15 -> 254.47 | E15: ='CEM Price Data'!F15 -> 72.89 | F15: ='CEM Price Data'!G15 -> 134.48 | G15: ='CEM Price Data'!H15 -> 126.97 | H15: ='CEM Price Data'!I15 -> 93.08 | I15: ='CEM Price Data'!J15 -> 56.82 | J15: ='CEM Price Data'!K15 -> 156.31 | K15: ='CEM Price Data'!L15 -> 15.76 | L15: ='CEM Price Data'!M15 -> 177.34 | M15: ='CEM Price Data'!N15 -> 137.15 | N15: ='CEM Price Data'!O15 -> 200.84 | O15: ='CEM Price Data'!P15 -> 84.22 | P15: ='CEM Price Data'!Q15 -> 101.26 | Q15: ='CEM Price Data'!R15 -> 534.77 | R15: ='CEM Price Data'!S15 -> 129.44 | S15: ='CEM Price Data'!T15 -> 133.69 | T15: ='CEM Price Data'!U15 -> 37.12 | U15: ='CEM Price Data'!V15 -> 320.12
A16: ='CEM Price Data'!B16 -> 2022-12-22 | B16: ='CEM Price Data'!C16 -> 336.52 | C16: ='CEM Price Data'!D16 -> 265.26 | D16: ='CEM Price Data'!E16 -> 253.59 | E16: ='CEM Price Data'!F16 -> 73.83 | F16: ='CEM Price Data'!G16 -> 134.4 | G16: ='CEM Price Data'!H16 -> 126.46 | H16: ='CEM Price Data'!I16 -> 92.46 | I16: ='CEM Price Data'!J16 -> 56.02 | J16: ='CEM Price Data'!K16 -> 155.63 | K16: ='CEM Price Data'!L16 -> 15.72 | L16: ='CEM Price Data'!M16 -> 176.67 | M16: ='CEM Price Data'!N16 -> 137.44 | N16: ='CEM Price Data'!O16 -> 202.31 | O16: ='CEM Price Data'!P16 -> 84.18 | P16: ='CEM Price Data'!Q16 -> 100.81 | Q16: ='CEM Price Data'!R16 -> 531.37 | R16: ='CEM Price Data'!S16 -> 128.6 | S16: ='CEM Price Data'!T16 -> 131.76 | T16: ='CEM Price Data'!U16 -> 36.97 | U16: ='CEM Price Data'!V16 -> 321.83
A17: ='CEM Price Data'!B17 -> 2022-12-21 | B17: ='CEM Price Data'!C17 -> 341.38 | C17: ='CEM Price Data'!D17 -> 266.26 | D17: ='CEM Price Data'!E17 -> 253.36 | E17: ='CEM Price Data'!F17 -> 73.33 | F17: ='CEM Price Data'!G17 -> 136.33 | G17: ='CEM Price Data'!H17 -> 127.6 | H17: ='CEM Price Data'!I17 -> 92.92 | I17: ='CEM Price Data'!J17 -> 56.2 | J17: ='CEM Price Data'!K17 -> 155.3 | K17: ='CEM Price Data'!L17 -> 15.9 | L17: ='CEM Price Data'!M17 -> 178.29 | M17: ='CEM Price Data'!N17 -> 136.96 | N17: ='CEM Price Data'!O17 -> 201.87 | O17: ='CEM Price Data'!P17 -> 84.25 | P17: ='CEM Price Data'!Q17 -> 101.95 | Q17: ='CEM Price Data'!R17 -> 538.79 | R17: ='CEM Price Data'!S17 -> 129.12 | S17: ='CEM Price Data'!T17 -> 132.75 | T17: ='CEM Price Data'!U17 -> 37.39 | U17: ='CEM Price Data'!V17 -> 329.62
A18: ='CEM Price Data'!B18 -> 2022-12-20 | B18: ='CEM Price Data'!C18 -> 338.22 | C18: ='CEM Price Data'!D18 -> 264.75 | D18: ='CEM Price Data'!E18 -> 249.24 | E18: ='CEM Price Data'!F18 -> 72.65 | F18: ='CEM Price Data'!G18 -> 133.41 | G18: ='CEM Price Data'!H18 -> 128.03 | H18: ='CEM Price Data'!I18 -> 92.38 | I18: ='CEM Price Data'!J18 -> 55.46 | J18: ='CEM Price Data'!K18 -> 150.2 | K18: ='CEM Price Data'!L18 -> 15.32 | L18: ='CEM Price Data'!M18 -> 176.47 | M18: ='CEM Price Data'!N18 -> 135.38 | N18: ='CEM Price Data'!O18 -> 198.01 | O18: ='CEM Price Data'!P18 -> 82.99 | P18: ='CEM Price Data'!Q18 -> 101.16 | Q18: ='CEM Price Data'!R18 -> 529.57 | R18: ='CEM Price Data'!S18 -> 127.19 | S18: ='CEM Price Data'!T18 -> 129.8 | T18: ='CEM Price Data'!U18 -> 37.12 | U18: ='CEM Price Data'!V18 -> 319.25
A19: ='CEM Price Data'!B19 -> 2022-12-19 | B19: ='CEM Price Data'!C19 -> 328.76 | C19: ='CEM Price Data'!D19 -> 265.7 | D19: ='CEM Price Data'!E19 -> 248.46 | E19: ='CEM Price Data'!F19 -> 73.16 | F19: ='CEM Price Data'!G19 -> 133.21 | G19: ='CEM Price Data'!H19 -> 127.48 | H19: ='CEM Price Data'!I19 -> 93.51 | I19: ='CEM Price Data'!J19 -> 55.69 | J19: ='CEM Price Data'!K19 -> 151.45 | K19: ='CEM Price Data'!L19 -> 16.03 | L19: ='CEM Price Data'!M19 -> 175.37 | M19: ='CEM Price Data'!N19 -> 135.66 | N19: ='CEM Price Data'!O19 -> 197.98 | O19: ='CEM Price Data'!P19 -> 82.84 | P19: ='CEM Price Data'!Q19 -> 100.42 | Q19: ='CEM Price Data'!R19 -> 532.52 | R19: ='CEM Price Data'!S19 -> 127.07 | S19: ='CEM Price Data'!T19 -> 125.39 | T19: ='CEM Price Data'!U19 -> 36.94 | U19: ='CEM Price Data'!V19 -> 320.05
A20: ='CEM Price Data'!B20 -> 2022-12-16 | B20: ='CEM Price Data'!C20 -> 338.54 | C20: ='CEM Price Data'!D20 -> 267.41 | D20: ='CEM Price Data'!E20 -> 249.51 | E20: ='CEM Price Data'!F20 -> 73.49 | F20: ='CEM Price Data'!G20 -> 133.35 | G20: ='CEM Price Data'!H20 -> 129.05 | H20: ='CEM Price Data'!I20 -> 94.08 | I20: ='CEM Price Data'!J20 -> 55.26 | J20: ='CEM Price Data'!K20 -> 149.24 | K20: ='CEM Price Data'!L20 -> 16.14 | L20: ='CEM Price Data'!M20 -> 177.55 | M20: ='CEM Price Data'!N20 -> 135.32 | N20: ='CEM Price Data'!O20 -> 196.47 | O20: ='CEM Price Data'!P20 -> 83.41 | P20: ='CEM Price Data'!Q20 -> 100.78 | Q20: ='CEM Price Data'!R20 -> 529.87 | R20: ='CEM Price Data'!S20 -> 126.45 | S20: ='CEM Price Data'!T20 -> 126.71 | T20: ='CEM Price Data'!U20 -> 36.76 | U20: ='CEM Price Data'!V20 -> 320.3
A21: ='CEM Price Data'!B21 -> 2022-12-15 | B21: ='CEM Price Data'!C21 -> 328.71 | C21: ='CEM Price Data'!D21 -> 266.14 | D21: ='CEM Price Data'!E21 -> 250.51 | E21: ='CEM Price Data'!F21 -> 75 | F21: ='CEM Price Data'!G21 -> 134.96 | G21: ='CEM Price Data'!H21 -> 129.92 | H21: ='CEM Price Data'!I21 -> 94.76 | I21: ='CEM Price Data'!J21 -> 56.04 | J21: ='CEM Price Data'!K21 -> 149.22 | K21: ='CEM Price Data'!L21 -> 16.37 | L21: ='CEM Price Data'!M21 -> 177.93 | M21: ='CEM Price Data'!N21 -> 136.42 | N21: ='CEM Price Data'!O21 -> 195.4 | O21: ='CEM Price Data'!P21 -> 84.46 | P21: ='CEM Price Data'!Q21 -> 99.65 | Q21: ='CEM Price Data'!R21 -> 528.49 | R21: ='CEM Price Data'!S21 -> 127.66 | S21: ='CEM Price Data'!T21 -> 125.65 | T21: ='CEM Price Data'!U21 -> 37.19 | U21: ='CEM Price Data'!V21 -> 322.82
A22: ='CEM Price Data'!B22 -> 2022-12-14 | B22: ='CEM Price Data'!C22 -> 339.92 | C22: ='CEM Price Data'!D22 -> 271.13 | D22: ='CEM Price Data'!E22 -> 254.04 | E22: ='CEM Price Data'!F22 -> 77.14 | F22: ='CEM Price Data'!G22 -> 140.85 | G22: ='CEM Price Data'!H22 -> 133.12 | H22: ='CEM Price Data'!I22 -> 96.21 | I22: ='CEM Price Data'!J22 -> 56.89 | J22: ='CEM Price Data'!K22 -> 151.11 | K22: ='CEM Price Data'!L22 -> 17.1 | L22: ='CEM Price Data'!M22 -> 180.59 | M22: ='CEM Price Data'!N22 -> 139.1 | N22: ='CEM Price Data'!O22 -> 197.18 | O22: ='CEM Price Data'!P22 -> 86.27 | P22: ='CEM Price Data'!Q22 -> 101.9 | Q22: ='CEM Price Data'!R22 -> 531.78 | R22: ='CEM Price Data'!S22 -> 126.58 | S22: ='CEM Price Data'!T22 -> 127.95 | T22: ='CEM Price Data'!U22 -> 38.13 | U22: ='CEM Price Data'!V22 -> 334.61
A23: ='CEM Price Data'!B23 -> 2022-12-13 | B23: ='CEM Price Data'!C23 -> 342.46 | C23: ='CEM Price Data'!D23 -> 272.26 | D23: ='CEM Price Data'!E23 -> 254.05 | E23: ='CEM Price Data'!F23 -> 77.35 | F23: ='CEM Price Data'!G23 -> 145.2 | G23: ='CEM Price Data'!H23 -> 133.64 | H23: ='CEM Price Data'!I23 -> 95.57 | I23: ='CEM Price Data'!J23 -> 57.97 | J23: ='CEM Price Data'!K23 -> 149.75 | K23: ='CEM Price Data'!L23 -> 16.67 | L23: ='CEM Price Data'!M23 -> 183.08 | M23: ='CEM Price Data'!N23 -> 138.71 | N23: ='CEM Price Data'!O23 -> 198.71 | O23: ='CEM Price Data'!P23 -> 86.6 | P23: ='CEM Price Data'!Q23 -> 100.44 | Q23: ='CEM Price Data'!R23 -> 525.59 | R23: ='CEM Price Data'!S23 -> 128.28 | S23: ='CEM Price Data'!T23 -> 128.97 | T23: ='CEM Price Data'!U23 -> 38.3 | U23: ='CEM Price Data'!V23 -> 334.91
A24: ='CEM Price Data'!B24 -> 2022-12-12 | B24: ='CEM Price Data'!C24 -> 338.17 | C24: ='CEM Price Data'!D24 -> 276.78 | D24: ='CEM Price Data'!E24 -> 254.06 | E24: ='CEM Price Data'!F24 -> 78.89 | F24: ='CEM Price Data'!G24 -> 145.13 | G24: ='CEM Price Data'!H24 -> 132.4 | H24: ='CEM Price Data'!I24 -> 97.63 | I24: ='CEM Price Data'!J24 -> 58.27 | J24: ='CEM Price Data'!K24 -> 149 | K24: ='CEM Price Data'!L24 -> 16.48 | L24: ='CEM Price Data'!M24 -> 182.89 | M24: ='CEM Price Data'!N24 -> 137.96 | N24: ='CEM Price Data'!O24 -> 201.61 | O24: ='CEM Price Data'!P24 -> 85.98 | P24: ='CEM Price Data'!Q24 -> 100.82 | Q24: ='CEM Price Data'!R24 -> 535.18 | R24: ='CEM Price Data'!S24 -> 129.94 | S24: ='CEM Price Data'!T24 -> 128.53 | T24: ='CEM Price Data'!U24 -> 38.34 | U24: ='CEM Price Data'!V24 -> 325.21
A25: ='CEM Price Data'!B25 -> 2022-12-09 | B25: ='CEM Price Data'!C25 -> 330.64 | C25: ='CEM Price Data'!D25 -> 278.65 | D25: ='CEM Price Data'!E25 -> 247.6 | E25: ='CEM Price Data'!F25 -> 78.83 | F25: ='CEM Price Data'!G25 -> 142.11 | G25: ='CEM Price Data'!H25 -> 131.53 | H25: ='CEM Price Data'!I25 -> 95.3 | I25: ='CEM Price Data'!J25 -> 56.52 | J25: ='CEM Price Data'!K25 -> 148.85 | K25: ='CEM Price Data'!L25 -> 16.15 | L25: ='CEM Price Data'!M25 -> 181.54 | M25: ='CEM Price Data'!N25 -> 136.2 | N25: ='CEM Price Data'!O25 -> 200.64 | O25: ='CEM Price Data'!P25 -> 85.28 | P25: ='CEM Price Data'!Q25 -> 100.04 | Q25: ='CEM Price Data'!R25 -> 528.94 | R25: ='CEM Price Data'!S25 -> 129.38 | S25: ='CEM Price Data'!T25 -> 127.28 | T25: ='CEM Price Data'!U25 -> 38.51 | U25: ='CEM Price Data'!V25 -> 323.08
A26: ='CEM Price Data'!B26 -> 2022-12-08 | B26: ='CEM Price Data'!C26 -> 332.58 | C26: ='CEM Price Data'!D26 -> 285.57 | D26: ='CEM Price Data'!E26 -> 247.97 | E26: ='CEM Price Data'!F26 -> 79.88 | F26: ='CEM Price Data'!G26 -> 144.82 | G26: ='CEM Price Data'!H26 -> 131.27 | H26: ='CEM Price Data'!I26 -> 96.08 | I26: ='CEM Price Data'!J26 -> 57.6 | J26: ='CEM Price Data'!K26 -> 150.5 | K26: ='CEM Price Data'!L26 -> 16.03 | L26: ='CEM Price Data'!M26 -> 184.92 | M26: ='CEM Price Data'!N26 -> 136.76 | N26: ='CEM Price Data'!O26 -> 202.49 | O26: ='CEM Price Data'!P26 -> 85.65 | P26: ='CEM Price Data'!Q26 -> 101.54 | Q26: ='CEM Price Data'!R26 -> 540.55 | R26: ='CEM Price Data'!S26 -> 131.18 | S26: ='CEM Price Data'!T26 -> 128.79 | T26: ='CEM Price Data'!U26 -> 39.24 | U26: ='CEM Price Data'!V26 -> 318.44
A27: ='CEM Price Data'!B27 -> 2022-12-07 | B27: ='CEM Price Data'!C27 -> 326.68 | C27: ='CEM Price Data'!D27 -> 285.76 | D27: ='CEM Price Data'!E27 -> 246.48 | E27: ='CEM Price Data'!F27 -> 79.93 | F27: ='CEM Price Data'!G27 -> 142.39 | G27: ='CEM Price Data'!H27 -> 131.52 | H27: ='CEM Price Data'!I27 -> 96.11 | I27: ='CEM Price Data'!J27 -> 57.33 | J27: ='CEM Price Data'!K27 -> 149 | K27: ='CEM Price Data'!L27 -> 16.27 | L27: ='CEM Price Data'!M27 -> 184.78 | M27: ='CEM Price Data'!N27 -> 136.7 | N27: ='CEM Price Data'!O27 -> 202.12 | O27: ='CEM Price Data'!P27 -> 85.35 | P27: ='CEM Price Data'!Q27 -> 101.23 | Q27: ='CEM Price Data'!R27 -> 540.21 | R27: ='CEM Price Data'!S27 -> 130.48 | S27: ='CEM Price Data'!T27 -> 127.86 | T27: ='CEM Price Data'!U27 -> 39.48 | U27: ='CEM Price Data'!V27 -> 308.83
A28: ='CEM Price Data'!B28 -> 2022-12-06 | B28: ='CEM Price Data'!C28 -> 331.15 | C28: ='CEM Price Data'!D28 -> 283.29 | D28: ='CEM Price Data'!E28 -> 244.39 | E28: ='CEM Price Data'!F28 -> 79.92 | F28: ='CEM Price Data'!G28 -> 143.33 | G28: ='CEM Price Data'!H28 -> 131.51 | H28: ='CEM Price Data'!I28 -> 95.39 | I28: ='CEM Price Data'!J28 -> 57.76 | J28: ='CEM Price Data'!K28 -> 148.97 | K28: ='CEM Price Data'!L28 -> 16.33 | L28: ='CEM Price Data'!M28 -> 183.49 | M28: ='CEM Price Data'!N28 -> 136.01 | N28: ='CEM Price Data'!O28 -> 202.97 | O28: ='CEM Price Data'!P28 -> 84.38 | P28: ='CEM Price Data'!Q28 -> 101.44 | Q28: ='CEM Price Data'!R28 -> 531.81 | R28: ='CEM Price Data'!S28 -> 130.97 | S28: ='CEM Price Data'!T28 -> 128.25 | T28: ='CEM Price Data'!U28 -> 39.21 | U28: ='CEM Price Data'!V28 -> 314.07
A29: ='CEM Price Data'!B29 -> 2022-12-05 | B29: ='CEM Price Data'!C29 -> 334.09 | C29: ='CEM Price Data'!D29 -> 284.91 | D29: ='CEM Price Data'!E29 -> 246.21 | E29: ='CEM Price Data'!F29 -> 80.7 | F29: ='CEM Price Data'!G29 -> 144.98 | G29: ='CEM Price Data'!H29 -> 131.66 | H29: ='CEM Price Data'!I29 -> 95.42 | I29: ='CEM Price Data'!J29 -> 58.74 | J29: ='CEM Price Data'!K29 -> 148.92 | K29: ='CEM Price Data'!L29 -> 16.34 | L29: ='CEM Price Data'!M29 -> 188.93 | M29: ='CEM Price Data'!N29 -> 137.17 | N29: ='CEM Price Data'!O29 -> 203.77 | O29: ='CEM Price Data'!P29 -> 84.05 | P29: ='CEM Price Data'!Q29 -> 102.17 | Q29: ='CEM Price Data'!R29 -> 541.43 | R29: ='CEM Price Data'!S29 -> 131.26 | S29: ='CEM Price Data'!T29 -> 129.33 | T29: ='CEM Price Data'!U29 -> 39.6 | U29: ='CEM Price Data'!V29 -> 323.51
A30: ='CEM Price Data'!B30 -> 2022-12-02 | B30: ='CEM Price Data'!C30 -> 341.53 | C30: ='CEM Price Data'!D30 -> 285.51 | D30: ='CEM Price Data'!E30 -> 252.38 | E30: ='CEM Price Data'!F30 -> 81.13 | F30: ='CEM Price Data'!G30 -> 148.99 | G30: ='CEM Price Data'!H30 -> 133.48 | H30: ='CEM Price Data'!I30 -> 96.71 | I30: ='CEM Price Data'!J30 -> 61.51 | J30: ='CEM Price Data'!K30 -> 150.46 | K30: ='CEM Price Data'!L30 -> 16.71 | L30: ='CEM Price Data'!M30 -> 191.6 | M30: ='CEM Price Data'!N30 -> 137.93 | N30: ='CEM Price Data'!O30 -> 203.49 | O30: ='CEM Price Data'!P30 -> 86.38 | P30: ='CEM Price Data'!Q30 -> 104.04 | Q30: ='CEM Price Data'!R30 -> 545.6 | R30: ='CEM Price Data'!S30 -> 132.51 | S30: ='CEM Price Data'!T30 -> 131.85 | T30: ='CEM Price Data'!U30 -> 40.48 | U30: ='CEM Price Data'!V30 -> 342.22
A31: ='CEM Price Data'!B31 -> 2022-12-01 | B31: ='CEM Price Data'!C31 -> 344.11 | C31: ='CEM Price Data'!D31 -> 285.94 | D31: ='CEM Price Data'!E31 -> 250.83 | E31: ='CEM Price Data'!F31 -> 80.88 | F31: ='CEM Price Data'!G31 -> 149.86 | G31: ='CEM Price Data'!H31 -> 134.5 | H31: ='CEM Price Data'!I31 -> 98.77 | I31: ='CEM Price Data'!J31 -> 61.93 | J31: ='CEM Price Data'!K31 -> 152.61 | K31: ='CEM Price Data'!L31 -> 16.61 | L31: ='CEM Price Data'!M31 -> 190.73 | M31: ='CEM Price Data'!N31 -> 136.6 | N31: ='CEM Price Data'!O31 -> 204.33 | O31: ='CEM Price Data'!P31 -> 85.73 | P31: ='CEM Price Data'!Q31 -> 103.25 | Q31: ='CEM Price Data'!R31 -> 530.3 | R31: ='CEM Price Data'!S31 -> 131.26 | S31: ='CEM Price Data'!T31 -> 129.78 | T31: ='CEM Price Data'!U31 -> 40.39 | U31: ='CEM Price Data'!V31 -> 352.23
A32: ='CEM Price Data'!B32 -> 2022-11-30 | B32: ='CEM Price Data'!C32 -> 344.93 | C32: ='CEM Price Data'!D32 -> 286.4 | D32: ='CEM Price Data'!E32 -> 249.34 | E32: ='CEM Price Data'!F32 -> 80.28 | F32: ='CEM Price Data'!G32 -> 149.11 | G32: ='CEM Price Data'!H32 -> 132.83 | H32: ='CEM Price Data'!I32 -> 100.22 | I32: ='CEM Price Data'!J32 -> 61.84 | J32: ='CEM Price Data'!K32 -> 151.83 | K32: ='CEM Price Data'!L32 -> 16.74 | L32: ='CEM Price Data'!M32 -> 189.35 | M32: ='CEM Price Data'!N32 -> 135.63 | N32: ='CEM Price Data'!O32 -> 207.14 | O32: ='CEM Price Data'!P32 -> 85.18 | P32: ='CEM Price Data'!Q32 -> 102.86 | Q32: ='CEM Price Data'!R32 -> 533.29 | R32: ='CEM Price Data'!S32 -> 132.15 | S32: ='CEM Price Data'!T32 -> 130.07 | T32: ='CEM Price Data'!U32 -> 40.44 | U32: ='CEM Price Data'!V32 -> 342.74
A33: ='CEM Price Data'!B33 -> 2022-11-29 | B33: ='CEM Price Data'!C33 -> 326.78 | C33: ='CEM Price Data'!D33 -> 281.99 | D33: ='CEM Price Data'!E33 -> 241.02 | E33: ='CEM Price Data'!F33 -> 79.03 | F33: ='CEM Price Data'!G33 -> 142.82 | G33: ='CEM Price Data'!H33 -> 131.03 | H33: ='CEM Price Data'!I33 -> 97.6 | I33: ='CEM Price Data'!J33 -> 60.5 | J33: ='CEM Price Data'!K33 -> 149.01 | K33: ='CEM Price Data'!L33 -> 16.32 | L33: ='CEM Price Data'!M33 -> 185.9 | M33: ='CEM Price Data'!N33 -> 133.16 | N33: ='CEM Price Data'!O33 -> 203.43 | O33: ='CEM Price Data'!P33 -> 83.75 | P33: ='CEM Price Data'!Q33 -> 99.79 | Q33: ='CEM Price Data'!R33 -> 528.35 | R33: ='CEM Price Data'!S33 -> 131.12 | S33: ='CEM Price Data'!T33 -> 127.49 | T33: ='CEM Price Data'!U33 -> 39.83 | U33: ='CEM Price Data'!V33 -> 324.15
A34: ='CEM Price Data'!B34 -> 2022-11-28 | B34: ='CEM Price Data'!C34 -> 328.97 | C34: ='CEM Price Data'!D34 -> 282.62 | D34: ='CEM Price Data'!E34 -> 237.34 | E34: ='CEM Price Data'!F34 -> 79.14 | F34: ='CEM Price Data'!G34 -> 146.5 | G34: ='CEM Price Data'!H34 -> 130.85 | H34: ='CEM Price Data'!I34 -> 97.67 | I34: ='CEM Price Data'!J34 -> 60.87 | J34: ='CEM Price Data'!K34 -> 149.07 | K34: ='CEM Price Data'!L34 -> 16.32 | L34: ='CEM Price Data'!M34 -> 188.8 | M34: ='CEM Price Data'!N34 -> 133.31 | N34: ='CEM Price Data'!O34 -> 204.49 | O34: ='CEM Price Data'!P34 -> 83.75 | P34: ='CEM Price Data'!Q34 -> 101.88 | Q34: ='CEM Price Data'!R34 -> 524.88 | R34: ='CEM Price Data'!S34 -> 130.02 | S34: ='CEM Price Data'!T34 -> 131.84 | T34: ='CEM Price Data'!U34 -> 39.78 | U34: ='CEM Price Data'!V34 -> 326.73
A35: ='CEM Price Data'!B35 -> 2022-11-25 | B35: ='CEM Price Data'!C35 -> 334.3 | C35: ='CEM Price Data'!D35 -> 283.74 | D35: ='CEM Price Data'!E35 -> 238.06 | E35: ='CEM Price Data'!F35 -> 79.24 | F35: ='CEM Price Data'!G35 -> 148.52 | G35: ='CEM Price Data'!H35 -> 132.41 | H35: ='CEM Price Data'!I35 -> 98.76 | I35: ='CEM Price Data'!J35 -> 61.06 | J35: ='CEM Price Data'!K35 -> 149.06 | K35: ='CEM Price Data'!L35 -> 16.67 | L35: ='CEM Price Data'!M35 -> 191.42 | M35: ='CEM Price Data'!N35 -> 135.03 | N35: ='CEM Price Data'!O35 -> 205.32 | O35: ='CEM Price Data'!P35 -> 84.91 | P35: ='CEM Price Data'!Q35 -> 103.37 | Q35: ='CEM Price Data'!R35 -> 527.83 | R35: ='CEM Price Data'!S35 -> 131.57 | S35: ='CEM Price Data'!T35 -> 133.72 | T35: ='CEM Price Data'!U35 -> 39.99 | U35: ='CEM Price Data'!V35 -> 330.88
A36: ='CEM Price Data'!B36 -> 2022-11-23 | B36: ='CEM Price Data'!C36 -> 335.78 | C36: ='CEM Price Data'!D36 -> 283.4 | D36: ='CEM Price Data'!E36 -> 237.34 | E36: ='CEM Price Data'!F36 -> 79.14 | F36: ='CEM Price Data'!G36 -> 148.43 | G36: ='CEM Price Data'!H36 -> 131.48 | H36: ='CEM Price Data'!I36 -> 98.06 | I36: ='CEM Price Data'!J36 -> 61.31 | J36: ='CEM Price Data'!K36 -> 148.46 | K36: ='CEM Price Data'!L36 -> 16.5 | L36: ='CEM Price Data'!M36 -> 190.06 | M36: ='CEM Price Data'!N36 -> 134 | N36: ='CEM Price Data'!O36 -> 203.58 | O36: ='CEM Price Data'!P36 -> 86.11 | P36: ='CEM Price Data'!Q36 -> 103.93 | Q36: ='CEM Price Data'!R36 -> 522.34 | R36: ='CEM Price Data'!S36 -> 131.09 | S36: ='CEM Price Data'!T36 -> 131.9 | T36: ='CEM Price Data'!U36 -> 39.72 | U36: ='CEM Price Data'!V36 -> 333.04
A37: ='CEM Price Data'!B37 -> 2022-11-22 | B37: ='CEM Price Data'!C37 -> 330.88 | C37: ='CEM Price Data'!D37 -> 287.05 | D37: ='CEM Price Data'!E37 -> 235.61 | E37: ='CEM Price Data'!F37 -> 78.86 | F37: ='CEM Price Data'!G37 -> 148.36 | G37: ='CEM Price Data'!H37 -> 131.55 | H37: ='CEM Price Data'!I37 -> 97.65 | I37: ='CEM Price Data'!J37 -> 61.52 | J37: ='CEM Price Data'!K37 -> 146.7 | K37: ='CEM Price Data'!L37 -> 16.45 | L37: ='CEM Price Data'!M37 -> 188.94 | M37: ='CEM Price Data'!N37 -> 134.98 | N37: ='CEM Price Data'!O37 -> 205.17 | O37: ='CEM Price Data'!P37 -> 86.12 | P37: ='CEM Price Data'!Q37 -> 103.16 | Q37: ='CEM Price Data'!R37 -> 524.65 | R37: ='CEM Price Data'!S37 -> 130.09 | S37: ='CEM Price Data'!T37 -> 132.74 | T37: ='CEM Price Data'!U37 -> 39.54 | U37: ='CEM Price Data'!V37 -> 326.93
A38: ='CEM Price Data'!B38 -> 2022-11-21 | B38: ='CEM Price Data'!C38 -> 321.49 | C38: ='CEM Price Data'!D38 -> 288.16 | D38: ='CEM Price Data'!E38 -> 234.69 | E38: ='CEM Price Data'!F38 -> 78.96 | F38: ='CEM Price Data'!G38 -> 147.1 | G38: ='CEM Price Data'!H38 -> 129.52 | H38: ='CEM Price Data'!I38 -> 97.57 | I38: ='CEM Price Data'!J38 -> 59.38 | J38: ='CEM Price Data'!K38 -> 146.5 | K38: ='CEM Price Data'!L38 -> 16.34 | L38: ='CEM Price Data'!M38 -> 188.81 | M38: ='CEM Price Data'!N38 -> 133.49 | N38: ='CEM Price Data'!O38 -> 209.06 | O38: ='CEM Price Data'!P38 -> 85.15 | P38: ='CEM Price Data'!Q38 -> 101.1 | Q38: ='CEM Price Data'!R38 -> 527.87 | R38: ='CEM Price Data'!S38 -> 129.81 | S38: ='CEM Price Data'!T38 -> 130.59 | T38: ='CEM Price Data'!U38 -> 42.12 | U38: ='CEM Price Data'!V38 -> 321.82
A39: ='CEM Price Data'!B39 -> 2022-11-18 | B39: ='CEM Price Data'!C39 -> 330.86 | C39: ='CEM Price Data'!D39 -> 287.29 | D39: ='CEM Price Data'!E39 -> 225.59 | E39: ='CEM Price Data'!F39 -> 77.45 | F39: ='CEM Price Data'!G39 -> 144.6 | G39: ='CEM Price Data'!H39 -> 129.29 | H39: ='CEM Price Data'!I39 -> 97.09 | I39: ='CEM Price Data'!J39 -> 59.48 | J39: ='CEM Price Data'!K39 -> 146.42 | K39: ='CEM Price Data'!L39 -> 16.36 | L39: ='CEM Price Data'!M39 -> 186.96 | M39: ='CEM Price Data'!N39 -> 131.4 | N39: ='CEM Price Data'!O39 -> 204.97 | O39: ='CEM Price Data'!P39 -> 83.76 | P39: ='CEM Price Data'!Q39 -> 99.7 | Q39: ='CEM Price Data'!R39 -> 520.42 | R39: ='CEM Price Data'!S39 -> 128.36 | S39: ='CEM Price Data'!T39 -> 130.25 | T39: ='CEM Price Data'!U39 -> 42.46 | U39: ='CEM Price Data'!V39 -> 313.45
A40: ='CEM Price Data'!B40 -> 2022-11-17 | B40: ='CEM Price Data'!C40 -> 337.83 | C40: ='CEM Price Data'!D40 -> 287.3 | D40: ='CEM Price Data'!E40 -> 219.91 | E40: ='CEM Price Data'!F40 -> 77.16 | F40: ='CEM Price Data'!G40 -> 142.57 | G40: ='CEM Price Data'!H40 -> 127.98 | H40: ='CEM Price Data'!I40 -> 95.23 | I40: ='CEM Price Data'!J40 -> 59.71 | J40: ='CEM Price Data'!K40 -> 145.96 | K40: ='CEM Price Data'!L40 -> 15.97 | L40: ='CEM Price Data'!M40 -> 183.1 | M40: ='CEM Price Data'!N40 -> 128.87 | N40: ='CEM Price Data'!O40 -> 207.39 | O40: ='CEM Price Data'!P40 -> 83.12 | P40: ='CEM Price Data'!Q40 -> 98.96 | Q40: ='CEM Price Data'!R40 -> 518.85 | R40: ='CEM Price Data'!S40 -> 128.02 | S40: ='CEM Price Data'!T40 -> 130.2 | T40: ='CEM Price Data'!U40 -> 41.84 | U40: ='CEM Price Data'!V40 -> 320.55
A41: ='CEM Price Data'!B41 -> 2022-11-16 | B41: ='CEM Price Data'!C41 -> 338.41 | C41: ='CEM Price Data'!D41 -> 283.77 | D41: ='CEM Price Data'!E41 -> 222.08 | E41: ='CEM Price Data'!F41 -> 76.15 | F41: ='CEM Price Data'!G41 -> 142.96 | G41: ='CEM Price Data'!H41 -> 127.84 | H41: ='CEM Price Data'!I41 -> 92.8 | I41: ='CEM Price Data'!J41 -> 60.37 | J41: ='CEM Price Data'!K41 -> 149.27 | K41: ='CEM Price Data'!L41 -> 16.09 | L41: ='CEM Price Data'!M41 -> 180.64 | M41: ='CEM Price Data'!N41 -> 129.01 | N41: ='CEM Price Data'!O41 -> 208.72 | O41: ='CEM Price Data'!P41 -> 83.65 | P41: ='CEM Price Data'!Q41 -> 99.19 | Q41: ='CEM Price Data'!R41 -> 505.13 | R41: ='CEM Price Data'!S41 -> 125.91 | S41: ='CEM Price Data'!T41 -> 129.35 | T41: ='CEM Price Data'!U41 -> 42.03 | U41: ='CEM Price Data'!V41 -> 335.64
A42: ='CEM Price Data'!B42 -> 2022-11-15 | B42: ='CEM Price Data'!C42 -> 345.96 | C42: ='CEM Price Data'!D42 -> 283.6 | D42: ='CEM Price Data'!E42 -> 222.37 | E42: ='CEM Price Data'!F42 -> 76.28 | F42: ='CEM Price Data'!G42 -> 142.6 | G42: ='CEM Price Data'!H42 -> 129.05 | H42: ='CEM Price Data'!I42 -> 97.68 | I42: ='CEM Price Data'!J42 -> 60.1 | J42: ='CEM Price Data'!K42 -> 147.94 | K42: ='CEM Price Data'!L42 -> 16.06 | L42: ='CEM Price Data'!M42 -> 181.2 | M42: ='CEM Price Data'!N42 -> 128.14 | N42: ='CEM Price Data'!O42 -> 201.67 | O42: ='CEM Price Data'!P42 -> 83.65 | P42: ='CEM Price Data'!Q42 -> 98.14 | Q42: ='CEM Price Data'!R42 -> 500.72 | R42: ='CEM Price Data'!S42 -> 123.06 | S42: ='CEM Price Data'!T42 -> 128.23 | T42: ='CEM Price Data'!U42 -> 41.47 | U42: ='CEM Price Data'!V42 -> 337.2
A43: ='CEM Price Data'!B43 -> 2022-11-14 | B43: ='CEM Price Data'!C43 -> 340.37 | C43: ='CEM Price Data'!D43 -> 285.3 | D43: ='CEM Price Data'!E43 -> 224.16 | E43: ='CEM Price Data'!F43 -> 76.39 | F43: ='CEM Price Data'!G43 -> 141.32 | G43: ='CEM Price Data'!H43 -> 127.9 | H43: ='CEM Price Data'!I43 -> 97.96 | I43: ='CEM Price Data'!J43 -> 60.28 | J43: ='CEM Price Data'!K43 -> 150.38 | K43: ='CEM Price Data'!L43 -> 15.6 | L43: ='CEM Price Data'!M43 -> 177.43 | M43: ='CEM Price Data'!N43 -> 127.56 | N43: ='CEM Price Data'!O43 -> 199.99 | O43: ='CEM Price Data'!P43 -> 82.75 | P43: ='CEM Price Data'!Q43 -> 96.92 | Q43: ='CEM Price Data'!R43 -> 481.74 | R43: ='CEM Price Data'!S43 -> 122.98 | S43: ='CEM Price Data'!T43 -> 127.14 | T43: ='CEM Price Data'!U43 -> 41.88 | U43: ='CEM Price Data'!V43 -> 320.35
A44: ='CEM Price Data'!B44 -> 2022-11-11 | B44: ='CEM Price Data'!C44 -> 341.15 | C44: ='CEM Price Data'!D44 -> 285.02 | D44: ='CEM Price Data'!E44 -> 227.67 | E44: ='CEM Price Data'!F44 -> 75.96 | F44: ='CEM Price Data'!G44 -> 139.99 | G44: ='CEM Price Data'!H44 -> 131.59 | H44: ='CEM Price Data'!I44 -> 98.26 | I44: ='CEM Price Data'!J44 -> 59.6 | J44: ='CEM Price Data'!K44 -> 151.03 | K44: ='CEM Price Data'!L44 -> 15.49 | L44: ='CEM Price Data'!M44 -> 174.49 | M44: ='CEM Price Data'!N44 -> 127.45 | N44: ='CEM Price Data'!O44 -> 204.46 | O44: ='CEM Price Data'!P44 -> 83.77 | P44: ='CEM Price Data'!Q44 -> 98.12 | Q44: ='CEM Price Data'!R44 -> 492.7 | R44: ='CEM Price Data'!S44 -> 126.23 | S44: ='CEM Price Data'!T44 -> 126.18 | T44: ='CEM Price Data'!U44 -> 41.59 | U44: ='CEM Price Data'!V44 -> 324.61
A45: ='CEM Price Data'!B45 -> 2022-11-10 | B45: ='CEM Price Data'!C45 -> 329.95 | C45: ='CEM Price Data'!D45 -> 291.01 | D45: ='CEM Price Data'!E45 -> 229.28 | E45: ='CEM Price Data'!F45 -> 79.38 | F45: ='CEM Price Data'!G45 -> 141.24 | G45: ='CEM Price Data'!H45 -> 130.73 | H45: ='CEM Price Data'!I45 -> 93.93 | I45: ='CEM Price Data'!J45 -> 59.38 | J45: ='CEM Price Data'!K45 -> 152.48 | K45: ='CEM Price Data'!L45 -> 15.27 | L45: ='CEM Price Data'!M45 -> 175.75 | M45: ='CEM Price Data'!N45 -> 127.78 | N45: ='CEM Price Data'!O45 -> 208.48 | O45: ='CEM Price Data'!P45 -> 81.86 | P45: ='CEM Price Data'!Q45 -> 99.3 | Q45: ='CEM Price Data'!R45 -> 531.59 | R45: ='CEM Price Data'!S45 -> 129.74 | S45: ='CEM Price Data'!T45 -> 131.14 | T45: ='CEM Price Data'!U45 -> 42.02 | U45: ='CEM Price Data'!V45 -> 309.71
A46: ='CEM Price Data'!B46 -> 2022-11-09 | B46: ='CEM Price Data'!C46 -> 298.87 | C46: ='CEM Price Data'!D46 -> 289.65 | D46: ='CEM Price Data'!E46 -> 218.29 | E46: ='CEM Price Data'!F46 -> 79.78 | F46: ='CEM Price Data'!G46 -> 133.74 | G46: ='CEM Price Data'!H46 -> 127.43 | H46: ='CEM Price Data'!I46 -> 90.31 | I46: ='CEM Price Data'!J46 -> 56.86 | J46: ='CEM Price Data'!K46 -> 145.42 | K46: ='CEM Price Data'!L46 -> 14.2 | L46: ='CEM Price Data'!M46 -> 172.52 | M46: ='CEM Price Data'!N46 -> 123.83 | N46: ='CEM Price Data'!O46 -> 203.34 | O46: ='CEM Price Data'!P46 -> 79.21 | P46: ='CEM Price Data'!Q46 -> 96.23 | Q46: ='CEM Price Data'!R46 -> 533.14 | R46: ='CEM Price Data'!S46 -> 127.7 | S46: ='CEM Price Data'!T46 -> 129.69 | T46: ='CEM Price Data'!U46 -> 41.55 | U46: ='CEM Price Data'!V46 -> 292.02
A47: ='CEM Price Data'!B47 -> 2022-11-08 | B47: ='CEM Price Data'!C47 -> 302.17 | C47: ='CEM Price Data'!D47 -> 292.39 | D47: ='CEM Price Data'!E47 -> 219.49 | E47: ='CEM Price Data'!F47 -> 79.98 | F47: ='CEM Price Data'!G47 -> 136.49 | G47: ='CEM Price Data'!H47 -> 127.94 | H47: ='CEM Price Data'!I47 -> 92.5 | I47: ='CEM Price Data'!J47 -> 57.96 | J47: ='CEM Price Data'!K47 -> 145.83 | K47: ='CEM Price Data'!L47 -> 14.43 | L47: ='CEM Price Data'!M47 -> 180.94 | M47: ='CEM Price Data'!N47 -> 124.58 | N47: ='CEM Price Data'!O47 -> 208.76 | O47: ='CEM Price Data'!P47 -> 80.7 | P47: ='CEM Price Data'!Q47 -> 97.86 | Q47: ='CEM Price Data'!R47 -> 540.93 | R47: ='CEM Price Data'!S47 -> 129.1 | S47: ='CEM Price Data'!T47 -> 130.96 | T47: ='CEM Price Data'!U47 -> 42 | U47: ='CEM Price Data'!V47 -> 296.14
A48: ='CEM Price Data'!B48 -> 2022-11-07 | B48: ='CEM Price Data'!C48 -> 299.54 | C48: ='CEM Price Data'!D48 -> 277.02 | D48: ='CEM Price Data'!E48 -> 220.94 | E48: ='CEM Price Data'!F48 -> 79.19 | F48: ='CEM Price Data'!G48 -> 135.5 | G48: ='CEM Price Data'!H48 -> 127 | H48: ='CEM Price Data'!I48 -> 92.06 | I48: ='CEM Price Data'!J48 -> 58.89 | J48: ='CEM Price Data'!K48 -> 146.14 | K48: ='CEM Price Data'!L48 -> 14.13 | L48: ='CEM Price Data'!M48 -> 181.85 | M48: ='CEM Price Data'!N48 -> 124.32 | N48: ='CEM Price Data'!O48 -> 208.6 | O48: ='CEM Price Data'!P48 -> 79.94 | P48: ='CEM Price Data'!Q48 -> 98.9 | Q48: ='CEM Price Data'!R48 -> 534.77 | R48: ='CEM Price Data'!S48 -> 127.3 | S48: ='CEM Price Data'!T48 -> 130.16 | T48: ='CEM Price Data'!U48 -> 41.75 | U48: ='CEM Price Data'!V48 -> 289.47
A49: ='CEM Price Data'!B49 -> 2022-11-04 | B49: ='CEM Price Data'!C49 -> 285.75 | C49: ='CEM Price Data'!D49 -> 269.04 | D49: ='CEM Price Data'!E49 -> 220.84 | E49: ='CEM Price Data'!F49 -> 78.78 | F49: ='CEM Price Data'!G49 -> 133.44 | G49: ='CEM Price Data'!H49 -> 125.6 | H49: ='CEM Price Data'!I49 -> 89.97 | I49: ='CEM Price Data'!J49 -> 57.97 | J49: ='CEM Price Data'!K49 -> 143.62 | K49: ='CEM Price Data'!L49 -> 13.63 | L49: ='CEM Price Data'!M49 -> 180.46 | M49: ='CEM Price Data'!N49 -> 122.52 | N49: ='CEM Price Data'!O49 -> 200.88 | O49: ='CEM Price Data'!P49 -> 79.02 | P49: ='CEM Price Data'!Q49 -> 97.94 | Q49: ='CEM Price Data'!R49 -> 522.77 | R49: ='CEM Price Data'!S49 -> 126.62 | S49: ='CEM Price Data'!T49 -> 127.55 | T49: ='CEM Price Data'!U49 -> 41.91 | U49: ='CEM Price Data'!V49 -> 287.93
A50: ='CEM Price Data'!B50 -> 2022-11-03 | B50: ='CEM Price Data'!C50 -> 285.93 | C50: ='CEM Price Data'!D50 -> 265.88 | D50: ='CEM Price Data'!E50 -> 221 | E50: ='CEM Price Data'!F50 -> 78.48 | F50: ='CEM Price Data'!G50 -> 133.91 | G50: ='CEM Price Data'!H50 -> 124.84 | H50: ='CEM Price Data'!I50 -> 88.47 | I50: ='CEM Price Data'!J50 -> 58.04 | J50: ='CEM Price Data'!K50 -> 142.98 | K50: ='CEM Price Data'!L50 -> 14 | L50: ='CEM Price Data'!M50 -> 179.62 | M50: ='CEM Price Data'!N50 -> 122.02 | N50: ='CEM Price Data'!O50 -> 195.89 | O50: ='CEM Price Data'!P50 -> 76.76 | P50: ='CEM Price Data'!Q50 -> 91.09 | Q50: ='CEM Price Data'!R50 -> 525.51 | R50: ='CEM Price Data'!S50 -> 127.32 | S50: ='CEM Price Data'!T50 -> 127.97 | T50: ='CEM Price Data'!U50 -> 42.29 | U50: ='CEM Price Data'!V50 -> 292.63
A51: ='CEM Price Data'!B51 -> 2022-11-02 | B51: ='CEM Price Data'!C51 -> 301.22 | C51: ='CEM Price Data'!D51 -> 269.01 | D51: ='CEM Price Data'!E51 -> 228 | E51: ='CEM Price Data'!F51 -> 77.45 | F51: ='CEM Price Data'!G51 -> 137.73 | G51: ='CEM Price Data'!H51 -> 126.13 | H51: ='CEM Price Data'!I51 -> 88.17 | I51: ='CEM Price Data'!J51 -> 60.98 | J51: ='CEM Price Data'!K51 -> 140.48 | K51: ='CEM Price Data'!L51 -> 14.73 | L51: ='CEM Price Data'!M51 -> 190.64 | M51: ='CEM Price Data'!N51 -> 122.27 | N51: ='CEM Price Data'!O51 -> 176.44 | O51: ='CEM Price Data'!P51 -> 77.23 | P51: ='CEM Price Data'!Q51 -> 91.71 | Q51: ='CEM Price Data'!R51 -> 530.3 | R51: ='CEM Price Data'!S51 -> 127.73 | S51: ='CEM Price Data'!T51 -> 127.93 | T51: ='CEM Price Data'!U51 -> 41.87 | U51: ='CEM Price Data'!V51 -> 296.56
A52: ='CEM Price Data'!B52 -> 2022-11-01 | B52: ='CEM Price Data'!C52 -> 316.02 | C52: ='CEM Price Data'!D52 -> 272.06 | D52: ='CEM Price Data'!E52 -> 233.88 | E52: ='CEM Price Data'!F52 -> 77.7 | F52: ='CEM Price Data'!G52 -> 149.6 | G52: ='CEM Price Data'!H52 -> 129.82 | H52: ='CEM Price Data'!I52 -> 97.84 | I52: ='CEM Price Data'!J52 -> 63.33 | J52: ='CEM Price Data'!K52 -> 142.78 | K52: ='CEM Price Data'!L52 -> 15.22 | L52: ='CEM Price Data'!M52 -> 201.24 | M52: ='CEM Price Data'!N52 -> 124.35 | N52: ='CEM Price Data'!O52 -> 179.9 | O52: ='CEM Price Data'!P52 -> 78.59 | P52: ='CEM Price Data'!Q52 -> 94.35 | Q52: ='CEM Price Data'!R52 -> 535.88 | R52: ='CEM Price Data'!S52 -> 129.02 | S52: ='CEM Price Data'!T52 -> 132.98 | T52: ='CEM Price Data'!U52 -> 42.2 | U52: ='CEM Price Data'!V52 -> 314.24
A53: ='CEM Price Data'!B53 -> 2022-10-31 | B53: ='CEM Price Data'!C53 -> 318.5 | C53: ='CEM Price Data'!D53 -> 270.35 | D53: ='CEM Price Data'!E53 -> 235.97 | E53: ='CEM Price Data'!F53 -> 77.47 | F53: ='CEM Price Data'!G53 -> 150.06 | G53: ='CEM Price Data'!H53 -> 129.23 | H53: ='CEM Price Data'!I53 -> 97.72 | I53: ='CEM Price Data'!J53 -> 64.67 | J53: ='CEM Price Data'!K53 -> 143.65 | K53: ='CEM Price Data'!L53 -> 14.88 | L53: ='CEM Price Data'!M53 -> 199.06 | M53: ='CEM Price Data'!N53 -> 124.46 | N53: ='CEM Price Data'!O53 -> 180.28 | O53: ='CEM Price Data'!P53 -> 78.64 | P53: ='CEM Price Data'!Q53 -> 93.72 | Q53: ='CEM Price Data'!R53 -> 549.01 | R53: ='CEM Price Data'!S53 -> 128.4 | S53: ='CEM Price Data'!T53 -> 130.07 | T53: ='CEM Price Data'!U53 -> 42.08 | U53: ='CEM Price Data'!V53 -> 323.33
A54: ='CEM Price Data'!B54 -> 2022-10-28 | B54: ='CEM Price Data'!C54 -> 325.68 | C54: ='CEM Price Data'!D54 -> 273.81 | D54: ='CEM Price Data'!E54 -> 235.26 | E54: ='CEM Price Data'!F54 -> 76.83 | F54: ='CEM Price Data'!G54 -> 148.9 | G54: ='CEM Price Data'!H54 -> 127.83 | H54: ='CEM Price Data'!I54 -> 97.8 | I54: ='CEM Price Data'!J54 -> 65.01 | J54: ='CEM Price Data'!K54 -> 144.59 | K54: ='CEM Price Data'!L54 -> 14.94 | L54: ='CEM Price Data'!M54 -> 201.73 | M54: ='CEM Price Data'!N54 -> 124.28 | N54: ='CEM Price Data'!O54 -> 181.15 | O54: ='CEM Price Data'!P54 -> 79.2 | P54: ='CEM Price Data'!Q54 -> 93.54 | Q54: ='CEM Price Data'!R54 -> 548.11 | R54: ='CEM Price Data'!S54 -> 129.7 | S54: ='CEM Price Data'!T54 -> 128.89 | T54: ='CEM Price Data'!U54 -> 41.87 | U54: ='CEM Price Data'!V54 -> 330.5
A55: ='CEM Price Data'!B55 -> 2022-10-27 | B55: ='CEM Price Data'!C55 -> 318.65 | C55: ='CEM Price Data'!D55 -> 267.23 | D55: ='CEM Price Data'!E55 -> 231.17 | E55: ='CEM Price Data'!F55 -> 74.6 | F55: ='CEM Price Data'!G55 -> 145 | G55: ='CEM Price Data'!H55 -> 127.29 | H55: ='CEM Price Data'!I55 -> 96.8 | I55: ='CEM Price Data'!J55 -> 63.33 | J55: ='CEM Price Data'!K55 -> 142.65 | K55: ='CEM Price Data'!L55 -> 14.75 | L55: ='CEM Price Data'!M55 -> 196.34 | M55: ='CEM Price Data'!N55 -> 121.3 | N55: ='CEM Price Data'!O55 -> 178.1 | O55: ='CEM Price Data'!P55 -> 77.62 | P55: ='CEM Price Data'!Q55 -> 91.73 | Q55: ='CEM Price Data'!R55 -> 535.51 | R55: ='CEM Price Data'!S55 -> 124.38 | S55: ='CEM Price Data'!T55 -> 126.36 | T55: ='CEM Price Data'!U55 -> 41.02 | U55: ='CEM Price Data'!V55 -> 333.53
A56: ='CEM Price Data'!B56 -> 2022-10-26 | B56: ='CEM Price Data'!C56 -> 320.48 | C56: ='CEM Price Data'!D56 -> 266.66 | D56: ='CEM Price Data'!E56 -> 232.88 | E56: ='CEM Price Data'!F56 -> 74.45 | F56: ='CEM Price Data'!G56 -> 144.33 | G56: ='CEM Price Data'!H56 -> 116.49 | H56: ='CEM Price Data'!I56 -> 96.5 | I56: ='CEM Price Data'!J56 -> 62.69 | J56: ='CEM Price Data'!K56 -> 143.51 | K56: ='CEM Price Data'!L56 -> 14.96 | L56: ='CEM Price Data'!M56 -> 193.25 | M56: ='CEM Price Data'!N56 -> 120.21 | N56: ='CEM Price Data'!O56 -> 175.08 | O56: ='CEM Price Data'!P56 -> 76.4 | P56: ='CEM Price Data'!Q56 -> 92.01 | Q56: ='CEM Price Data'!R56 -> 530.99 | R56: ='CEM Price Data'!S56 -> 122.93 | S56: ='CEM Price Data'!T56 -> 123.84 | T56: ='CEM Price Data'!U56 -> 39.55 | U56: ='CEM Price Data'!V56 -> 343.42
A57: ='CEM Price Data'!B57 -> 2022-10-25 | B57: ='CEM Price Data'!C57 -> 323.79 | C57: ='CEM Price Data'!D57 -> 259.99 | D57: ='CEM Price Data'!E57 -> 225.7 | E57: ='CEM Price Data'!F57 -> 72.77 | F57: ='CEM Price Data'!G57 -> 144.39 | G57: ='CEM Price Data'!H57 -> 116.73 | H57: ='CEM Price Data'!I57 -> 94.8 | I57: ='CEM Price Data'!J57 -> 63.11 | J57: ='CEM Price Data'!K57 -> 144.05 | K57: ='CEM Price Data'!L57 -> 14.73 | L57: ='CEM Price Data'!M57 -> 192.67 | M57: ='CEM Price Data'!N57 -> 119.49 | N57: ='CEM Price Data'!O57 -> 176.01 | O57: ='CEM Price Data'!P57 -> 76.13 | P57: ='CEM Price Data'!Q57 -> 91.66 | Q57: ='CEM Price Data'!R57 -> 526.75 | R57: ='CEM Price Data'!S57 -> 122.11 | S57: ='CEM Price Data'!T57 -> 123.05 | T57: ='CEM Price Data'!U57 -> 35.94 | U57: ='CEM Price Data'!V57 -> 346.06
A58: ='CEM Price Data'!B58 -> 2022-10-24 | B58: ='CEM Price Data'!C58 -> 316.22 | C58: ='CEM Price Data'!D58 -> 261.32 | D58: ='CEM Price Data'!E58 -> 225.21 | E58: ='CEM Price Data'!F58 -> 72.99 | F58: ='CEM Price Data'!G58 -> 142.4 | G58: ='CEM Price Data'!H58 -> 114.69 | H58: ='CEM Price Data'!I58 -> 94.44 | I58: ='CEM Price Data'!J58 -> 61.18 | J58: ='CEM Price Data'!K58 -> 138.96 | K58: ='CEM Price Data'!L58 -> 14.63 | L58: ='CEM Price Data'!M58 -> 189.14 | M58: ='CEM Price Data'!N58 -> 115.86 | N58: ='CEM Price Data'!O58 -> 174.44 | O58: ='CEM Price Data'!P58 -> 74.5 | P58: ='CEM Price Data'!Q58 -> 90.11 | Q58: ='CEM Price Data'!R58 -> 525.96 | R58: ='CEM Price Data'!S58 -> 123.26 | S58: ='CEM Price Data'!T58 -> 121.92 | T58: ='CEM Price Data'!U58 -> 36.28 | U58: ='CEM Price Data'!V58 -> 337.98
A59: ='CEM Price Data'!B59 -> 2022-10-21 | B59: ='CEM Price Data'!C59 -> 306.37 | C59: ='CEM Price Data'!D59 -> 251.94 | D59: ='CEM Price Data'!E59 -> 223.6 | E59: ='CEM Price Data'!F59 -> 72.21 | F59: ='CEM Price Data'!G59 -> 140.99 | G59: ='CEM Price Data'!H59 -> 114.31 | H59: ='CEM Price Data'!I59 -> 94.08 | I59: ='CEM Price Data'!J59 -> 60.93 | J59: ='CEM Price Data'!K59 -> 136.75 | K59: ='CEM Price Data'!L59 -> 14.39 | L59: ='CEM Price Data'!M59 -> 187.32 | M59: ='CEM Price Data'!N59 -> 113.96 | N59: ='CEM Price Data'!O59 -> 172.04 | O59: ='CEM Price Data'!P59 -> 73.84 | P59: ='CEM Price Data'!Q59 -> 87.59 | Q59: ='CEM Price Data'!R59 -> 522.66 | R59: ='CEM Price Data'!S59 -> 122.45 | S59: ='CEM Price Data'!T59 -> 121.26 | T59: ='CEM Price Data'!U59 -> 36.43 | U59: ='CEM Price Data'!V59 -> 335.95
A60: ='CEM Price Data'!B60 -> 2022-10-20 | B60: ='CEM Price Data'!C60 -> 302.38 | C60: ='CEM Price Data'!D60 -> 247.45 | D60: ='CEM Price Data'!E60 -> 222.58 | E60: ='CEM Price Data'!F60 -> 70.35 | F60: ='CEM Price Data'!G60 -> 140.4 | G60: ='CEM Price Data'!H60 -> 112.33 | H60: ='CEM Price Data'!I60 -> 92.47 | I60: ='CEM Price Data'!J60 -> 59.31 | J60: ='CEM Price Data'!K60 -> 134.66 | K60: ='CEM Price Data'!L60 -> 14.22 | L60: ='CEM Price Data'!M60 -> 185.46 | M60: ='CEM Price Data'!N60 -> 112.32 | N60: ='CEM Price Data'!O60 -> 169.31 | O60: ='CEM Price Data'!P60 -> 72.79 | P60: ='CEM Price Data'!Q60 -> 87.01 | Q60: ='CEM Price Data'!R60 -> 512.44 | R60: ='CEM Price Data'!S60 -> 118.86 | S60: ='CEM Price Data'!T60 -> 112.23 | T60: ='CEM Price Data'!U60 -> 35.99 | U60: ='CEM Price Data'!V60 -> 334.56
A61: ='CEM Price Data'!B61 -> 2022-10-19 | B61: ='CEM Price Data'!C61 -> 299.83 | C61: ='CEM Price Data'!D61 -> 248.19 | D61: ='CEM Price Data'!E61 -> 225.47 | E61: ='CEM Price Data'!F61 -> 71.14 | F61: ='CEM Price Data'!G61 -> 143.5 | G61: ='CEM Price Data'!H61 -> 111.85 | H61: ='CEM Price Data'!I61 -> 93.45 | I61: ='CEM Price Data'!J61 -> 59.17 | J61: ='CEM Price Data'!K61 -> 126.66 | K61: ='CEM Price Data'!L61 -> 14.52 | L61: ='CEM Price Data'!M61 -> 187.11 | M61: ='CEM Price Data'!N61 -> 114.94 | N61: ='CEM Price Data'!O61 -> 168.26 | O61: ='CEM Price Data'!P61 -> 74.69 | P61: ='CEM Price Data'!Q61 -> 88.24 | Q61: ='CEM Price Data'!R61 -> 510.91 | R61: ='CEM Price Data'!S61 -> 121.2 | S61: ='CEM Price Data'!T61 -> 112.53 | T61: ='CEM Price Data'!U61 -> 36.88 | U61: ='CEM Price Data'!V61 -> 336.37
A65: Average Price | B65: =IFERROR(ROUND(AVERAGE(B2:B61),2),0) -> 328.51 | C65: =IFERROR(ROUND(AVERAGE(C2:C61),2),0) -> 273.77 | D65: 240.75 | E65: 75.9 | F65: 141.09 | G65: 127.44 | H65: 94.58 | I65: 59.1 | J65: 148.59 | K65: 15.67 | L65: 183.49 | M65: 131.27 | N65: 197.11 | O65: 82.39 | P65: 98.86 | Q65: 525.37 | R65: 128.62 | S65: 129.52 | T65: 39.08 | U65: 321.9
A67: Indicated Dividend | B67: ='CEM Data Lookup'!$I3 -> NA | C67: ='CEM Data Lookup'!$I4 -> 8.52 | D67: ='CEM Data Lookup'!$I5 -> 3.64 | E67: ='CEM Data Lookup'!$I6 -> 2.28 | F67: ='CEM Data Lookup'!$I7 -> 2.9 | G67: ='CEM Data Lookup'!$I8 -> NA | H67: ='CEM Data Lookup'!$I9 -> 2.44 | I67: ='CEM Data Lookup'!$I10 -> 1.06 | J67: ='CEM Data Lookup'!$I11 -> 2.64 | K67: ='CEM Data Lookup'!$I12 -> 0.08 | L67: ='CEM Data Lookup'!$I13 -> 1.96 | M67: ='CEM Data Lookup'!$I14 -> 4.64 | N67: ='CEM Data Lookup'!$I15 -> 3.4 | O67: ='CEM Data Lookup'!$I16 -> 1.56 | P67: ='CEM Data Lookup'!$I17 -> NA | Q67: ='CEM Data Lookup'!$I18 -> 6.92 | R67: ='CEM Data Lookup'!$I19 -> 0.4 | S67: ='CEM Data Lookup'!$I20 -> 1.04 | T67: ='CEM Data Lookup'!$I21 -> 0.52 | U67: ='CEM Data Lookup'!$I22 -> NA
A69: Indicated Dividend Yield | B69: =IFERROR(ROUND(100 * (B67/B65),2),0) -> 0 | C69: =IFERROR(ROUND(100 * (C67/C65),2),0) -> 3.11 | D69: =IFERROR(ROUND(100 * (D67/D65),2),0) -> 1.51 | E69: 3 | F69: 2.06 | G69: 0 | H69: 2.58 | I69: 1.79 | J69: 1.78 | K69: 0.51 | L69: 1.07 | M69: 3.53 | N69: 1.72 | O69: =IFERROR(ROUND(100 * (O67/O65),2),0) -> 1.89 | P69: 0 | Q69: 1.32 | R69: 0.31 | S69: 0.8 | T69: 1.33 | U69: =IFERROR(ROUND(100 * (U67/U65),2),0) -> 0

Sheet MRP WP1
D3: Est. Median Appreciation Potential 3 - 5 Yrs. Hence | G3: Est. Median Annual Appreciation Potential
B4: Date of Value Line Summary & Index | J4: Est. Median Dividend Yield | M4: Est. Median Annual Total Return
B7: 2023-01-13 | D7: 0.65 | G7: =ROUND(((1+D7)^0.25)-1,4) -> 0.1334 | J7: 0.022 | M7: =J7+G7 -> 0.1554
B8: 2023-01-06 | D8: 0.65 | G8: =ROUND(((1+D8)^0.25)-1,4) -> 0.1334 | J8: 0.022 | M8: =J8+G8 -> 0.1554
B9: 2022-12-30 | D9: 0.7 | G9: =ROUND(((1+D9)^0.25)-1,4) -> 0.1419 | J9: 0.023 | M9: =J9+G9 -> 0.1649
B10: 2022-12-23 | D10: 0.6 | G10: =ROUND(((1+D10)^0.25)-1,4) -> 0.1247 | J10: 0.022 | M10: 0.1467
B11: 2022-12-16 | D11: 0.6 | G11: =ROUND(((1+D11)^0.25)-1,4) -> 0.1247 | J11: 0.021 | M11: 0.1457
B12: 2022-12-09 | D12: 0.65 | G12: =ROUND(((1+D12)^0.25)-1,4) -> 0.1334 | J12: 0.021 | M12: 0.1544
B13: 2022-12-02 | D13: 0.65 | G13: 0.1334 | J13: 0.021 | M13: 0.1544
B14: 2022-11-25 | D14: 0.65 | G14: 0.1334 | J14: 0.021 | M14: 0.1544
B15: 2022-11-18 | D15: 0.7 | G15: 0.1419 | J15: 0.022 | M15: 0.1639
B16: 2022-11-11 | D16: 0.7 | G16: =ROUND(((1+D16)^0.25)-1,4) -> 0.1419 | J16: 0.022 | M16: 0.1639
B17: 2022-11-04 | D17: 0.75 | G17: =ROUND(((1+D17)^0.25)-1,4) -> 0.1502 | J17: 0.023 | M17: 0.1732
B18: 2022-10-28 | D18: 0.8 | G18: 0.1583 | J18: 0.023 | M18: 0.1813
B19: 2022-10-21 | D19: 0.8 | G19: 0.1583 | J19: 0.024 | M19: =J19+G19 -> 0.1823
B22: Average | D22: =ROUND(AVERAGE(D7:D19),2) -> 0.68 | G22: =ROUND(((1+D22)^0.25)-1,4) -> 0.1385 | J22: =ROUND(AVERAGE(J7:J19),4) -> 0.0221 | M22: =J22+G22 -> 0.1606
B25: Blue Chip Financial Forecasts
B26: Consensus Forecast Yield for 30-year Treasury Bonds
M27: Aaa Bonds | O27: Baa Bonds
B28: First Quarter 2023 | F28: 4 | K28: =B28 -> First Quarter 2023 | M28: 5.1 | O28: 6.1
B29: Second Quarter 2023 | F29: 4 | K29: =B29 -> Second Quarter 2023 | M29: 5.2 | O29: 6.3
B30: Third Quarter 2023 | F30: 3.9 | K30: Third Quarter 2023 | M30: 5.2 | O30: 6.2
B31: Fourth Quarter 2023 | F31: 3.9 | K31: Fourth Quarter 2023 | M31: 5.1 | O31: 6.1
B32: First Quarter 2024 | F32: 3.8 | K32: First Quarter 2024 | M32: 4.9 | O32: 5.9
B33: Second Quarter 2024 | F33: 3.8 | H33: Projected | K33: Second Quarter 2024 | M33: 4.8 | O33: 5.8
B34: 2024-2028 | F34: 3.9 | H34: Market | K34: 2024-2028 | M34: 5 | O34: 6
B35: 2029-2033 | F35: 4 | H35: Risk Premium | K35: 2029-2033 | M35: 5.1 | O35: 6
B37: Average | F37: =ROUND(AVERAGE(F28:F35),2) -> 3.91 | G37: % | H37: =($M$22*100)-$F$37 -> 12.15 | I37: % | M37: =ROUND(AVERAGE(M28:M35),2) -> 5.05 | O37: =ROUND(AVERAGE(O28:O35),2) -> 6.05
B41: Total Projected Return on S&P 500
B42: Based on Value Line | H42: =ROUND(('MRP WP3'!H504*100)-'MRP WP1'!F37,2) -> 11.61
B44: Average of Value Line MRPs: | H44: =AVERAGE(H37,H42) -> 11.88
B46: Kroll-Based MRPs:
B48: PRPM Results | H48: ='PRPM WP1'!H1178*100 -> 10.86249942
B50: SBBI Common Stocks Total Return -
B51: 1926 - 2021 | H51: =Input!F21 -> 12.37 | I51: %
B52: SBBI Long-Term Gov't Bonds Income
B53: Return 1926 - 2021 | H53: =Input!F22 -> 5.02
B55: Historical Market Risk Premium | H55: =H51-H53 -> 7.35 | I55: %
B57: Regression analysis on SBBI data 1926-2021 | H57: ='MRP ERP WP'!AA42*100 -> 8.706891653
B59: Average of Kroll-Based MRPs: | H59: =AVERAGE(H57,H55,H48) -> 8.973130357
B61: Total Projected Return on S&P 500
B62: Based on Bloomberg | H62: ='MRP WP2'!Q504*100-F37 -> 7.315495542
B65: Average of Hist'l & Proj'd Market
B66: Risk Premium | H66: =AVERAGE(H37,H42,H48,H55,H57,H62) -> 9.665814436 | I66: %
B76: Source of Information: | C76: Value Line Investment Survey
C77: ="Blue Chip Financial Forecasts "&Input!I25 -> Blue Chip Financial Forecasts December 2, 2022 and January 1, 2023
C78: Stocks, Bonds, Bills, and Inflation - 2022 SBBI Yearbook, Appendix A Tables, Kroll
C79: Value Line Summary and Index
B80: Proxy Group | C80: VL Beta | D80: CEM Group | E80: VL Beta
B81: =Input!A2 -> AWR | C81: 0.65 | D81: =Input!C2 -> ADBE | E81: 0.85
B82: =Input!A3 -> AWK | C82: 0.9 | D82: =Input!C3 -> AMGN | E82: 0.7
B83: =Input!A4 -> CWT | C83: 0.7 | D83: =Input!C4 -> BDX | E83: 0.75
B84: =Input!A5 -> WTRG | C84: 0.95 | D84: =Input!C5 -> BMY | E84: 0.8
B85: =Input!A6 -> MSEX | C85: 0.7 | D85: =Input!C6 -> BR | E85: 0.9
B86: =Input!A7 -> SJW | C86: 0.8 | D86: =Input!C7 -> CHKP | E86: 0.75
D87: =Input!C8 -> CHRW | E87: 0.75
D88: =Input!C9 -> CSGS | E88: 0.75
D89: =Input!C10 -> DGX | E89: 0.8
D90: =Input!C11 -> HTLD | E90: 0.7
D91: =Input!C12 -> JKHY | E91: 0.85
D92: =Input!C13 -> KMB | E92: 0.7
D93: =Input!C14 -> LANC | E93: 0.65
D94: =Input!C15 -> MKC | E94: 0.75
D95: =Input!C16 -> MNST | E95: 0.85
D96: =Input!C17 -> NOC | E96: 0.8
D97: =Input!C18 -> PGR | E97: 0.75
D98: =Input!C19 -> RLI | E98: 0.8
D99: =Input!C20 -> ROL | E99: 0.85
D100: =Input!C21 -> TYL | E100: 0.85

Sheet MRP WP2
A1: Date: | B1: =Input!E2 -> 2023-01-13
B2: NAME | C2: TICKER | D2: CUR_MKT_CAP | E2: EQY_DVD_YLD_EST | F2: BEST_EST_LONG_TERM_GROWTH | G2: EQY_SH_OUT | H2: PX_LAST | J2: Company | K2: Ticker | L2: Market Capitalization | M2: Estimated Dividend Yield | N2: Long-Term Growth Est. | O2: DCF Result | P2: Weight in Index | Q2: Weighted DCF Result
A3: A UN Equity | B3: Agilent Technologies Inc | C3: A | D3: 4.645962452e+10 | E3: 0.5665307163 | F3: 10 | G3: 296.072 | H3: 156.92 | J3: =B3 -> Agilent Technologies Inc | K3: =C3 -> A | L3: =D3/1000000 -> 46459.62452 | M3: =IFERROR(E3/100,"0.00%") -> 0.005665307163 | N3: =IFERROR(F3/100,"N/A") -> 0.1 | O3: =IFERROR(M3*(1+0.5*N3)+N3,"N/A") -> 0.1059485725 | P3: =IF(N3="N/A","N/A",L3/$L$504) -> 0.001367640489 | Q3: =IF(AND(ISNUMBER(L3),ISNUMBER(O3)),O3*P3,"N/A") -> 0.0001448995575
A4: AAL UW Equity | B4: American Airlines Group Inc | C4: AAL | D4: 1.10613131e+10 | E4: 0 | F4: 6.12 | G4: 649.9009 | H4: 17.02 | J4: =B4 -> American Airlines Group Inc | K4: AAL | L4: =D4/1000000 -> 11061.3131 | M4: =IFERROR(E4/100,"0.00%") -> 0 | N4: =IFERROR(F4/100,"N/A") -> 0.0612 | O4: =IFERROR(M4*(1+0.5*N4)+N4,"N/A") -> 0.0612 | P4: =IF(N4="N/A","N/A",L4/$L$504) -> 0.0003256139025 | Q4: =IF(AND(ISNUMBER(L4),ISNUMBER(O4)),O4*P4,"N/A") -> 1.992757083e-05
A5: AAP UN Equity | B5: Advance Auto Parts Inc | C5: AAP | D5: 8949088727 | E5: 3.711183209 | F5: 12.525 | G5: 59.25372 | H5: 151.03 | J5: Advance Auto Parts Inc | K5: AAP | L5: 8949.088727 | M5: 0.03711183209 | N5: 0.12525 | O5: 0.1646859606 | P5: 0.0002634359663 | Q5: 4.338420516e-05
A6: AAPL UW Equity | B6: Apple Inc | C6: AAPL | D6: 2.134088064e+12 | E6: 0.7287028792 | F6: 13 | G6: 15836.21 | H6: 134.76 | J6: Apple Inc | K6: AAPL | L6: 2134088.064 | M6: 0.007287028792 | N6: 0.13 | O6: 0.1377606857 | P6: 0.06282154177 | Q6: 0.008654338669
A7: ABBV UN Equity | B7: AbbVie Inc | C7: ABBV | D7: 2.71638606e+11 | E7: 3.682942708 | F7: -1.9 | G7: 1768.481 | H7: 153.6 | J7: AbbVie Inc | K7: ABBV | L7: 271638.606 | M7: 0.03682942708 | N7: -0.019 | O7: 0.01747954753 | P7: 0.00799627547 | Q7: 0.0001397712771
A8: ABC UN Equity | B8: AmerisourceBergen Corp | C8: ABC | D8: 3.339647627e+10 | E8: 1.186997809 | F8: 8.63 | G8: 203.29 | H8: 164.28 | J8: AmerisourceBergen Corp | K8: ABC | L8: 33396.47627 | M8: 0.01186997809 | N8: 0.0863 | O8: 0.09868216764 | P8: 0.0009830981976 | Q8: 9.701426115e-05
A9: ABT UN Equity | B9: Abbott Laboratories | C9: ABT | D9: 1.979130594e+11 | E9: 1.652717822 | F9: 3.59 | G9: 1743.574 | H9: 113.51 | J9: Abbott Laboratories | K9: ABT | L9: 197913.0594 | M9: 0.01652717822 | N9: 0.0359 | O9: 0.05272384107 | P9: 0.005826003032 | Q9: 0.0003071692579
A10: ACGL UW Equity | B10: Arch Capital Group Ltd | C10: ACGL | D10: 2.35831042e+10 | E10: #N/A N/A | F10: 15.5 | G10: 369.873 | H10: 63.76 | J10: Arch Capital Group Ltd | K10: ACGL | L10: 23583.1042 | M10: 0.00% | N10: 0.155 | O10: 0.155 | P10: 0.000694220164 | Q10: 0.0001076041254
A11: ACN UN Equity | B11: Accenture PLC | C11: ACN | D11: 1.860284831e+11 | E11: 1.528319274 | F11: 9.2 | G11: 658.3885 | H11: 282.14 | J11: Accenture PLC | K11: ACN | L11: 186028.4831 | M11: 0.01528319274 | N11: 0.092 | O11: 0.1079862196 | P11: 0.005476154578 | Q11: 0.0005913492309
A12: ADBE UW Equity | B12: Adobe Inc | C12: ADBE | D12: 160102262000 | E12: 0 | F12: 14.275 | G12: 464.9 | H12: 344.38 | J12: Adobe Inc | K12: ADBE | L12: 160102.262 | M12: 0 | N12: 0.14275 | O12: 0.14275 | P12: 0.004712959653 | Q12: 0.0006727749904
A13: ADI UW Equity | B13: Analog Devices Inc | C13: ADI | D13: 8.606082811e+10 | E13: 1.958811694 | F13: 9.45 | G13: 509.2959 | H13: 168.98 | J13: Analog Devices Inc | K13: ADI | L13: 86060.82811 | M13: 0.01958811694 | N13: 0.0945 | O13: 0.1150136555 | P13: 0.002533388382 | Q13: 0.0002913742586
A14: ADM UN Equity | B14: Archer-Daniels-Midland Co | C14: ADM | D14: 4.856114567e+10 | E14: 1.798642534 | F14: 6.39 | G14: 549.3342 | H14: 88.4 | J14: Archer-Daniels-Midland Co | K14: ADM | L14: 48561.14567 | M14: 0.01798642534 | N14: 0.0639 | O14: 0.08246109163 | P14: 0.001429503352 | Q14: 0.0001178784069
A15: ADP UW Equity | B15: Automatic Data Processing Inc | C15: ADP | D15: 1.017821414e+11 | E15: 1.764346267 | F15: 13.4 | G15: 414.8278 | H15: 245.36 | J15: Automatic Data Processing Inc | K15: ADP | L15: 101782.1414 | M15: 0.01764346267 | N15: 0.134 | O15: 0.1528255747 | P15: 0.002996179565 | Q15: 0.0004578928639
A16: ADSK UW Equity | B16: Autodesk Inc | C16: ADSK | D16: 4.328080162e+10 | E16: 0 | F16: 18.83 | G16: 215.7675 | H16: 200.59 | J16: Autodesk Inc | K16: ADSK | L16: 43280.80162 | M16: 0 | N16: 0.1883 | O16: 0.1883 | P16: 0.001274064896 | Q16: 0.0002399064199
A17: AEE UN Equity | B17: Ameren Corp | C17: AEE | D17: 2.329211004e+10 | E17: 2.610094287 | F17: 7.355 | G17: 258.3706 | H17: 90.15 | J17: Ameren Corp | K17: AEE | L17: 23292.11004 | M17: 0.02610094287 | N17: 0.07355 | O17: 0.100610805 | P17: 0.0006856541155 | Q17: 6.898421255e-05
A18: AEP UW Equity | B18: American Electric Power Co Inc | C18: AEP | D18: 4.873483122e+10 | E18: 3.334036272 | F18: 6.13 | G18: 513.8637 | H18: 94.84 | J18: American Electric Power Co Inc | K18: AEP | L18: 48734.83122 | M18: 0.03334036272 | N18: 0.0613 | O18: 0.09566224483 | P18: 0.001434616166 | Q18: 0.0001372386029
A19: AES UN Equity | B19: AES Corp/The | C19: AES | D19: 1.860908082e+10 | E19: 2.272074659 | F19: 8.38 | G19: 667.9498 | H19: 27.86 | J19: AES Corp/The | K19: AES | L19: 18609.08082 | M19: 0.02272074659 | N19: 0.0838 | O19: 0.1074727459 | P19: 0.0005477989253 | Q19: 5.887345468e-05
A20: AFL UN Equity | B20: Aflac Inc | C20: AFL | D20: 4.52972966e+10 | E20: 2.185312286 | F20: #N/A N/A | G20: 621.7886 | H20: 72.85 | J20: Aflac Inc | K20: AFL | L20: 45297.2966 | M20: 0.02185312286 | N20: N/A | O20: N/A | P20: N/A | Q20: N/A
A21: AIG UN Equity | B21: American International Group Inc | C21: AIG | D21: 4.785534244e+10 | E21: 1.990374166 | F21: 8.25 | G21: 742.98 | H21: 64.41 | J21: American International Group Inc | K21: AIG | L21: 47855.34244 | M21: 0.01990374166 | N21: 0.0825 | O21: 0.103224771 | P21: 0.001408726493 | Q21: 0.0001454154697
A22: AIZ UN Equity | B22: Assurant Inc | C22: AIZ | D22: 6802046484 | E22: 2.129708738 | F22: 12.67 | G22: 52.83143 | H22: 128.75 | J22: Assurant Inc | K22: AIZ | L22: 6802.046484 | M22: 0.02129708738 | N22: 0.1267 | O22: 0.1493462579 | P22: 0.00020023309 | Q22: 2.990406269e-05
A23: AJG UN Equity | B23: Arthur J Gallagher & Co | C23: AJG | D23: 4.1440602e+10 | E23: 1.036377512 | F23: 12.08 | G23: 210.84 | H23: 196.55 | J23: Arthur J Gallagher & Co | K23: AJG | L23: 41440.602 | M23: 0.01036377512 | N23: 0.1208 | O23: 0.1317897471 | P23: 0.001219894602 | Q23: 0.0001607696012
A24: AKAM UW Equity | B24: Akamai Technologies Inc | C24: AKAM | D24: 1.39473913e+10 | E24: 0 | F24: 12 | G24: 157.2423 | H24: 88.7 | J24: Akamai Technologies Inc | K24: AKAM | L24: 13947.3913 | M24: 0 | N24: 0.12 | O24: 0.12 | P24: 0.000410571916 | Q24: 4.926862991e-05
A25: ALB UN Equity | B25: Albemarle Corp | C25: ALB | D25: 2.837792129e+10 | E25: 0.6522726334 | F25: 67.48 | G25: 117.1528 | H25: 242.23 | J25: Albemarle Corp | K25: ALB | L25: 28377.92129 | M25: 0.006522726334 | N25: 0.6748 | O25: 0.6835234942 | P25: 0.0008353660741 | Q25: 0.0005709923379
A26: ALGN UW Equity | B26: Align Technology Inc | C26: ALGN | D26: 1.872821728e+10 | E26: #N/A N/A | F26: 3.24 | G26: 78.11235 | H26: 239.76 | J26: Align Technology Inc | K26: ALGN | L26: 18728.21728 | M26: 0.00% | N26: 0.0324 | O26: 0.0324 | P26: 0.0005513059671 | Q26: 1.786231333e-05
A27: ALK UN Equity | B27: Alaska Air Group Inc | C27: ALK | D27: 6378674521 | E27: 0.1511234838 | F27: 74.06 | G27: 126.8378 | H27: 50.29 | J27: Alaska Air Group Inc | K27: ALK | L27: 6378.674521 | M27: 0.001511234838 | N27: 0.7406 | O27: 0.7426708451 | P27: 0.0001877702119 | Q27: 0.0001394514619
A28: ALL UN Equity | B28: Allstate Corp/The | C28: ALL | D28: 3.68561745e+10 | E28: 2.413470533 | F28: 1.995 | G28: 265.2096 | H28: 138.97 | J28: Allstate Corp/The | K28: ALL | L28: 36856.1745 | M28: 0.02413470533 | N28: 0.01995 | O28: 0.04432544902 | P28: 0.001084941969 | Q28: 4.809053993e-05
A29: ALLE UN Equity | B29: Allegion plc | C29: ALLE | D29: 9993226951 | E29: 1.423171589 | F29: 8.65 | G29: 87.84482 | H29: 113.76 | J29: Allegion plc | K29: ALLE | L29: 9993.226951 | M29: 0.01423171589 | N29: 0.0865 | O29: 0.1013472376 | P29: 0.0002941724547 | Q29: 2.981356567e-05
A30: AMAT UW Equity | B30: Applied Materials Inc | C30: AMAT | D30: 9.283004523e+10 | E30: 0.9848140402 | F30: 2.365 | G30: 844.1397 | H30: 109.97 | J30: Applied Materials Inc | K30: AMAT | L30: 92830.04523 | M30: 0.009848140402 | N30: 0.02365 | O30: 0.03361459466 | P30: 0.002732655068 | Q30: 9.185709248e-05
A31: AMCR UN Equity | B31: Amcor PLC | C31: AMCR | D31: 1.806180721e+10 | E31: 4.023083265 | F31: 3.58 | G31: 1489.02 | H31: 12.13 | J31: Amcor PLC | K31: AMCR | L31: 18061.80721 | M31: 0.04023083265 | N31: 0.0358 | O31: 0.07675096455 | P31: 0.0005316887319 | Q31: 4.080762301e-05
A32: AMD UW Equity | B32: Advanced Micro Devices Inc | C32: AMD | D32: 114477287502 | E32: 0 | F32: 28.207 | G32: 1612.356 | H32: 71 | J32: Advanced Micro Devices Inc | K32: AMD | L32: 114477.2875 | M32: 0 | N32: 0.28207 | O32: 0.28207 | P32: 0.00336988891 | Q32: 0.0009505445648
A33: AME UN Equity | B33: AMETEK Inc | C33: AME | D33: 3.355939703e+10 | E33: 0.6035721618 | F33: 9.91 | G33: 229.6544 | H33: 146.13 | J33: AMETEK Inc | K33: AME | L33: 33559.39703 | M33: 0.006035721618 | N33: 0.0991 | O33: 0.1054347916 | P33: 0.000987894126 | Q33: 0.0001041584113
A34: AMGN UW Equity | B34: Amgen Inc | C34: AMGN | D34: 1.449894776e+11 | E34: 2.823758878 | F34: 7 | G34: 533.5792 | H34: 271.73 | J34: Amgen Inc | K34: AMGN | L34: 144989.4776 | M34: 0.02823758878 | N34: 0.07 | O34: 0.09922590439 | P34: 0.004268081848 | Q34: 0.0004235042813
A35: AMP UN Equity | B35: Ameriprise Financial Inc | C35: AMP | D35: 3.545608236e+10 | E35: 1.473077616 | F35: 12.805 | G35: 106.4172 | H35: 333.18 | J35: Ameriprise Financial Inc | K35: AMP | L35: 35456.08236 | M35: 0.01473077616 | N35: 0.12805 | O35: 0.1437239141 | P35: 0.0010437272 | Q35: 0.0001500085584
A36: AMT UN Equity | B36: American Tower Corp | C36: AMT | D36: 1.083976404e+11 | E36: 2.510201452 | F36: 11.41 | G36: 465.6056 | H36: 232.81 | J36: American Tower Corp | K36: AMT | L36: 108397.6404 | M36: 0.02510201452 | N36: 0.1141 | O36: 0.1406340844 | P36: 0.003190921224 | Q36: 0.0004487522849
A37: AMZN UW Equity | B37: Amazon.com Inc | C37: AMZN | D37: 1.000986308e+12 | E37: 0 | F37: -2.68 | G37: 10201.65 | H37: 98.12 | J37: Amazon.com Inc | K37: AMZN | L37: 1000986.308 | M37: 0 | N37: -0.0268 | O37: -0.0268 | P37: 0.02946621754 | Q37: -0.0007896946302
A38: ANET UN Equity | B38: Arista Networks Inc | C38: ANET | D38: 35140850840 | E38: 0 | F38: 29.235 | G38: 305.5726 | H38: 115 | J38: Arista Networks Inc | K38: ANET | L38: 35140.85084 | M38: 0 | N38: 0.29235 | O38: 0.29235 | P38: 0.001034447672 | Q38: 0.0003024207768
A39: ANSS UW Equity | B39: ANSYS Inc | C39: ANSS | D39: 2.213521891e+10 | E39: 0 | F39: 7.94 | G39: 87.11224 | H39: 254.1 | J39: ANSYS Inc | K39: ANSS | L39: 22135.21891 | M39: 0 | N39: 0.0794 | O39: 0.0794 | P39: 0.0006515984992 | Q39: 5.173692084e-05
A40: AON UN Equity | B40: Aon PLC | C40: AON | D40: 6.560754571e+10 | E40: 0.6876438503 | F40: 11.44 | G40: 206.8529 | H40: 317.17 | J40: Aon PLC | K40: AON | L40: 65607.54571 | M40: 0.006876438503 | N40: 0.1144 | O40: 0.1216697708 | P40: 0.001931301357 | Q40: 0.0002349809934
A41: AOS UN Equity | B41: A O Smith Corp | C41: AOS | D41: 9491943493 | E41: 1.834862385 | F41: #N/A N/A | G41: 126.8697 | H41: 62.13 | J41: A O Smith Corp | K41: AOS | L41: 9491.943493 | M41: 0.01834862385 | N41: N/A | O41: N/A | P41: N/A | Q41: N/A
A42: APA UW Equity | B42: APA Corp | C42: APA | D42: 1.457734506e+10 | E42: 1.380679312 | F42: 34.7 | G42: 321.5118 | H42: 45.34 | J42: APA Corp | K42: APA | L42: 14577.34506 | M42: 0.01380679312 | N42: 0.347 | O42: 0.3632022717 | P42: 0.0004291159802 | Q42: 0.0001558558989
A43: APD UN Equity | B43: Air Products and Chemicals Inc | C43: APD | D43: 6.912697196e+10 | E43: 2.19460501 | F43: 13.725 | G43: 221.9877 | H43: 311.4 | J43: Air Products and Chemicals Inc | K43: APD | L43: 69126.97196 | M43: 0.0219460501 | N43: 0.13725 | O43: 0.1607020978 | P43: 0.002034903353 | Q43: 0.0003270132376
A44: APH UN Equity | B44: Amphenol Corp | C44: APH | D44: 4.782774818e+10 | E44: 1.0065945 | F44: 9.9 | G44: 595.0945 | H44: 80.37 | J44: Amphenol Corp | K44: APH | L44: 47827.74818 | M44: 0.010065945 | N44: 0.099 | O44: 0.1095642093 | P44: 0.001407914196 | Q44: 0.0001542570056
A45: APTV UN Equity | B45: Aptiv PLC | C45: APTV | D45: 2.751492975e+10 | E45: 0.05514524865 | F45: 11.293 | G45: 270.9496 | H45: 101.55 | J45: Aptiv PLC | K45: APTV | L45: 27514.92975 | M45: 0.0005514524865 | N45: 0.11293 | O45: 0.1135125903 | P45: 0.0008099620338 | Q45: 9.194088846e-05
A46: ARE UN Equity | B46: Alexandria Real Estate Equities Inc | C46: ARE | D46: 2.552705753e+10 | E46: 3.030147201 | F46: -6.04 | G46: 164.0873 | H46: 155.57 | J46: Alexandria Real Estate Equities Inc | K46: ARE | L46: 25527.05753 | M46: 0.03030147201 | N46: -0.0604 | O46: -0.03101363245 | P46: 0.0007514446746 | Q46: -2.330502894e-05
A47: ATO UN Equity | B47: Atmos Energy Corp | C47: ATO | D47: 1.618017286e+10 | E47: 2.552727907 | F47: #N/A N/A | G47: 141.016 | H47: 114.74 | J47: Atmos Energy Corp | K47: ATO | L47: 16180.17286 | M47: 0.02552727907 | N47: N/A | O47: N/A | P47: N/A | Q47: N/A
A48: ATVI UW Equity | B48: Activision Blizzard Inc | C48: ATVI | D48: 5.999605695e+10 | E48: 0.6196190973 | F48: 3.6 | G48: 782.6253 | H48: 76.66 | J48: Activision Blizzard Inc | K48: ATVI | L48: 59996.05695 | M48: 0.006196190973 | N48: 0.036 | O48: 0.04230772241 | P48: 0.001766114933 | Q48: 7.472030034e-05
A49: AVB UN Equity | B49: AvalonBay Communities Inc | C49: AVB | D49: 2.348177037e+10 | E49: 3.797438189 | F49: 13.385 | G49: 139.8974 | H49: 167.85 | J49: AvalonBay Communities Inc | K49: AVB | L49: 23481.77037 | M49: 0.03797438189 | N49: 0.13385 | O49: 0.1743658174 | P49: 0.0006912371813 | Q49: 0.0001205281361
A50: AVGO UW Equity | B50: Broadcom Inc | C50: AVGO | D50: 241956075060 | E50: 3.177720207 | F50: 12.943 | G50: 417.8861 | H50: 579 | J50: Broadcom Inc | K50: AVGO | L50: 241956.0751 | M50: 0.03177720207 | N50: 0.12943 | O50: 0.1632636637 | P50: 0.007122505361 | Q50: 0.00116284632
A51: AVY UN Equity | B51: Avery Dennison Corp | C51: AVY | D51: 1.581648719e+10 | E51: 1.468209276 | F51: 7 | G51: 80.96901 | H51: 195.34 | J51: Avery Dennison Corp | K51: AVY | L51: 15816.48719 | M51: 0.01468209276 | N51: 0.07 | O51: 0.08519596601 | P51: 0.0004655928346 | Q51: 3.966663131e-05
A52: AWK UN Equity | B52: American Water Works Co Inc | C52: AWK | D52: 2.888699434e+10 | E52: 1.618304274 | F52: 7.813 | G52: 181.8279 | H52: 158.87 | J52: American Water Works Co Inc | K52: AWK | L52: 28886.99434 | M52: 0.01618304274 | N52: 0.07813 | O52: 0.0949452333 | P52: 0.0008503517509 | Q52: 8.073684538e-05
A53: AXP UN Equity | B53: American Express Co | C53: AXP | D53: 1.163889647e+11 | E53: 1.322547509 | F53: 10.573 | G53: 747.2327 | H53: 155.76 | J53: American Express Co | K53: AXP | L53: 116388.9647 | M53: 0.01322547509 | N53: 0.10573 | O53: 0.1196546398 | P53: 0.003426163303 | Q53: 0.000409956336
A54: AZO UN Equity | B54: AutoZone Inc | C54: AZO | D54: 4.445362272e+10 | E54: 0 | F54: 11.305 | G54: 18.76567 | H54: 2368.88 | J54: AutoZone Inc | K54: AZO | L54: 44453.62272 | M54: 0 | N54: 0.11305 | O54: 0.11305 | P54: 0.001308589446 | Q54: 0.0001479360368
A55: BA UN Equity | B55: Boeing Co/The | C55: BA | D55: 1.276178809e+11 | E55: 0 | F55: -52 | G55: 595.9832 | H55: 214.13 | J55: Boeing Co/The | K55: BA | L55: 127617.8809 | M55: 0 | N55: -0.52 | O55: -0.52 | P55: 0.003756710968 | Q55: -0.001953489703
A56: BAC UN Equity | B56: Bank of America Corp | C56: BAC | D56: 2.817264869e+11 | E56: 2.651149588 | F56: 2 | G56: 7996.778 | H56: 35.23 | J56: Bank of America Corp | K56: BAC | L56: 281726.4869 | M56: 0.02651149588 | N56: 0.02 | O56: 0.04677661084 | P56: 0.00829323427 | Q56: 0.0003879293921
A57: BALL UN Equity | B57: Ball Corp | C57: BALL | D57: 1.793119757e+10 | E57: 1.425070028 | F57: 9.3 | G57: 313.9201 | H57: 57.12 | J57: Ball Corp | K57: BALL | L57: 17931.19757 | M57: 0.01425070028 | N57: 0.093 | O57: 0.1079133578 | P57: 0.0005278439517 | Q57: 5.696141324e-05
A58: BAX UN Equity | B58: Baxter International Inc | C58: BAX | D58: 2.260477483e+10 | E58: 2.520071365 | F58: 3.115 | G58: 504.1208 | H58: 44.84 | J58: Baxter International Inc | K58: BAX | L58: 22604.77483 | M58: 0.02520071365 | N58: 0.03115 | O58: 0.05674321476 | P58: 0.000665420903 | Q58: 3.775812121e-05
A59: BBWI UN Equity | B59: Bath & Body Works Inc | C59: BBWI | D59: 1.065782594e+10 | E59: 1.716673811 | F59: -3.06 | G59: 228.4146 | H59: 46.66 | J59: Bath & Body Works Inc | K59: BBWI | L59: 10657.82594 | M59: 0.01716673811 | N59: -0.0306 | O59: -0.01369591299 | P59: 0.0003137363769 | Q59: -4.29690612e-06
A60: BBY UN Equity | B60: Best Buy Co Inc | C60: BBY | D60: 1.898006486e+10 | E60: 4.046397762 | F60: -0.03 | G60: 221.2645 | H60: 85.78 | J60: Best Buy Co Inc | K60: BBY | L60: 18980.06486 | M60: 0.04046397762 | N60: -0.0003 | O60: 0.04015790802 | P60: 0.0005587196507 | Q60: 2.243701234e-05
A61: BDX UN Equity | B61: Becton Dickinson and Co | C61: BDX | D61: 7.272996115e+10 | E61: 1.552863006 | F61: 8.843 | G61: 284.268 | H61: 255.85 | J61: Becton Dickinson and Co | K61: BDX | L61: 72729.96115 | M61: 0.01552863006 | N61: 0.08843 | O61: 0.1046452284 | P61: 0.002140965207 | Q61: 0.0002240417931
A62: BEN UN Equity | B62: Franklin Resources Inc | C62: BEN | D62: 1.504275962e+10 | E62: 4.05054872 | F62: -10 | G62: 500.2581 | H62: 30.07 | J62: Franklin Resources Inc | K62: BEN | L62: 15042.75962 | M62: 0.0405054872 | N62: -0.1 | O62: -0.06151978716 | P62: 0.0004428164742 | Q62: -2.724197525e-05
A63: BF/B UN Equity | B63: Brown-Forman Corp | C63: BF/B | D63: 3.216705611e+10 | E63: 1.15550917 | F63: 8.51 | G63: 309.9519 | H63: 67.07 | J63: Brown-Forman Corp | K63: BF/B | L63: 32167.05611 | M63: 0.0115550917 | N63: 0.0851 | O63: 0.09714676085 | P63: 0.0009469075307 | Q63: 9.198899943e-05
A64: BIIB UW Equity | B64: Biogen Inc | C64: BIIB | D64: 4.147816441e+10 | E64: 0 | F64: 0.09 | G64: 144.0014 | H64: 288.04 | J64: Biogen Inc | K64: BIIB | L64: 41478.16441 | M64: 0 | N64: 0.0009 | O64: 0.0009 | P64: 0.001221000334 | Q64: 1.0989003e-06
A65: BIO UN Equity | B65: Bio-Rad Laboratories Inc | C65: BIO | D65: 13575943976 | E65: 0 | F65: #N/A N/A | G65: 24.74931 | H65: 455.2 | J65: Bio-Rad Laboratories Inc | K65: BIO | L65: 13575.94398 | M65: 0 | N65: N/A | O65: N/A | P65: N/A | Q65: N/A
A66: BK UN Equity | B66: Bank of New York Mellon Corp/The | C66: BK | D66: 3.963805835e+10 | E66: 3.14297369 | F66: 9.633 | G66: 808.445 | H66: 49.03 | J66: Bank of New York Mellon Corp/The | K66: BK | L66: 39638.05835 | M66: 0.0314297369 | N66: 0.09633 | O66: 0.1292735502 | P66: 0.001166832794 | Q66: 0.0001508406178
A67: BKNG UW Equity | B67: Booking Holdings Inc | C67: BKNG | D67: 8.926757018e+10 | E67: 0 | F67: 20.2 | G67: 38.78939 | H67: 2301.34 | J67: Booking Holdings Inc | K67: BKNG | L67: 89267.57018 | M67: 0 | N67: 0.202 | O67: 0.202 | P67: 0.002627785837 | Q67: 0.0005308127391
A68: BKR UW Equity | B68: Baker Hughes Co | C68: BKR | D68: 3.189782857e+10 | E68: 2.28264306 | F68: 24.025 | G68: 1001.468 | H68: 31.63 | J68: =B68 -> Baker Hughes Co | K68: BKR | L68: =D68/1000000 -> 31897.82857 | M68: =IFERROR(E68/100,"0.00%") -> 0.0228264306 | N68: =IFERROR(F68/100,"N/A") -> 0.24025 | O68: =IFERROR(M68*(1+0.5*N68)+N68,"N/A") -> 0.2658184556 | P68: =IF(N68="N/A","N/A",L68/$L$504) -> 0.0009389822305 | Q68: =IF(AND(ISNUMBER(L68),ISNUMBER(O68)),O68*P68,"N/A") -> 0.0002495988063
A69: BLK UN Equity | B69: BlackRock Inc | C69: BLK | D69: 1.139748045e+11 | E69: 2.781867134 | F69: 2.57 | G69: 150.1956 | H69: 753.99 | J69: BlackRock Inc | K69: BLK | L69: 113974.8045 | M69: 0.02781867134 | N69: 0.0257 | O69: 0.05387614126 | P69: 0.003355097226 | Q69: 0.0001807596921
A70: BMY UN Equity | B70: Bristol-Myers Squibb Co | C70: BMY | D70: 1.541678868e+11 | E70: 2.945800579 | F70: 4.685 | G70: 2126.16 | H70: 72.51 | J70: Bristol-Myers Squibb Co | K70: BMY | L70: 154167.8868 | M70: 0.02945800579 | N70: 0.04685 | O70: 0.07699805958 | P70: 0.00453826836 | Q70: 0.0003494378576
A71: BR UN Equity | B71: Broadridge Financial Solutions Inc | C71: BR | D71: 1.69553086e+10 | E71: 2.015821248 | F71: #N/A N/A | G71: 117.6553 | H71: 144.11 | J71: Broadridge Financial Solutions Inc | K71: BR | L71: 16955.3086 | M71: 0.02015821248 | N71: N/A | O71: N/A | P71: N/A | Q71: N/A
A72: BRK/B UN Equity | B72: Berkshire Hathaway Inc | C72: BRK/B | D72: 7.006472017e+11 | E72: 0 | F72: #N/A N/A | G72: 1301.981 | H72: 317.64 | J72: Berkshire Hathaway Inc | K72: BRK/B | L72: 700647.2017 | M72: 0 | N72: N/A | O72: N/A | P72: N/A | Q72: N/A
A73: BRO UN Equity | B73: Brown & Brown Inc | C73: BRO | D73: 1.735303443e+10 | E73: 0.6854904521 | F73: #N/A N/A | G73: 283.2224 | H73: 61.27 | J73: Brown & Brown Inc | K73: BRO | L73: 17353.03443 | M73: 0.006854904521 | N73: N/A | O73: N/A | P73: N/A | Q73: N/A
A74: BSX UN Equity | B74: Boston Scientific Corp | C74: BSX | D74: 6.664544395e+10 | E74: 0 | F74: 10.563 | G74: 1432.311 | H74: 46.53 | J74: Boston Scientific Corp | K74: BSX | L74: 66645.44395 | M74: 0 | N74: 0.10563 | O74: 0.10563 | P74: 0.001961854158 | Q74: 0.0002072306547
A75: BWA UN Equity | B75: BorgWarner Inc | C75: BWA | D75: 1.041516681e+10 | E75: 1.605215827 | F75: 16.193 | G75: 234.1539 | H75: 44.48 | J75: BorgWarner Inc | K75: BWA | L75: 10415.16681 | M75: 0.01605215827 | N75: 0.16193 | O75: 0.1792818213 | P75: 0.0003065931756 | Q75: 5.496658292e-05
A76: BXP UN Equity | B76: Boston Properties Inc | C76: BXP | D76: 1.116093549e+10 | E76: 5.52247191 | F76: -12.57 | G76: 156.7547 | H76: 71.2 | J76: Boston Properties Inc | K76: BXP | L76: 11160.93549 | M76: 0.0552247191 | N76: -0.1257 | O76: -0.07394615449 | P76: 0.0003285465053 | Q76: -2.429475064e-05
A77: C UN Equity | B77: Citigroup Inc | C77: C | D77: 9.669504e+10 | E77: 4.150641026 | F77: -13.08 | G77: 1937 | H77: 49.92 | J77: Citigroup Inc | K77: C | L77: 96695.04 | M77: 0.04150641026 | N77: -0.1308 | O77: -0.09200810897 | P77: 0.002846429628 | Q77: -0.0002618946074
A78: CAG UN Equity | B78: Conagra Brands Inc | C78: CAG | D78: 1.902200401e+10 | E78: 3.229766976 | F78: 8.05 | G78: 476.6225 | H78: 39.91 | J78: Conagra Brands Inc | K78: CAG | L78: 19022.00401 | M78: 0.03229766976 | N78: 0.0805 | O78: 0.114097651 | P78: 0.0005599542212 | Q78: 6.388946129e-05
A79: CAH UN Equity | B79: Cardinal Health Inc | C79: CAH | D79: 2.015024465e+10 | E79: 2.596591648 | F79: 11.68 | G79: 262.1341 | H79: 76.87 | J79: Cardinal Health Inc | K79: CAH | L79: 20150.24465 | M79: 0.02596591648 | N79: 0.1168 | O79: 0.144282326 | P79: 0.0005931664479 | Q79: 8.558343481e-05
A80: CARR UN Equity | B80: Carrier Global Corp | C80: CARR | D80: 3.835931569e+10 | E80: 1.336385437 | F80: 6.3 | G80: 836.2615 | H80: 45.87 | J80: Carrier Global Corp | K80: CARR | L80: 38359.31569 | M80: 0.01336385437 | N80: 0.063 | O80: 0.07678481578 | P80: 0.001129190212 | Q80: 8.670466241e-05
A81: CAT UN Equity | B81: Caterpillar Inc | C81: CAT | D81: 1.345050019e+11 | E81: 1.789445175 | F81: 13.5 | G81: 520.4094 | H81: 258.46 | J81: Caterpillar Inc | K81: CAT | L81: 134505.0019 | M81: 0.01789445175 | N81: 0.135 | O81: 0.1541023272 | P81: 0.003959448412 | Q81: 0.0006101602149
A82: CB UN Equity | B82: Chubb Ltd | C82: CB | D82: 9.429527175e+10 | E82: 1.445926317 | F82: 14 | G82: 415.0503 | H82: 227.19 | J82: Chubb Ltd | K82: CB | L82: 94295.27175 | M82: 0.01445926317 | N82: 0.14 | O82: 0.1554714116 | P82: 0.00277578721 | Q82: 0.0004315555559
A83: CBOE UF Equity | B83: Cboe Global Markets Inc | C83: CBOE | D83: 1.320616997e+10 | E83: 1.576030203 | F83: #N/A N/A | G83: 106.0822 | H83: 124.49 | J83: Cboe Global Markets Inc | K83: CBOE | L83: 13206.16997 | M83: 0.01576030203 | N83: N/A | O83: N/A | P83: N/A | Q83: N/A
A84: CBRE UN Equity | B84: CBRE Group Inc | C84: CBRE | D84: 2.720632861e+10 | E84: 0 | F84: #N/A N/A | G84: 315.9485 | H84: 86.11 | J84: CBRE Group Inc | K84: CBRE | L84: 27206.32861 | M84: 0 | N84: N/A | O84: N/A | P84: N/A | Q84: N/A
A85: CCI UN Equity | B85: Crown Castle Inc | C85: CCI | D85: 6.532962143e+10 | E85: 3.961951478 | F85: 10.05 | G85: 433.048 | H85: 150.86 | J85: Crown Castle Inc | K85: CCI | L85: 65329.62143 | M85: 0.03961951478 | N85: 0.1005 | O85: 0.1421103954 | P85: 0.001923120049 | Q85: 0.0002732953505
A86: CCL UN Equity | B86: Carnival Corp | C86: CCL | D86: 1.304700591e+10 | E86: 0 | F86: #N/A N/A | G86: 1112.707 | H86: 10.51 | J86: Carnival Corp | K86: CCL | L86: 13047.00591 | M86: 0 | N86: N/A | O86: N/A | P86: N/A | Q86: N/A
A87: CDAY UN Equity | B87: Ceridian HCM Holding Inc | C87: CDAY | D87: 1.038608491e+10 | E87: 0 | F87: #N/A N/A | G87: 153.5949 | H87: 67.62 | J87: Ceridian HCM Holding Inc | K87: CDAY | L87: 10386.08491 | M87: 0 | N87: N/A | O87: N/A | P87: N/A | Q87: N/A
A88: CDNS UW Equity | B88: Cadence Design Systems Inc | C88: CDNS | D88: 4.643072616e+10 | E88: 0 | F88: 19.12 | G88: 274.316 | H88: 169.26 | J88: Cadence Design Systems Inc | K88: CDNS | L88: 46430.72616 | M88: 0 | N88: 0.1912 | O88: 0.1912 | P88: 0.001366789802 | Q88: 0.0002613302102
A89: CDW UW Equity | B89: CDW Corp/DE | C89: CDW | D89: 2.638093284e+10 | E89: 1.078778548 | F89: 13.1 | G89: 135.391 | H89: 194.85 | J89: CDW Corp/DE | K89: CDW | L89: 26380.93284 | M89: 0.01078778548 | N89: 0.131 | O89: 0.1424943854 | P89: 0.0007765803589 | Q89: 0.000110658341
A90: CE UN Equity | B90: Celanese Corp | C90: CE | D90: 1.315124073e+10 | E90: 2.268117734 | F90: 6.99 | G90: 108.4281 | H90: 121.29 | J90: Celanese Corp | K90: CE | L90: 13151.24073 | M90: 0.02268117734 | N90: 0.0699 | O90: 0.09337388449 | P90: 0.0003871354856 | Q90: 3.614834412e-05
A91: CEG UW Equity | B91: Constellation Energy Corp | C91: CEG | D91: 2.781870087e+10 | E91: 0.6552372006 | F91: 40.99 | G91: 326.6639 | H91: 85.16 | J91: Constellation Energy Corp | K91: CEG | L91: 27818.70087 | M91: 0.006552372006 | N91: 0.4099 | O91: 0.4177952806 | P91: 0.0008189042002 | Q91: 0.0003421343101
A92: CF UN Equity | B92: CF Industries Holdings Inc | C92: CF | D92: 1.705082623e+10 | E92: 1.705212289 | F92: 7.95 | G92: 196.1895 | H92: 86.91 | J92: CF Industries Holdings Inc | K92: CF | L92: 17050.82623 | M92: 0.01705212289 | N92: 0.0795 | O92: 0.09722994477 | P92: 0.0005019282992 | Q92: 4.880246081e-05
A93: CFG UN Equity | B93: Citizens Financial Group Inc | C93: CFG | D93: 2.05467231e+10 | E93: 3.883029722 | F93: -0.24 | G93: 492.491 | H93: 41.72 | J93: Citizens Financial Group Inc | K93: CFG | L93: 20546.7231 | M93: 0.03883029722 | N93: -0.0024 | O93: 0.03638370086 | P93: 0.0006048376566 | Q93: 2.200623237e-05
A94: CHD UN Equity | B94: Church & Dwight Co Inc | C94: CHD | D94: 1.99752563e+10 | E94: 1.281894763 | F94: 5.677 | G94: 243.8683 | H94: 81.91 | J94: Church & Dwight Co Inc | K94: CHD | L94: 19975.2563 | M94: 0.01281894763 | N94: 0.05677 | O94: 0.06995281345 | P94: 0.0005880152837 | Q94: 4.113332345e-05
A95: CHRW UW Equity | B95: CH Robinson Worldwide Inc | C95: CHRW | D95: 1.102113749e+10 | E95: 2.38385133 | F95: 5 | G95: 117.7095 | H95: 93.63 | J95: CH Robinson Worldwide Inc | K95: CHRW | L95: 11021.13749 | M95: 0.0238385133 | N95: 0.05 | O95: 0.07443447613 | P95: 0.0003244312458 | Q95: 2.414886982e-05
A96: CHTR UW Equity | B96: Charter Communications Inc | C96: CHTR | D96: 7.003903277e+10 | E96: 0 | F96: 20.423 | G96: 155.6723 | H96: 388.47 | J96: Charter Communications Inc | K96: CHTR | L96: 70039.03277 | M96: 0 | N96: 0.20423 | O96: 0.20423 | P96: 0.002061751854 | Q96: 0.0004210715812
A97: CI UN Equity | B97: Cigna Corp | C97: CI | D97: 9.606625245e+10 | E97: 1.419114605 | F97: 11.505 | G97: 305.739 | H97: 314.21 | J97: Cigna Corp | K97: CI | L97: 96066.25245 | M97: 0.01419114605 | N97: 0.11505 | O97: 0.1300574917 | P97: 0.002827919894 | Q97: 0.0003677921682
A98: CINF UW Equity | B98: Cincinnati Financial Corp | C98: CINF | D98: 1.709379349e+10 | E98: 2.537931034 | F98: -1.89 | G98: 157.1843 | H98: 108.75 | J98: Cincinnati Financial Corp | K98: CINF | L98: 17093.79349 | M98: 0.02537931034 | N98: -0.0189 | O98: 0.006239475862 | P98: 0.0005031931345 | Q98: 3.139661417e-06
A99: CL UN Equity | B99: Colgate-Palmolive Co | C99: CL | D99: 6.502142625e+10 | E99: 2.404624277 | F99: 2.51 | G99: 835.2142 | H99: 77.85 | J99: Colgate-Palmolive Co | K99: CL | L99: 65021.42625 | M99: 0.02404624277 | N99: 0.0251 | O99: 0.04944802312 | P99: 0.001914047651 | Q99: 9.464587249e-05
A100: CLX UN Equity | B100: Clorox Co/The | C100: CLX | D100: 1.802775269e+10 | E100: 3.245499966 | F100: 3.135 | G100: 123.3848 | H100: 146.11 | J100: Clorox Co/The | K100: CLX | L100: 18027.75269 | M100: 0.03245499966 | N100: 0.03135 | O100: 0.06431373178 | P100: 0.0005306862626 | Q100: 3.413041395e-05
